{"text_format":"1","workbook":"xlsx","n_sheets":37,"sheets":["Objectifs","Trucs et astuces","Listes","DatasListe","DatasBDD","Catégories","FiltreParSegment","FiltrerA_FiltreAvancé","FiltrerA_PowerQuery","FiltrerB_FiltreAvancé","FiltrerB_PowerQuery","FiltrerC_FiltreAvancé","FiltrerC_PowerQuery","RésultatsFiltres","TCD_A","BddComplète","TCD_B","TCD_C","TCD_D","DatasListe_Solution","Listes_Solution","DatasBDD_Solution","Catégories_Solution","FiltreParSegment_Solution","FiltrerA_FiltreAvancé_Solution","FiltrerA_PowerQuery_Solution","FiltrerB_FiltreAvancé_Solution","FiltrerB_PowerQuery_Solution","FiltrerC_FiltreAvancé_Solution","FiltrerC_PowerQuery_Solution","RésultatsFiltres_Solution","Feuil2","TCD_A_Solution","BddComplète_Solution","TCD_B_Solution","TCD_C_Solution","TCD_D_Solution"],"not_rendered":{"charts":0,"images":4,"macros":1,"external_links":0,"defined_names":22,"comments":0,"pivot_tables":4},"unopened":[],"bounds":{"document_bytes":16777216,"sheet_cells":100000,"rows_first":2000,"rows_last":500,"rows_between":2000,"halvings":0,"cell_chars":16384,"cell_head_chars":4096},"cells_cut":0,"cells_raw":0,"read":"whole","date_system":"1900"}

{"sheet":"Objectifs","index":0,"n_rows":77,"n_cols":16,"rows_kept":77,"cut":false,"hidden":false,"merged":[]}
[]
[null,"1-","Réalisez sur la feuille Listes quelques petits exercices sur l'affichage d'éléments d'une liste :",null,null,null,null,null,null,null,null,null,null,"Vers Listes",null,"Vers Listes_Solution"]
[]
[null,null,"=>","Création d'une liste dont le contenu s'étend en fonction d'ajout d'éléments"]
[null,null,"=>","Création d'une liste dont le contenu est trié par ordre alphabétique sans vide (si la colonne des éléments contient des vides)"]
[null,null,"=>","Création d'une liste dont le contenu dépend d'un choix dans Una autre liste"]
[]
[]
[null,"2-","Sur la feuille DatasBDD, exercices de mise en pratique du travail avec les listes et utilisation de fonctions diverses :",null,null,null,null,null,null,null,null,null,null,"Vers DatasBDD",null,"Vers DatasBDD_Solution"]
[]
[null,null,"=>","Transformer la plage en 'Tableau' que vous nommez tabDatasBDD"]
[null,null,null,"NB : utiliser un format 'sans format' et placer un contour épais au tableau créé"]
[null,null,null,"Dans le champ 'État civil', faites-en sorte que l'état civil puisse être choisi via une liste"]
[null,null,null,"NB : si un état civil est ajouté, il doit être ajouté aux éléments de la liste"]
[]
[null,null,"=>","Ajoutez en colonne CP une liste qui permet de choisir un code postal selon ceux indiqués sur la feuille 'DatasListe'"]
[null,null,null,"NB : Le tableau de données créé s'appellera tabDatasListe"]
[null,null,null,"NB : Faites-en sorte que les éléments de la liste soient triés par ordre croissant"]
[]
[null,null,"=>","Dans le champ commune, faire en sorte que la commune apparaisse selon le code postal choisi"]
[]
[null,null,"=>","Calculer l'âge selon la date de naissance"]
[]
[null,null,"=>","Dans la colonne 'Catégorie' ajoutez un code catégorie, celui-ci sera une des 4 premières lettres de l'alphabet calculé selon ceci"]
[]
[null,null,null,null,"- A pour les gens de 50 ans ou plus"]
[null,null,null,null,"- B pour les gens de 40 ans ou plus"]
[null,null,null,null,"- C pour les gens de 30 ans ou plus"]
[null,null,null,null,"- D pour les autres"]
[]
[null,"3-","Sur la feuille 'Catégories', calculez les catégories des gens selon les consignes données",null,null,null,null,null,null,null,null,null,null,"Vers Catégories",null,"Vers Catégories_Solution"]
[]
[null,"4-","Sur la feuille DatasBDD, un peu de mise en forme conditionnelle",null,null,null,null,null,null,null,null,null,null,"Vers DatasBDD",null,"Vers DatasBDD_Solution"]
[]
[null,null,"=>","Faire apparaître en rose les dames et en bleu les hommes"]
[]
[null,null,"=>","Faire apparaître les dates d'entrée du premier semestre en vert"]
[]
[null,"5-","Sur la feuille 'DatasBDD', utilisez les valeurs cibles pour obtenir la date à laquelle la personne concernée fêtera ses 65 ans",null,null,null,null,null,null,null,null,null,null,"Vers DatasBDD",null,"Vers DatasBDD_Solution"]
[]
[null,null,null,"NB : la fonction 'Datedif' donnait des résultats incohérents (dû aux décimales masquées par la fonction)."]
[null,null,null,"Un autre fonction, FRACTION.ANNEE, a été utilisée pour obtenir un résultat correct."]
[]
[null,"6-","Sur la feuille 'FiltreParSegment', combinez les segments sur le pays d'origine et le sexe pour filtrer les données sur ces 2 champs",null,null,null,null,null,null,null,null,null,null,"Vers FiltrerParSegment",null,"Vers FiltrerParSegment_Solution"]
[]
[null,"7-","Sur la feuille 'FiltrerA_FiltreAvancé', obtenez avec un filtre avancé une liste comprenant nom, prénom, date d'arrivée et pays d'origine",null,null,null,null,null,null,null,null,null,null,"Vers FiltrerA_FiltreAvancé",null,"Vers FiltrerA_FiltreAvancé_Solution"]
[null,null,null,"des gens  arrivés en mai 2010 ayant le Cameroun ou le Maroc comme pays d'origine"]
[]
[null,"8-","Sur la feuille 'FiltrerA_PowerQuery', obtenez avec Power Query une liste comprenant nom, prénom, date d'arrivée et pays d'origine",null,null,null,null,null,null,null,null,null,null,"Vers FiltrerA_PowerQuery",null,"Vers FiltrerA_PowerQuery_Solution"]
[null,null,null,"des gens arrivés en mai 2010 ayant le Cameroun ou le Maroc comme pays d'origine"]
[]
[null,"9-","Sur la feuille 'FiltrerB_FiltreAvancé', obtenez avec un filtre avancé une liste comprenant nom, prénom, date d'arrivée et pays d'origine",null,null,null,null,null,null,null,null,null,null,"Vers FiltrerB_FiltreAvancé",null,"Vers FiltrerB_FiltreAvancé_Solution"]
[null,null,null,"des gens ayant la Turquie ou le Congo comme pays d'origine, arrivés en mai 2010"]
[]
[null,"10-","Sur la feuille 'FiltrerB_PowerQuery', obtenez avec Power Query une liste comprenant nom, prénom, date d'arrivée et pays d'origine",null,null,null,null,null,null,null,null,null,null,"Vers FiltrerB_PowerQuery",null,"Vers FiltrerB_PowerQuery_Solution"]
[null,null,null,"des gens ayant la Turquie ou le Congo comme pays d'origine, arrivés en mai 2010"]
[]
[null,"11-","Sur la feuille 'FiltrerC_FiltreAvancé', obtenez avec un filtre avancé une liste comprenant nom, prénom, date d'arrivée et pays d'origine",null,null,null,null,null,null,null,null,null,null,"Vers FiltrerC_FiltreAvancé",null,"Vers FiltrerC_FiltreAvancé_Solution"]
[null,null,null,"des gens dont le nom commence par A, B ou C"]
[]
[null,"12-","Sur la feuille 'FiltrerC_PowerQuery', obtenez avec Power Query une liste comprenant nom, prénom, date d'arrivée et pays d'origine des gens",null,null,null,null,null,null,null,null,null,null,"Vers FiltrerC_PowerQuery",null,"Vers FiltrerC_PowerQuery_Solution"]
[null,null,null,"dont le nom commence par A, B ou C"]
[]
[null,"13-","Sur la feuille 'RésultatsFiltres', assembler tous les résultats des Query A, B et C sur une seule feuille",null,null,null,null,null,null,null,null,null,null,"Vers RésultatsFiltres",null,"Vers RésultatsFiltres_Solution"]
[]
[null,"14-","Sur la feuille TCD_A, utilisez tabDatasBDD et tabDatasListe de façon à obtenir le nombre d'habitants pas province dans un TCD",null,null,null,null,null,null,null,null,null,null,"Vers TCD_A",null,"Vers TCD_A_Solution"]
[]
[null,"15-","Sur la feuille 'BddComplète', en utilisant Power Query, assembler les colonnes des listes 'DatasBDD' et 'DatasListe'",null,null,null,null,null,null,null,null,null,null,"Vers BddComplète",null,"Vers BddComplète_Solution"]
[null,null,null,"de façon à ajouter à la liste des personnes la commune dans la colonne des communes et la province en première colonne "]
[]
[null,"16-","Sur la feuille TCD_B, créez un TCD donnant le nombre de personnes arrivées par trimestre en 2010",null,null,null,null,null,null,null,null,null,null,"Vers TCD_B",null,"Vers TCD_B_Solution"]
[]
[null,"17-","Sur la feuille TCD_C, créez un TCD donnant le nombre de personnes de 20 à 30 ans, de 30 à 40 ans, de 40 à 50 ans et de plus de 50 ans",null,null,null,null,null,null,null,null,null,null,"Vers TCD_C",null,"Vers TCD_C_Solution"]
[]
[null,"18-","Sur la feuille TCD_D, listez les pays d'origine et calculez le nombre de personnes et l'âge moyen par pays en utilisant les fonctions classiques",null,null,null,null,null,null,null,null,null,null,"Vers TCD_D",null,"Vers TCD_D_Solution"]
[null,null,"Réalisez la même chose en utilisant les TCD"]
[null,null,"Réalisez la même chose en utilisant Power Query"]

{"sheet":"Trucs et astuces","index":1,"n_rows":20,"n_cols":14,"rows_kept":20,"cut":false,"hidden":false,"merged":[]}
[]
[]
[null,null,null,null,"Renvoi du numéro de la colonne",{"$f":"COLUMN()","v":6}]
[]
[null,null,null,null,"Adresse de la cellule active :",{"$f":"ADDRESS(ROW(),COLUMN())","v":"$F$5"}]
[]
[null,null,null,null,"Nombre de feuilles du classeur :",{"$f":"_xlfn.SHEET()","v":2}]
[]
[null,null,null,null,"Lister les feuilles du classeur :","CF Excel Avancé, exercice 5-ExerciceSup5-ListerOnglets.xlsm",null,null,null,null,null,"Excel avancé – Le Declick, vous l'aurez …"]
[]
[null,null,null,null,"Les \"nouvelles\" fonctions avec \"effet\" de propogation :","Colonne0","Sequence",null,{"$f":"_xlfn.SEQUENCE(1,5)","v":1},2,3,4,5]
[null,null,null,null,null,"Colonne1","Unique",null,{"$f":"TRANSPOSE(_xlfn.UNIQUE(G11:G16,FALSE))","v":"Sequence"},"Unique","Filtre","Trier","ChoisirCol","…."]
[null,null,null,null,null,"Colonne2","Filtre",null,{"$f":"TRANSPOSE(_xlfn._xlws.FILTER(G11:G16,G11:G16>=\"T\"))","v":"Unique"},"Trier"]
[null,null,null,null,null,"Colonne3","Trier",null,{"$f":"TRANSPOSE(_xlfn._xlws.SORT(G11:G16))","v":"…."},"ChoisirCol","Filtre","Sequence","Trier","Unique"]
[null,null,null,null,null,"Colonne4","ChoisirCol",null,{"$f":"TRANSPOSE(_xlfn.CHOOSECOLS(F11:G16,COLUMN(G11)-COLUMN(F11)+1))","v":"Sequence"},"Unique","Filtre","Trier","ChoisirCol","…."]
[null,null,null,null,null,"Colonne5","…."]
[]
[null,null,null,null,"Récupération des contenus des formules propagées par la première référence de cellule + #",null,{"$f":"_xlfn.ANCHORARRAY(I12)","v":"Sequence"},"Unique","Filtre","Trier","ChoisirCol","…."]
[null,null,null,null,null,null,{"$f":"_xlfn.ANCHORARRAY(I13)","v":"Unique"},"Trier"]
[null,null,null,null,null,null,{"$f":"_xlfn.ANCHORARRAY(I14)","v":"…."},"ChoisirCol","Filtre","Sequence","Trier","Unique"]

{"sheet":"Listes","index":2,"n_rows":14,"n_cols":13,"rows_kept":14,"cut":false,"hidden":false,"merged":[]}
[null,null,null,null,null,null,null,null,null,null,null,null,"Retour sommaire"]
[null,"Utilisation efficace des listes par validation de données :"]
[]
[null,"1-","Créer la liste reprenant, par exemple, les pays d'origine"]
[null,null,"Faire en sorte que cette liste s'étende suite à l'ajout de nouveaux pays d'origine"]
[]
[null,"2-","Trier le contenu d'une liste par par ordre alphabétique"]
[]
[null,"3-","Créer une seconde liste reprenant les personnes dont le pays d'origine est celui choisi dans la première liste"]
[]
[]
[]
[]
["Liste qui s'étend selon l'ajout :",null,null,null,null,"Liste triée par ordre alphabétique :",null,null,null,null,null,null,"Liste dont le contenu dépend du choix via une autre liste :"]

{"sheet":"DatasListe","index":3,"n_rows":33,"n_cols":13,"rows_kept":33,"cut":false,"hidden":false,"merged":[]}
["Commune","CP","Province",null,null,"États civils",null,null,null,null,null,null,"Retour sommaire"]
["Bruxelles",1000,"Bruxelles",null,null,"Célibataire"]
["Laeken",1020,"Bruxelles",null,null,"Marié(e)"]
["Schaerbeek",1030,"Bruxelles",null,null,"Divocé(e)"]
["Etterbeek",1040,"Bruxelles"]
["Ixelles",1050,"Bruxelles"]
["Saint Gilles",1060,"Bruxelles"]
["Anderlecht",1070,"Bruxelles"]
["Molenbeek",1080,"Bruxelles"]
["Berchem-Sainte-Agathe",1082,"Bruxelles"]
["Jette",1090,"Bruxelles"]
["Haren",1130,"Bruxelles"]
["Evere",1140,"Bruxelles"]
["Woluwé-Saint-Pierre",1150,"Bruxelles"]
["Auderghem",1160,"Bruxelles"]
["Uccle",1180,"Bruxelles"]
["Woluwé-Saint-Lambert",1200,"Bruxelles"]
["Saint-Josse-Ten-noode",1210,"Bruxelles"]
["Wavre",1500,"Brabant wallon"]
["Asse",1730,"Brabant flamand"]
["Vilvoorde",1800,"Brabant flamand"]
["Zaventem",1930,"Brabant flamand"]
["Krainem",1950,"Brabant flamand"]
["Tervuren",3080,"Brabant flamand"]
["Chiny",6811,"Luxembourg"]
["Florenville",6820,"Luxembourg"]
["Agimont",5544,"Namur"]
["Auvelais",5060,"Namur"]
["Bouge",5004,"Namur"]
["Namur",5000,"Namur"]
["Lège",4000,"Liège"]
["Ekeren",2180,"Anvers"]
["Anvers",2000,"Anvers"]

{"sheet":"DatasBDD","index":4,"n_rows":93,"n_cols":22,"rows_kept":93,"cut":false,"hidden":false,"merged":[]}
["Nom","Date d'entrée","Sexe","État civil","Rue","Nr","CP","Commune1","Commune1_Def","Commune","Date de naissance","Âge","Date de 65 ans","65 ans","Catégorie","Pays d'origine","Nombre d'enfants",null,null,"Retour sommaire"]
["Akhenaton","2010-04-14","m",null,"Avenue Claeys",10,1030,null,null,null,"1980-11-22",null,null,null,null,"Guinée"]
["Aldebert","2010-04-19","m",null,"Rue de Rudder",20,1080,null,null,null,"1980-02-12",null,null,null,null,"Guinée",1]
["Arno","2010-04-20","m",null,"Rue de Linthout",23,1030,null,null,null,"1972-09-01",null,null,null,null,"Belgique"]
["Bernard Lavilliers","2010-05-31","m",null,"Rue du Maroquin",22,1080,null,null,null,"1976-06-17",null,null,null,null,"Maroc",null,null,null,"=>","Transformer la plage en 'Tableau' que vous nommez tabDatasBDD"]
["Calogero","2010-05-27","m",null,"Rue du vanderschrick",152,1060,null,null,null,"1991-12-11",null,null,null,null,"Equateur",null,null,null,null,"NB : utiliser un format 'sans format' et placer un contour épais au tableau créé"]
["Christophe Willem","2010-05-31","m",null,"Rue Ferdinand Craps",35,1070,null,null,null,"1980-06-15",null,null,null,null,"Cameroun",null,null,null,null,"Dans le champ 'État civil', faites-en sorte que l'état civil puisse être choisi via une liste"]
["Doc Gynéco","2010-05-31","m",null,"Rue aux bois",42,1150,null,null,null,"1981-04-13",null,null,null,null,"Turquie",null,null,null,null,"NB : si un état civil est ajouté, il doit être ajouté aux éléments de la liste"]
["Faudel","2010-05-31","m",null,"Rue Renkin",333,1030,null,null,null,"1988-12-19",null,null,null,null,"Maroc"]
["Frank Alamo","2010-05-31","m",null,"Rue Vandenboogaerde",66,1080,null,null,null,"1978-08-19",null,null,null,null,"Cameroun",null,null,null,"=>","Ajoutez en colonne CP une liste qui permet de choisir un code postal selon ceux indiqués sur la feuille 'DatasListe'"]
["Gérard Blanchard","2010-05-07","m",null,"Rue de la stratégie ",33,1160,null,null,null,"1977-09-25",null,null,null,null,"Cameroun",null,null,null,null,"NB : Le tableau de données créé s'appellera tabDatasListe"]
["Hubert-Félix Thiéfaine","2010-05-12","m",null,"Rue Jean Debien",14,1030,null,null,null,"1975-09-21",null,null,null,null,"Guinée conakry",4,null,null,null,"NB : Faites-en sorte que les éléments de la liste soient triés par ordre croissant"]
["Jean-Louis Aubert","2010-06-14","m",null,"Pierre Jean Demessemaker",158,1080,null,null,null,"1969-05-17",null,null,null,null,"Congo",2]
["Estelle Hallyday","2010-06-14","f",null,"Avenue Crikx",111,1060,null,null,null,"1981-03-15",null,null,null,null,"Congo",null,null,null,"=>","Dans le champ commune, faire en sorte que la commune apparaisse selon le code postal choisi"]
["Kent","2010-06-15","m",null,"Avenue Georges Henri",10,1200,null,null,null,"1969-12-14",null,null,null,null,"Cameroun",1]
["Mano Solo","2010-06-22","m",null,"Bergensesteenweeg",258,1500,null,null,null,"1973-04-14",null,null,null,null,"Maroc",4,null,null,"=>","Calculer l'âge selon la date de naissance"]
["Matthieu Chedid","2010-06-22","m",null,"Frans van Cutsen",26,1140,null,null,null,"1970-11-18",null,null,null,null,"Cameroun",2]
["Michel Fugain","2010-06-22","m",null,"Rue du champ de la couronne",222,1020,null,null,null,"1970-12-12",null,null,null,null,"Togo",2,null,null,"=>","Dans la colonne 'Catégorie' ajoutez un code catégorie, celui-ci sera une des 4 premières lettres de l'alphabet calculé selon ceci"]
["Pascal Mono","2010-06-22","m",null,"Rue Chaumontel",78,1030,null,null,null,"1962-06-01",null,null,null,null,"Maroc",5]
["Vanessa Paradis","2010-07-13","f",null,"Kalkoven",80,1730,null,null,null,"1966-09-03",null,null,null,null,"Congo",null,null,null,null,null,"- A pour les gens de 50 ans ou plus"]
["Richard Anthony","2010-07-06","m",null,"Dédale du campanil",52,1200,null,null,null,"1971-04-02",null,null,null,null,"Congo",null,null,null,null,null,"- B pour les gens de 40 ans ou plus"]
["Stephan Eicher","2010-06-22","m",null,"Place Eugène Verboekhoven",40,1030,null,null,null,"1983-02-02",null,null,null,null,"Togo",null,null,null,null,null,"- C pour les gens de 30 ans ou plus"]
["Thomas Fersen","2010-05-12","m",null,"Chaussée de Louvain",100,1210,null,null,null,"1954-03-05",null,null,null,null,"Maroc",null,null,null,null,null,"- D pour les autres"]
["Yann Tiersen","2010-05-12","m",null,"Rue verte",70,1210,null,null,null,"1950-04-16",null,null,null,null,"Maroc",6]
["Alain Bashung","2010-05-12","m",null,"Du Vallon",56,1210,null,null,null,"1964-01-28",null,null,null,null,"Algérie",5]
["Alexis HK","2010-05-12","m",null,"Martin 5",56,1200,null,null,null,"1980-02-15",null,null,null,null,"Cameroun"]
["Arthur H","2010-05-04","m",null,"Chaussée de Haecht",300,1030,null,null,null,"1960-04-04",null,null,null,null,"Congo"]
["Bertrand Burgalat","2010-05-04","m",null,"Rue potagère",165,1030,null,null,null,"1971-12-20",null,null,null,null,"Maroc",2]
["Charlélie Couture","2010-05-04","m",null,"Rue Ernest Discailliens",22,1030,null,null,null,"1973-08-13",null,null,null,null,"Belgique"]
["Corneille","2010-05-04","m",null,"Rue de Navez",23,1030,null,null,null,"1982-09-20",null,null,null,null,"Turquie",1]
["Eddy Mitchell","2010-05-04","m",null,"Edouard Stuckens",78,1030,null,null,null,"1977-08-15",null,null,null,null,"France",4]
["Florent Pagny","2010-04-30","m",null,"Joseph Dekeyn",85,1210,null,null,null,"1963-10-03",null,null,null,null,"Armenie"]
["Garou","2010-06-22","m",null,"Rue du petit rempart",52,1000,null,null,null,"1963-10-04",null,null,null,null,null,1]
["Gilbert Montagné","2010-06-22","m",null,"Chaussée d'Anvers",55,1000,null,null,null,"1980-09-27",null,null,null,null,"Belgique",2]
["Jacques Higelin","2010-05-12","m",null,"Rue de choeur",87,1080,null,null,null,"1969-01-01",null,null,null,null,"Maroc"]
["Jean-Louis Murat","2010-05-12","m",null,"Rue de l'aérodrome",85,1130,null,null,null,"1967-05-05",null,null,null,null,"Yougoslavie"]
["Julien Baer","2010-05-12","m",null,"Rue de Locht",96,1030,null,null,null,"1983-01-01",null,null,null,null,"Maroc"]
["Cécile Defrance","2010-04-19","f",null,"Avenue de la couronne",66,1050,null,null,null,"1963-09-12",null,null,null,null,"Sénégal",2]
["Amel Bent","2010-04-19","f",null,"Henri Strauven",36,1200,null,null,null,"1980-04-27",null,null,null,null,"Congo"]
["Maxime Le Forestier","2010-04-28","m",null,"Boulevard Emile Bockstael",5,1020,null,null,null,"1986-06-15",null,null,null,null,"Abidjan"]
["Michel Jonasz","2010-05-12","m",null,"Rue aux bois",85,1950,null,null,null,"1984-12-24",null,null,null,null,"Nigeria",2]
["Pascal Obispo","2010-05-12","m",null,"Gustave Huberti",55,1030,null,null,null,"1971-05-23",null,null,null,null,"Maroc"]
["Sandra Kim","2010-05-12","f",null,"Avenue de la couronne",14,1050,null,null,null,"1964-11-03",null,null,null,null,"Sénégal",2]
["Roch Voisine","2010-05-10","m",null,"Léon Doperie",36,1090,null,null,null,"1978-02-28",null,null,null,null,"Cameroun"]
["Stomy Bugsy","2010-05-07","m",null,"Rue de l'Ourthe",254,1080,null,null,null,"1980-10-10",null,null,null,null,"Congo"]
["Tonton David","2010-05-07","m",null,"Rue Vanderschrick",88,1060,null,null,null,"1964-12-05",null,null,null,null,"Equateur"]
["Yannick Noah","2010-04-30","m",null,"Avenue Jacobs Fontaine",99,1020,null,null,null,"1978-11-11",null,null,null,null,"Congo"]
["Alain Chamfort","2010-05-12","m",null,"Rue Wayez",33,1070,null,null,null,"1971-10-11",null,null,null,null,"Maroc"]
["Alibi Montana","2010-05-12","m",null,"Rue Rogier",78,1030,null,null,null,"1968-09-04",null,null,null,null,"Syrie"]
["Axelle Red","2010-04-30","f",null,"Rue hydrolique",56,1210,null,null,null,"1984-03-13",null,null,null,null,"Géorgie"]
["Bob Sinclar","2010-04-30","m",null,"Rue de l'inquisition",8,1000,null,null,null,"1968-09-24",null,null,null,null,"Bangladesh"]
["Charles Aznavour","2010-04-30","m",null,"Avenue Emile Zola",78,1030,null,null,null,"1984-12-24",null,null,null,null,"Colombie"]
["David Hallyday","2010-05-15","m",null,"Rue Wautier",41,1020,null,null,null,"1969-02-10",null,null,null,null,"Syrie"]
["Étienne Daho","2010-05-12","m",null,"Rue de Deux Eglises",10,1000,null,null,null,"1988-04-10",null,null,null,null,"Guinée"]
["Francis Cabrel","2010-06-14","m",null,"Rue Rinken",63,1030,null,null,null,"1963-03-25",null,null,null,null,"Maroc",3]
["Margueritte Duras","2010-04-28","f",null,"Rue Brogniez",7,1070,null,null,null,"1958-05-07",null,null,null,null,"Angola"]
["Grand Corps Malade","1960-04-28","m",null,"Rue Brogniez",99,1070,null,null,null,"1960-09-14",null,null,null,null,"Togo",2]
["Jean Bart","2010-04-23","m",null,"Rue Saint Bernard",44,1060,null,null,null,"1960-09-28",null,null,null,null,"Congo",5]
["Jean-Luc Lahaye","2010-04-22","m",null,"Rue de Haeck",5,1080,null,null,null,"1968-03-03",null,null,null,null,"Congo",3]
["Julien Clerc","2010-04-26","m",null,"Chemin des deux maisons",88,1200,null,null,null,"1979-06-02",null,null,null,null,"Cameroun"]
["Laurent Voulzy","2010-04-19","m",null,"Leuvensesteegweg",41,3080,null,null,null,"1975-08-23",null,null,null,null,"Congo",1]
["Marylou Str","2010-07-13","f",null,"Kleine Gestraat",22,1930,null,null,null,"1973-09-15",null,null,null,null,"Cameroun",3]
["MC Solaar","2010-08-17","m",null,"Rue Nicolas Doyen",12,1080,null,null,null,"1982-03-23",null,null,null,null,"Congo",2]
["Michel Sardou","2010-08-17","m",null,"Jacobs Fontaine",4,1020,null,null,null,"1985-08-13",null,null,null,null,"Congo",1]
["Patrick Bruel","2010-08-23","m",null,"Chaussée d'Ath",99,1030,null,null,null,"1973-04-13",null,null,null,null,"Congo",3]
["Raphaël","2010-08-23","m",null,"Géneral Molitor",66,1040,null,null,null,"1986-05-06",null,null,null,null,"Belgique",1]
["Sévérine Inconnue","2010-08-23","f",null,"Avenue Gustave Latinis",74,1030,null,null,null,"1974-04-07",null,null,null,null,"Corée",1]
["Tété","2010-08-24","m",null,"Léon Mignon",25,1030,null,null,null,"1989-01-25",null,null,null,null,"Belgique"]
["Vincent Delerm","2010-08-20","m",null,"Rue d'Italie",63,1800,null,null,null,"1983-07-02",null,null,null,null,"Cameroun",2]
["Alain Souchon","2010-08-26","m",null,"Géneral Molitor",74,1040,null,null,null,"1983-04-19",null,null,null,null,"Algérie"]
["Antoine","2010-08-20","m",null,"Rue du Trône",14,1050,null,null,null,"1969-09-01",null,null,null,null,"Cameroun"]
["Bénabar","2010-08-30","m",null,"Square Armand Steurs",12,1210,null,null,null,"1979-02-26",null,null,null,null,"Congo"]
["Cali","2010-08-30","m",null,"Chaussée de Mons",41,1070,null,null,null,"1978-09-05",null,null,null,null,"Maroc"]
["Christophe Maé","2010-09-02","m",null,"Chaussée d'alsemberg",111,1180,null,null,null,"1970-09-25",null,null,null,null,"Rwanda",2]
["Didier Super","2010-09-06","m",null,"Rue Du grand-Duc",11,1040,null,null,null,"1973-02-02",null,null,null,null,"Sénégal"]
["Faf Larage","2010-09-07","m",null,"Avenue Louis Ceuster",256,1150,null,null,null,"1976-03-17",null,null,null,null,"Angola",3]
["Francisca Lalanne","2010-07-13","f",null,"Rue Borgval",36,1000,null,null,null,"1973-06-24",null,null,null,null,"Algérie"]
["Gérald De Palmas","2010-09-28","m",null,"Du Chapitre",65,1070,null,null,null,"1983-12-20",null,null,null,null,"Côte d'Ivoire"]
["Grégory Lemarchal","2010-09-27","m",null,"Moorsled",587,1020,null,null,null,"1973-09-13",null,null,null,null,"Belgique"]
["Jean-Jacques Goldman","2010-10-01","m",null,"Marcelle Gruner",25,1080,null,null,null,"1974-06-27",null,null,null,null,"Cameroun"]
["Jérémy Chatelain","2010-10-01","m",null,"Rue d'Albanie",55,1160,null,null,null,"1955-02-22",null,null,null,null,"Equateur",4]
["Kamini","2010-09-27","m",null,"Avenue de Koekelberg",35,1082,null,null,null,"1981-07-14",null,null,null,null,"Cameroun"]
["Louis Bertignac","2010-09-28","m",null,"Avenue de Koekelberg",856,1082,null,null,null,"1955-02-22"]
["Matt Pokora","2010-10-12","m",null,"Rue Masoui",584,1030,null,null,null,"1971-10-01",null,null,null,null,"Congo"]
["Michel Delpech","2010-10-12","m",null,"BLD Maurice Karen",452,1070,null,null,null,"1981-08-24",null,null,null,null,"Cuba"]
["Miossec","2010-10-12","m",null,"Eugène Plasky",25,1030,null,null,null,"1965-08-25",null,null,null,null,"Congo"]
["Patricia Fiori","2010-10-08","f",null,"Chaussée d'Hacht",2,1030,null,null,null,"1976-09-15",null,null,null,null,"Cameroun"]
["Renaud","2010-10-09","m",null,"BLD Maurice Karen",452,1070,null,null,null,"1968-03-03",null,null,null,null,"Congo"]
["Serge Lama","2010-10-10","m",null,"Rue Borgval",36,1000,null,null,null,"1979-06-02",null,null,null,null,"Cuba"]
["Thierry Amiel","2010-10-11","m",null,"Rue Borgval",36,1000,null,null,null,"1975-08-23",null,null,null,null,"Congo"]
["William Sheller","2010-10-12","m",null,"Square Armand Steurs",12,1210,null,null,null,"1973-09-15",null,null,null,null,"Cameroun"]
["Damso","2010-04-01","m",null,"Chaussée d'Hacht",36,1030,null,null,null,"1991-09-09",null,null,null,null,"Chine"]
["Daniel Balavoine","2010-08-02","m",null,"Avenue Chazal",5,1030,null,null,null,"1970-07-08",null,null,null,null,"Ukraine"]

{"sheet":"Catégories","index":5,"n_rows":30,"n_cols":15,"rows_kept":30,"cut":false,"hidden":false,"merged":[]}
[null,null,null,null,null,null,null,null,null,null,null,null,"Retour sommaire"]
[]
[null,"Le problème ci-dessous peut être résolu avec des SI depuis le passage à un possibilité de 64 SI mais cette technique n'est pas conseillée dans ce cas sauf si vous tenez absolument à perdre de précieuses secondes de votre vie."]
[null,"Ce genre de problème peut être solutionné par l'utilisation d'une 'RechercheV' (RechercheX) par valeur proche."]
[]
[]
[null,"Méthode \"classique\"",null,null,null,null,null,null,null,null,"Avec des tableaux de données"]
[]
[null,"Ages",null,"Tranches",null,"Age","Tranches\n(RechercheV)\n(VLookUp)","Tranches\n(RechercheX)\n(XLookUp)",null,null,null,"Tranches",null,"Age","Tranches\n(RechercheX)\n(XLookUp)"]
[null,"<25",0,0,null,42,null,null,null,null,0,0,null,42]
[null,">=25 et <30",25,1,null,28,null,null,null,null,25,1,null,28]
[null,">=30 et <35",30,2,null,66,null,null,null,null,30,2,null,66]
[null,">=35 et <40",35,3,null,42,null,null,null,null,35,3,null,42]
[null,">=40 et <45",40,4,null,44,null,null,null,null,40,4,null,44]
[null,">=45 et <50",45,5,null,32,null,null,null,null,45,5,null,32]
[null,">=50 et <55",50,6,null,25,null,null,null,null,50,6,null,25]
[null,">=55 et <60",55,7,null,37,null,null,null,null,55,7,null,37]
[null,">=60 et <65",60,8,null,52,null,null,null,null,60,8,null,52]
[null,">=65 et <70",65,9,null,55,null,null,null,null,65,9,null,55]
[null,">=70",70,10,null,48,null,null,null,null,70,10,null,48]
[null,null,null,null,null,29,null,null,null,null,null,null,null,29]
[null,null,null,null,null,39,null,null,null,null,null,null,null,39]
[null,null,null,null,null,49,null,null,null,null,null,null,null,49]
[null,null,null,null,null,47,null,null,null,null,null,null,null,47]
[null,null,null,null,null,41,null,null,null,null,null,null,null,41]
[null,null,null,null,null,29,null,null,null,null,null,null,null,29]
[null,null,null,null,null,25,null,null,null,null,null,null,null,25]
[null,null,null,null,null,48,null,null,null,null,null,null,null,48]
[null,null,null,null,null,42,null,null,null,null,null,null,null,42]
[null,null,null,null,null,24,null,null,null,null,null,null,null,24]

{"sheet":"FiltreParSegment","index":6,"n_rows":1,"n_cols":13,"rows_kept":1,"cut":false,"hidden":false,"merged":[]}
["Sur la feuille 'FiltreParSegment', combinez les segments sur le pays d'origine et le sexe pour filtrer les données sur ces 2 champs",null,null,null,null,null,null,null,null,null,null,null,"Retour sommaire"]

{"sheet":"FiltrerA_FiltreAvancé","index":7,"n_rows":2,"n_cols":13,"rows_kept":2,"cut":false,"hidden":false,"merged":[]}
["Sur la feuille 'FiltrerA_FiltreAvancé', obtenez avec un filtre avancé une liste comprenant nom, prénom, date d'arrivée et pays d'origine arrivés en mai 2010",null,null,null,null,null,null,null,null,null,null,null,"Retour sommaire"]
[null,"des gens ayant le Cameroun ou le Maroc comme pays d'origine"]

{"sheet":"FiltrerA_PowerQuery","index":8,"n_rows":2,"n_cols":13,"rows_kept":2,"cut":false,"hidden":false,"merged":[]}
["Sur la feuille 'FiltrerA_PowerQuery', obtenez avec Power Query une liste comprenant nom, prénom, date d'arrivée et pays d'origine",null,null,null,null,null,null,null,null,null,null,null,"Retour sommaire"]
[null,"des gens arrivés en mai 2010 ayant le Cameroun ou le Maroc comme pays d'origine"]

{"sheet":"FiltrerB_FiltreAvancé","index":9,"n_rows":2,"n_cols":13,"rows_kept":2,"cut":false,"hidden":false,"merged":[]}
["Sur la feuille 'FiltrerB_FiltreAvancé', obtenez avec un filtre avancé une liste comprenant nom, prénom, date d'arrivée et pays d'origine",null,null,null,null,null,null,null,null,null,null,null,"Retour sommaire"]
[null,"des gens ayant la Turquie ou le Congo comme pays d'origine, arrivés en mai 2010"]

{"sheet":"FiltrerB_PowerQuery","index":10,"n_rows":2,"n_cols":13,"rows_kept":2,"cut":false,"hidden":false,"merged":[]}
["Sur la feuille 'FiltrerB_PowerQuery', obtenez avec Power Query une liste comprenant nom, prénom, date d'arrivée et pays d'origine",null,null,null,null,null,null,null,null,null,null,null,"Retour sommaire"]
[null,"des gens ayant la Turquie ou le Congo comme pays d'origine, arrivés en mai 2010"]

{"sheet":"FiltrerC_FiltreAvancé","index":11,"n_rows":2,"n_cols":13,"rows_kept":2,"cut":false,"hidden":false,"merged":[]}
["Sur la feuille 'FiltrerC_FiltreAvancé', obtenez avec un filtre avancé une liste comprenant nom, prénom, date d'arrivée et pays d'origine",null,null,null,null,null,null,null,null,null,null,null,"Retour sommaire"]
[null,"des gens dont le nom commence par A, B ou C"]

{"sheet":"FiltrerC_PowerQuery","index":12,"n_rows":2,"n_cols":13,"rows_kept":2,"cut":false,"hidden":false,"merged":[]}
["Sur la feuille 'FiltrerC_PowerQuery', obtenez avec Power Query une liste comprenant nom, prénom, date d'arrivée et pays d'origine des gens",null,null,null,null,null,null,null,null,null,null,null,"Retour sommaire"]
[null,"dont le nom commence par A, B ou C"]

{"sheet":"RésultatsFiltres","index":13,"n_rows":1,"n_cols":13,"rows_kept":1,"cut":false,"hidden":false,"merged":[]}
["Sur la feuille 'RésultatsFiltres', assembler tous les résultats des Query A, B et C sur une seule feuille",null,null,null,null,null,null,null,null,null,null,null,"Retour sommaire"]

{"sheet":"TCD_A","index":14,"n_rows":1,"n_cols":13,"rows_kept":1,"cut":false,"hidden":false,"merged":[]}
["Sur la feuille TCD_A, utilisez tabDatasBDD et tabDatasListe de façon à obtenir le nombre d'habitants pas province dans un TCD",null,null,null,null,null,null,null,null,null,null,null,"Retour sommaire"]

{"sheet":"BddComplète","index":15,"n_rows":2,"n_cols":13,"rows_kept":2,"cut":false,"hidden":false,"merged":[]}
["Sur la feuille 'BddComplète', en utilisant Power Query, assembler les colonnes des listes 'DatasBDD' et 'DatasListe'",null,null,null,null,null,null,null,null,null,null,null,"Retour sommaire"]
[null,"de façon à ajouter à la liste des personnes la commune dans la colonne des communes et la province en première colonne "]

{"sheet":"TCD_B","index":16,"n_rows":1,"n_cols":13,"rows_kept":1,"cut":false,"hidden":false,"merged":[]}
["Sur la feuille TCD_B, créez un TCD donnant le nombre de personnes arrivées par trimestre en 2010",null,null,null,null,null,null,null,null,null,null,null,"Retour sommaire"]

{"sheet":"TCD_C","index":17,"n_rows":1,"n_cols":13,"rows_kept":1,"cut":false,"hidden":false,"merged":[]}
["Sur la feuille TCD_C, créez un TCD donnant le nombre de personnes de 20 à 30 ans, de 30 à 40 ans, de 40 à 50 ans et de plus de 50 ans",null,null,null,null,null,null,null,null,null,null,null,"Retour sommaire"]

{"sheet":"TCD_D","index":18,"n_rows":3,"n_cols":13,"rows_kept":3,"cut":false,"hidden":false,"merged":[]}
["Sur la feuille TCD_D, listez les pays d'origine et calculez le nombre de personnes et l'âge moyen par pays en utilisant les fonctions classiques",null,null,null,null,null,null,null,null,null,null,null,"Retour sommaire"]
["Réalisez la même chose en utilisant les TCD"]
["Réalisez la même chose en utilisant Power Query"]

{"sheet":"DatasListe_Solution","index":19,"n_rows":36,"n_cols":13,"rows_kept":36,"cut":false,"hidden":false,"merged":[]}
["Commune","CP","Province",null,null,"États civils",null,null,null,null,null,null,"Retour sommaire"]
["Bruxelles",1000,"Bruxelles",null,null,"Célibataire"]
["Laeken",1020,"Bruxelles",null,null,"Marié(e)"]
["Schaerbeek",1030,"Bruxelles",null,null,"Divocé(e)"]
["Etterbeek",1040,"Bruxelles",null,null,"Cohabitant(e)"]
["Ixelles",1050,"Bruxelles",null,null,"Autre"]
["Saint Gilles",1060,"Bruxelles"]
["Anderlecht",1070,"Bruxelles"]
["Molenbeek",1080,"Bruxelles"]
["Berchem-Sainte-Agathe",1082,"Bruxelles"]
["Jette",1090,"Bruxelles"]
["Haren",1130,"Bruxelles"]
["Evere",1140,"Bruxelles"]
["Woluwé-Saint-Pierre",1150,"Bruxelles"]
["Auderghem",1160,"Bruxelles"]
["Uccle",1180,"Bruxelles"]
["Woluwé-Saint-Lambert",1200,"Bruxelles"]
["Saint-Josse-Ten-noode",1210,"Bruxelles"]
["Wavre",1500,"Brabant wallon"]
["Asse",1730,"Brabant flamand"]
["Vilvoorde",1800,"Brabant flamand"]
["Zaventem",1930,"Brabant flamand"]
["Krainem",1950,"Brabant flamand"]
["Tervuren",3080,"Brabant flamand"]
["Chiny",6811,"Luxembourg"]
["Florenville",6820,"Luxembourg"]
["Agimont",5544,"Namur"]
["Auvelais",5060,"Namur"]
["Bouge",5004,"Namur"]
["Namur",5000,"Namur"]
["Lège",4000,"Liège"]
["Ekeren",2180,"Anvers"]
["Anvers",2000,"Anvers"]
["Ailleurs",7000,"Luxembourg"]
["Plusloin",7010,"Luxembourg"]
["Encoreplusloin",7020,"Luxembourg"]

{"sheet":"Listes_Solution","index":20,"n_rows":124,"n_cols":26,"rows_kept":124,"cut":false,"hidden":false,"merged":[]}
[null,null,null,null,null,null,null,null,null,null,null,null,"Retour sommaire"]
[null,"Utilisation efficace des listes par validation de données :"]
[]
[null,"1-","Créer la liste reprenant, par exemple, les pays d'origine"]
[null,null,"Faire en sorte que cette liste s'étende suite à l'ajout de nouveaux pays d'origine"]
[]
[null,"2-","Trier le contenu d'une liste par par ordre alphabétique"]
[]
[null,"3-","Créer une seconde liste reprenant les personnes dont le pays d'origine est celui choisi dans la première liste"]
[]
[]
[]
[]
["Liste qui s'étend selon l'ajout :",null,null,null,null,"Liste triée par ordre alphabétique :",null,null,null,null,null,null,null,"Liste dont le contenu dépend du choix via une autre liste :"]
[]
[]
[null,"Choix du pays d'origine :","Equateur",null,null,null,"Choix du pays d'origine trié :","Brésil",null,null,null,null,null,null,null,null,null,null,"Choix d'une personne dont le pays d'origine est choisi via la liste en H5 (via formule propagée, X25#) :","Gilbert Montagné"]
[null,null,null,null,null,null,null,null,null,null,null,null,null,null,null,null,null,null,"Choix d'une personne dont le pays d'origine est choisi via la liste en H5 (via zone nommée avec formule) :","Tété"]
[]
["1-","Pour que la liste s'étende avec l'ajout",null,null,null,"2-","Pour trier les éléments de la liste",null,null,null,null,null,null,"3-","Pour obtenir les éléments selon un choix dans une liste"]
[]
[null,null,"Mettre la plage des données source de la liste sous forme de tableau",null,null,null,null,"Utiliser la fonction \"Filtre\" pour enlever les vides",null,null,null,null,null,null,"Trier les personnes après un tri par pays",null,null,null,"Repérer la position de U14 (lié à la liste en H3) dans les pays triés"]
[null,null,"Nommer la plage qui reprend les différents pays",null,null,null,null,"Utiliser les fonctions trier et unique pour créer la liste des pays uniques triés par ordre alpha",null,null,null,null,null,null," (d'abord toutes les personnes d'Abidjan, puis d'Algérie, …)"]
[null,null,"=> La liste est créée via validation de données :",null,null,null,null,"=> La source de la liste sera le résultat de la formule \"propagée\"",null,null,null,null,null,null,"Choisir la colonne souhaitée après tri (ici la colonne 1)"]
[]
[null,null,null,null,null,null,null,{"$f":"_xlfn._xlws.SORT(_xlfn.UNIQUE(_xlfn._xlws.FILTER(Solution_tabDatasBDD[Pays d''origine],Solution_tabDatasBDD[Pays d''origine]<>\"\")))","v":"Abidjan"}]
[null,null,null,null,null,null,null,"Algérie",null,null,null,null,null,null,null,null,null,null,null,"Tri par pays",null,{"$f":"\"Position de la/du \"&S29&\" dans les pays triés :\"","v":"Position de la/du Brésil dans les pays triés :"},{"$f":"MATCH(S29,_xlfn.ANCHORARRAY(T29),0)","v":15}]
[null,null,null,null,null,null,null,"Angola",null,null,null,null,null,null,null,null,null,null,null,null,null,{"$f":"\"Nombre d'occurrences de la/du \"&S29&\" :\"","v":"Nombre d'occurrences de la/du Brésil :"},{"$f":"COUNTIFS(Solution_tabDatasBDD[Pays d''origine],S29)","v":3}]
[null,null,null,null,null,null,null,"Armenie",null,null,null,null,null,null,null,{"$f":"_xlfn.CHOOSECOLS(_xlfn._xlws.SORT(Solution_tabDatasBDD[],COLUMN(Solution_tabDatasBDD[[#Headers],[Pays d''origine]])),1)","v":"Maxime Le Forestier"},null,null,{"$f":"H17","v":"Brésil"},{"$f":"_xlfn._xlws.SORT(Solution_tabDatasBDD[Pays d''origine])","v":"Abidjan"}]
[null,null,null,null,null,null,null,"Bangladesh",null,null,null,null,null,null,null,"Alain Bashung",null,null,null,"Algérie",null,{"$f":"\"Liste des habitants de la/du \"&S29&\" :\"","v":"Liste des habitants de la/du Brésil :"}]
[null,null,null,null,null,null,null,"Belgique",null,null,null,null,null,null,null,"Alain Souchon",null,null,null,"Algérie"]
[null,null,null,null,null,null,null,"Brésil",null,null,null,null,null,null,null,"Francisca Lalanne",null,null,null,"Algérie",null,"=> Créer une formule qui permet de récupérer chaque personne",null,null,null,"=> Dans la formule finale, reprendre toutes les formules intermédiaires"]
[null,null,null,null,null,null,null,"Cameroun",null,null,null,null,null,null,null,"Margueritte Duras",null,null,null,"Angola",null,"à partir de la position le nombre de fois indiqué ci-dessus :",null,null,null,"=> Recopier la formule et la coller à une zone nommée créée via le gestionnaire de noms"]
[null,null,null,null,null,null,null,"Chine",null,null,null,null,null,null,null,"Faf Larage",null,null,null,"Angola",null,"=> Créer une liste par validation de données faisant référence à 'X24#'"]
[null,null,null,null,null,null,null,"Colombie",null,null,null,null,null,null,null,"Florent Pagny",null,null,null,"Armenie"]
[null,null,null,null,null,null,null,"Congo",null,null,null,null,null,null,null,"Bob Sinclar",null,null,null,"Bangladesh",null,{"$f":"OFFSET(P29,W27-1,0,W28)","v":"Anitta"},null,null,null,{"$f":"OFFSET(P29,MATCH(H17,_xlfn._xlws.SORT(Solution_tabDatasBDD[Pays d''origine]),0)-1,0,COUNTIFS(Solution_tabDatasBDD[Pays d''origine],H17),1)","v":"Anitta"}]
[null,null,null,null,null,null,null,"Corée",null,null,null,null,null,null,null,"Arno",null,null,null,"Belgique",null,"Leo Santana",null,null,null,"Leo Santana"]
[null,null,null,null,null,null,null,"Côte d'Ivoire",null,null,null,null,null,null,null,"Charlélie Couture",null,null,null,"Belgique",null,"Ivete Sangalo",null,null,null,"Ivete Sangalo"]
[null,null,null,null,null,null,null,"Cuba",null,null,null,null,null,null,null,"Gilbert Montagné",null,null,null,"Belgique"]
[null,null,null,null,null,null,null,"Equateur",null,null,null,null,null,null,null,"Raphaël",null,null,null,"Belgique"]
[null,null,null,null,null,null,null,"France",null,null,null,null,null,null,null,"Tété",null,null,null,"Belgique"]
[null,null,null,null,null,null,null,"Géorgie",null,null,null,null,null,null,null,"Grégory Lemarchal",null,null,null,"Belgique"]
[null,null,null,null,null,null,null,"Guinée",null,null,null,null,null,null,null,"Anitta",null,null,null,"Brésil"]
[null,null,null,null,null,null,null,"Guinée conakry",null,null,null,null,null,null,null,"Leo Santana",null,null,null,"Brésil"]
[null,null,null,null,null,null,null,"Maroc",null,null,null,null,null,null,null,"Ivete Sangalo",null,null,null,"Brésil"]
[null,null,null,null,null,null,null,"Nigeria",null,null,null,null,null,null,null,"Christophe Willem",null,null,null,"Cameroun"]
[null,null,null,null,null,null,null,"Rwanda",null,null,null,null,null,null,null,"Frank Alamo",null,null,null,"Cameroun"]
[null,null,null,null,null,null,null,"Sénégal",null,null,null,null,null,null,null,"Gérard Blanchard",null,null,null,"Cameroun"]
[null,null,null,null,null,null,null,"Suisse",null,null,null,null,null,null,null,"Kent",null,null,null,"Cameroun"]
[null,null,null,null,null,null,null,"Syrie",null,null,null,null,null,null,null,"Matthieu Chedid",null,null,null,"Cameroun"]
[null,null,null,null,null,null,null,"Togo",null,null,null,null,null,null,null,"Alexis HK",null,null,null,"Cameroun"]
[null,null,null,null,null,null,null,"Turquie",null,null,null,null,null,null,null,"Roch Voisine",null,null,null,"Cameroun"]
[null,null,null,null,null,null,null,"Ukraine",null,null,null,null,null,null,null,"Julien Clerc",null,null,null,"Cameroun"]
[null,null,null,null,null,null,null,"Yougoslavie",null,null,null,null,null,null,null,"Marylou Str",null,null,null,"Cameroun"]
[null,null,null,null,null,null,null,null,null,null,null,null,null,null,null,"Vincent Delerm",null,null,null,"Cameroun"]
[null,null,null,null,null,null,null,null,null,null,null,null,null,null,null,"Antoine",null,null,null,"Cameroun"]
[null,null,null,null,null,null,null,null,null,null,null,null,null,null,null,"Jean-Jacques Goldman",null,null,null,"Cameroun"]
[null,null,null,null,null,null,null,null,null,null,null,null,null,null,null,"Kamini",null,null,null,"Cameroun"]
[null,null,null,null,null,null,null,null,null,null,null,null,null,null,null,"Patricia Fiori",null,null,null,"Cameroun"]
[null,null,null,null,null,null,null,null,null,null,null,null,null,null,null,"William Sheller",null,null,null,"Cameroun"]
[null,null,null,null,null,null,null,null,null,null,null,null,null,null,null,"Damso",null,null,null,"Chine"]
[null,null,null,null,null,null,null,null,null,null,null,null,null,null,null,"Charles Aznavour",null,null,null,"Colombie"]
[null,null,null,null,null,null,null,null,null,null,null,null,null,null,null,"Jean-Louis Aubert",null,null,null,"Congo"]
[null,null,null,null,null,null,null,null,null,null,null,null,null,null,null,"Estelle Hallyday",null,null,null,"Congo"]
[null,null,null,null,null,null,null,null,null,null,null,null,null,null,null,"Vanessa Paradis",null,null,null,"Congo"]
[null,null,null,null,null,null,null,null,null,null,null,null,null,null,null,"Richard Anthony",null,null,null,"Congo"]
[null,null,null,null,null,null,null,null,null,null,null,null,null,null,null,"Arthur H",null,null,null,"Congo"]
[null,null,null,null,null,null,null,null,null,null,null,null,null,null,null,"Amel Bent",null,null,null,"Congo"]
[null,null,null,null,null,null,null,null,null,null,null,null,null,null,null,"Stomy Bugsy",null,null,null,"Congo"]
[null,null,null,null,null,null,null,null,null,null,null,null,null,null,null,"Yannick Noah",null,null,null,"Congo"]
[null,null,null,null,null,null,null,null,null,null,null,null,null,null,null,"Jean Bart",null,null,null,"Congo"]
[null,null,null,null,null,null,null,null,null,null,null,null,null,null,null,"Jean-Luc Lahaye",null,null,null,"Congo"]
[null,null,null,null,null,null,null,null,null,null,null,null,null,null,null,"Laurent Voulzy",null,null,null,"Congo"]
[null,null,null,null,null,null,null,null,null,null,null,null,null,null,null,"MC Solaar",null,null,null,"Congo"]
[null,null,null,null,null,null,null,null,null,null,null,null,null,null,null,"Michel Sardou",null,null,null,"Congo"]
[null,null,null,null,null,null,null,null,null,null,null,null,null,null,null,"Patrick Bruel",null,null,null,"Congo"]
[null,null,null,null,null,null,null,null,null,null,null,null,null,null,null,"Bénabar",null,null,null,"Congo"]
[null,null,null,null,null,null,null,null,null,null,null,null,null,null,null,"Matt Pokora",null,null,null,"Congo"]
[null,null,null,null,null,null,null,null,null,null,null,null,null,null,null,"Miossec",null,null,null,"Congo"]
[null,null,null,null,null,null,null,null,null,null,null,null,null,null,null,"Renaud",null,null,null,"Congo"]
[null,null,null,null,null,null,null,null,null,null,null,null,null,null,null,"Thierry Amiel",null,null,null,"Congo"]
[null,null,null,null,null,null,null,null,null,null,null,null,null,null,null,"Sévérine Inconnue",null,null,null,"Corée"]
[null,null,null,null,null,null,null,null,null,null,null,null,null,null,null,"Gérald De Palmas",null,null,null,"Côte d'Ivoire"]
[null,null,null,null,null,null,null,null,null,null,null,null,null,null,null,"Michel Delpech",null,null,null,"Cuba"]
[null,null,null,null,null,null,null,null,null,null,null,null,null,null,null,"Serge Lama",null,null,null,"Cuba"]
[null,null,null,null,null,null,null,null,null,null,null,null,null,null,null,"Calogero",null,null,null,"Equateur"]
[null,null,null,null,null,null,null,null,null,null,null,null,null,null,null,"Tonton David",null,null,null,"Equateur"]
[null,null,null,null,null,null,null,null,null,null,null,null,null,null,null,"Jérémy Chatelain",null,null,null,"Equateur"]
[null,null,null,null,null,null,null,null,null,null,null,null,null,null,null,"Eddy Mitchell",null,null,null,"France"]
[null,null,null,null,null,null,null,null,null,null,null,null,null,null,null,"Axelle Red",null,null,null,"Géorgie"]
[null,null,null,null,null,null,null,null,null,null,null,null,null,null,null,"Akhenaton",null,null,null,"Guinée"]
[null,null,null,null,null,null,null,null,null,null,null,null,null,null,null,"Aldebert",null,null,null,"Guinée"]
[null,null,null,null,null,null,null,null,null,null,null,null,null,null,null,"Étienne Daho",null,null,null,"Guinée"]
[null,null,null,null,null,null,null,null,null,null,null,null,null,null,null,"Hubert-Félix Thiéfaine",null,null,null,"Guinée conakry"]
[null,null,null,null,null,null,null,null,null,null,null,null,null,null,null,"Bernard Lavilliers",null,null,null,"Maroc"]
[null,null,null,null,null,null,null,null,null,null,null,null,null,null,null,"Faudel",null,null,null,"Maroc"]
[null,null,null,null,null,null,null,null,null,null,null,null,null,null,null,"Mano Solo",null,null,null,"Maroc"]
[null,null,null,null,null,null,null,null,null,null,null,null,null,null,null,"Pascal Mono",null,null,null,"Maroc"]
[null,null,null,null,null,null,null,null,null,null,null,null,null,null,null,"Thomas Fersen",null,null,null,"Maroc"]
[null,null,null,null,null,null,null,null,null,null,null,null,null,null,null,"Yann Tiersen",null,null,null,"Maroc"]
[null,null,null,null,null,null,null,null,null,null,null,null,null,null,null,"Bertrand Burgalat",null,null,null,"Maroc"]
[null,null,null,null,null,null,null,null,null,null,null,null,null,null,null,"Jacques Higelin",null,null,null,"Maroc"]
[null,null,null,null,null,null,null,null,null,null,null,null,null,null,null,"Julien Baer",null,null,null,"Maroc"]
[null,null,null,null,null,null,null,null,null,null,null,null,null,null,null,"Pascal Obispo",null,null,null,"Maroc"]
[null,null,null,null,null,null,null,null,null,null,null,null,null,null,null,"Alain Chamfort",null,null,null,"Maroc"]
[null,null,null,null,null,null,null,null,null,null,null,null,null,null,null,"Francis Cabrel",null,null,null,"Maroc"]
[null,null,null,null,null,null,null,null,null,null,null,null,null,null,null,"Cali",null,null,null,"Maroc"]
[null,null,null,null,null,null,null,null,null,null,null,null,null,null,null,"Michel Jonasz",null,null,null,"Nigeria"]
[null,null,null,null,null,null,null,null,null,null,null,null,null,null,null,"Christophe Maé",null,null,null,"Rwanda"]
[null,null,null,null,null,null,null,null,null,null,null,null,null,null,null,"Cécile Defrance",null,null,null,"Sénégal"]
[null,null,null,null,null,null,null,null,null,null,null,null,null,null,null,"Sandra Kim",null,null,null,"Sénégal"]
[null,null,null,null,null,null,null,null,null,null,null,null,null,null,null,"Didier Super",null,null,null,"Sénégal"]
[null,null,null,null,null,null,null,null,null,null,null,null,null,null,null,"Nemo",null,null,null,"Suisse"]
[null,null,null,null,null,null,null,null,null,null,null,null,null,null,null,"Alibi Montana",null,null,null,"Syrie"]
[null,null,null,null,null,null,null,null,null,null,null,null,null,null,null,"David Hallyday",null,null,null,"Syrie"]
[null,null,null,null,null,null,null,null,null,null,null,null,null,null,null,"Michel Fugain",null,null,null,"Togo"]
[null,null,null,null,null,null,null,null,null,null,null,null,null,null,null,"Stephan Eicher",null,null,null,"Togo"]
[null,null,null,null,null,null,null,null,null,null,null,null,null,null,null,"Grand Corps Malade",null,null,null,"Togo"]
[null,null,null,null,null,null,null,null,null,null,null,null,null,null,null,"Doc Gynéco",null,null,null,"Turquie"]
[null,null,null,null,null,null,null,null,null,null,null,null,null,null,null,"Corneille",null,null,null,"Turquie"]
[null,null,null,null,null,null,null,null,null,null,null,null,null,null,null,"Daniel Balavoine",null,null,null,"Ukraine"]
[null,null,null,null,null,null,null,null,null,null,null,null,null,null,null,"Jean-Louis Murat",null,null,null,"Yougoslavie"]
[null,null,null,null,null,null,null,null,null,null,null,null,null,null,null,"Garou",null,null,null,0]
[null,null,null,null,null,null,null,null,null,null,null,null,null,null,null,"Louis Bertignac",null,null,null,0]

{"sheet":"DatasBDD_Solution","index":21,"n_rows":97,"n_cols":44,"rows_kept":97,"cut":false,"hidden":false,"merged":[]}
["Nom","Date d'entrée","Sexe","État civil","Rue","Nr","CP","Commune1","Commune1Def","Commune","Date de naissance","Âge","Date de 65 ans","Date de 65 ans (2)","65 ans","Catégorie","Pays d'origine","Nombre d'enfants",null,null,"Retour sommaire"]
["Akhenaton","2010-04-14","m","Divocé(e)","Avenue Claeys",10,1030,{"$f":"MATCH(Solution_tabDatasBDD[[#This Row],[CP]],Solution_tabDatasListe[CP],0)","v":3},{"$f":"INDEX(Solution_tabDatasListe[Commune],Solution_tabDatasBDD[[#This Row],[Commune1]])","v":"Schaerbeek"},{"$f":"_xlfn.XLOOKUP(Solution_tabDatasBDD[[#This Row],[CP]],Solution_tabDatasListe[CP],Solution_tabDatasListe[Commune])","v":"Schaerbeek"},"1980-11-22",{"$f":"DATEDIF(Solution_tabDatasBDD[[#This Row],[Date de naissance]],TODAY(),\"y\")","v":43},"2045-11-22T08:16:43.162",{"$f":"DATEVALUE(DAY(Solution_tabDatasBDD[[#This Row],[Date de naissance]])&\"/\"&MONTH(Solution_tabDatasBDD[[#This Row],[Date de naissance]])&\"/\"&YEAR(Solution_tabDatasBDD[[#This Row],[Date de naissance]])+65)","v":"2045-11-22"},{"$f":"YEARFRAC(Solution_tabDatasBDD[[#This Row],[Date de naissance]],Solution_tabDatasBDD[[#This Row],[Date de 65 ans]])","v":65},{"$f":"_xlfn.IFS(Solution_tabDatasBDD[[#This Row],[Âge]]>=50,\"A\",Solution_tabDatasBDD[[#This Row],[Âge]]>=4,\"B\",Solution_tabDatasBDD[[#This Row],[Âge]]>=30,\"C\",Solution_tabDatasBDD[[#This Row],[Âge]]<30,\"D\")","v":"B"},"Guinée"]
["Aldebert","2010-04-19","m","Marié(e)","Rue de Rudder",20,1080,{"$f":"MATCH(Solution_tabDatasBDD[[#This Row],[CP]],Solution_tabDatasListe[CP],0)","v":8},{"$f":"INDEX(Solution_tabDatasListe[Commune],Solution_tabDatasBDD[[#This Row],[Commune1]])","v":"Molenbeek"},{"$f":"_xlfn.XLOOKUP(Solution_tabDatasBDD[[#This Row],[CP]],Solution_tabDatasListe[CP],Solution_tabDatasListe[Commune])","v":"Molenbeek"},"1980-02-12",{"$f":"DATEDIF(Solution_tabDatasBDD[[#This Row],[Date de naissance]],TODAY(),\"y\")","v":44},"2045-02-12T15:23:39.061",{"$f":"DATEVALUE(DAY(Solution_tabDatasBDD[[#This Row],[Date de naissance]])&\"/\"&MONTH(Solution_tabDatasBDD[[#This Row],[Date de naissance]])&\"/\"&YEAR(Solution_tabDatasBDD[[#This Row],[Date de naissance]])+65)","v":"2045-02-12"},{"$f":"YEARFRAC(Solution_tabDatasBDD[[#This Row],[Date de naissance]],Solution_tabDatasBDD[[#This Row],[Date de 65 ans]])","v":65},{"$f":"_xlfn.IFS(Solution_tabDatasBDD[[#This Row],[Âge]]>=50,\"A\",Solution_tabDatasBDD[[#This Row],[Âge]]>=4,\"B\",Solution_tabDatasBDD[[#This Row],[Âge]]>=30,\"C\",Solution_tabDatasBDD[[#This Row],[Âge]]<30,\"D\")","v":"B"},"Guinée",1,null,null,null,null,null,null,"=>","Transformer la plage en 'Tableau' que vous nommez tabDatasBDD"]
["Arno","2010-04-20","m","Célibataire","Rue de Linthout",23,1030,{"$f":"MATCH(Solution_tabDatasBDD[[#This Row],[CP]],Solution_tabDatasListe[CP],0)","v":3},{"$f":"INDEX(Solution_tabDatasListe[Commune],Solution_tabDatasBDD[[#This Row],[Commune1]])","v":"Schaerbeek"},{"$f":"_xlfn.XLOOKUP(Solution_tabDatasBDD[[#This Row],[CP]],Solution_tabDatasListe[CP],Solution_tabDatasListe[Commune])","v":"Schaerbeek"},"1972-09-01",{"$f":"DATEDIF(Solution_tabDatasBDD[[#This Row],[Date de naissance]],TODAY(),\"y\")","v":51},"2037-09-01T22:48:12.230",{"$f":"DATEVALUE(DAY(Solution_tabDatasBDD[[#This Row],[Date de naissance]])&\"/\"&MONTH(Solution_tabDatasBDD[[#This Row],[Date de naissance]])&\"/\"&YEAR(Solution_tabDatasBDD[[#This Row],[Date de naissance]])+65)","v":"2037-09-01"},{"$f":"YEARFRAC(Solution_tabDatasBDD[[#This Row],[Date de naissance]],Solution_tabDatasBDD[[#This Row],[Date de 65 ans]])","v":65},{"$f":"_xlfn.IFS(Solution_tabDatasBDD[[#This Row],[Âge]]>=50,\"A\",Solution_tabDatasBDD[[#This Row],[Âge]]>=4,\"B\",Solution_tabDatasBDD[[#This Row],[Âge]]>=30,\"C\",Solution_tabDatasBDD[[#This Row],[Âge]]<30,\"D\")","v":"A"},"Belgique",null,null,null,null,null,null,null,null,"NB : utiliser un format 'sans format' et placer un contour épais au tableau créé",null,null,null,null,null,null,null,null,null,null,null,null,"=> Passer la liste des état civil en tableau"]
["Bernard Lavilliers","2010-05-31","m","Célibataire","Rue du Maroquin",22,1080,{"$f":"MATCH(Solution_tabDatasBDD[[#This Row],[CP]],Solution_tabDatasListe[CP],0)","v":8},{"$f":"INDEX(Solution_tabDatasListe[Commune],Solution_tabDatasBDD[[#This Row],[Commune1]])","v":"Molenbeek"},{"$f":"_xlfn.XLOOKUP(Solution_tabDatasBDD[[#This Row],[CP]],Solution_tabDatasListe[CP],Solution_tabDatasListe[Commune])","v":"Molenbeek"},"1976-06-17",{"$f":"DATEDIF(Solution_tabDatasBDD[[#This Row],[Date de naissance]],TODAY(),\"y\")","v":47},"2041-06-17T20:42:43.658",{"$f":"DATEVALUE(DAY(Solution_tabDatasBDD[[#This Row],[Date de naissance]])&\"/\"&MONTH(Solution_tabDatasBDD[[#This Row],[Date de naissance]])&\"/\"&YEAR(Solution_tabDatasBDD[[#This Row],[Date de naissance]])+65)","v":"2041-06-17"},{"$f":"YEARFRAC(Solution_tabDatasBDD[[#This Row],[Date de naissance]],Solution_tabDatasBDD[[#This Row],[Date de 65 ans]])","v":65},{"$f":"_xlfn.IFS(Solution_tabDatasBDD[[#This Row],[Âge]]>=50,\"A\",Solution_tabDatasBDD[[#This Row],[Âge]]>=4,\"B\",Solution_tabDatasBDD[[#This Row],[Âge]]>=30,\"C\",Solution_tabDatasBDD[[#This Row],[Âge]]<30,\"D\")","v":"B"},"Maroc",null,null,null,null,null,null,null,null,"Dans le champ 'État civil', faites-en sorte que l'état civil puisse être choisi via une liste",null,null,null,null,null,null,null,null,null,null,null,null,"=> Nommer le champ qui contient les états civils"]
["Calogero","2010-05-27","m","Célibataire","Rue du vanderschrick",152,1060,{"$f":"MATCH(Solution_tabDatasBDD[[#This Row],[CP]],Solution_tabDatasListe[CP],0)","v":6},{"$f":"INDEX(Solution_tabDatasListe[Commune],Solution_tabDatasBDD[[#This Row],[Commune1]])","v":"Saint Gilles"},{"$f":"_xlfn.XLOOKUP(Solution_tabDatasBDD[[#This Row],[CP]],Solution_tabDatasListe[CP],Solution_tabDatasListe[Commune])","v":"Saint Gilles"},"1991-12-11",{"$f":"DATEDIF(Solution_tabDatasBDD[[#This Row],[Date de naissance]],TODAY(),\"y\")","v":32},"2056-12-11T15:42:24.017",{"$f":"DATEVALUE(DAY(Solution_tabDatasBDD[[#This Row],[Date de naissance]])&\"/\"&MONTH(Solution_tabDatasBDD[[#This Row],[Date de naissance]])&\"/\"&YEAR(Solution_tabDatasBDD[[#This Row],[Date de naissance]])+65)","v":"2056-12-11"},{"$f":"YEARFRAC(Solution_tabDatasBDD[[#This Row],[Date de naissance]],Solution_tabDatasBDD[[#This Row],[Date de 65 ans]])","v":65},{"$f":"_xlfn.IFS(Solution_tabDatasBDD[[#This Row],[Âge]]>=50,\"A\",Solution_tabDatasBDD[[#This Row],[Âge]]>=4,\"B\",Solution_tabDatasBDD[[#This Row],[Âge]]>=30,\"C\",Solution_tabDatasBDD[[#This Row],[Âge]]<30,\"D\")","v":"B"},"Equateur",null,null,null,null,null,null,null,null,"NB : si un état civil est ajouté, il doit être ajouté aux éléments de la liste",null,null,null,null,null,null,null,null,null,null,null,null,"=> Utiliser le nom donné en tant que source de la validation de données"]
["Christophe Willem","2010-05-31","m","Marié(e)","Rue Ferdinand Craps",35,1070,{"$f":"MATCH(Solution_tabDatasBDD[[#This Row],[CP]],Solution_tabDatasListe[CP],0)","v":7},{"$f":"INDEX(Solution_tabDatasListe[Commune],Solution_tabDatasBDD[[#This Row],[Commune1]])","v":"Anderlecht"},{"$f":"_xlfn.XLOOKUP(Solution_tabDatasBDD[[#This Row],[CP]],Solution_tabDatasListe[CP],Solution_tabDatasListe[Commune])","v":"Anderlecht"},"1980-06-15",{"$f":"DATEDIF(Solution_tabDatasBDD[[#This Row],[Date de naissance]],TODAY(),\"y\")","v":44},"2045-06-15T02:50:35.663",{"$f":"DATEVALUE(DAY(Solution_tabDatasBDD[[#This Row],[Date de naissance]])&\"/\"&MONTH(Solution_tabDatasBDD[[#This Row],[Date de naissance]])&\"/\"&YEAR(Solution_tabDatasBDD[[#This Row],[Date de naissance]])+65)","v":"2045-06-15"},{"$f":"YEARFRAC(Solution_tabDatasBDD[[#This Row],[Date de naissance]],Solution_tabDatasBDD[[#This Row],[Date de 65 ans]])","v":65},{"$f":"_xlfn.IFS(Solution_tabDatasBDD[[#This Row],[Âge]]>=50,\"A\",Solution_tabDatasBDD[[#This Row],[Âge]]>=4,\"B\",Solution_tabDatasBDD[[#This Row],[Âge]]>=30,\"C\",Solution_tabDatasBDD[[#This Row],[Âge]]<30,\"D\")","v":"B"},"Cameroun"]
["Doc Gynéco","2010-05-31","m","Marié(e)","Rue aux bois",42,1150,{"$f":"MATCH(Solution_tabDatasBDD[[#This Row],[CP]],Solution_tabDatasListe[CP],0)","v":13},{"$f":"INDEX(Solution_tabDatasListe[Commune],Solution_tabDatasBDD[[#This Row],[Commune1]])","v":"Woluwé-Saint-Pierre"},{"$f":"_xlfn.XLOOKUP(Solution_tabDatasBDD[[#This Row],[CP]],Solution_tabDatasListe[CP],Solution_tabDatasListe[Commune])","v":"Woluwé-Saint-Pierre"},"1981-04-13",{"$f":"DATEDIF(Solution_tabDatasBDD[[#This Row],[Date de naissance]],TODAY(),\"y\")","v":43},"2046-04-13T16:03:54.061",{"$f":"DATEVALUE(DAY(Solution_tabDatasBDD[[#This Row],[Date de naissance]])&\"/\"&MONTH(Solution_tabDatasBDD[[#This Row],[Date de naissance]])&\"/\"&YEAR(Solution_tabDatasBDD[[#This Row],[Date de naissance]])+65)","v":"2046-04-13"},{"$f":"YEARFRAC(Solution_tabDatasBDD[[#This Row],[Date de naissance]],Solution_tabDatasBDD[[#This Row],[Date de 65 ans]])","v":65},{"$f":"_xlfn.IFS(Solution_tabDatasBDD[[#This Row],[Âge]]>=50,\"A\",Solution_tabDatasBDD[[#This Row],[Âge]]>=4,\"B\",Solution_tabDatasBDD[[#This Row],[Âge]]>=30,\"C\",Solution_tabDatasBDD[[#This Row],[Âge]]<30,\"D\")","v":"B"},"Turquie",null,null,null,null,null,null,null,"=>","Ajoutez en colonne CP une liste qui permet de choisir un code postal selon ceux indiqués sur la feuille 'DatasListe'",null,null,null,null,null,null,null,null,null,null,null,null,"=> Passer la liste des Communes, CP, Province en tableau"]
["Faudel","2010-05-31","m","Marié(e)","Rue Renkin",333,1030,{"$f":"MATCH(Solution_tabDatasBDD[[#This Row],[CP]],Solution_tabDatasListe[CP],0)","v":3},{"$f":"INDEX(Solution_tabDatasListe[Commune],Solution_tabDatasBDD[[#This Row],[Commune1]])","v":"Schaerbeek"},{"$f":"_xlfn.XLOOKUP(Solution_tabDatasBDD[[#This Row],[CP]],Solution_tabDatasListe[CP],Solution_tabDatasListe[Commune])","v":"Schaerbeek"},"1988-12-19",{"$f":"DATEDIF(Solution_tabDatasBDD[[#This Row],[Date de naissance]],TODAY(),\"y\")","v":35},"2053-12-19T11:50:29.744",{"$f":"DATEVALUE(DAY(Solution_tabDatasBDD[[#This Row],[Date de naissance]])&\"/\"&MONTH(Solution_tabDatasBDD[[#This Row],[Date de naissance]])&\"/\"&YEAR(Solution_tabDatasBDD[[#This Row],[Date de naissance]])+65)","v":"2053-12-19"},{"$f":"YEARFRAC(Solution_tabDatasBDD[[#This Row],[Date de naissance]],Solution_tabDatasBDD[[#This Row],[Date de 65 ans]])","v":65},{"$f":"_xlfn.IFS(Solution_tabDatasBDD[[#This Row],[Âge]]>=50,\"A\",Solution_tabDatasBDD[[#This Row],[Âge]]>=4,\"B\",Solution_tabDatasBDD[[#This Row],[Âge]]>=30,\"C\",Solution_tabDatasBDD[[#This Row],[Âge]]<30,\"D\")","v":"B"},"Maroc",null,null,null,null,null,null,null,null,"NB : Le tableau de données créé s'appellera tabDatasListe",null,null,null,null,null,null,null,null,null,null,null,null,"=> Nommer le champ code postal"]
["Frank Alamo","2010-05-31","m","Divocé(e)","Rue Vandenboogaerde",66,1080,{"$f":"MATCH(Solution_tabDatasBDD[[#This Row],[CP]],Solution_tabDatasListe[CP],0)","v":8},{"$f":"INDEX(Solution_tabDatasListe[Commune],Solution_tabDatasBDD[[#This Row],[Commune1]])","v":"Molenbeek"},{"$f":"_xlfn.XLOOKUP(Solution_tabDatasBDD[[#This Row],[CP]],Solution_tabDatasListe[CP],Solution_tabDatasListe[Commune])","v":"Molenbeek"},"1978-08-19",{"$f":"DATEDIF(Solution_tabDatasBDD[[#This Row],[Date de naissance]],TODAY(),\"y\")","v":45},"2043-08-19T08:30:36.096",{"$f":"DATEVALUE(DAY(Solution_tabDatasBDD[[#This Row],[Date de naissance]])&\"/\"&MONTH(Solution_tabDatasBDD[[#This Row],[Date de naissance]])&\"/\"&YEAR(Solution_tabDatasBDD[[#This Row],[Date de naissance]])+65)","v":"2043-08-19"},{"$f":"YEARFRAC(Solution_tabDatasBDD[[#This Row],[Date de naissance]],Solution_tabDatasBDD[[#This Row],[Date de 65 ans]])","v":65},{"$f":"_xlfn.IFS(Solution_tabDatasBDD[[#This Row],[Âge]]>=50,\"A\",Solution_tabDatasBDD[[#This Row],[Âge]]>=4,\"B\",Solution_tabDatasBDD[[#This Row],[Âge]]>=30,\"C\",Solution_tabDatasBDD[[#This Row],[Âge]]<30,\"D\")","v":"B"},"Cameroun",null,null,null,null,null,null,null,null,"NB : Faites-en sorte que les éléments de la liste soient triés par ordre croissant",null,null,null,null,null,null,null,null,null,null,null,null,"=> Utiliser le nom donné en tant que source de la validation de données"]
["Gérard Blanchard","2010-05-07","m","Divocé(e)","Rue de la stratégie ",33,1160,{"$f":"MATCH(Solution_tabDatasBDD[[#This Row],[CP]],Solution_tabDatasListe[CP],0)","v":14},{"$f":"INDEX(Solution_tabDatasListe[Commune],Solution_tabDatasBDD[[#This Row],[Commune1]])","v":"Auderghem"},{"$f":"_xlfn.XLOOKUP(Solution_tabDatasBDD[[#This Row],[CP]],Solution_tabDatasListe[CP],Solution_tabDatasListe[Commune])","v":"Auderghem"},"1977-09-25",{"$f":"DATEDIF(Solution_tabDatasBDD[[#This Row],[Date de naissance]],TODAY(),\"y\")","v":46},"2042-09-25T00:40:00.794",{"$f":"DATEVALUE(DAY(Solution_tabDatasBDD[[#This Row],[Date de naissance]])&\"/\"&MONTH(Solution_tabDatasBDD[[#This Row],[Date de naissance]])&\"/\"&YEAR(Solution_tabDatasBDD[[#This Row],[Date de naissance]])+65)","v":"2042-09-25"},{"$f":"YEARFRAC(Solution_tabDatasBDD[[#This Row],[Date de naissance]],Solution_tabDatasBDD[[#This Row],[Date de 65 ans]])","v":65},{"$f":"_xlfn.IFS(Solution_tabDatasBDD[[#This Row],[Âge]]>=50,\"A\",Solution_tabDatasBDD[[#This Row],[Âge]]>=4,\"B\",Solution_tabDatasBDD[[#This Row],[Âge]]>=30,\"C\",Solution_tabDatasBDD[[#This Row],[Âge]]<30,\"D\")","v":"B"},"Cameroun"]
["Hubert-Félix Thiéfaine","2010-05-12","m","Divocé(e)","Rue Jean Debien",14,1030,{"$f":"MATCH(Solution_tabDatasBDD[[#This Row],[CP]],Solution_tabDatasListe[CP],0)","v":3},{"$f":"INDEX(Solution_tabDatasListe[Commune],Solution_tabDatasBDD[[#This Row],[Commune1]])","v":"Schaerbeek"},{"$f":"_xlfn.XLOOKUP(Solution_tabDatasBDD[[#This Row],[CP]],Solution_tabDatasListe[CP],Solution_tabDatasListe[Commune])","v":"Schaerbeek"},"1975-09-21",{"$f":"DATEDIF(Solution_tabDatasBDD[[#This Row],[Date de naissance]],TODAY(),\"y\")","v":48},"2040-09-21T23:29:12.298",{"$f":"DATEVALUE(DAY(Solution_tabDatasBDD[[#This Row],[Date de naissance]])&\"/\"&MONTH(Solution_tabDatasBDD[[#This Row],[Date de naissance]])&\"/\"&YEAR(Solution_tabDatasBDD[[#This Row],[Date de naissance]])+65)","v":"2040-09-21"},{"$f":"YEARFRAC(Solution_tabDatasBDD[[#This Row],[Date de naissance]],Solution_tabDatasBDD[[#This Row],[Date de 65 ans]])","v":65},{"$f":"_xlfn.IFS(Solution_tabDatasBDD[[#This Row],[Âge]]>=50,\"A\",Solution_tabDatasBDD[[#This Row],[Âge]]>=4,\"B\",Solution_tabDatasBDD[[#This Row],[Âge]]>=30,\"C\",Solution_tabDatasBDD[[#This Row],[Âge]]<30,\"D\")","v":"B"},"Guinée conakry",4,null,null,null,null,null,null,"=>","Dans le champ commune, faire en sorte que la commune apparaisse selon le code postal choisi",null,null,null,null,null,null,null,null,null,null,null,null,"À l'ancienne : EQUIV + INDEX"]
["Jean-Louis Aubert","2010-06-14","m","Marié(e)","Pierre Jean Demessemaker",158,1080,{"$f":"MATCH(Solution_tabDatasBDD[[#This Row],[CP]],Solution_tabDatasListe[CP],0)","v":8},{"$f":"INDEX(Solution_tabDatasListe[Commune],Solution_tabDatasBDD[[#This Row],[Commune1]])","v":"Molenbeek"},{"$f":"_xlfn.XLOOKUP(Solution_tabDatasBDD[[#This Row],[CP]],Solution_tabDatasListe[CP],Solution_tabDatasListe[Commune])","v":"Molenbeek"},"1969-05-17",{"$f":"DATEDIF(Solution_tabDatasBDD[[#This Row],[Date de naissance]],TODAY(),\"y\")","v":55},"2034-05-17T12:10:07.183",{"$f":"DATEVALUE(DAY(Solution_tabDatasBDD[[#This Row],[Date de naissance]])&\"/\"&MONTH(Solution_tabDatasBDD[[#This Row],[Date de naissance]])&\"/\"&YEAR(Solution_tabDatasBDD[[#This Row],[Date de naissance]])+65)","v":"2034-05-17"},{"$f":"YEARFRAC(Solution_tabDatasBDD[[#This Row],[Date de naissance]],Solution_tabDatasBDD[[#This Row],[Date de 65 ans]])","v":65},{"$f":"_xlfn.IFS(Solution_tabDatasBDD[[#This Row],[Âge]]>=50,\"A\",Solution_tabDatasBDD[[#This Row],[Âge]]>=4,\"B\",Solution_tabDatasBDD[[#This Row],[Âge]]>=30,\"C\",Solution_tabDatasBDD[[#This Row],[Âge]]<30,\"D\")","v":"A"},"Congo",2,null,null,null,null,null,null,null,null,null,null,null,null,null,null,null,null,null,null,null,null,"Now, depuis 2020 : RECHERCHEX"]
["Estelle Hallyday","2010-06-14","f","Marié(e)","Avenue Crikx",111,1060,{"$f":"MATCH(Solution_tabDatasBDD[[#This Row],[CP]],Solution_tabDatasListe[CP],0)","v":6},{"$f":"INDEX(Solution_tabDatasListe[Commune],Solution_tabDatasBDD[[#This Row],[Commune1]])","v":"Saint Gilles"},{"$f":"_xlfn.XLOOKUP(Solution_tabDatasBDD[[#This Row],[CP]],Solution_tabDatasListe[CP],Solution_tabDatasListe[Commune])","v":"Saint Gilles"},"1981-03-15",{"$f":"DATEDIF(Solution_tabDatasBDD[[#This Row],[Date de naissance]],TODAY(),\"y\")","v":43},"2046-03-15T13:01:53.310",{"$f":"DATEVALUE(DAY(Solution_tabDatasBDD[[#This Row],[Date de naissance]])&\"/\"&MONTH(Solution_tabDatasBDD[[#This Row],[Date de naissance]])&\"/\"&YEAR(Solution_tabDatasBDD[[#This Row],[Date de naissance]])+65)","v":"2046-03-15"},{"$f":"YEARFRAC(Solution_tabDatasBDD[[#This Row],[Date de naissance]],Solution_tabDatasBDD[[#This Row],[Date de 65 ans]])","v":65},{"$f":"_xlfn.IFS(Solution_tabDatasBDD[[#This Row],[Âge]]>=50,\"A\",Solution_tabDatasBDD[[#This Row],[Âge]]>=4,\"B\",Solution_tabDatasBDD[[#This Row],[Âge]]>=30,\"C\",Solution_tabDatasBDD[[#This Row],[Âge]]<30,\"D\")","v":"B"},"Congo"]
["Kent","2010-06-15","m","Marié(e)","Avenue Georges Henri",10,1200,{"$f":"MATCH(Solution_tabDatasBDD[[#This Row],[CP]],Solution_tabDatasListe[CP],0)","v":16},{"$f":"INDEX(Solution_tabDatasListe[Commune],Solution_tabDatasBDD[[#This Row],[Commune1]])","v":"Woluwé-Saint-Lambert"},{"$f":"_xlfn.XLOOKUP(Solution_tabDatasBDD[[#This Row],[CP]],Solution_tabDatasListe[CP],Solution_tabDatasListe[Commune])","v":"Woluwé-Saint-Lambert"},"1969-12-14",{"$f":"DATEDIF(Solution_tabDatasBDD[[#This Row],[Date de naissance]],TODAY(),\"y\")","v":54},"2034-12-14T09:39:49.435",{"$f":"DATEVALUE(DAY(Solution_tabDatasBDD[[#This Row],[Date de naissance]])&\"/\"&MONTH(Solution_tabDatasBDD[[#This Row],[Date de naissance]])&\"/\"&YEAR(Solution_tabDatasBDD[[#This Row],[Date de naissance]])+65)","v":"2034-12-14"},{"$f":"YEARFRAC(Solution_tabDatasBDD[[#This Row],[Date de naissance]],Solution_tabDatasBDD[[#This Row],[Date de 65 ans]])","v":65},{"$f":"_xlfn.IFS(Solution_tabDatasBDD[[#This Row],[Âge]]>=50,\"A\",Solution_tabDatasBDD[[#This Row],[Âge]]>=4,\"B\",Solution_tabDatasBDD[[#This Row],[Âge]]>=30,\"C\",Solution_tabDatasBDD[[#This Row],[Âge]]<30,\"D\")","v":"A"},"Cameroun",1,null,null,null,null,null,null,"=>","Calculer l'âge selon la date de naissance",null,null,null,null,null,null,null,null,null,null,null,null,"DATEDIF(date1;date2;\"y\")"]
["Mano Solo","2010-06-22","m","Marié(e)","Bergensesteenweeg",258,1500,{"$f":"MATCH(Solution_tabDatasBDD[[#This Row],[CP]],Solution_tabDatasListe[CP],0)","v":18},{"$f":"INDEX(Solution_tabDatasListe[Commune],Solution_tabDatasBDD[[#This Row],[Commune1]])","v":"Wavre"},{"$f":"_xlfn.XLOOKUP(Solution_tabDatasBDD[[#This Row],[CP]],Solution_tabDatasListe[CP],Solution_tabDatasListe[Commune])","v":"Wavre"},"1973-04-14",{"$f":"DATEDIF(Solution_tabDatasBDD[[#This Row],[Date de naissance]],TODAY(),\"y\")","v":51},"2038-04-14T12:39:54.356",{"$f":"DATEVALUE(DAY(Solution_tabDatasBDD[[#This Row],[Date de naissance]])&\"/\"&MONTH(Solution_tabDatasBDD[[#This Row],[Date de naissance]])&\"/\"&YEAR(Solution_tabDatasBDD[[#This Row],[Date de naissance]])+65)","v":"2038-04-14"},{"$f":"YEARFRAC(Solution_tabDatasBDD[[#This Row],[Date de naissance]],Solution_tabDatasBDD[[#This Row],[Date de 65 ans]])","v":65},{"$f":"_xlfn.IFS(Solution_tabDatasBDD[[#This Row],[Âge]]>=50,\"A\",Solution_tabDatasBDD[[#This Row],[Âge]]>=4,\"B\",Solution_tabDatasBDD[[#This Row],[Âge]]>=30,\"C\",Solution_tabDatasBDD[[#This Row],[Âge]]<30,\"D\")","v":"A"},"Maroc",4,null,null,null,null,null,null,null,null,null,null,null,null,null,null,null,null,null,null,null,null,"ARRONDI.INF(FRACTION.ANNEE)",null,null,null,"Exemple :",{"$f":"ROUNDDOWN(YEARFRAC(DATEVALUE(\"14/05/1970\"),TODAY()),0)","v":54}]
["Matthieu Chedid","2010-06-22","m","Marié(e)","Frans van Cutsen",26,1140,{"$f":"MATCH(Solution_tabDatasBDD[[#This Row],[CP]],Solution_tabDatasListe[CP],0)","v":12},{"$f":"INDEX(Solution_tabDatasListe[Commune],Solution_tabDatasBDD[[#This Row],[Commune1]])","v":"Evere"},{"$f":"_xlfn.XLOOKUP(Solution_tabDatasBDD[[#This Row],[CP]],Solution_tabDatasListe[CP],Solution_tabDatasListe[Commune])","v":"Evere"},"1970-11-18",{"$f":"DATEDIF(Solution_tabDatasBDD[[#This Row],[Date de naissance]],TODAY(),\"y\")","v":53},"2035-11-18T18:13:28.342",{"$f":"DATEVALUE(DAY(Solution_tabDatasBDD[[#This Row],[Date de naissance]])&\"/\"&MONTH(Solution_tabDatasBDD[[#This Row],[Date de naissance]])&\"/\"&YEAR(Solution_tabDatasBDD[[#This Row],[Date de naissance]])+65)","v":"2035-11-18"},{"$f":"YEARFRAC(Solution_tabDatasBDD[[#This Row],[Date de naissance]],Solution_tabDatasBDD[[#This Row],[Date de 65 ans]])","v":65},{"$f":"_xlfn.IFS(Solution_tabDatasBDD[[#This Row],[Âge]]>=50,\"A\",Solution_tabDatasBDD[[#This Row],[Âge]]>=4,\"B\",Solution_tabDatasBDD[[#This Row],[Âge]]>=30,\"C\",Solution_tabDatasBDD[[#This Row],[Âge]]<30,\"D\")","v":"A"},"Cameroun",2]
["Michel Fugain","2010-06-22","m","Marié(e)","Rue du champ de la couronne",222,1020,{"$f":"MATCH(Solution_tabDatasBDD[[#This Row],[CP]],Solution_tabDatasListe[CP],0)","v":2},{"$f":"INDEX(Solution_tabDatasListe[Commune],Solution_tabDatasBDD[[#This Row],[Commune1]])","v":"Laeken"},{"$f":"_xlfn.XLOOKUP(Solution_tabDatasBDD[[#This Row],[CP]],Solution_tabDatasListe[CP],Solution_tabDatasListe[Commune])","v":"Laeken"},"1970-12-12",{"$f":"DATEDIF(Solution_tabDatasBDD[[#This Row],[Date de naissance]],TODAY(),\"y\")","v":53},"2035-12-12T04:47:02.739",{"$f":"DATEVALUE(DAY(Solution_tabDatasBDD[[#This Row],[Date de naissance]])&\"/\"&MONTH(Solution_tabDatasBDD[[#This Row],[Date de naissance]])&\"/\"&YEAR(Solution_tabDatasBDD[[#This Row],[Date de naissance]])+65)","v":"2035-12-12"},{"$f":"YEARFRAC(Solution_tabDatasBDD[[#This Row],[Date de naissance]],Solution_tabDatasBDD[[#This Row],[Date de 65 ans]])","v":65},{"$f":"_xlfn.IFS(Solution_tabDatasBDD[[#This Row],[Âge]]>=50,\"A\",Solution_tabDatasBDD[[#This Row],[Âge]]>=4,\"B\",Solution_tabDatasBDD[[#This Row],[Âge]]>=30,\"C\",Solution_tabDatasBDD[[#This Row],[Âge]]<30,\"D\")","v":"A"},"Togo",2,null,null,null,null,null,null,"=>","Dans la colonne 'Catégorie' ajoutez un code catégorie, celui-ci sera une des 4 premières lettres de l'alphabet calculé selon ceci"]
["Pascal Mono","2010-06-22","m","Marié(e)","Rue Chaumontel",78,1030,{"$f":"MATCH(Solution_tabDatasBDD[[#This Row],[CP]],Solution_tabDatasListe[CP],0)","v":3},{"$f":"INDEX(Solution_tabDatasListe[Commune],Solution_tabDatasBDD[[#This Row],[Commune1]])","v":"Schaerbeek"},{"$f":"_xlfn.XLOOKUP(Solution_tabDatasBDD[[#This Row],[CP]],Solution_tabDatasListe[CP],Solution_tabDatasListe[Commune])","v":"Schaerbeek"},"1962-06-01",{"$f":"DATEDIF(Solution_tabDatasBDD[[#This Row],[Date de naissance]],TODAY(),\"y\")","v":62},"2027-06-01T17:32:48.477",{"$f":"DATEVALUE(DAY(Solution_tabDatasBDD[[#This Row],[Date de naissance]])&\"/\"&MONTH(Solution_tabDatasBDD[[#This Row],[Date de naissance]])&\"/\"&YEAR(Solution_tabDatasBDD[[#This Row],[Date de naissance]])+65)","v":"2027-06-01"},{"$f":"YEARFRAC(Solution_tabDatasBDD[[#This Row],[Date de naissance]],Solution_tabDatasBDD[[#This Row],[Date de 65 ans]])","v":65},{"$f":"_xlfn.IFS(Solution_tabDatasBDD[[#This Row],[Âge]]>=50,\"A\",Solution_tabDatasBDD[[#This Row],[Âge]]>=4,\"B\",Solution_tabDatasBDD[[#This Row],[Âge]]>=30,\"C\",Solution_tabDatasBDD[[#This Row],[Âge]]<30,\"D\")","v":"A"},"Maroc",5]
["Vanessa Paradis","2010-07-13","f","Marié(e)","Kalkoven",80,1730,{"$f":"MATCH(Solution_tabDatasBDD[[#This Row],[CP]],Solution_tabDatasListe[CP],0)","v":19},{"$f":"INDEX(Solution_tabDatasListe[Commune],Solution_tabDatasBDD[[#This Row],[Commune1]])","v":"Asse"},{"$f":"_xlfn.XLOOKUP(Solution_tabDatasBDD[[#This Row],[CP]],Solution_tabDatasListe[CP],Solution_tabDatasListe[Commune])","v":"Asse"},"1966-09-03",{"$f":"DATEDIF(Solution_tabDatasBDD[[#This Row],[Date de naissance]],TODAY(),\"y\")","v":57},"2031-09-03T16:11:21.429",{"$f":"DATEVALUE(DAY(Solution_tabDatasBDD[[#This Row],[Date de naissance]])&\"/\"&MONTH(Solution_tabDatasBDD[[#This Row],[Date de naissance]])&\"/\"&YEAR(Solution_tabDatasBDD[[#This Row],[Date de naissance]])+65)","v":"2031-09-03"},{"$f":"YEARFRAC(Solution_tabDatasBDD[[#This Row],[Date de naissance]],Solution_tabDatasBDD[[#This Row],[Date de 65 ans]])","v":65},{"$f":"_xlfn.IFS(Solution_tabDatasBDD[[#This Row],[Âge]]>=50,\"A\",Solution_tabDatasBDD[[#This Row],[Âge]]>=4,\"B\",Solution_tabDatasBDD[[#This Row],[Âge]]>=30,\"C\",Solution_tabDatasBDD[[#This Row],[Âge]]<30,\"D\")","v":"A"},"Congo",null,null,null,null,null,null,null,null,null,"- A pour les gens de 50 ans ou plus",null,null,null,null,null,null,null,null,null,null,null,null,"Avec SI.CONDITIONS :",null,"Si Age >= 50 ALORS \"A\""]
["Richard Anthony","2010-07-06","m","Marié(e)","Dédale du campanil",52,1200,{"$f":"MATCH(Solution_tabDatasBDD[[#This Row],[CP]],Solution_tabDatasListe[CP],0)","v":16},{"$f":"INDEX(Solution_tabDatasListe[Commune],Solution_tabDatasBDD[[#This Row],[Commune1]])","v":"Woluwé-Saint-Lambert"},{"$f":"_xlfn.XLOOKUP(Solution_tabDatasBDD[[#This Row],[CP]],Solution_tabDatasListe[CP],Solution_tabDatasListe[Commune])","v":"Woluwé-Saint-Lambert"},"1971-04-02",{"$f":"DATEDIF(Solution_tabDatasBDD[[#This Row],[Date de naissance]],TODAY(),\"y\")","v":53},"2036-04-02T01:24:42.981",{"$f":"DATEVALUE(DAY(Solution_tabDatasBDD[[#This Row],[Date de naissance]])&\"/\"&MONTH(Solution_tabDatasBDD[[#This Row],[Date de naissance]])&\"/\"&YEAR(Solution_tabDatasBDD[[#This Row],[Date de naissance]])+65)","v":"2036-04-02"},{"$f":"YEARFRAC(Solution_tabDatasBDD[[#This Row],[Date de naissance]],Solution_tabDatasBDD[[#This Row],[Date de 65 ans]])","v":65},{"$f":"_xlfn.IFS(Solution_tabDatasBDD[[#This Row],[Âge]]>=50,\"A\",Solution_tabDatasBDD[[#This Row],[Âge]]>=4,\"B\",Solution_tabDatasBDD[[#This Row],[Âge]]>=30,\"C\",Solution_tabDatasBDD[[#This Row],[Âge]]<30,\"D\")","v":"A"},"Congo",null,null,null,null,null,null,null,null,null,"- B pour les gens de 40 ans ou plus",null,null,null,null,null,null,null,null,null,null,null,null,null,null,"Si Age >= 40 ALORS \"B\""]
["Stephan Eicher","2010-06-22","m","Célibataire","Place Eugène Verboekhoven",40,1030,{"$f":"MATCH(Solution_tabDatasBDD[[#This Row],[CP]],Solution_tabDatasListe[CP],0)","v":3},{"$f":"INDEX(Solution_tabDatasListe[Commune],Solution_tabDatasBDD[[#This Row],[Commune1]])","v":"Schaerbeek"},{"$f":"_xlfn.XLOOKUP(Solution_tabDatasBDD[[#This Row],[CP]],Solution_tabDatasListe[CP],Solution_tabDatasListe[Commune])","v":"Schaerbeek"},"1983-02-02",{"$f":"DATEDIF(Solution_tabDatasBDD[[#This Row],[Date de naissance]],TODAY(),\"y\")","v":41},"2048-02-02T03:23:52.272",{"$f":"DATEVALUE(DAY(Solution_tabDatasBDD[[#This Row],[Date de naissance]])&\"/\"&MONTH(Solution_tabDatasBDD[[#This Row],[Date de naissance]])&\"/\"&YEAR(Solution_tabDatasBDD[[#This Row],[Date de naissance]])+65)","v":"2048-02-02"},{"$f":"YEARFRAC(Solution_tabDatasBDD[[#This Row],[Date de naissance]],Solution_tabDatasBDD[[#This Row],[Date de 65 ans]])","v":65},{"$f":"_xlfn.IFS(Solution_tabDatasBDD[[#This Row],[Âge]]>=50,\"A\",Solution_tabDatasBDD[[#This Row],[Âge]]>=4,\"B\",Solution_tabDatasBDD[[#This Row],[Âge]]>=30,\"C\",Solution_tabDatasBDD[[#This Row],[Âge]]<30,\"D\")","v":"B"},"Togo",null,null,null,null,null,null,null,null,null,"- C pour les gens de 30 ans ou plus",null,null,null,null,null,null,null,null,null,null,null,null,null,null,"Si Age >= 30 ALORS \"C\""]
["Thomas Fersen","2010-05-12","m","Célibataire","Chaussée de Louvain",100,1210,{"$f":"MATCH(Solution_tabDatasBDD[[#This Row],[CP]],Solution_tabDatasListe[CP],0)","v":17},{"$f":"INDEX(Solution_tabDatasListe[Commune],Solution_tabDatasBDD[[#This Row],[Commune1]])","v":"Saint-Josse-Ten-noode"},{"$f":"_xlfn.XLOOKUP(Solution_tabDatasBDD[[#This Row],[CP]],Solution_tabDatasListe[CP],Solution_tabDatasListe[Commune])","v":"Saint-Josse-Ten-noode"},"1954-03-05",{"$f":"DATEDIF(Solution_tabDatasBDD[[#This Row],[Date de naissance]],TODAY(),\"y\")","v":70},"2019-03-05T18:42:19.835",{"$f":"DATEVALUE(DAY(Solution_tabDatasBDD[[#This Row],[Date de naissance]])&\"/\"&MONTH(Solution_tabDatasBDD[[#This Row],[Date de naissance]])&\"/\"&YEAR(Solution_tabDatasBDD[[#This Row],[Date de naissance]])+65)","v":"2019-03-05"},{"$f":"YEARFRAC(Solution_tabDatasBDD[[#This Row],[Date de naissance]],Solution_tabDatasBDD[[#This Row],[Date de 65 ans]])","v":65},{"$f":"_xlfn.IFS(Solution_tabDatasBDD[[#This Row],[Âge]]>=50,\"A\",Solution_tabDatasBDD[[#This Row],[Âge]]>=4,\"B\",Solution_tabDatasBDD[[#This Row],[Âge]]>=30,\"C\",Solution_tabDatasBDD[[#This Row],[Âge]]<30,\"D\")","v":"A"},"Maroc",null,null,null,null,null,null,null,null,null,"- D pour les autres",null,null,null,null,null,null,null,null,null,null,null,null,null,null,"Si Age < 50 ALORS \"D\""]
["Yann Tiersen","2010-05-12","m","Célibataire","Rue verte",70,1210,{"$f":"MATCH(Solution_tabDatasBDD[[#This Row],[CP]],Solution_tabDatasListe[CP],0)","v":17},{"$f":"INDEX(Solution_tabDatasListe[Commune],Solution_tabDatasBDD[[#This Row],[Commune1]])","v":"Saint-Josse-Ten-noode"},{"$f":"_xlfn.XLOOKUP(Solution_tabDatasBDD[[#This Row],[CP]],Solution_tabDatasListe[CP],Solution_tabDatasListe[Commune])","v":"Saint-Josse-Ten-noode"},"1950-04-16",{"$f":"DATEDIF(Solution_tabDatasBDD[[#This Row],[Date de naissance]],TODAY(),\"y\")","v":74},"2015-04-16T02:55:12.195",{"$f":"DATEVALUE(DAY(Solution_tabDatasBDD[[#This Row],[Date de naissance]])&\"/\"&MONTH(Solution_tabDatasBDD[[#This Row],[Date de naissance]])&\"/\"&YEAR(Solution_tabDatasBDD[[#This Row],[Date de naissance]])+65)","v":"2015-04-16"},{"$f":"YEARFRAC(Solution_tabDatasBDD[[#This Row],[Date de naissance]],Solution_tabDatasBDD[[#This Row],[Date de 65 ans]])","v":65},{"$f":"_xlfn.IFS(Solution_tabDatasBDD[[#This Row],[Âge]]>=50,\"A\",Solution_tabDatasBDD[[#This Row],[Âge]]>=4,\"B\",Solution_tabDatasBDD[[#This Row],[Âge]]>=30,\"C\",Solution_tabDatasBDD[[#This Row],[Âge]]<30,\"D\")","v":"A"},"Maroc",6]
["Alain Bashung","2010-05-12","m","Divocé(e)","Du Vallon",56,1210,{"$f":"MATCH(Solution_tabDatasBDD[[#This Row],[CP]],Solution_tabDatasListe[CP],0)","v":17},{"$f":"INDEX(Solution_tabDatasListe[Commune],Solution_tabDatasBDD[[#This Row],[Commune1]])","v":"Saint-Josse-Ten-noode"},{"$f":"_xlfn.XLOOKUP(Solution_tabDatasBDD[[#This Row],[CP]],Solution_tabDatasListe[CP],Solution_tabDatasListe[Commune])","v":"Saint-Josse-Ten-noode"},"1964-01-28",{"$f":"DATEDIF(Solution_tabDatasBDD[[#This Row],[Date de naissance]],TODAY(),\"y\")","v":60},"2029-01-28T12:03:09.553",{"$f":"DATEVALUE(DAY(Solution_tabDatasBDD[[#This Row],[Date de naissance]])&\"/\"&MONTH(Solution_tabDatasBDD[[#This Row],[Date de naissance]])&\"/\"&YEAR(Solution_tabDatasBDD[[#This Row],[Date de naissance]])+65)","v":"2029-01-28"},{"$f":"YEARFRAC(Solution_tabDatasBDD[[#This Row],[Date de naissance]],Solution_tabDatasBDD[[#This Row],[Date de 65 ans]])","v":65},{"$f":"_xlfn.IFS(Solution_tabDatasBDD[[#This Row],[Âge]]>=50,\"A\",Solution_tabDatasBDD[[#This Row],[Âge]]>=4,\"B\",Solution_tabDatasBDD[[#This Row],[Âge]]>=30,\"C\",Solution_tabDatasBDD[[#This Row],[Âge]]<30,\"D\")","v":"A"},"Algérie",5]
["Alexis HK","2010-05-12","m","Divocé(e)","Martin 5",56,1200,{"$f":"MATCH(Solution_tabDatasBDD[[#This Row],[CP]],Solution_tabDatasListe[CP],0)","v":16},{"$f":"INDEX(Solution_tabDatasListe[Commune],Solution_tabDatasBDD[[#This Row],[Commune1]])","v":"Woluwé-Saint-Lambert"},{"$f":"_xlfn.XLOOKUP(Solution_tabDatasBDD[[#This Row],[CP]],Solution_tabDatasListe[CP],Solution_tabDatasListe[Commune])","v":"Woluwé-Saint-Lambert"},"1980-02-15",{"$f":"DATEDIF(Solution_tabDatasBDD[[#This Row],[Date de naissance]],TODAY(),\"y\")","v":44},"2045-02-15T01:38:14.499",{"$f":"DATEVALUE(DAY(Solution_tabDatasBDD[[#This Row],[Date de naissance]])&\"/\"&MONTH(Solution_tabDatasBDD[[#This Row],[Date de naissance]])&\"/\"&YEAR(Solution_tabDatasBDD[[#This Row],[Date de naissance]])+65)","v":"2045-02-15"},{"$f":"YEARFRAC(Solution_tabDatasBDD[[#This Row],[Date de naissance]],Solution_tabDatasBDD[[#This Row],[Date de 65 ans]])","v":65},{"$f":"_xlfn.IFS(Solution_tabDatasBDD[[#This Row],[Âge]]>=50,\"A\",Solution_tabDatasBDD[[#This Row],[Âge]]>=4,\"B\",Solution_tabDatasBDD[[#This Row],[Âge]]>=30,\"C\",Solution_tabDatasBDD[[#This Row],[Âge]]<30,\"D\")","v":"B"},"Cameroun"]
["Arthur H","2010-05-04","m","Divocé(e)","Chaussée de Haecht",300,1030,{"$f":"MATCH(Solution_tabDatasBDD[[#This Row],[CP]],Solution_tabDatasListe[CP],0)","v":3},{"$f":"INDEX(Solution_tabDatasListe[Commune],Solution_tabDatasBDD[[#This Row],[Commune1]])","v":"Schaerbeek"},{"$f":"_xlfn.XLOOKUP(Solution_tabDatasBDD[[#This Row],[CP]],Solution_tabDatasListe[CP],Solution_tabDatasListe[Commune])","v":"Schaerbeek"},"1960-04-04",{"$f":"DATEDIF(Solution_tabDatasBDD[[#This Row],[Date de naissance]],TODAY(),\"y\")","v":64},"2025-04-04T21:42:23.658",{"$f":"DATEVALUE(DAY(Solution_tabDatasBDD[[#This Row],[Date de naissance]])&\"/\"&MONTH(Solution_tabDatasBDD[[#This Row],[Date de naissance]])&\"/\"&YEAR(Solution_tabDatasBDD[[#This Row],[Date de naissance]])+65)","v":"2025-04-04"},{"$f":"YEARFRAC(Solution_tabDatasBDD[[#This Row],[Date de naissance]],Solution_tabDatasBDD[[#This Row],[Date de 65 ans]])","v":65},{"$f":"_xlfn.IFS(Solution_tabDatasBDD[[#This Row],[Âge]]>=50,\"A\",Solution_tabDatasBDD[[#This Row],[Âge]]>=4,\"B\",Solution_tabDatasBDD[[#This Row],[Âge]]>=30,\"C\",Solution_tabDatasBDD[[#This Row],[Âge]]<30,\"D\")","v":"A"},"Congo",null,null,null,null,null,null,null,"=>","Faire apparaître en rose les dames et en bleu les hommes"]
["Bertrand Burgalat","2010-05-04","m","Divocé(e)","Rue potagère",165,1030,{"$f":"MATCH(Solution_tabDatasBDD[[#This Row],[CP]],Solution_tabDatasListe[CP],0)","v":3},{"$f":"INDEX(Solution_tabDatasListe[Commune],Solution_tabDatasBDD[[#This Row],[Commune1]])","v":"Schaerbeek"},{"$f":"_xlfn.XLOOKUP(Solution_tabDatasBDD[[#This Row],[CP]],Solution_tabDatasListe[CP],Solution_tabDatasListe[Commune])","v":"Schaerbeek"},"1971-12-20",{"$f":"DATEDIF(Solution_tabDatasBDD[[#This Row],[Date de naissance]],TODAY(),\"y\")","v":52},"2036-12-20T11:27:41.776",{"$f":"DATEVALUE(DAY(Solution_tabDatasBDD[[#This Row],[Date de naissance]])&\"/\"&MONTH(Solution_tabDatasBDD[[#This Row],[Date de naissance]])&\"/\"&YEAR(Solution_tabDatasBDD[[#This Row],[Date de naissance]])+65)","v":"2036-12-20"},{"$f":"YEARFRAC(Solution_tabDatasBDD[[#This Row],[Date de naissance]],Solution_tabDatasBDD[[#This Row],[Date de 65 ans]])","v":65},{"$f":"_xlfn.IFS(Solution_tabDatasBDD[[#This Row],[Âge]]>=50,\"A\",Solution_tabDatasBDD[[#This Row],[Âge]]>=4,\"B\",Solution_tabDatasBDD[[#This Row],[Âge]]>=30,\"C\",Solution_tabDatasBDD[[#This Row],[Âge]]<30,\"D\")","v":"A"},"Maroc",2]
["Charlélie Couture","2010-05-04","m","Cohabitant(e)","Rue Ernest Discailliens",22,1030,{"$f":"MATCH(Solution_tabDatasBDD[[#This Row],[CP]],Solution_tabDatasListe[CP],0)","v":3},{"$f":"INDEX(Solution_tabDatasListe[Commune],Solution_tabDatasBDD[[#This Row],[Commune1]])","v":"Schaerbeek"},{"$f":"_xlfn.XLOOKUP(Solution_tabDatasBDD[[#This Row],[CP]],Solution_tabDatasListe[CP],Solution_tabDatasListe[Commune])","v":"Schaerbeek"},"1973-08-13",{"$f":"DATEDIF(Solution_tabDatasBDD[[#This Row],[Date de naissance]],TODAY(),\"y\")","v":50},"2038-08-13T17:55:47.775",{"$f":"DATEVALUE(DAY(Solution_tabDatasBDD[[#This Row],[Date de naissance]])&\"/\"&MONTH(Solution_tabDatasBDD[[#This Row],[Date de naissance]])&\"/\"&YEAR(Solution_tabDatasBDD[[#This Row],[Date de naissance]])+65)","v":"2038-08-13"},{"$f":"YEARFRAC(Solution_tabDatasBDD[[#This Row],[Date de naissance]],Solution_tabDatasBDD[[#This Row],[Date de 65 ans]])","v":65},{"$f":"_xlfn.IFS(Solution_tabDatasBDD[[#This Row],[Âge]]>=50,\"A\",Solution_tabDatasBDD[[#This Row],[Âge]]>=4,\"B\",Solution_tabDatasBDD[[#This Row],[Âge]]>=30,\"C\",Solution_tabDatasBDD[[#This Row],[Âge]]<30,\"D\")","v":"A"},"Belgique",null,null,null,null,null,null,null,"=>","Faire apparaître les dates d'entrée du premier semestre en vert"]
["Corneille","2010-05-04","m","Cohabitant(e)","Rue de Navez",23,1030,{"$f":"MATCH(Solution_tabDatasBDD[[#This Row],[CP]],Solution_tabDatasListe[CP],0)","v":3},{"$f":"INDEX(Solution_tabDatasListe[Commune],Solution_tabDatasBDD[[#This Row],[Commune1]])","v":"Schaerbeek"},{"$f":"_xlfn.XLOOKUP(Solution_tabDatasBDD[[#This Row],[CP]],Solution_tabDatasListe[CP],Solution_tabDatasListe[Commune])","v":"Schaerbeek"},"1982-09-20",{"$f":"DATEDIF(Solution_tabDatasBDD[[#This Row],[Date de naissance]],TODAY(),\"y\")","v":41},"2047-09-20T06:47:56.053",{"$f":"DATEVALUE(DAY(Solution_tabDatasBDD[[#This Row],[Date de naissance]])&\"/\"&MONTH(Solution_tabDatasBDD[[#This Row],[Date de naissance]])&\"/\"&YEAR(Solution_tabDatasBDD[[#This Row],[Date de naissance]])+65)","v":"2047-09-20"},{"$f":"YEARFRAC(Solution_tabDatasBDD[[#This Row],[Date de naissance]],Solution_tabDatasBDD[[#This Row],[Date de 65 ans]])","v":65},{"$f":"_xlfn.IFS(Solution_tabDatasBDD[[#This Row],[Âge]]>=50,\"A\",Solution_tabDatasBDD[[#This Row],[Âge]]>=4,\"B\",Solution_tabDatasBDD[[#This Row],[Âge]]>=30,\"C\",Solution_tabDatasBDD[[#This Row],[Âge]]<30,\"D\")","v":"B"},"Turquie",1]
["Eddy Mitchell","2010-05-04","m",null,"Edouard Stuckens",78,1030,{"$f":"MATCH(Solution_tabDatasBDD[[#This Row],[CP]],Solution_tabDatasListe[CP],0)","v":3},{"$f":"INDEX(Solution_tabDatasListe[Commune],Solution_tabDatasBDD[[#This Row],[Commune1]])","v":"Schaerbeek"},{"$f":"_xlfn.XLOOKUP(Solution_tabDatasBDD[[#This Row],[CP]],Solution_tabDatasListe[CP],Solution_tabDatasListe[Commune])","v":"Schaerbeek"},"1977-08-15",{"$f":"DATEDIF(Solution_tabDatasBDD[[#This Row],[Date de naissance]],TODAY(),\"y\")","v":46},"2042-08-15T10:14:25.057",{"$f":"DATEVALUE(DAY(Solution_tabDatasBDD[[#This Row],[Date de naissance]])&\"/\"&MONTH(Solution_tabDatasBDD[[#This Row],[Date de naissance]])&\"/\"&YEAR(Solution_tabDatasBDD[[#This Row],[Date de naissance]])+65)","v":"2042-08-15"},{"$f":"YEARFRAC(Solution_tabDatasBDD[[#This Row],[Date de naissance]],Solution_tabDatasBDD[[#This Row],[Date de 65 ans]])","v":65},{"$f":"_xlfn.IFS(Solution_tabDatasBDD[[#This Row],[Âge]]>=50,\"A\",Solution_tabDatasBDD[[#This Row],[Âge]]>=4,\"B\",Solution_tabDatasBDD[[#This Row],[Âge]]>=30,\"C\",Solution_tabDatasBDD[[#This Row],[Âge]]<30,\"D\")","v":"B"},"France",4]
["Florent Pagny","2010-04-30","m",null,"Joseph Dekeyn",85,1210,{"$f":"MATCH(Solution_tabDatasBDD[[#This Row],[CP]],Solution_tabDatasListe[CP],0)","v":17},{"$f":"INDEX(Solution_tabDatasListe[Commune],Solution_tabDatasBDD[[#This Row],[Commune1]])","v":"Saint-Josse-Ten-noode"},{"$f":"_xlfn.XLOOKUP(Solution_tabDatasBDD[[#This Row],[CP]],Solution_tabDatasListe[CP],Solution_tabDatasListe[Commune])","v":"Saint-Josse-Ten-noode"},"1963-10-03",{"$f":"DATEDIF(Solution_tabDatasBDD[[#This Row],[Date de naissance]],TODAY(),\"y\")","v":60},"2028-10-03T06:02:58.535",{"$f":"DATEVALUE(DAY(Solution_tabDatasBDD[[#This Row],[Date de naissance]])&\"/\"&MONTH(Solution_tabDatasBDD[[#This Row],[Date de naissance]])&\"/\"&YEAR(Solution_tabDatasBDD[[#This Row],[Date de naissance]])+65)","v":"2028-10-03"},{"$f":"YEARFRAC(Solution_tabDatasBDD[[#This Row],[Date de naissance]],Solution_tabDatasBDD[[#This Row],[Date de 65 ans]])","v":65},{"$f":"_xlfn.IFS(Solution_tabDatasBDD[[#This Row],[Âge]]>=50,\"A\",Solution_tabDatasBDD[[#This Row],[Âge]]>=4,\"B\",Solution_tabDatasBDD[[#This Row],[Âge]]>=30,\"C\",Solution_tabDatasBDD[[#This Row],[Âge]]<30,\"D\")","v":"A"},"Armenie"]
["Garou","2010-06-22","m",null,"Rue du petit rempart",52,1000,{"$f":"MATCH(Solution_tabDatasBDD[[#This Row],[CP]],Solution_tabDatasListe[CP],0)","v":1},{"$f":"INDEX(Solution_tabDatasListe[Commune],Solution_tabDatasBDD[[#This Row],[Commune1]])","v":"Bruxelles"},{"$f":"_xlfn.XLOOKUP(Solution_tabDatasBDD[[#This Row],[CP]],Solution_tabDatasListe[CP],Solution_tabDatasListe[Commune])","v":"Bruxelles"},"1963-10-04",{"$f":"DATEDIF(Solution_tabDatasBDD[[#This Row],[Date de naissance]],TODAY(),\"y\")","v":60},"2028-10-04T06:51:57.776",{"$f":"DATEVALUE(DAY(Solution_tabDatasBDD[[#This Row],[Date de naissance]])&\"/\"&MONTH(Solution_tabDatasBDD[[#This Row],[Date de naissance]])&\"/\"&YEAR(Solution_tabDatasBDD[[#This Row],[Date de naissance]])+65)","v":"2028-10-04"},{"$f":"YEARFRAC(Solution_tabDatasBDD[[#This Row],[Date de naissance]],Solution_tabDatasBDD[[#This Row],[Date de 65 ans]])","v":65},{"$f":"_xlfn.IFS(Solution_tabDatasBDD[[#This Row],[Âge]]>=50,\"A\",Solution_tabDatasBDD[[#This Row],[Âge]]>=4,\"B\",Solution_tabDatasBDD[[#This Row],[Âge]]>=30,\"C\",Solution_tabDatasBDD[[#This Row],[Âge]]<30,\"D\")","v":"A"},null,1]
["Gilbert Montagné","2010-06-22","m",null,"Chaussée d'Anvers",55,1000,{"$f":"MATCH(Solution_tabDatasBDD[[#This Row],[CP]],Solution_tabDatasListe[CP],0)","v":1},{"$f":"INDEX(Solution_tabDatasListe[Commune],Solution_tabDatasBDD[[#This Row],[Commune1]])","v":"Bruxelles"},{"$f":"_xlfn.XLOOKUP(Solution_tabDatasBDD[[#This Row],[CP]],Solution_tabDatasListe[CP],Solution_tabDatasListe[Commune])","v":"Bruxelles"},"1980-09-27",{"$f":"DATEDIF(Solution_tabDatasBDD[[#This Row],[Date de naissance]],TODAY(),\"y\")","v":43},"2045-09-27T04:20:18.594",{"$f":"DATEVALUE(DAY(Solution_tabDatasBDD[[#This Row],[Date de naissance]])&\"/\"&MONTH(Solution_tabDatasBDD[[#This Row],[Date de naissance]])&\"/\"&YEAR(Solution_tabDatasBDD[[#This Row],[Date de naissance]])+65)","v":"2045-09-27"},{"$f":"YEARFRAC(Solution_tabDatasBDD[[#This Row],[Date de naissance]],Solution_tabDatasBDD[[#This Row],[Date de 65 ans]])","v":65},{"$f":"_xlfn.IFS(Solution_tabDatasBDD[[#This Row],[Âge]]>=50,\"A\",Solution_tabDatasBDD[[#This Row],[Âge]]>=4,\"B\",Solution_tabDatasBDD[[#This Row],[Âge]]>=30,\"C\",Solution_tabDatasBDD[[#This Row],[Âge]]<30,\"D\")","v":"B"},"Belgique",2]
["Jacques Higelin","2010-05-12","m",null,"Rue de choeur",87,1080,{"$f":"MATCH(Solution_tabDatasBDD[[#This Row],[CP]],Solution_tabDatasListe[CP],0)","v":8},{"$f":"INDEX(Solution_tabDatasListe[Commune],Solution_tabDatasBDD[[#This Row],[Commune1]])","v":"Molenbeek"},{"$f":"_xlfn.XLOOKUP(Solution_tabDatasBDD[[#This Row],[CP]],Solution_tabDatasListe[CP],Solution_tabDatasListe[Commune])","v":"Molenbeek"},"1969-01-01",{"$f":"DATEDIF(Solution_tabDatasBDD[[#This Row],[Date de naissance]],TODAY(),\"y\")","v":55},"2033-12-31T09:04:56.889",{"$f":"DATEVALUE(DAY(Solution_tabDatasBDD[[#This Row],[Date de naissance]])&\"/\"&MONTH(Solution_tabDatasBDD[[#This Row],[Date de naissance]])&\"/\"&YEAR(Solution_tabDatasBDD[[#This Row],[Date de naissance]])+65)","v":"2034-01-01"},{"$f":"YEARFRAC(Solution_tabDatasBDD[[#This Row],[Date de naissance]],Solution_tabDatasBDD[[#This Row],[Date de 65 ans]])","v":65},{"$f":"_xlfn.IFS(Solution_tabDatasBDD[[#This Row],[Âge]]>=50,\"A\",Solution_tabDatasBDD[[#This Row],[Âge]]>=4,\"B\",Solution_tabDatasBDD[[#This Row],[Âge]]>=30,\"C\",Solution_tabDatasBDD[[#This Row],[Âge]]<30,\"D\")","v":"A"},"Maroc"]
["Jean-Louis Murat","2010-05-12","m",null,"Rue de l'aérodrome",85,1130,{"$f":"MATCH(Solution_tabDatasBDD[[#This Row],[CP]],Solution_tabDatasListe[CP],0)","v":11},{"$f":"INDEX(Solution_tabDatasListe[Commune],Solution_tabDatasBDD[[#This Row],[Commune1]])","v":"Haren"},{"$f":"_xlfn.XLOOKUP(Solution_tabDatasBDD[[#This Row],[CP]],Solution_tabDatasListe[CP],Solution_tabDatasListe[Commune])","v":"Haren"},"1967-05-05",{"$f":"DATEDIF(Solution_tabDatasBDD[[#This Row],[Date de naissance]],TODAY(),\"y\")","v":57},"2032-05-05T12:11:07.686",{"$f":"DATEVALUE(DAY(Solution_tabDatasBDD[[#This Row],[Date de naissance]])&\"/\"&MONTH(Solution_tabDatasBDD[[#This Row],[Date de naissance]])&\"/\"&YEAR(Solution_tabDatasBDD[[#This Row],[Date de naissance]])+65)","v":"2032-05-05"},{"$f":"YEARFRAC(Solution_tabDatasBDD[[#This Row],[Date de naissance]],Solution_tabDatasBDD[[#This Row],[Date de 65 ans]])","v":65},{"$f":"_xlfn.IFS(Solution_tabDatasBDD[[#This Row],[Âge]]>=50,\"A\",Solution_tabDatasBDD[[#This Row],[Âge]]>=4,\"B\",Solution_tabDatasBDD[[#This Row],[Âge]]>=30,\"C\",Solution_tabDatasBDD[[#This Row],[Âge]]<30,\"D\")","v":"A"},"Yougoslavie"]
["Julien Baer","2010-05-12","m",null,"Rue de Locht",96,1030,{"$f":"MATCH(Solution_tabDatasBDD[[#This Row],[CP]],Solution_tabDatasListe[CP],0)","v":3},{"$f":"INDEX(Solution_tabDatasListe[Commune],Solution_tabDatasBDD[[#This Row],[Commune1]])","v":"Schaerbeek"},{"$f":"_xlfn.XLOOKUP(Solution_tabDatasBDD[[#This Row],[CP]],Solution_tabDatasListe[CP],Solution_tabDatasListe[Commune])","v":"Schaerbeek"},"1983-01-01",{"$f":"DATEDIF(Solution_tabDatasBDD[[#This Row],[Date de naissance]],TODAY(),\"y\")","v":41},"2047-12-31T13:50:20.413",{"$f":"DATEVALUE(DAY(Solution_tabDatasBDD[[#This Row],[Date de naissance]])&\"/\"&MONTH(Solution_tabDatasBDD[[#This Row],[Date de naissance]])&\"/\"&YEAR(Solution_tabDatasBDD[[#This Row],[Date de naissance]])+65)","v":"2048-01-01"},{"$f":"YEARFRAC(Solution_tabDatasBDD[[#This Row],[Date de naissance]],Solution_tabDatasBDD[[#This Row],[Date de 65 ans]])","v":65},{"$f":"_xlfn.IFS(Solution_tabDatasBDD[[#This Row],[Âge]]>=50,\"A\",Solution_tabDatasBDD[[#This Row],[Âge]]>=4,\"B\",Solution_tabDatasBDD[[#This Row],[Âge]]>=30,\"C\",Solution_tabDatasBDD[[#This Row],[Âge]]<30,\"D\")","v":"B"},"Maroc"]
["Cécile Defrance","2010-04-19","f",null,"Avenue de la couronne",66,1050,{"$f":"MATCH(Solution_tabDatasBDD[[#This Row],[CP]],Solution_tabDatasListe[CP],0)","v":5},{"$f":"INDEX(Solution_tabDatasListe[Commune],Solution_tabDatasBDD[[#This Row],[Commune1]])","v":"Ixelles"},{"$f":"_xlfn.XLOOKUP(Solution_tabDatasBDD[[#This Row],[CP]],Solution_tabDatasListe[CP],Solution_tabDatasListe[Commune])","v":"Ixelles"},"1963-09-12",{"$f":"DATEDIF(Solution_tabDatasBDD[[#This Row],[Date de naissance]],TODAY(),\"y\")","v":60},"2028-09-12T01:07:46.967",{"$f":"DATEVALUE(DAY(Solution_tabDatasBDD[[#This Row],[Date de naissance]])&\"/\"&MONTH(Solution_tabDatasBDD[[#This Row],[Date de naissance]])&\"/\"&YEAR(Solution_tabDatasBDD[[#This Row],[Date de naissance]])+65)","v":"2028-09-12"},{"$f":"YEARFRAC(Solution_tabDatasBDD[[#This Row],[Date de naissance]],Solution_tabDatasBDD[[#This Row],[Date de 65 ans]])","v":65},{"$f":"_xlfn.IFS(Solution_tabDatasBDD[[#This Row],[Âge]]>=50,\"A\",Solution_tabDatasBDD[[#This Row],[Âge]]>=4,\"B\",Solution_tabDatasBDD[[#This Row],[Âge]]>=30,\"C\",Solution_tabDatasBDD[[#This Row],[Âge]]<30,\"D\")","v":"A"},"Sénégal",2]
["Amel Bent","2010-04-19","f",null,"Henri Strauven",36,1200,{"$f":"MATCH(Solution_tabDatasBDD[[#This Row],[CP]],Solution_tabDatasListe[CP],0)","v":16},{"$f":"INDEX(Solution_tabDatasListe[Commune],Solution_tabDatasBDD[[#This Row],[Commune1]])","v":"Woluwé-Saint-Lambert"},{"$f":"_xlfn.XLOOKUP(Solution_tabDatasBDD[[#This Row],[CP]],Solution_tabDatasListe[CP],Solution_tabDatasListe[Commune])","v":"Woluwé-Saint-Lambert"},"1980-04-27",{"$f":"DATEDIF(Solution_tabDatasBDD[[#This Row],[Date de naissance]],TODAY(),\"y\")","v":44},"2045-04-27T00:29:44.538",{"$f":"DATEVALUE(DAY(Solution_tabDatasBDD[[#This Row],[Date de naissance]])&\"/\"&MONTH(Solution_tabDatasBDD[[#This Row],[Date de naissance]])&\"/\"&YEAR(Solution_tabDatasBDD[[#This Row],[Date de naissance]])+65)","v":"2045-04-27"},{"$f":"YEARFRAC(Solution_tabDatasBDD[[#This Row],[Date de naissance]],Solution_tabDatasBDD[[#This Row],[Date de 65 ans]])","v":65},{"$f":"_xlfn.IFS(Solution_tabDatasBDD[[#This Row],[Âge]]>=50,\"A\",Solution_tabDatasBDD[[#This Row],[Âge]]>=4,\"B\",Solution_tabDatasBDD[[#This Row],[Âge]]>=30,\"C\",Solution_tabDatasBDD[[#This Row],[Âge]]<30,\"D\")","v":"B"},"Congo"]
["Maxime Le Forestier","2010-04-28","m",null,"Boulevard Emile Bockstael",5,1020,{"$f":"MATCH(Solution_tabDatasBDD[[#This Row],[CP]],Solution_tabDatasListe[CP],0)","v":2},{"$f":"INDEX(Solution_tabDatasListe[Commune],Solution_tabDatasBDD[[#This Row],[Commune1]])","v":"Laeken"},{"$f":"_xlfn.XLOOKUP(Solution_tabDatasBDD[[#This Row],[CP]],Solution_tabDatasListe[CP],Solution_tabDatasListe[Commune])","v":"Laeken"},"1986-06-15",{"$f":"DATEDIF(Solution_tabDatasBDD[[#This Row],[Date de naissance]],TODAY(),\"y\")","v":38},"2051-06-15T12:49:21.117",{"$f":"DATEVALUE(DAY(Solution_tabDatasBDD[[#This Row],[Date de naissance]])&\"/\"&MONTH(Solution_tabDatasBDD[[#This Row],[Date de naissance]])&\"/\"&YEAR(Solution_tabDatasBDD[[#This Row],[Date de naissance]])+65)","v":"2051-06-15"},{"$f":"YEARFRAC(Solution_tabDatasBDD[[#This Row],[Date de naissance]],Solution_tabDatasBDD[[#This Row],[Date de 65 ans]])","v":65},{"$f":"_xlfn.IFS(Solution_tabDatasBDD[[#This Row],[Âge]]>=50,\"A\",Solution_tabDatasBDD[[#This Row],[Âge]]>=4,\"B\",Solution_tabDatasBDD[[#This Row],[Âge]]>=30,\"C\",Solution_tabDatasBDD[[#This Row],[Âge]]<30,\"D\")","v":"B"},"Abidjan"]
["Michel Jonasz","2010-05-12","m",null,"Rue aux bois",85,1950,{"$f":"MATCH(Solution_tabDatasBDD[[#This Row],[CP]],Solution_tabDatasListe[CP],0)","v":22},{"$f":"INDEX(Solution_tabDatasListe[Commune],Solution_tabDatasBDD[[#This Row],[Commune1]])","v":"Krainem"},{"$f":"_xlfn.XLOOKUP(Solution_tabDatasBDD[[#This Row],[CP]],Solution_tabDatasListe[CP],Solution_tabDatasListe[Commune])","v":"Krainem"},"1984-12-24",{"$f":"DATEDIF(Solution_tabDatasBDD[[#This Row],[Date de naissance]],TODAY(),\"y\")","v":39},"2049-12-24T05:38:43.110",{"$f":"DATEVALUE(DAY(Solution_tabDatasBDD[[#This Row],[Date de naissance]])&\"/\"&MONTH(Solution_tabDatasBDD[[#This Row],[Date de naissance]])&\"/\"&YEAR(Solution_tabDatasBDD[[#This Row],[Date de naissance]])+65)","v":"2049-12-24"},{"$f":"YEARFRAC(Solution_tabDatasBDD[[#This Row],[Date de naissance]],Solution_tabDatasBDD[[#This Row],[Date de 65 ans]])","v":65},{"$f":"_xlfn.IFS(Solution_tabDatasBDD[[#This Row],[Âge]]>=50,\"A\",Solution_tabDatasBDD[[#This Row],[Âge]]>=4,\"B\",Solution_tabDatasBDD[[#This Row],[Âge]]>=30,\"C\",Solution_tabDatasBDD[[#This Row],[Âge]]<30,\"D\")","v":"B"},"Nigeria",2]
["Pascal Obispo","2010-05-12","m",null,"Gustave Huberti",55,1030,{"$f":"MATCH(Solution_tabDatasBDD[[#This Row],[CP]],Solution_tabDatasListe[CP],0)","v":3},{"$f":"INDEX(Solution_tabDatasListe[Commune],Solution_tabDatasBDD[[#This Row],[Commune1]])","v":"Schaerbeek"},{"$f":"_xlfn.XLOOKUP(Solution_tabDatasBDD[[#This Row],[CP]],Solution_tabDatasListe[CP],Solution_tabDatasListe[Commune])","v":"Schaerbeek"},"1971-05-23",{"$f":"DATEDIF(Solution_tabDatasBDD[[#This Row],[Date de naissance]],TODAY(),\"y\")","v":53},"2036-05-23T22:40:46.432",{"$f":"DATEVALUE(DAY(Solution_tabDatasBDD[[#This Row],[Date de naissance]])&\"/\"&MONTH(Solution_tabDatasBDD[[#This Row],[Date de naissance]])&\"/\"&YEAR(Solution_tabDatasBDD[[#This Row],[Date de naissance]])+65)","v":"2036-05-23"},{"$f":"YEARFRAC(Solution_tabDatasBDD[[#This Row],[Date de naissance]],Solution_tabDatasBDD[[#This Row],[Date de 65 ans]])","v":65},{"$f":"_xlfn.IFS(Solution_tabDatasBDD[[#This Row],[Âge]]>=50,\"A\",Solution_tabDatasBDD[[#This Row],[Âge]]>=4,\"B\",Solution_tabDatasBDD[[#This Row],[Âge]]>=30,\"C\",Solution_tabDatasBDD[[#This Row],[Âge]]<30,\"D\")","v":"A"},"Maroc"]
["Sandra Kim","2010-05-12","f",null,"Avenue de la couronne",14,1050,{"$f":"MATCH(Solution_tabDatasBDD[[#This Row],[CP]],Solution_tabDatasListe[CP],0)","v":5},{"$f":"INDEX(Solution_tabDatasListe[Commune],Solution_tabDatasBDD[[#This Row],[Commune1]])","v":"Ixelles"},{"$f":"_xlfn.XLOOKUP(Solution_tabDatasBDD[[#This Row],[CP]],Solution_tabDatasListe[CP],Solution_tabDatasListe[Commune])","v":"Ixelles"},"1964-11-03",{"$f":"DATEDIF(Solution_tabDatasBDD[[#This Row],[Date de naissance]],TODAY(),\"y\")","v":59},"2029-11-03T05:13:48.236",{"$f":"DATEVALUE(DAY(Solution_tabDatasBDD[[#This Row],[Date de naissance]])&\"/\"&MONTH(Solution_tabDatasBDD[[#This Row],[Date de naissance]])&\"/\"&YEAR(Solution_tabDatasBDD[[#This Row],[Date de naissance]])+65)","v":"2029-11-03"},{"$f":"YEARFRAC(Solution_tabDatasBDD[[#This Row],[Date de naissance]],Solution_tabDatasBDD[[#This Row],[Date de 65 ans]])","v":65},{"$f":"_xlfn.IFS(Solution_tabDatasBDD[[#This Row],[Âge]]>=50,\"A\",Solution_tabDatasBDD[[#This Row],[Âge]]>=4,\"B\",Solution_tabDatasBDD[[#This Row],[Âge]]>=30,\"C\",Solution_tabDatasBDD[[#This Row],[Âge]]<30,\"D\")","v":"A"},"Sénégal",2]
["Roch Voisine","2010-05-10","m",null,"Léon Doperie",36,1090,{"$f":"MATCH(Solution_tabDatasBDD[[#This Row],[CP]],Solution_tabDatasListe[CP],0)","v":10},{"$f":"INDEX(Solution_tabDatasListe[Commune],Solution_tabDatasBDD[[#This Row],[Commune1]])","v":"Jette"},{"$f":"_xlfn.XLOOKUP(Solution_tabDatasBDD[[#This Row],[CP]],Solution_tabDatasListe[CP],Solution_tabDatasListe[Commune])","v":"Jette"},"1978-02-28",{"$f":"DATEDIF(Solution_tabDatasBDD[[#This Row],[Date de naissance]],TODAY(),\"y\")","v":46},"2043-02-28T22:10:46.643",{"$f":"DATEVALUE(DAY(Solution_tabDatasBDD[[#This Row],[Date de naissance]])&\"/\"&MONTH(Solution_tabDatasBDD[[#This Row],[Date de naissance]])&\"/\"&YEAR(Solution_tabDatasBDD[[#This Row],[Date de naissance]])+65)","v":"2043-02-28"},{"$f":"YEARFRAC(Solution_tabDatasBDD[[#This Row],[Date de naissance]],Solution_tabDatasBDD[[#This Row],[Date de 65 ans]])","v":65},{"$f":"_xlfn.IFS(Solution_tabDatasBDD[[#This Row],[Âge]]>=50,\"A\",Solution_tabDatasBDD[[#This Row],[Âge]]>=4,\"B\",Solution_tabDatasBDD[[#This Row],[Âge]]>=30,\"C\",Solution_tabDatasBDD[[#This Row],[Âge]]<30,\"D\")","v":"B"},"Cameroun"]
["Stomy Bugsy","2010-05-07","m",null,"Rue de l'Ourthe",254,1080,{"$f":"MATCH(Solution_tabDatasBDD[[#This Row],[CP]],Solution_tabDatasListe[CP],0)","v":8},{"$f":"INDEX(Solution_tabDatasListe[Commune],Solution_tabDatasBDD[[#This Row],[Commune1]])","v":"Molenbeek"},{"$f":"_xlfn.XLOOKUP(Solution_tabDatasBDD[[#This Row],[CP]],Solution_tabDatasListe[CP],Solution_tabDatasListe[Commune])","v":"Molenbeek"},"1980-10-10",{"$f":"DATEDIF(Solution_tabDatasBDD[[#This Row],[Date de naissance]],TODAY(),\"y\")","v":43},"2045-10-10T14:19:29.715",{"$f":"DATEVALUE(DAY(Solution_tabDatasBDD[[#This Row],[Date de naissance]])&\"/\"&MONTH(Solution_tabDatasBDD[[#This Row],[Date de naissance]])&\"/\"&YEAR(Solution_tabDatasBDD[[#This Row],[Date de naissance]])+65)","v":"2045-10-10"},{"$f":"YEARFRAC(Solution_tabDatasBDD[[#This Row],[Date de naissance]],Solution_tabDatasBDD[[#This Row],[Date de 65 ans]])","v":65},{"$f":"_xlfn.IFS(Solution_tabDatasBDD[[#This Row],[Âge]]>=50,\"A\",Solution_tabDatasBDD[[#This Row],[Âge]]>=4,\"B\",Solution_tabDatasBDD[[#This Row],[Âge]]>=30,\"C\",Solution_tabDatasBDD[[#This Row],[Âge]]<30,\"D\")","v":"B"},"Congo"]
["Tonton David","2010-05-07","m",null,"Rue Vanderschrick",88,1060,{"$f":"MATCH(Solution_tabDatasBDD[[#This Row],[CP]],Solution_tabDatasListe[CP],0)","v":6},{"$f":"INDEX(Solution_tabDatasListe[Commune],Solution_tabDatasBDD[[#This Row],[Commune1]])","v":"Saint Gilles"},{"$f":"_xlfn.XLOOKUP(Solution_tabDatasBDD[[#This Row],[CP]],Solution_tabDatasListe[CP],Solution_tabDatasListe[Commune])","v":"Saint Gilles"},"1964-12-05",{"$f":"DATEDIF(Solution_tabDatasBDD[[#This Row],[Date de naissance]],TODAY(),\"y\")","v":59},"2029-12-05T03:08:55.891",{"$f":"DATEVALUE(DAY(Solution_tabDatasBDD[[#This Row],[Date de naissance]])&\"/\"&MONTH(Solution_tabDatasBDD[[#This Row],[Date de naissance]])&\"/\"&YEAR(Solution_tabDatasBDD[[#This Row],[Date de naissance]])+65)","v":"2029-12-05"},{"$f":"YEARFRAC(Solution_tabDatasBDD[[#This Row],[Date de naissance]],Solution_tabDatasBDD[[#This Row],[Date de 65 ans]])","v":65},{"$f":"_xlfn.IFS(Solution_tabDatasBDD[[#This Row],[Âge]]>=50,\"A\",Solution_tabDatasBDD[[#This Row],[Âge]]>=4,\"B\",Solution_tabDatasBDD[[#This Row],[Âge]]>=30,\"C\",Solution_tabDatasBDD[[#This Row],[Âge]]<30,\"D\")","v":"A"},"Equateur"]
["Yannick Noah","2010-04-30","m",null,"Avenue Jacobs Fontaine",99,1020,{"$f":"MATCH(Solution_tabDatasBDD[[#This Row],[CP]],Solution_tabDatasListe[CP],0)","v":2},{"$f":"INDEX(Solution_tabDatasListe[Commune],Solution_tabDatasBDD[[#This Row],[Commune1]])","v":"Laeken"},{"$f":"_xlfn.XLOOKUP(Solution_tabDatasBDD[[#This Row],[CP]],Solution_tabDatasListe[CP],Solution_tabDatasListe[Commune])","v":"Laeken"},"1978-11-11",{"$f":"DATEDIF(Solution_tabDatasBDD[[#This Row],[Date de naissance]],TODAY(),\"y\")","v":45},"2043-11-11T14:09:27.369",{"$f":"DATEVALUE(DAY(Solution_tabDatasBDD[[#This Row],[Date de naissance]])&\"/\"&MONTH(Solution_tabDatasBDD[[#This Row],[Date de naissance]])&\"/\"&YEAR(Solution_tabDatasBDD[[#This Row],[Date de naissance]])+65)","v":"2043-11-11"},{"$f":"YEARFRAC(Solution_tabDatasBDD[[#This Row],[Date de naissance]],Solution_tabDatasBDD[[#This Row],[Date de 65 ans]])","v":65},{"$f":"_xlfn.IFS(Solution_tabDatasBDD[[#This Row],[Âge]]>=50,\"A\",Solution_tabDatasBDD[[#This Row],[Âge]]>=4,\"B\",Solution_tabDatasBDD[[#This Row],[Âge]]>=30,\"C\",Solution_tabDatasBDD[[#This Row],[Âge]]<30,\"D\")","v":"B"},"Congo"]
["Alain Chamfort","2010-05-12","m",null,"Rue Wayez",33,1070,{"$f":"MATCH(Solution_tabDatasBDD[[#This Row],[CP]],Solution_tabDatasListe[CP],0)","v":7},{"$f":"INDEX(Solution_tabDatasListe[Commune],Solution_tabDatasBDD[[#This Row],[Commune1]])","v":"Anderlecht"},{"$f":"_xlfn.XLOOKUP(Solution_tabDatasBDD[[#This Row],[CP]],Solution_tabDatasListe[CP],Solution_tabDatasListe[Commune])","v":"Anderlecht"},"1971-10-11",{"$f":"DATEDIF(Solution_tabDatasBDD[[#This Row],[Date de naissance]],TODAY(),\"y\")","v":52},"2036-10-11T22:10:36.579",{"$f":"DATEVALUE(DAY(Solution_tabDatasBDD[[#This Row],[Date de naissance]])&\"/\"&MONTH(Solution_tabDatasBDD[[#This Row],[Date de naissance]])&\"/\"&YEAR(Solution_tabDatasBDD[[#This Row],[Date de naissance]])+65)","v":"2036-10-11"},{"$f":"YEARFRAC(Solution_tabDatasBDD[[#This Row],[Date de naissance]],Solution_tabDatasBDD[[#This Row],[Date de 65 ans]])","v":65},{"$f":"_xlfn.IFS(Solution_tabDatasBDD[[#This Row],[Âge]]>=50,\"A\",Solution_tabDatasBDD[[#This Row],[Âge]]>=4,\"B\",Solution_tabDatasBDD[[#This Row],[Âge]]>=30,\"C\",Solution_tabDatasBDD[[#This Row],[Âge]]<30,\"D\")","v":"A"},"Maroc"]
["Alibi Montana","2010-05-12","m",null,"Rue Rogier",78,1030,{"$f":"MATCH(Solution_tabDatasBDD[[#This Row],[CP]],Solution_tabDatasListe[CP],0)","v":3},{"$f":"INDEX(Solution_tabDatasListe[Commune],Solution_tabDatasBDD[[#This Row],[Commune1]])","v":"Schaerbeek"},{"$f":"_xlfn.XLOOKUP(Solution_tabDatasBDD[[#This Row],[CP]],Solution_tabDatasListe[CP],Solution_tabDatasListe[Commune])","v":"Schaerbeek"},"1968-09-04",{"$f":"DATEDIF(Solution_tabDatasBDD[[#This Row],[Date de naissance]],TODAY(),\"y\")","v":55},"2033-09-04T07:19:10.179",{"$f":"DATEVALUE(DAY(Solution_tabDatasBDD[[#This Row],[Date de naissance]])&\"/\"&MONTH(Solution_tabDatasBDD[[#This Row],[Date de naissance]])&\"/\"&YEAR(Solution_tabDatasBDD[[#This Row],[Date de naissance]])+65)","v":"2033-09-04"},{"$f":"YEARFRAC(Solution_tabDatasBDD[[#This Row],[Date de naissance]],Solution_tabDatasBDD[[#This Row],[Date de 65 ans]])","v":65},{"$f":"_xlfn.IFS(Solution_tabDatasBDD[[#This Row],[Âge]]>=50,\"A\",Solution_tabDatasBDD[[#This Row],[Âge]]>=4,\"B\",Solution_tabDatasBDD[[#This Row],[Âge]]>=30,\"C\",Solution_tabDatasBDD[[#This Row],[Âge]]<30,\"D\")","v":"A"},"Syrie"]
["Axelle Red","2010-04-30","f",null,"Rue hydrolique",56,1210,{"$f":"MATCH(Solution_tabDatasBDD[[#This Row],[CP]],Solution_tabDatasListe[CP],0)","v":17},{"$f":"INDEX(Solution_tabDatasListe[Commune],Solution_tabDatasBDD[[#This Row],[Commune1]])","v":"Saint-Josse-Ten-noode"},{"$f":"_xlfn.XLOOKUP(Solution_tabDatasBDD[[#This Row],[CP]],Solution_tabDatasListe[CP],Solution_tabDatasListe[Commune])","v":"Saint-Josse-Ten-noode"},"1984-03-13",{"$f":"DATEDIF(Solution_tabDatasBDD[[#This Row],[Date de naissance]],TODAY(),\"y\")","v":40},"2049-03-13T05:56:27.553",{"$f":"DATEVALUE(DAY(Solution_tabDatasBDD[[#This Row],[Date de naissance]])&\"/\"&MONTH(Solution_tabDatasBDD[[#This Row],[Date de naissance]])&\"/\"&YEAR(Solution_tabDatasBDD[[#This Row],[Date de naissance]])+65)","v":"2049-03-13"},{"$f":"YEARFRAC(Solution_tabDatasBDD[[#This Row],[Date de naissance]],Solution_tabDatasBDD[[#This Row],[Date de 65 ans]])","v":65},{"$f":"_xlfn.IFS(Solution_tabDatasBDD[[#This Row],[Âge]]>=50,\"A\",Solution_tabDatasBDD[[#This Row],[Âge]]>=4,\"B\",Solution_tabDatasBDD[[#This Row],[Âge]]>=30,\"C\",Solution_tabDatasBDD[[#This Row],[Âge]]<30,\"D\")","v":"B"},"Géorgie"]
["Bob Sinclar","2010-04-30","m",null,"Rue de l'inquisition",8,1000,{"$f":"MATCH(Solution_tabDatasBDD[[#This Row],[CP]],Solution_tabDatasListe[CP],0)","v":1},{"$f":"INDEX(Solution_tabDatasListe[Commune],Solution_tabDatasBDD[[#This Row],[Commune1]])","v":"Bruxelles"},{"$f":"_xlfn.XLOOKUP(Solution_tabDatasBDD[[#This Row],[CP]],Solution_tabDatasListe[CP],Solution_tabDatasListe[Commune])","v":"Bruxelles"},"1968-09-24",{"$f":"DATEDIF(Solution_tabDatasBDD[[#This Row],[Date de naissance]],TODAY(),\"y\")","v":55},"2033-09-24T18:50:36.032",{"$f":"DATEVALUE(DAY(Solution_tabDatasBDD[[#This Row],[Date de naissance]])&\"/\"&MONTH(Solution_tabDatasBDD[[#This Row],[Date de naissance]])&\"/\"&YEAR(Solution_tabDatasBDD[[#This Row],[Date de naissance]])+65)","v":"2033-09-24"},{"$f":"YEARFRAC(Solution_tabDatasBDD[[#This Row],[Date de naissance]],Solution_tabDatasBDD[[#This Row],[Date de 65 ans]])","v":65},{"$f":"_xlfn.IFS(Solution_tabDatasBDD[[#This Row],[Âge]]>=50,\"A\",Solution_tabDatasBDD[[#This Row],[Âge]]>=4,\"B\",Solution_tabDatasBDD[[#This Row],[Âge]]>=30,\"C\",Solution_tabDatasBDD[[#This Row],[Âge]]<30,\"D\")","v":"A"},"Bangladesh"]
["Charles Aznavour","2010-04-30","m",null,"Avenue Emile Zola",78,1030,{"$f":"MATCH(Solution_tabDatasBDD[[#This Row],[CP]],Solution_tabDatasListe[CP],0)","v":3},{"$f":"INDEX(Solution_tabDatasListe[Commune],Solution_tabDatasBDD[[#This Row],[Commune1]])","v":"Schaerbeek"},{"$f":"_xlfn.XLOOKUP(Solution_tabDatasBDD[[#This Row],[CP]],Solution_tabDatasListe[CP],Solution_tabDatasListe[Commune])","v":"Schaerbeek"},"1984-12-24",{"$f":"DATEDIF(Solution_tabDatasBDD[[#This Row],[Date de naissance]],TODAY(),\"y\")","v":39},"2049-12-24T20:09:18.643",{"$f":"DATEVALUE(DAY(Solution_tabDatasBDD[[#This Row],[Date de naissance]])&\"/\"&MONTH(Solution_tabDatasBDD[[#This Row],[Date de naissance]])&\"/\"&YEAR(Solution_tabDatasBDD[[#This Row],[Date de naissance]])+65)","v":"2049-12-24"},{"$f":"YEARFRAC(Solution_tabDatasBDD[[#This Row],[Date de naissance]],Solution_tabDatasBDD[[#This Row],[Date de 65 ans]])","v":65},{"$f":"_xlfn.IFS(Solution_tabDatasBDD[[#This Row],[Âge]]>=50,\"A\",Solution_tabDatasBDD[[#This Row],[Âge]]>=4,\"B\",Solution_tabDatasBDD[[#This Row],[Âge]]>=30,\"C\",Solution_tabDatasBDD[[#This Row],[Âge]]<30,\"D\")","v":"B"},"Colombie"]
["David Hallyday","2010-05-15","m",null,"Rue Wautier",41,1020,{"$f":"MATCH(Solution_tabDatasBDD[[#This Row],[CP]],Solution_tabDatasListe[CP],0)","v":2},{"$f":"INDEX(Solution_tabDatasListe[Commune],Solution_tabDatasBDD[[#This Row],[Commune1]])","v":"Laeken"},{"$f":"_xlfn.XLOOKUP(Solution_tabDatasBDD[[#This Row],[CP]],Solution_tabDatasListe[CP],Solution_tabDatasListe[Commune])","v":"Laeken"},"1969-02-10",{"$f":"DATEDIF(Solution_tabDatasBDD[[#This Row],[Date de naissance]],TODAY(),\"y\")","v":55},"2034-02-10T01:26:07.807",{"$f":"DATEVALUE(DAY(Solution_tabDatasBDD[[#This Row],[Date de naissance]])&\"/\"&MONTH(Solution_tabDatasBDD[[#This Row],[Date de naissance]])&\"/\"&YEAR(Solution_tabDatasBDD[[#This Row],[Date de naissance]])+65)","v":"2034-02-10"},{"$f":"YEARFRAC(Solution_tabDatasBDD[[#This Row],[Date de naissance]],Solution_tabDatasBDD[[#This Row],[Date de 65 ans]])","v":65},{"$f":"_xlfn.IFS(Solution_tabDatasBDD[[#This Row],[Âge]]>=50,\"A\",Solution_tabDatasBDD[[#This Row],[Âge]]>=4,\"B\",Solution_tabDatasBDD[[#This Row],[Âge]]>=30,\"C\",Solution_tabDatasBDD[[#This Row],[Âge]]<30,\"D\")","v":"A"},"Syrie"]
["Étienne Daho","2010-05-12","m",null,"Rue de Deux Eglises",10,1000,{"$f":"MATCH(Solution_tabDatasBDD[[#This Row],[CP]],Solution_tabDatasListe[CP],0)","v":1},{"$f":"INDEX(Solution_tabDatasListe[Commune],Solution_tabDatasBDD[[#This Row],[Commune1]])","v":"Bruxelles"},{"$f":"_xlfn.XLOOKUP(Solution_tabDatasBDD[[#This Row],[CP]],Solution_tabDatasListe[CP],Solution_tabDatasListe[Commune])","v":"Bruxelles"},"1988-04-10",{"$f":"DATEDIF(Solution_tabDatasBDD[[#This Row],[Date de naissance]],TODAY(),\"y\")","v":36},"2053-04-10T16:51:32.126",{"$f":"DATEVALUE(DAY(Solution_tabDatasBDD[[#This Row],[Date de naissance]])&\"/\"&MONTH(Solution_tabDatasBDD[[#This Row],[Date de naissance]])&\"/\"&YEAR(Solution_tabDatasBDD[[#This Row],[Date de naissance]])+65)","v":"2053-04-10"},{"$f":"YEARFRAC(Solution_tabDatasBDD[[#This Row],[Date de naissance]],Solution_tabDatasBDD[[#This Row],[Date de 65 ans]])","v":65},{"$f":"_xlfn.IFS(Solution_tabDatasBDD[[#This Row],[Âge]]>=50,\"A\",Solution_tabDatasBDD[[#This Row],[Âge]]>=4,\"B\",Solution_tabDatasBDD[[#This Row],[Âge]]>=30,\"C\",Solution_tabDatasBDD[[#This Row],[Âge]]<30,\"D\")","v":"B"},"Guinée"]
["Francis Cabrel","2010-06-14","m",null,"Rue Rinken",63,1030,{"$f":"MATCH(Solution_tabDatasBDD[[#This Row],[CP]],Solution_tabDatasListe[CP],0)","v":3},{"$f":"INDEX(Solution_tabDatasListe[Commune],Solution_tabDatasBDD[[#This Row],[Commune1]])","v":"Schaerbeek"},{"$f":"_xlfn.XLOOKUP(Solution_tabDatasBDD[[#This Row],[CP]],Solution_tabDatasListe[CP],Solution_tabDatasListe[Commune])","v":"Schaerbeek"},"1963-03-25",{"$f":"DATEDIF(Solution_tabDatasBDD[[#This Row],[Date de naissance]],TODAY(),\"y\")","v":61},"2028-03-25T03:42:43.203",{"$f":"DATEVALUE(DAY(Solution_tabDatasBDD[[#This Row],[Date de naissance]])&\"/\"&MONTH(Solution_tabDatasBDD[[#This Row],[Date de naissance]])&\"/\"&YEAR(Solution_tabDatasBDD[[#This Row],[Date de naissance]])+65)","v":"2028-03-25"},{"$f":"YEARFRAC(Solution_tabDatasBDD[[#This Row],[Date de naissance]],Solution_tabDatasBDD[[#This Row],[Date de 65 ans]])","v":65},{"$f":"_xlfn.IFS(Solution_tabDatasBDD[[#This Row],[Âge]]>=50,\"A\",Solution_tabDatasBDD[[#This Row],[Âge]]>=4,\"B\",Solution_tabDatasBDD[[#This Row],[Âge]]>=30,\"C\",Solution_tabDatasBDD[[#This Row],[Âge]]<30,\"D\")","v":"A"},"Maroc",3]
["Margueritte Duras","2010-04-28","f",null,"Rue Brogniez",7,1070,{"$f":"MATCH(Solution_tabDatasBDD[[#This Row],[CP]],Solution_tabDatasListe[CP],0)","v":7},{"$f":"INDEX(Solution_tabDatasListe[Commune],Solution_tabDatasBDD[[#This Row],[Commune1]])","v":"Anderlecht"},{"$f":"_xlfn.XLOOKUP(Solution_tabDatasBDD[[#This Row],[CP]],Solution_tabDatasListe[CP],Solution_tabDatasListe[Commune])","v":"Anderlecht"},"1958-05-07",{"$f":"DATEDIF(Solution_tabDatasBDD[[#This Row],[Date de naissance]],TODAY(),\"y\")","v":66},"2023-05-07T14:26:11.677",{"$f":"DATEVALUE(DAY(Solution_tabDatasBDD[[#This Row],[Date de naissance]])&\"/\"&MONTH(Solution_tabDatasBDD[[#This Row],[Date de naissance]])&\"/\"&YEAR(Solution_tabDatasBDD[[#This Row],[Date de naissance]])+65)","v":"2023-05-07"},{"$f":"YEARFRAC(Solution_tabDatasBDD[[#This Row],[Date de naissance]],Solution_tabDatasBDD[[#This Row],[Date de 65 ans]])","v":65},{"$f":"_xlfn.IFS(Solution_tabDatasBDD[[#This Row],[Âge]]>=50,\"A\",Solution_tabDatasBDD[[#This Row],[Âge]]>=4,\"B\",Solution_tabDatasBDD[[#This Row],[Âge]]>=30,\"C\",Solution_tabDatasBDD[[#This Row],[Âge]]<30,\"D\")","v":"A"},"Angola"]
["Grand Corps Malade","2010-04-28","m",null,"Rue Brogniez",99,1070,{"$f":"MATCH(Solution_tabDatasBDD[[#This Row],[CP]],Solution_tabDatasListe[CP],0)","v":7},{"$f":"INDEX(Solution_tabDatasListe[Commune],Solution_tabDatasBDD[[#This Row],[Commune1]])","v":"Anderlecht"},{"$f":"_xlfn.XLOOKUP(Solution_tabDatasBDD[[#This Row],[CP]],Solution_tabDatasListe[CP],Solution_tabDatasListe[Commune])","v":"Anderlecht"},"1960-09-14",{"$f":"DATEDIF(Solution_tabDatasBDD[[#This Row],[Date de naissance]],TODAY(),\"y\")","v":63},"2025-09-14T06:39:43.092",{"$f":"DATEVALUE(DAY(Solution_tabDatasBDD[[#This Row],[Date de naissance]])&\"/\"&MONTH(Solution_tabDatasBDD[[#This Row],[Date de naissance]])&\"/\"&YEAR(Solution_tabDatasBDD[[#This Row],[Date de naissance]])+65)","v":"2025-09-14"},{"$f":"YEARFRAC(Solution_tabDatasBDD[[#This Row],[Date de naissance]],Solution_tabDatasBDD[[#This Row],[Date de 65 ans]])","v":65},{"$f":"_xlfn.IFS(Solution_tabDatasBDD[[#This Row],[Âge]]>=50,\"A\",Solution_tabDatasBDD[[#This Row],[Âge]]>=4,\"B\",Solution_tabDatasBDD[[#This Row],[Âge]]>=30,\"C\",Solution_tabDatasBDD[[#This Row],[Âge]]<30,\"D\")","v":"A"},"Togo",2]
["Jean Bart","2010-04-23","m",null,"Rue Saint Bernard",44,1060,{"$f":"MATCH(Solution_tabDatasBDD[[#This Row],[CP]],Solution_tabDatasListe[CP],0)","v":6},{"$f":"INDEX(Solution_tabDatasListe[Commune],Solution_tabDatasBDD[[#This Row],[Commune1]])","v":"Saint Gilles"},{"$f":"_xlfn.XLOOKUP(Solution_tabDatasBDD[[#This Row],[CP]],Solution_tabDatasListe[CP],Solution_tabDatasListe[Commune])","v":"Saint Gilles"},"1960-09-28",{"$f":"DATEDIF(Solution_tabDatasBDD[[#This Row],[Date de naissance]],TODAY(),\"y\")","v":63},"2025-09-28T12:08:38.553",{"$f":"DATEVALUE(DAY(Solution_tabDatasBDD[[#This Row],[Date de naissance]])&\"/\"&MONTH(Solution_tabDatasBDD[[#This Row],[Date de naissance]])&\"/\"&YEAR(Solution_tabDatasBDD[[#This Row],[Date de naissance]])+65)","v":"2025-09-28"},{"$f":"YEARFRAC(Solution_tabDatasBDD[[#This Row],[Date de naissance]],Solution_tabDatasBDD[[#This Row],[Date de 65 ans]])","v":65},{"$f":"_xlfn.IFS(Solution_tabDatasBDD[[#This Row],[Âge]]>=50,\"A\",Solution_tabDatasBDD[[#This Row],[Âge]]>=4,\"B\",Solution_tabDatasBDD[[#This Row],[Âge]]>=30,\"C\",Solution_tabDatasBDD[[#This Row],[Âge]]<30,\"D\")","v":"A"},"Congo",5]
["Jean-Luc Lahaye","2010-04-22","m",null,"Rue de Haeck",5,1080,{"$f":"MATCH(Solution_tabDatasBDD[[#This Row],[CP]],Solution_tabDatasListe[CP],0)","v":8},{"$f":"INDEX(Solution_tabDatasListe[Commune],Solution_tabDatasBDD[[#This Row],[Commune1]])","v":"Molenbeek"},{"$f":"_xlfn.XLOOKUP(Solution_tabDatasBDD[[#This Row],[CP]],Solution_tabDatasListe[CP],Solution_tabDatasListe[Commune])","v":"Molenbeek"},"1968-03-03",{"$f":"DATEDIF(Solution_tabDatasBDD[[#This Row],[Date de naissance]],TODAY(),\"y\")","v":56},"2033-03-03T09:54:46.862",{"$f":"DATEVALUE(DAY(Solution_tabDatasBDD[[#This Row],[Date de naissance]])&\"/\"&MONTH(Solution_tabDatasBDD[[#This Row],[Date de naissance]])&\"/\"&YEAR(Solution_tabDatasBDD[[#This Row],[Date de naissance]])+65)","v":"2033-03-03"},{"$f":"YEARFRAC(Solution_tabDatasBDD[[#This Row],[Date de naissance]],Solution_tabDatasBDD[[#This Row],[Date de 65 ans]])","v":65},{"$f":"_xlfn.IFS(Solution_tabDatasBDD[[#This Row],[Âge]]>=50,\"A\",Solution_tabDatasBDD[[#This Row],[Âge]]>=4,\"B\",Solution_tabDatasBDD[[#This Row],[Âge]]>=30,\"C\",Solution_tabDatasBDD[[#This Row],[Âge]]<30,\"D\")","v":"A"},"Congo",3]
["Julien Clerc","2010-04-26","m",null,"Chemin des deux maisons",88,1200,{"$f":"MATCH(Solution_tabDatasBDD[[#This Row],[CP]],Solution_tabDatasListe[CP],0)","v":16},{"$f":"INDEX(Solution_tabDatasListe[Commune],Solution_tabDatasBDD[[#This Row],[Commune1]])","v":"Woluwé-Saint-Lambert"},{"$f":"_xlfn.XLOOKUP(Solution_tabDatasBDD[[#This Row],[CP]],Solution_tabDatasListe[CP],Solution_tabDatasListe[Commune])","v":"Woluwé-Saint-Lambert"},"1979-06-02",{"$f":"DATEDIF(Solution_tabDatasBDD[[#This Row],[Date de naissance]],TODAY(),\"y\")","v":45},"2044-06-02T14:31:02.118",{"$f":"DATEVALUE(DAY(Solution_tabDatasBDD[[#This Row],[Date de naissance]])&\"/\"&MONTH(Solution_tabDatasBDD[[#This Row],[Date de naissance]])&\"/\"&YEAR(Solution_tabDatasBDD[[#This Row],[Date de naissance]])+65)","v":"2044-06-02"},{"$f":"YEARFRAC(Solution_tabDatasBDD[[#This Row],[Date de naissance]],Solution_tabDatasBDD[[#This Row],[Date de 65 ans]])","v":65},{"$f":"_xlfn.IFS(Solution_tabDatasBDD[[#This Row],[Âge]]>=50,\"A\",Solution_tabDatasBDD[[#This Row],[Âge]]>=4,\"B\",Solution_tabDatasBDD[[#This Row],[Âge]]>=30,\"C\",Solution_tabDatasBDD[[#This Row],[Âge]]<30,\"D\")","v":"B"},"Cameroun"]
["Laurent Voulzy","2010-04-19","m",null,"Leuvensesteegweg",41,3080,{"$f":"MATCH(Solution_tabDatasBDD[[#This Row],[CP]],Solution_tabDatasListe[CP],0)","v":23},{"$f":"INDEX(Solution_tabDatasListe[Commune],Solution_tabDatasBDD[[#This Row],[Commune1]])","v":"Tervuren"},{"$f":"_xlfn.XLOOKUP(Solution_tabDatasBDD[[#This Row],[CP]],Solution_tabDatasListe[CP],Solution_tabDatasListe[Commune])","v":"Tervuren"},"1975-08-23",{"$f":"DATEDIF(Solution_tabDatasBDD[[#This Row],[Date de naissance]],TODAY(),\"y\")","v":48},"2040-08-23T20:19:12.597",{"$f":"DATEVALUE(DAY(Solution_tabDatasBDD[[#This Row],[Date de naissance]])&\"/\"&MONTH(Solution_tabDatasBDD[[#This Row],[Date de naissance]])&\"/\"&YEAR(Solution_tabDatasBDD[[#This Row],[Date de naissance]])+65)","v":"2040-08-23"},{"$f":"YEARFRAC(Solution_tabDatasBDD[[#This Row],[Date de naissance]],Solution_tabDatasBDD[[#This Row],[Date de 65 ans]])","v":65},{"$f":"_xlfn.IFS(Solution_tabDatasBDD[[#This Row],[Âge]]>=50,\"A\",Solution_tabDatasBDD[[#This Row],[Âge]]>=4,\"B\",Solution_tabDatasBDD[[#This Row],[Âge]]>=30,\"C\",Solution_tabDatasBDD[[#This Row],[Âge]]<30,\"D\")","v":"B"},"Congo",1]
["Marylou Str","2010-07-13","f",null,"Kleine Gestraat",22,1930,{"$f":"MATCH(Solution_tabDatasBDD[[#This Row],[CP]],Solution_tabDatasListe[CP],0)","v":21},{"$f":"INDEX(Solution_tabDatasListe[Commune],Solution_tabDatasBDD[[#This Row],[Commune1]])","v":"Zaventem"},{"$f":"_xlfn.XLOOKUP(Solution_tabDatasBDD[[#This Row],[CP]],Solution_tabDatasListe[CP],Solution_tabDatasListe[Commune])","v":"Zaventem"},"1973-09-15",{"$f":"DATEDIF(Solution_tabDatasBDD[[#This Row],[Date de naissance]],TODAY(),\"y\")","v":50},"2038-09-15T15:17:14.338",{"$f":"DATEVALUE(DAY(Solution_tabDatasBDD[[#This Row],[Date de naissance]])&\"/\"&MONTH(Solution_tabDatasBDD[[#This Row],[Date de naissance]])&\"/\"&YEAR(Solution_tabDatasBDD[[#This Row],[Date de naissance]])+65)","v":"2038-09-15"},{"$f":"YEARFRAC(Solution_tabDatasBDD[[#This Row],[Date de naissance]],Solution_tabDatasBDD[[#This Row],[Date de 65 ans]])","v":65},{"$f":"_xlfn.IFS(Solution_tabDatasBDD[[#This Row],[Âge]]>=50,\"A\",Solution_tabDatasBDD[[#This Row],[Âge]]>=4,\"B\",Solution_tabDatasBDD[[#This Row],[Âge]]>=30,\"C\",Solution_tabDatasBDD[[#This Row],[Âge]]<30,\"D\")","v":"A"},"Cameroun",3]
["MC Solaar","2010-08-17","m",null,"Rue Nicolas Doyen",12,1080,{"$f":"MATCH(Solution_tabDatasBDD[[#This Row],[CP]],Solution_tabDatasListe[CP],0)","v":8},{"$f":"INDEX(Solution_tabDatasListe[Commune],Solution_tabDatasBDD[[#This Row],[Commune1]])","v":"Molenbeek"},{"$f":"_xlfn.XLOOKUP(Solution_tabDatasBDD[[#This Row],[CP]],Solution_tabDatasListe[CP],Solution_tabDatasListe[Commune])","v":"Molenbeek"},"1982-03-23",{"$f":"DATEDIF(Solution_tabDatasBDD[[#This Row],[Date de naissance]],TODAY(),\"y\")","v":42},"2047-03-23T13:36:26.953",{"$f":"DATEVALUE(DAY(Solution_tabDatasBDD[[#This Row],[Date de naissance]])&\"/\"&MONTH(Solution_tabDatasBDD[[#This Row],[Date de naissance]])&\"/\"&YEAR(Solution_tabDatasBDD[[#This Row],[Date de naissance]])+65)","v":"2047-03-23"},{"$f":"YEARFRAC(Solution_tabDatasBDD[[#This Row],[Date de naissance]],Solution_tabDatasBDD[[#This Row],[Date de 65 ans]])","v":65},{"$f":"_xlfn.IFS(Solution_tabDatasBDD[[#This Row],[Âge]]>=50,\"A\",Solution_tabDatasBDD[[#This Row],[Âge]]>=4,\"B\",Solution_tabDatasBDD[[#This Row],[Âge]]>=30,\"C\",Solution_tabDatasBDD[[#This Row],[Âge]]<30,\"D\")","v":"B"},"Congo",2]
["Michel Sardou","2010-08-17","m",null,"Jacobs Fontaine",4,1020,{"$f":"MATCH(Solution_tabDatasBDD[[#This Row],[CP]],Solution_tabDatasListe[CP],0)","v":2},{"$f":"INDEX(Solution_tabDatasListe[Commune],Solution_tabDatasBDD[[#This Row],[Commune1]])","v":"Laeken"},{"$f":"_xlfn.XLOOKUP(Solution_tabDatasBDD[[#This Row],[CP]],Solution_tabDatasListe[CP],Solution_tabDatasListe[Commune])","v":"Laeken"},"1985-08-13",{"$f":"DATEDIF(Solution_tabDatasBDD[[#This Row],[Date de naissance]],TODAY(),\"y\")","v":38},"2050-08-13T15:19:12.011",{"$f":"DATEVALUE(DAY(Solution_tabDatasBDD[[#This Row],[Date de naissance]])&\"/\"&MONTH(Solution_tabDatasBDD[[#This Row],[Date de naissance]])&\"/\"&YEAR(Solution_tabDatasBDD[[#This Row],[Date de naissance]])+65)","v":"2050-08-13"},{"$f":"YEARFRAC(Solution_tabDatasBDD[[#This Row],[Date de naissance]],Solution_tabDatasBDD[[#This Row],[Date de 65 ans]])","v":65},{"$f":"_xlfn.IFS(Solution_tabDatasBDD[[#This Row],[Âge]]>=50,\"A\",Solution_tabDatasBDD[[#This Row],[Âge]]>=4,\"B\",Solution_tabDatasBDD[[#This Row],[Âge]]>=30,\"C\",Solution_tabDatasBDD[[#This Row],[Âge]]<30,\"D\")","v":"B"},"Congo",1]
["Patrick Bruel","2010-08-23","m",null,"Chaussée d'Ath",99,1030,{"$f":"MATCH(Solution_tabDatasBDD[[#This Row],[CP]],Solution_tabDatasListe[CP],0)","v":3},{"$f":"INDEX(Solution_tabDatasListe[Commune],Solution_tabDatasBDD[[#This Row],[Commune1]])","v":"Schaerbeek"},{"$f":"_xlfn.XLOOKUP(Solution_tabDatasBDD[[#This Row],[CP]],Solution_tabDatasListe[CP],Solution_tabDatasListe[Commune])","v":"Schaerbeek"},"1973-04-13",{"$f":"DATEDIF(Solution_tabDatasBDD[[#This Row],[Date de naissance]],TODAY(),\"y\")","v":51},"2038-04-13T11:42:47.269",{"$f":"DATEVALUE(DAY(Solution_tabDatasBDD[[#This Row],[Date de naissance]])&\"/\"&MONTH(Solution_tabDatasBDD[[#This Row],[Date de naissance]])&\"/\"&YEAR(Solution_tabDatasBDD[[#This Row],[Date de naissance]])+65)","v":"2038-04-13"},{"$f":"YEARFRAC(Solution_tabDatasBDD[[#This Row],[Date de naissance]],Solution_tabDatasBDD[[#This Row],[Date de 65 ans]])","v":65},{"$f":"_xlfn.IFS(Solution_tabDatasBDD[[#This Row],[Âge]]>=50,\"A\",Solution_tabDatasBDD[[#This Row],[Âge]]>=4,\"B\",Solution_tabDatasBDD[[#This Row],[Âge]]>=30,\"C\",Solution_tabDatasBDD[[#This Row],[Âge]]<30,\"D\")","v":"A"},"Congo",3]
["Raphaël","2010-08-23","m",null,"Géneral Molitor",66,1040,{"$f":"MATCH(Solution_tabDatasBDD[[#This Row],[CP]],Solution_tabDatasListe[CP],0)","v":4},{"$f":"INDEX(Solution_tabDatasListe[Commune],Solution_tabDatasBDD[[#This Row],[Commune1]])","v":"Etterbeek"},{"$f":"_xlfn.XLOOKUP(Solution_tabDatasBDD[[#This Row],[CP]],Solution_tabDatasListe[CP],Solution_tabDatasListe[Commune])","v":"Etterbeek"},"1986-05-06",{"$f":"DATEDIF(Solution_tabDatasBDD[[#This Row],[Date de naissance]],TODAY(),\"y\")","v":38},"2051-05-06T10:17:41.393",{"$f":"DATEVALUE(DAY(Solution_tabDatasBDD[[#This Row],[Date de naissance]])&\"/\"&MONTH(Solution_tabDatasBDD[[#This Row],[Date de naissance]])&\"/\"&YEAR(Solution_tabDatasBDD[[#This Row],[Date de naissance]])+65)","v":"2051-05-06"},{"$f":"YEARFRAC(Solution_tabDatasBDD[[#This Row],[Date de naissance]],Solution_tabDatasBDD[[#This Row],[Date de 65 ans]])","v":65},{"$f":"_xlfn.IFS(Solution_tabDatasBDD[[#This Row],[Âge]]>=50,\"A\",Solution_tabDatasBDD[[#This Row],[Âge]]>=4,\"B\",Solution_tabDatasBDD[[#This Row],[Âge]]>=30,\"C\",Solution_tabDatasBDD[[#This Row],[Âge]]<30,\"D\")","v":"B"},"Belgique",1]
["Sévérine Inconnue","2010-08-23","f",null,"Avenue Gustave Latinis",74,1030,{"$f":"MATCH(Solution_tabDatasBDD[[#This Row],[CP]],Solution_tabDatasListe[CP],0)","v":3},{"$f":"INDEX(Solution_tabDatasListe[Commune],Solution_tabDatasBDD[[#This Row],[Commune1]])","v":"Schaerbeek"},{"$f":"_xlfn.XLOOKUP(Solution_tabDatasBDD[[#This Row],[CP]],Solution_tabDatasListe[CP],Solution_tabDatasListe[Commune])","v":"Schaerbeek"},"1974-04-07",{"$f":"DATEDIF(Solution_tabDatasBDD[[#This Row],[Date de naissance]],TODAY(),\"y\")","v":50},"2039-04-07T22:25:27.253",{"$f":"DATEVALUE(DAY(Solution_tabDatasBDD[[#This Row],[Date de naissance]])&\"/\"&MONTH(Solution_tabDatasBDD[[#This Row],[Date de naissance]])&\"/\"&YEAR(Solution_tabDatasBDD[[#This Row],[Date de naissance]])+65)","v":"2039-04-07"},{"$f":"YEARFRAC(Solution_tabDatasBDD[[#This Row],[Date de naissance]],Solution_tabDatasBDD[[#This Row],[Date de 65 ans]])","v":65},{"$f":"_xlfn.IFS(Solution_tabDatasBDD[[#This Row],[Âge]]>=50,\"A\",Solution_tabDatasBDD[[#This Row],[Âge]]>=4,\"B\",Solution_tabDatasBDD[[#This Row],[Âge]]>=30,\"C\",Solution_tabDatasBDD[[#This Row],[Âge]]<30,\"D\")","v":"A"},"Corée",1]
["Tété","2010-08-24","m",null,"Léon Mignon",25,1030,{"$f":"MATCH(Solution_tabDatasBDD[[#This Row],[CP]],Solution_tabDatasListe[CP],0)","v":3},{"$f":"INDEX(Solution_tabDatasListe[Commune],Solution_tabDatasBDD[[#This Row],[Commune1]])","v":"Schaerbeek"},{"$f":"_xlfn.XLOOKUP(Solution_tabDatasBDD[[#This Row],[CP]],Solution_tabDatasListe[CP],Solution_tabDatasListe[Commune])","v":"Schaerbeek"},"1989-01-25",{"$f":"DATEDIF(Solution_tabDatasBDD[[#This Row],[Date de naissance]],TODAY(),\"y\")","v":35},"2054-01-25T21:01:45.062",{"$f":"DATEVALUE(DAY(Solution_tabDatasBDD[[#This Row],[Date de naissance]])&\"/\"&MONTH(Solution_tabDatasBDD[[#This Row],[Date de naissance]])&\"/\"&YEAR(Solution_tabDatasBDD[[#This Row],[Date de naissance]])+65)","v":"2054-01-25"},{"$f":"YEARFRAC(Solution_tabDatasBDD[[#This Row],[Date de naissance]],Solution_tabDatasBDD[[#This Row],[Date de 65 ans]])","v":65},{"$f":"_xlfn.IFS(Solution_tabDatasBDD[[#This Row],[Âge]]>=50,\"A\",Solution_tabDatasBDD[[#This Row],[Âge]]>=4,\"B\",Solution_tabDatasBDD[[#This Row],[Âge]]>=30,\"C\",Solution_tabDatasBDD[[#This Row],[Âge]]<30,\"D\")","v":"B"},"Belgique"]
["Vincent Delerm","2010-08-20","m",null,"Rue d'Italie",63,1800,{"$f":"MATCH(Solution_tabDatasBDD[[#This Row],[CP]],Solution_tabDatasListe[CP],0)","v":20},{"$f":"INDEX(Solution_tabDatasListe[Commune],Solution_tabDatasBDD[[#This Row],[Commune1]])","v":"Vilvoorde"},{"$f":"_xlfn.XLOOKUP(Solution_tabDatasBDD[[#This Row],[CP]],Solution_tabDatasListe[CP],Solution_tabDatasListe[Commune])","v":"Vilvoorde"},"1983-07-02",{"$f":"DATEDIF(Solution_tabDatasBDD[[#This Row],[Date de naissance]],TODAY(),\"y\")","v":40},"2048-07-02T00:42:30.892",{"$f":"DATEVALUE(DAY(Solution_tabDatasBDD[[#This Row],[Date de naissance]])&\"/\"&MONTH(Solution_tabDatasBDD[[#This Row],[Date de naissance]])&\"/\"&YEAR(Solution_tabDatasBDD[[#This Row],[Date de naissance]])+65)","v":"2048-07-02"},{"$f":"YEARFRAC(Solution_tabDatasBDD[[#This Row],[Date de naissance]],Solution_tabDatasBDD[[#This Row],[Date de 65 ans]])","v":65},{"$f":"_xlfn.IFS(Solution_tabDatasBDD[[#This Row],[Âge]]>=50,\"A\",Solution_tabDatasBDD[[#This Row],[Âge]]>=4,\"B\",Solution_tabDatasBDD[[#This Row],[Âge]]>=30,\"C\",Solution_tabDatasBDD[[#This Row],[Âge]]<30,\"D\")","v":"B"},"Cameroun",2]
["Alain Souchon","2010-08-26","m",null,"Géneral Molitor",74,1040,{"$f":"MATCH(Solution_tabDatasBDD[[#This Row],[CP]],Solution_tabDatasListe[CP],0)","v":4},{"$f":"INDEX(Solution_tabDatasListe[Commune],Solution_tabDatasBDD[[#This Row],[Commune1]])","v":"Etterbeek"},{"$f":"_xlfn.XLOOKUP(Solution_tabDatasBDD[[#This Row],[CP]],Solution_tabDatasListe[CP],Solution_tabDatasListe[Commune])","v":"Etterbeek"},"1983-04-19",{"$f":"DATEDIF(Solution_tabDatasBDD[[#This Row],[Date de naissance]],TODAY(),\"y\")","v":41},"2048-04-19T13:52:30.775",{"$f":"DATEVALUE(DAY(Solution_tabDatasBDD[[#This Row],[Date de naissance]])&\"/\"&MONTH(Solution_tabDatasBDD[[#This Row],[Date de naissance]])&\"/\"&YEAR(Solution_tabDatasBDD[[#This Row],[Date de naissance]])+65)","v":"2048-04-19"},{"$f":"YEARFRAC(Solution_tabDatasBDD[[#This Row],[Date de naissance]],Solution_tabDatasBDD[[#This Row],[Date de 65 ans]])","v":65},{"$f":"_xlfn.IFS(Solution_tabDatasBDD[[#This Row],[Âge]]>=50,\"A\",Solution_tabDatasBDD[[#This Row],[Âge]]>=4,\"B\",Solution_tabDatasBDD[[#This Row],[Âge]]>=30,\"C\",Solution_tabDatasBDD[[#This Row],[Âge]]<30,\"D\")","v":"B"},"Algérie"]
["Antoine","2010-08-20","m",null,"Rue du Trône",14,1050,{"$f":"MATCH(Solution_tabDatasBDD[[#This Row],[CP]],Solution_tabDatasListe[CP],0)","v":5},{"$f":"INDEX(Solution_tabDatasListe[Commune],Solution_tabDatasBDD[[#This Row],[Commune1]])","v":"Ixelles"},{"$f":"_xlfn.XLOOKUP(Solution_tabDatasBDD[[#This Row],[CP]],Solution_tabDatasListe[CP],Solution_tabDatasListe[Commune])","v":"Ixelles"},"1969-09-01",{"$f":"DATEDIF(Solution_tabDatasBDD[[#This Row],[Date de naissance]],TODAY(),\"y\")","v":54},"2034-09-01T11:09:29.972",{"$f":"DATEVALUE(DAY(Solution_tabDatasBDD[[#This Row],[Date de naissance]])&\"/\"&MONTH(Solution_tabDatasBDD[[#This Row],[Date de naissance]])&\"/\"&YEAR(Solution_tabDatasBDD[[#This Row],[Date de naissance]])+65)","v":"2034-09-01"},{"$f":"YEARFRAC(Solution_tabDatasBDD[[#This Row],[Date de naissance]],Solution_tabDatasBDD[[#This Row],[Date de 65 ans]])","v":65},{"$f":"_xlfn.IFS(Solution_tabDatasBDD[[#This Row],[Âge]]>=50,\"A\",Solution_tabDatasBDD[[#This Row],[Âge]]>=4,\"B\",Solution_tabDatasBDD[[#This Row],[Âge]]>=30,\"C\",Solution_tabDatasBDD[[#This Row],[Âge]]<30,\"D\")","v":"A"},"Cameroun"]
["Bénabar","2010-08-30","m",null,"Square Armand Steurs",12,1210,{"$f":"MATCH(Solution_tabDatasBDD[[#This Row],[CP]],Solution_tabDatasListe[CP],0)","v":17},{"$f":"INDEX(Solution_tabDatasListe[Commune],Solution_tabDatasBDD[[#This Row],[Commune1]])","v":"Saint-Josse-Ten-noode"},{"$f":"_xlfn.XLOOKUP(Solution_tabDatasBDD[[#This Row],[CP]],Solution_tabDatasListe[CP],Solution_tabDatasListe[Commune])","v":"Saint-Josse-Ten-noode"},"1979-02-26",{"$f":"DATEDIF(Solution_tabDatasBDD[[#This Row],[Date de naissance]],TODAY(),\"y\")","v":45},"2044-02-26T04:55:56.439",{"$f":"DATEVALUE(DAY(Solution_tabDatasBDD[[#This Row],[Date de naissance]])&\"/\"&MONTH(Solution_tabDatasBDD[[#This Row],[Date de naissance]])&\"/\"&YEAR(Solution_tabDatasBDD[[#This Row],[Date de naissance]])+65)","v":"2044-02-26"},{"$f":"YEARFRAC(Solution_tabDatasBDD[[#This Row],[Date de naissance]],Solution_tabDatasBDD[[#This Row],[Date de 65 ans]])","v":65},{"$f":"_xlfn.IFS(Solution_tabDatasBDD[[#This Row],[Âge]]>=50,\"A\",Solution_tabDatasBDD[[#This Row],[Âge]]>=4,\"B\",Solution_tabDatasBDD[[#This Row],[Âge]]>=30,\"C\",Solution_tabDatasBDD[[#This Row],[Âge]]<30,\"D\")","v":"B"},"Congo"]
["Cali","2010-08-30","m",null,"Chaussée de Mons",41,1070,{"$f":"MATCH(Solution_tabDatasBDD[[#This Row],[CP]],Solution_tabDatasListe[CP],0)","v":7},{"$f":"INDEX(Solution_tabDatasListe[Commune],Solution_tabDatasBDD[[#This Row],[Commune1]])","v":"Anderlecht"},{"$f":"_xlfn.XLOOKUP(Solution_tabDatasBDD[[#This Row],[CP]],Solution_tabDatasListe[CP],Solution_tabDatasListe[Commune])","v":"Anderlecht"},"1978-09-05",{"$f":"DATEDIF(Solution_tabDatasBDD[[#This Row],[Date de naissance]],TODAY(),\"y\")","v":45},"2043-09-05T21:42:24.322",{"$f":"DATEVALUE(DAY(Solution_tabDatasBDD[[#This Row],[Date de naissance]])&\"/\"&MONTH(Solution_tabDatasBDD[[#This Row],[Date de naissance]])&\"/\"&YEAR(Solution_tabDatasBDD[[#This Row],[Date de naissance]])+65)","v":"2043-09-05"},{"$f":"YEARFRAC(Solution_tabDatasBDD[[#This Row],[Date de naissance]],Solution_tabDatasBDD[[#This Row],[Date de 65 ans]])","v":65},{"$f":"_xlfn.IFS(Solution_tabDatasBDD[[#This Row],[Âge]]>=50,\"A\",Solution_tabDatasBDD[[#This Row],[Âge]]>=4,\"B\",Solution_tabDatasBDD[[#This Row],[Âge]]>=30,\"C\",Solution_tabDatasBDD[[#This Row],[Âge]]<30,\"D\")","v":"B"},"Maroc"]
["Christophe Maé","2010-09-02","m",null,"Chaussée d'alsemberg",111,1180,{"$f":"MATCH(Solution_tabDatasBDD[[#This Row],[CP]],Solution_tabDatasListe[CP],0)","v":15},{"$f":"INDEX(Solution_tabDatasListe[Commune],Solution_tabDatasBDD[[#This Row],[Commune1]])","v":"Uccle"},{"$f":"_xlfn.XLOOKUP(Solution_tabDatasBDD[[#This Row],[CP]],Solution_tabDatasListe[CP],Solution_tabDatasListe[Commune])","v":"Uccle"},"1970-09-25",{"$f":"DATEDIF(Solution_tabDatasBDD[[#This Row],[Date de naissance]],TODAY(),\"y\")","v":53},"2035-09-25T21:04:30.814",{"$f":"DATEVALUE(DAY(Solution_tabDatasBDD[[#This Row],[Date de naissance]])&\"/\"&MONTH(Solution_tabDatasBDD[[#This Row],[Date de naissance]])&\"/\"&YEAR(Solution_tabDatasBDD[[#This Row],[Date de naissance]])+65)","v":"2035-09-25"},{"$f":"YEARFRAC(Solution_tabDatasBDD[[#This Row],[Date de naissance]],Solution_tabDatasBDD[[#This Row],[Date de 65 ans]])","v":65},{"$f":"_xlfn.IFS(Solution_tabDatasBDD[[#This Row],[Âge]]>=50,\"A\",Solution_tabDatasBDD[[#This Row],[Âge]]>=4,\"B\",Solution_tabDatasBDD[[#This Row],[Âge]]>=30,\"C\",Solution_tabDatasBDD[[#This Row],[Âge]]<30,\"D\")","v":"A"},"Rwanda",2]
["Didier Super","2010-09-06","m",null,"Rue Du grand-Duc",11,1040,{"$f":"MATCH(Solution_tabDatasBDD[[#This Row],[CP]],Solution_tabDatasListe[CP],0)","v":4},{"$f":"INDEX(Solution_tabDatasListe[Commune],Solution_tabDatasBDD[[#This Row],[Commune1]])","v":"Etterbeek"},{"$f":"_xlfn.XLOOKUP(Solution_tabDatasBDD[[#This Row],[CP]],Solution_tabDatasListe[CP],Solution_tabDatasListe[Commune])","v":"Etterbeek"},"1973-02-02",{"$f":"DATEDIF(Solution_tabDatasBDD[[#This Row],[Date de naissance]],TODAY(),\"y\")","v":51},"2038-02-02T13:49:04.987",{"$f":"DATEVALUE(DAY(Solution_tabDatasBDD[[#This Row],[Date de naissance]])&\"/\"&MONTH(Solution_tabDatasBDD[[#This Row],[Date de naissance]])&\"/\"&YEAR(Solution_tabDatasBDD[[#This Row],[Date de naissance]])+65)","v":"2038-02-02"},{"$f":"YEARFRAC(Solution_tabDatasBDD[[#This Row],[Date de naissance]],Solution_tabDatasBDD[[#This Row],[Date de 65 ans]])","v":65},{"$f":"_xlfn.IFS(Solution_tabDatasBDD[[#This Row],[Âge]]>=50,\"A\",Solution_tabDatasBDD[[#This Row],[Âge]]>=4,\"B\",Solution_tabDatasBDD[[#This Row],[Âge]]>=30,\"C\",Solution_tabDatasBDD[[#This Row],[Âge]]<30,\"D\")","v":"A"},"Sénégal"]
["Faf Larage","2010-09-07","m",null,"Avenue Louis Ceuster",256,1150,{"$f":"MATCH(Solution_tabDatasBDD[[#This Row],[CP]],Solution_tabDatasListe[CP],0)","v":13},{"$f":"INDEX(Solution_tabDatasListe[Commune],Solution_tabDatasBDD[[#This Row],[Commune1]])","v":"Woluwé-Saint-Pierre"},{"$f":"_xlfn.XLOOKUP(Solution_tabDatasBDD[[#This Row],[CP]],Solution_tabDatasListe[CP],Solution_tabDatasListe[Commune])","v":"Woluwé-Saint-Pierre"},"1976-03-17",{"$f":"DATEDIF(Solution_tabDatasBDD[[#This Row],[Date de naissance]],TODAY(),\"y\")","v":48},"2041-03-17T08:46:51.163",{"$f":"DATEVALUE(DAY(Solution_tabDatasBDD[[#This Row],[Date de naissance]])&\"/\"&MONTH(Solution_tabDatasBDD[[#This Row],[Date de naissance]])&\"/\"&YEAR(Solution_tabDatasBDD[[#This Row],[Date de naissance]])+65)","v":"2041-03-17"},{"$f":"YEARFRAC(Solution_tabDatasBDD[[#This Row],[Date de naissance]],Solution_tabDatasBDD[[#This Row],[Date de 65 ans]])","v":65},{"$f":"_xlfn.IFS(Solution_tabDatasBDD[[#This Row],[Âge]]>=50,\"A\",Solution_tabDatasBDD[[#This Row],[Âge]]>=4,\"B\",Solution_tabDatasBDD[[#This Row],[Âge]]>=30,\"C\",Solution_tabDatasBDD[[#This Row],[Âge]]<30,\"D\")","v":"B"},"Angola",3]
["Francisca Lalanne","2010-07-13","f",null,"Rue Borgval",36,1000,{"$f":"MATCH(Solution_tabDatasBDD[[#This Row],[CP]],Solution_tabDatasListe[CP],0)","v":1},{"$f":"INDEX(Solution_tabDatasListe[Commune],Solution_tabDatasBDD[[#This Row],[Commune1]])","v":"Bruxelles"},{"$f":"_xlfn.XLOOKUP(Solution_tabDatasBDD[[#This Row],[CP]],Solution_tabDatasListe[CP],Solution_tabDatasListe[Commune])","v":"Bruxelles"},"1973-06-24",{"$f":"DATEDIF(Solution_tabDatasBDD[[#This Row],[Date de naissance]],TODAY(),\"y\")","v":50},"2038-06-24T07:56:43.868",{"$f":"DATEVALUE(DAY(Solution_tabDatasBDD[[#This Row],[Date de naissance]])&\"/\"&MONTH(Solution_tabDatasBDD[[#This Row],[Date de naissance]])&\"/\"&YEAR(Solution_tabDatasBDD[[#This Row],[Date de naissance]])+65)","v":"2038-06-24"},{"$f":"YEARFRAC(Solution_tabDatasBDD[[#This Row],[Date de naissance]],Solution_tabDatasBDD[[#This Row],[Date de 65 ans]])","v":65},{"$f":"_xlfn.IFS(Solution_tabDatasBDD[[#This Row],[Âge]]>=50,\"A\",Solution_tabDatasBDD[[#This Row],[Âge]]>=4,\"B\",Solution_tabDatasBDD[[#This Row],[Âge]]>=30,\"C\",Solution_tabDatasBDD[[#This Row],[Âge]]<30,\"D\")","v":"A"},"Algérie"]
["Gérald De Palmas","2010-09-28","m",null,"Du Chapitre",65,1070,{"$f":"MATCH(Solution_tabDatasBDD[[#This Row],[CP]],Solution_tabDatasListe[CP],0)","v":7},{"$f":"INDEX(Solution_tabDatasListe[Commune],Solution_tabDatasBDD[[#This Row],[Commune1]])","v":"Anderlecht"},{"$f":"_xlfn.XLOOKUP(Solution_tabDatasBDD[[#This Row],[CP]],Solution_tabDatasListe[CP],Solution_tabDatasListe[Commune])","v":"Anderlecht"},"1983-12-20",{"$f":"DATEDIF(Solution_tabDatasBDD[[#This Row],[Date de naissance]],TODAY(),\"y\")","v":40},"2048-12-20T14:03:12.059",{"$f":"DATEVALUE(DAY(Solution_tabDatasBDD[[#This Row],[Date de naissance]])&\"/\"&MONTH(Solution_tabDatasBDD[[#This Row],[Date de naissance]])&\"/\"&YEAR(Solution_tabDatasBDD[[#This Row],[Date de naissance]])+65)","v":"2048-12-20"},{"$f":"YEARFRAC(Solution_tabDatasBDD[[#This Row],[Date de naissance]],Solution_tabDatasBDD[[#This Row],[Date de 65 ans]])","v":65},{"$f":"_xlfn.IFS(Solution_tabDatasBDD[[#This Row],[Âge]]>=50,\"A\",Solution_tabDatasBDD[[#This Row],[Âge]]>=4,\"B\",Solution_tabDatasBDD[[#This Row],[Âge]]>=30,\"C\",Solution_tabDatasBDD[[#This Row],[Âge]]<30,\"D\")","v":"B"},"Côte d'Ivoire"]
["Grégory Lemarchal","2010-09-27","m",null,"Moorsled",587,1020,{"$f":"MATCH(Solution_tabDatasBDD[[#This Row],[CP]],Solution_tabDatasListe[CP],0)","v":2},{"$f":"INDEX(Solution_tabDatasListe[Commune],Solution_tabDatasBDD[[#This Row],[Commune1]])","v":"Laeken"},{"$f":"_xlfn.XLOOKUP(Solution_tabDatasBDD[[#This Row],[CP]],Solution_tabDatasListe[CP],Solution_tabDatasListe[Commune])","v":"Laeken"},"1973-09-13",{"$f":"DATEDIF(Solution_tabDatasBDD[[#This Row],[Date de naissance]],TODAY(),\"y\")","v":50},"2038-09-13T11:48:00.054",{"$f":"DATEVALUE(DAY(Solution_tabDatasBDD[[#This Row],[Date de naissance]])&\"/\"&MONTH(Solution_tabDatasBDD[[#This Row],[Date de naissance]])&\"/\"&YEAR(Solution_tabDatasBDD[[#This Row],[Date de naissance]])+65)","v":"2038-09-13"},{"$f":"YEARFRAC(Solution_tabDatasBDD[[#This Row],[Date de naissance]],Solution_tabDatasBDD[[#This Row],[Date de 65 ans]])","v":65},{"$f":"_xlfn.IFS(Solution_tabDatasBDD[[#This Row],[Âge]]>=50,\"A\",Solution_tabDatasBDD[[#This Row],[Âge]]>=4,\"B\",Solution_tabDatasBDD[[#This Row],[Âge]]>=30,\"C\",Solution_tabDatasBDD[[#This Row],[Âge]]<30,\"D\")","v":"A"},"Belgique"]
["Jean-Jacques Goldman","2010-10-01","m",null,"Marcelle Gruner",25,1080,{"$f":"MATCH(Solution_tabDatasBDD[[#This Row],[CP]],Solution_tabDatasListe[CP],0)","v":8},{"$f":"INDEX(Solution_tabDatasListe[Commune],Solution_tabDatasBDD[[#This Row],[Commune1]])","v":"Molenbeek"},{"$f":"_xlfn.XLOOKUP(Solution_tabDatasBDD[[#This Row],[CP]],Solution_tabDatasListe[CP],Solution_tabDatasListe[Commune])","v":"Molenbeek"},"1974-06-27",{"$f":"DATEDIF(Solution_tabDatasBDD[[#This Row],[Date de naissance]],TODAY(),\"y\")","v":49},"2039-06-27T09:36:09.541",{"$f":"DATEVALUE(DAY(Solution_tabDatasBDD[[#This Row],[Date de naissance]])&\"/\"&MONTH(Solution_tabDatasBDD[[#This Row],[Date de naissance]])&\"/\"&YEAR(Solution_tabDatasBDD[[#This Row],[Date de naissance]])+65)","v":"2039-06-27"},{"$f":"YEARFRAC(Solution_tabDatasBDD[[#This Row],[Date de naissance]],Solution_tabDatasBDD[[#This Row],[Date de 65 ans]])","v":65},{"$f":"_xlfn.IFS(Solution_tabDatasBDD[[#This Row],[Âge]]>=50,\"A\",Solution_tabDatasBDD[[#This Row],[Âge]]>=4,\"B\",Solution_tabDatasBDD[[#This Row],[Âge]]>=30,\"C\",Solution_tabDatasBDD[[#This Row],[Âge]]<30,\"D\")","v":"B"},"Cameroun"]
["Jérémy Chatelain","2010-10-01","m",null,"Rue d'Albanie",55,1160,{"$f":"MATCH(Solution_tabDatasBDD[[#This Row],[CP]],Solution_tabDatasListe[CP],0)","v":14},{"$f":"INDEX(Solution_tabDatasListe[Commune],Solution_tabDatasBDD[[#This Row],[Commune1]])","v":"Auderghem"},{"$f":"_xlfn.XLOOKUP(Solution_tabDatasBDD[[#This Row],[CP]],Solution_tabDatasListe[CP],Solution_tabDatasListe[Commune])","v":"Auderghem"},"1955-02-22",{"$f":"DATEDIF(Solution_tabDatasBDD[[#This Row],[Date de naissance]],TODAY(),\"y\")","v":69},"2020-02-22T09:12:24.963",{"$f":"DATEVALUE(DAY(Solution_tabDatasBDD[[#This Row],[Date de naissance]])&\"/\"&MONTH(Solution_tabDatasBDD[[#This Row],[Date de naissance]])&\"/\"&YEAR(Solution_tabDatasBDD[[#This Row],[Date de naissance]])+65)","v":"2020-02-22"},{"$f":"YEARFRAC(Solution_tabDatasBDD[[#This Row],[Date de naissance]],Solution_tabDatasBDD[[#This Row],[Date de 65 ans]])","v":65},{"$f":"_xlfn.IFS(Solution_tabDatasBDD[[#This Row],[Âge]]>=50,\"A\",Solution_tabDatasBDD[[#This Row],[Âge]]>=4,\"B\",Solution_tabDatasBDD[[#This Row],[Âge]]>=30,\"C\",Solution_tabDatasBDD[[#This Row],[Âge]]<30,\"D\")","v":"A"},"Equateur",4]
["Kamini","2010-09-27","m",null,"Avenue de Koekelberg",35,1082,{"$f":"MATCH(Solution_tabDatasBDD[[#This Row],[CP]],Solution_tabDatasListe[CP],0)","v":9},{"$f":"INDEX(Solution_tabDatasListe[Commune],Solution_tabDatasBDD[[#This Row],[Commune1]])","v":"Berchem-Sainte-Agathe"},{"$f":"_xlfn.XLOOKUP(Solution_tabDatasBDD[[#This Row],[CP]],Solution_tabDatasListe[CP],Solution_tabDatasListe[Commune])","v":"Berchem-Sainte-Agathe"},"1981-07-14",{"$f":"DATEDIF(Solution_tabDatasBDD[[#This Row],[Date de naissance]],TODAY(),\"y\")","v":42},"2046-07-14T13:04:41.700",{"$f":"DATEVALUE(DAY(Solution_tabDatasBDD[[#This Row],[Date de naissance]])&\"/\"&MONTH(Solution_tabDatasBDD[[#This Row],[Date de naissance]])&\"/\"&YEAR(Solution_tabDatasBDD[[#This Row],[Date de naissance]])+65)","v":"2046-07-14"},{"$f":"YEARFRAC(Solution_tabDatasBDD[[#This Row],[Date de naissance]],Solution_tabDatasBDD[[#This Row],[Date de 65 ans]])","v":65},{"$f":"_xlfn.IFS(Solution_tabDatasBDD[[#This Row],[Âge]]>=50,\"A\",Solution_tabDatasBDD[[#This Row],[Âge]]>=4,\"B\",Solution_tabDatasBDD[[#This Row],[Âge]]>=30,\"C\",Solution_tabDatasBDD[[#This Row],[Âge]]<30,\"D\")","v":"B"},"Cameroun"]
["Louis Bertignac","2010-09-28","m",null,"Avenue de Koekelberg",856,1082,{"$f":"MATCH(Solution_tabDatasBDD[[#This Row],[CP]],Solution_tabDatasListe[CP],0)","v":9},{"$f":"INDEX(Solution_tabDatasListe[Commune],Solution_tabDatasBDD[[#This Row],[Commune1]])","v":"Berchem-Sainte-Agathe"},{"$f":"_xlfn.XLOOKUP(Solution_tabDatasBDD[[#This Row],[CP]],Solution_tabDatasListe[CP],Solution_tabDatasListe[Commune])","v":"Berchem-Sainte-Agathe"},"1955-02-22",{"$f":"DATEDIF(Solution_tabDatasBDD[[#This Row],[Date de naissance]],TODAY(),\"y\")","v":69},"2020-02-22T06:38:08.653",{"$f":"DATEVALUE(DAY(Solution_tabDatasBDD[[#This Row],[Date de naissance]])&\"/\"&MONTH(Solution_tabDatasBDD[[#This Row],[Date de naissance]])&\"/\"&YEAR(Solution_tabDatasBDD[[#This Row],[Date de naissance]])+65)","v":"2020-02-22"},{"$f":"YEARFRAC(Solution_tabDatasBDD[[#This Row],[Date de naissance]],Solution_tabDatasBDD[[#This Row],[Date de 65 ans]])","v":65},{"$f":"_xlfn.IFS(Solution_tabDatasBDD[[#This Row],[Âge]]>=50,\"A\",Solution_tabDatasBDD[[#This Row],[Âge]]>=4,\"B\",Solution_tabDatasBDD[[#This Row],[Âge]]>=30,\"C\",Solution_tabDatasBDD[[#This Row],[Âge]]<30,\"D\")","v":"A"}]
["Matt Pokora","2010-10-12","m",null,"Rue Masoui",584,1030,{"$f":"MATCH(Solution_tabDatasBDD[[#This Row],[CP]],Solution_tabDatasListe[CP],0)","v":3},{"$f":"INDEX(Solution_tabDatasListe[Commune],Solution_tabDatasBDD[[#This Row],[Commune1]])","v":"Schaerbeek"},{"$f":"_xlfn.XLOOKUP(Solution_tabDatasBDD[[#This Row],[CP]],Solution_tabDatasListe[CP],Solution_tabDatasListe[Commune])","v":"Schaerbeek"},"1971-10-01",{"$f":"DATEDIF(Solution_tabDatasBDD[[#This Row],[Date de naissance]],TODAY(),\"y\")","v":52},"2036-10-01T11:11:22.811",{"$f":"DATEVALUE(DAY(Solution_tabDatasBDD[[#This Row],[Date de naissance]])&\"/\"&MONTH(Solution_tabDatasBDD[[#This Row],[Date de naissance]])&\"/\"&YEAR(Solution_tabDatasBDD[[#This Row],[Date de naissance]])+65)","v":"2036-10-01"},{"$f":"YEARFRAC(Solution_tabDatasBDD[[#This Row],[Date de naissance]],Solution_tabDatasBDD[[#This Row],[Date de 65 ans]])","v":65},{"$f":"_xlfn.IFS(Solution_tabDatasBDD[[#This Row],[Âge]]>=50,\"A\",Solution_tabDatasBDD[[#This Row],[Âge]]>=4,\"B\",Solution_tabDatasBDD[[#This Row],[Âge]]>=30,\"C\",Solution_tabDatasBDD[[#This Row],[Âge]]<30,\"D\")","v":"A"},"Congo"]
["Michel Delpech","2010-10-12","m",null,"BLD Maurice Karen",452,1070,{"$f":"MATCH(Solution_tabDatasBDD[[#This Row],[CP]],Solution_tabDatasListe[CP],0)","v":7},{"$f":"INDEX(Solution_tabDatasListe[Commune],Solution_tabDatasBDD[[#This Row],[Commune1]])","v":"Anderlecht"},{"$f":"_xlfn.XLOOKUP(Solution_tabDatasBDD[[#This Row],[CP]],Solution_tabDatasListe[CP],Solution_tabDatasListe[Commune])","v":"Anderlecht"},"1981-08-24",{"$f":"DATEDIF(Solution_tabDatasBDD[[#This Row],[Date de naissance]],TODAY(),\"y\")","v":42},"2046-08-24T15:24:23.707",{"$f":"DATEVALUE(DAY(Solution_tabDatasBDD[[#This Row],[Date de naissance]])&\"/\"&MONTH(Solution_tabDatasBDD[[#This Row],[Date de naissance]])&\"/\"&YEAR(Solution_tabDatasBDD[[#This Row],[Date de naissance]])+65)","v":"2046-08-24"},{"$f":"YEARFRAC(Solution_tabDatasBDD[[#This Row],[Date de naissance]],Solution_tabDatasBDD[[#This Row],[Date de 65 ans]])","v":65},{"$f":"_xlfn.IFS(Solution_tabDatasBDD[[#This Row],[Âge]]>=50,\"A\",Solution_tabDatasBDD[[#This Row],[Âge]]>=4,\"B\",Solution_tabDatasBDD[[#This Row],[Âge]]>=30,\"C\",Solution_tabDatasBDD[[#This Row],[Âge]]<30,\"D\")","v":"B"},"Cuba"]
["Miossec","2010-10-12","m",null,"Eugène Plasky",25,1030,{"$f":"MATCH(Solution_tabDatasBDD[[#This Row],[CP]],Solution_tabDatasListe[CP],0)","v":3},{"$f":"INDEX(Solution_tabDatasListe[Commune],Solution_tabDatasBDD[[#This Row],[Commune1]])","v":"Schaerbeek"},{"$f":"_xlfn.XLOOKUP(Solution_tabDatasBDD[[#This Row],[CP]],Solution_tabDatasListe[CP],Solution_tabDatasListe[Commune])","v":"Schaerbeek"},"1965-08-25",{"$f":"DATEDIF(Solution_tabDatasBDD[[#This Row],[Date de naissance]],TODAY(),\"y\")","v":58},"2030-08-25T22:24:31.337",{"$f":"DATEVALUE(DAY(Solution_tabDatasBDD[[#This Row],[Date de naissance]])&\"/\"&MONTH(Solution_tabDatasBDD[[#This Row],[Date de naissance]])&\"/\"&YEAR(Solution_tabDatasBDD[[#This Row],[Date de naissance]])+65)","v":"2030-08-25"},{"$f":"YEARFRAC(Solution_tabDatasBDD[[#This Row],[Date de naissance]],Solution_tabDatasBDD[[#This Row],[Date de 65 ans]])","v":65},{"$f":"_xlfn.IFS(Solution_tabDatasBDD[[#This Row],[Âge]]>=50,\"A\",Solution_tabDatasBDD[[#This Row],[Âge]]>=4,\"B\",Solution_tabDatasBDD[[#This Row],[Âge]]>=30,\"C\",Solution_tabDatasBDD[[#This Row],[Âge]]<30,\"D\")","v":"A"},"Congo"]
["Patricia Fiori","2010-10-08","f",null,"Chaussée d'Hacht",2,1030,{"$f":"MATCH(Solution_tabDatasBDD[[#This Row],[CP]],Solution_tabDatasListe[CP],0)","v":3},{"$f":"INDEX(Solution_tabDatasListe[Commune],Solution_tabDatasBDD[[#This Row],[Commune1]])","v":"Schaerbeek"},{"$f":"_xlfn.XLOOKUP(Solution_tabDatasBDD[[#This Row],[CP]],Solution_tabDatasListe[CP],Solution_tabDatasListe[Commune])","v":"Schaerbeek"},"1976-09-15",{"$f":"DATEDIF(Solution_tabDatasBDD[[#This Row],[Date de naissance]],TODAY(),\"y\")","v":47},"2041-09-15T05:53:04.289",{"$f":"DATEVALUE(DAY(Solution_tabDatasBDD[[#This Row],[Date de naissance]])&\"/\"&MONTH(Solution_tabDatasBDD[[#This Row],[Date de naissance]])&\"/\"&YEAR(Solution_tabDatasBDD[[#This Row],[Date de naissance]])+65)","v":"2041-09-15"},{"$f":"YEARFRAC(Solution_tabDatasBDD[[#This Row],[Date de naissance]],Solution_tabDatasBDD[[#This Row],[Date de 65 ans]])","v":65},{"$f":"_xlfn.IFS(Solution_tabDatasBDD[[#This Row],[Âge]]>=50,\"A\",Solution_tabDatasBDD[[#This Row],[Âge]]>=4,\"B\",Solution_tabDatasBDD[[#This Row],[Âge]]>=30,\"C\",Solution_tabDatasBDD[[#This Row],[Âge]]<30,\"D\")","v":"B"},"Cameroun"]
["Renaud","2010-10-09","m",null,"BLD Maurice Karen",452,1070,{"$f":"MATCH(Solution_tabDatasBDD[[#This Row],[CP]],Solution_tabDatasListe[CP],0)","v":7},{"$f":"INDEX(Solution_tabDatasListe[Commune],Solution_tabDatasBDD[[#This Row],[Commune1]])","v":"Anderlecht"},{"$f":"_xlfn.XLOOKUP(Solution_tabDatasBDD[[#This Row],[CP]],Solution_tabDatasListe[CP],Solution_tabDatasListe[Commune])","v":"Anderlecht"},"1968-03-03",{"$f":"DATEDIF(Solution_tabDatasBDD[[#This Row],[Date de naissance]],TODAY(),\"y\")","v":56},"2033-03-03T09:59:42.202",{"$f":"DATEVALUE(DAY(Solution_tabDatasBDD[[#This Row],[Date de naissance]])&\"/\"&MONTH(Solution_tabDatasBDD[[#This Row],[Date de naissance]])&\"/\"&YEAR(Solution_tabDatasBDD[[#This Row],[Date de naissance]])+65)","v":"2033-03-03"},{"$f":"YEARFRAC(Solution_tabDatasBDD[[#This Row],[Date de naissance]],Solution_tabDatasBDD[[#This Row],[Date de 65 ans]])","v":65},{"$f":"_xlfn.IFS(Solution_tabDatasBDD[[#This Row],[Âge]]>=50,\"A\",Solution_tabDatasBDD[[#This Row],[Âge]]>=4,\"B\",Solution_tabDatasBDD[[#This Row],[Âge]]>=30,\"C\",Solution_tabDatasBDD[[#This Row],[Âge]]<30,\"D\")","v":"A"},"Congo"]
["Serge Lama","2010-10-10","m",null,"Rue Borgval",36,1000,{"$f":"MATCH(Solution_tabDatasBDD[[#This Row],[CP]],Solution_tabDatasListe[CP],0)","v":1},{"$f":"INDEX(Solution_tabDatasListe[Commune],Solution_tabDatasBDD[[#This Row],[Commune1]])","v":"Bruxelles"},{"$f":"_xlfn.XLOOKUP(Solution_tabDatasBDD[[#This Row],[CP]],Solution_tabDatasListe[CP],Solution_tabDatasListe[Commune])","v":"Bruxelles"},"1979-06-02",{"$f":"DATEDIF(Solution_tabDatasBDD[[#This Row],[Date de naissance]],TODAY(),\"y\")","v":45},"2044-06-02T15:54:07.740",{"$f":"DATEVALUE(DAY(Solution_tabDatasBDD[[#This Row],[Date de naissance]])&\"/\"&MONTH(Solution_tabDatasBDD[[#This Row],[Date de naissance]])&\"/\"&YEAR(Solution_tabDatasBDD[[#This Row],[Date de naissance]])+65)","v":"2044-06-02"},{"$f":"YEARFRAC(Solution_tabDatasBDD[[#This Row],[Date de naissance]],Solution_tabDatasBDD[[#This Row],[Date de 65 ans]])","v":65},{"$f":"_xlfn.IFS(Solution_tabDatasBDD[[#This Row],[Âge]]>=50,\"A\",Solution_tabDatasBDD[[#This Row],[Âge]]>=4,\"B\",Solution_tabDatasBDD[[#This Row],[Âge]]>=30,\"C\",Solution_tabDatasBDD[[#This Row],[Âge]]<30,\"D\")","v":"B"},"Cuba"]
["Thierry Amiel","2010-10-11","m",null,"Rue Borgval",36,1000,{"$f":"MATCH(Solution_tabDatasBDD[[#This Row],[CP]],Solution_tabDatasListe[CP],0)","v":1},{"$f":"INDEX(Solution_tabDatasListe[Commune],Solution_tabDatasBDD[[#This Row],[Commune1]])","v":"Bruxelles"},{"$f":"_xlfn.XLOOKUP(Solution_tabDatasBDD[[#This Row],[CP]],Solution_tabDatasListe[CP],Solution_tabDatasListe[Commune])","v":"Bruxelles"},"1975-08-23",{"$f":"DATEDIF(Solution_tabDatasBDD[[#This Row],[Date de naissance]],TODAY(),\"y\")","v":48},"2040-08-23T16:36:00.339",{"$f":"DATEVALUE(DAY(Solution_tabDatasBDD[[#This Row],[Date de naissance]])&\"/\"&MONTH(Solution_tabDatasBDD[[#This Row],[Date de naissance]])&\"/\"&YEAR(Solution_tabDatasBDD[[#This Row],[Date de naissance]])+65)","v":"2040-08-23"},{"$f":"YEARFRAC(Solution_tabDatasBDD[[#This Row],[Date de naissance]],Solution_tabDatasBDD[[#This Row],[Date de 65 ans]])","v":65},{"$f":"_xlfn.IFS(Solution_tabDatasBDD[[#This Row],[Âge]]>=50,\"A\",Solution_tabDatasBDD[[#This Row],[Âge]]>=4,\"B\",Solution_tabDatasBDD[[#This Row],[Âge]]>=30,\"C\",Solution_tabDatasBDD[[#This Row],[Âge]]<30,\"D\")","v":"B"},"Congo"]
["William Sheller","2010-10-12","m",null,"Square Armand Steurs",12,1210,{"$f":"MATCH(Solution_tabDatasBDD[[#This Row],[CP]],Solution_tabDatasListe[CP],0)","v":17},{"$f":"INDEX(Solution_tabDatasListe[Commune],Solution_tabDatasBDD[[#This Row],[Commune1]])","v":"Saint-Josse-Ten-noode"},{"$f":"_xlfn.XLOOKUP(Solution_tabDatasBDD[[#This Row],[CP]],Solution_tabDatasListe[CP],Solution_tabDatasListe[Commune])","v":"Saint-Josse-Ten-noode"},"1973-09-15",{"$f":"DATEDIF(Solution_tabDatasBDD[[#This Row],[Date de naissance]],TODAY(),\"y\")","v":50},"2038-09-15T09:44:47.685",{"$f":"DATEVALUE(DAY(Solution_tabDatasBDD[[#This Row],[Date de naissance]])&\"/\"&MONTH(Solution_tabDatasBDD[[#This Row],[Date de naissance]])&\"/\"&YEAR(Solution_tabDatasBDD[[#This Row],[Date de naissance]])+65)","v":"2038-09-15"},{"$f":"YEARFRAC(Solution_tabDatasBDD[[#This Row],[Date de naissance]],Solution_tabDatasBDD[[#This Row],[Date de 65 ans]])","v":65},{"$f":"_xlfn.IFS(Solution_tabDatasBDD[[#This Row],[Âge]]>=50,\"A\",Solution_tabDatasBDD[[#This Row],[Âge]]>=4,\"B\",Solution_tabDatasBDD[[#This Row],[Âge]]>=30,\"C\",Solution_tabDatasBDD[[#This Row],[Âge]]<30,\"D\")","v":"A"},"Cameroun"]
["Damso","2010-04-01","m",null,"Chaussée d'Hacht",36,1030,{"$f":"MATCH(Solution_tabDatasBDD[[#This Row],[CP]],Solution_tabDatasListe[CP],0)","v":3},{"$f":"INDEX(Solution_tabDatasListe[Commune],Solution_tabDatasBDD[[#This Row],[Commune1]])","v":"Schaerbeek"},{"$f":"_xlfn.XLOOKUP(Solution_tabDatasBDD[[#This Row],[CP]],Solution_tabDatasListe[CP],Solution_tabDatasListe[Commune])","v":"Schaerbeek"},"1991-09-09",{"$f":"DATEDIF(Solution_tabDatasBDD[[#This Row],[Date de naissance]],TODAY(),\"y\")","v":32},"2056-09-09T22:43:40.021",{"$f":"DATEVALUE(DAY(Solution_tabDatasBDD[[#This Row],[Date de naissance]])&\"/\"&MONTH(Solution_tabDatasBDD[[#This Row],[Date de naissance]])&\"/\"&YEAR(Solution_tabDatasBDD[[#This Row],[Date de naissance]])+65)","v":"2056-09-09"},{"$f":"YEARFRAC(Solution_tabDatasBDD[[#This Row],[Date de naissance]],Solution_tabDatasBDD[[#This Row],[Date de 65 ans]])","v":65},{"$f":"_xlfn.IFS(Solution_tabDatasBDD[[#This Row],[Âge]]>=50,\"A\",Solution_tabDatasBDD[[#This Row],[Âge]]>=4,\"B\",Solution_tabDatasBDD[[#This Row],[Âge]]>=30,\"C\",Solution_tabDatasBDD[[#This Row],[Âge]]<30,\"D\")","v":"B"},"Chine"]
["Daniel Balavoine","2010-08-02","m",null,"Avenue Chazal",5,1030,{"$f":"MATCH(Solution_tabDatasBDD[[#This Row],[CP]],Solution_tabDatasListe[CP],0)","v":3},{"$f":"INDEX(Solution_tabDatasListe[Commune],Solution_tabDatasBDD[[#This Row],[Commune1]])","v":"Schaerbeek"},{"$f":"_xlfn.XLOOKUP(Solution_tabDatasBDD[[#This Row],[CP]],Solution_tabDatasListe[CP],Solution_tabDatasListe[Commune])","v":"Schaerbeek"},"1970-07-08",{"$f":"DATEDIF(Solution_tabDatasBDD[[#This Row],[Date de naissance]],TODAY(),\"y\")","v":53},"2035-07-08T13:46:16.396",{"$f":"DATEVALUE(DAY(Solution_tabDatasBDD[[#This Row],[Date de naissance]])&\"/\"&MONTH(Solution_tabDatasBDD[[#This Row],[Date de naissance]])&\"/\"&YEAR(Solution_tabDatasBDD[[#This Row],[Date de naissance]])+65)","v":"2035-07-08"},{"$f":"YEARFRAC(Solution_tabDatasBDD[[#This Row],[Date de naissance]],Solution_tabDatasBDD[[#This Row],[Date de 65 ans]])","v":65},{"$f":"_xlfn.IFS(Solution_tabDatasBDD[[#This Row],[Âge]]>=50,\"A\",Solution_tabDatasBDD[[#This Row],[Âge]]>=4,\"B\",Solution_tabDatasBDD[[#This Row],[Âge]]>=30,\"C\",Solution_tabDatasBDD[[#This Row],[Âge]]<30,\"D\")","v":"A"},"Ukraine"]
["Anitta","2010-12-12","f",null,"Avenue Chazal",66,1030,{"$f":"MATCH(Solution_tabDatasBDD[[#This Row],[CP]],Solution_tabDatasListe[CP],0)","v":3},{"$f":"INDEX(Solution_tabDatasListe[Commune],Solution_tabDatasBDD[[#This Row],[Commune1]])","v":"Schaerbeek"},{"$f":"_xlfn.XLOOKUP(Solution_tabDatasBDD[[#This Row],[CP]],Solution_tabDatasListe[CP],Solution_tabDatasListe[Commune])","v":"Schaerbeek"},"1996-08-09",{"$f":"DATEDIF(Solution_tabDatasBDD[[#This Row],[Date de naissance]],TODAY(),\"y\")","v":27},"2061-08-09T02:16:01.727",{"$f":"DATEVALUE(DAY(Solution_tabDatasBDD[[#This Row],[Date de naissance]])&\"/\"&MONTH(Solution_tabDatasBDD[[#This Row],[Date de naissance]])&\"/\"&YEAR(Solution_tabDatasBDD[[#This Row],[Date de naissance]])+65)","v":"2061-08-09"},{"$f":"YEARFRAC(Solution_tabDatasBDD[[#This Row],[Date de naissance]],Solution_tabDatasBDD[[#This Row],[Date de 65 ans]])","v":65},{"$f":"_xlfn.IFS(Solution_tabDatasBDD[[#This Row],[Âge]]>=50,\"A\",Solution_tabDatasBDD[[#This Row],[Âge]]>=4,\"B\",Solution_tabDatasBDD[[#This Row],[Âge]]>=30,\"C\",Solution_tabDatasBDD[[#This Row],[Âge]]<30,\"D\")","v":"B"},"Brésil"]
["Leo Santana","2010-10-12","m",null,"Rue Masoui",50,1030,{"$f":"MATCH(Solution_tabDatasBDD[[#This Row],[CP]],Solution_tabDatasListe[CP],0)","v":3},{"$f":"INDEX(Solution_tabDatasListe[Commune],Solution_tabDatasBDD[[#This Row],[Commune1]])","v":"Schaerbeek"},{"$f":"_xlfn.XLOOKUP(Solution_tabDatasBDD[[#This Row],[CP]],Solution_tabDatasListe[CP],Solution_tabDatasListe[Commune])","v":"Schaerbeek"},"1965-07-08",{"$f":"DATEDIF(Solution_tabDatasBDD[[#This Row],[Date de naissance]],TODAY(),\"y\")","v":58},"2030-07-08T09:36:31.514",{"$f":"DATEVALUE(DAY(Solution_tabDatasBDD[[#This Row],[Date de naissance]])&\"/\"&MONTH(Solution_tabDatasBDD[[#This Row],[Date de naissance]])&\"/\"&YEAR(Solution_tabDatasBDD[[#This Row],[Date de naissance]])+65)","v":"2030-07-08"},{"$f":"YEARFRAC(Solution_tabDatasBDD[[#This Row],[Date de naissance]],Solution_tabDatasBDD[[#This Row],[Date de 65 ans]])","v":65},{"$f":"_xlfn.IFS(Solution_tabDatasBDD[[#This Row],[Âge]]>=50,\"A\",Solution_tabDatasBDD[[#This Row],[Âge]]>=4,\"B\",Solution_tabDatasBDD[[#This Row],[Âge]]>=30,\"C\",Solution_tabDatasBDD[[#This Row],[Âge]]<30,\"D\")","v":"A"},"Brésil"]
["Ivete Sangalo","2010-04-06","f",null,"Eugène Plasky",88,1030,{"$f":"MATCH(Solution_tabDatasBDD[[#This Row],[CP]],Solution_tabDatasListe[CP],0)","v":3},{"$f":"INDEX(Solution_tabDatasListe[Commune],Solution_tabDatasBDD[[#This Row],[Commune1]])","v":"Schaerbeek"},{"$f":"_xlfn.XLOOKUP(Solution_tabDatasBDD[[#This Row],[CP]],Solution_tabDatasListe[CP],Solution_tabDatasListe[Commune])","v":"Schaerbeek"},"1988-09-09",{"$f":"DATEDIF(Solution_tabDatasBDD[[#This Row],[Date de naissance]],TODAY(),\"y\")","v":35},"2053-09-09T13:03:14.145",{"$f":"DATEVALUE(DAY(Solution_tabDatasBDD[[#This Row],[Date de naissance]])&\"/\"&MONTH(Solution_tabDatasBDD[[#This Row],[Date de naissance]])&\"/\"&YEAR(Solution_tabDatasBDD[[#This Row],[Date de naissance]])+65)","v":"2053-09-09"},{"$f":"YEARFRAC(Solution_tabDatasBDD[[#This Row],[Date de naissance]],Solution_tabDatasBDD[[#This Row],[Date de 65 ans]])","v":65},{"$f":"_xlfn.IFS(Solution_tabDatasBDD[[#This Row],[Âge]]>=50,\"A\",Solution_tabDatasBDD[[#This Row],[Âge]]>=4,\"B\",Solution_tabDatasBDD[[#This Row],[Âge]]>=30,\"C\",Solution_tabDatasBDD[[#This Row],[Âge]]<30,\"D\")","v":"B"},"Brésil"]
["Nemo","2010-12-31","m",null,"Avenue Dailly",120,1030,{"$f":"MATCH(Solution_tabDatasBDD[[#This Row],[CP]],Solution_tabDatasListe[CP],0)","v":3},{"$f":"INDEX(Solution_tabDatasListe[Commune],Solution_tabDatasBDD[[#This Row],[Commune1]])","v":"Schaerbeek"},{"$f":"_xlfn.XLOOKUP(Solution_tabDatasBDD[[#This Row],[CP]],Solution_tabDatasListe[CP],Solution_tabDatasListe[Commune])","v":"Schaerbeek"},"2001-05-08",{"$f":"DATEDIF(Solution_tabDatasBDD[[#This Row],[Date de naissance]],TODAY(),\"y\")","v":23},"2066-05-08T02:39:33.269",{"$f":"DATEVALUE(DAY(Solution_tabDatasBDD[[#This Row],[Date de naissance]])&\"/\"&MONTH(Solution_tabDatasBDD[[#This Row],[Date de naissance]])&\"/\"&YEAR(Solution_tabDatasBDD[[#This Row],[Date de naissance]])+65)","v":"2066-05-08"},{"$f":"YEARFRAC(Solution_tabDatasBDD[[#This Row],[Date de naissance]],Solution_tabDatasBDD[[#This Row],[Date de 65 ans]])","v":65},{"$f":"_xlfn.IFS(Solution_tabDatasBDD[[#This Row],[Âge]]>=50,\"A\",Solution_tabDatasBDD[[#This Row],[Âge]]>=4,\"B\",Solution_tabDatasBDD[[#This Row],[Âge]]>=30,\"C\",Solution_tabDatasBDD[[#This Row],[Âge]]<30,\"D\")","v":"B"},"Suisse"]

{"sheet":"Catégories_Solution","index":22,"n_rows":29,"n_cols":15,"rows_kept":29,"cut":false,"hidden":false,"merged":[]}
[null,null,null,null,null,null,null,null,null,null,null,null,"Retour sommaire"]
[]
[null,"Le problème ci-dessous peut être résolu avec des SI depuis le passage à un possibilité de 64 SI mais cette technique n'est pas conseillée dans ce cas sauf si vous tenez absolument à perdre de précieuses secondes de votre vie."]
[null,"Ce genre de problème peut être solutionné par l'utilisation d'une 'RechercheV' (RechercheX) par valeur proche."]
[]
[null,"Méthode \"classique\"",null,null,null,null,null,null,null,null,"Avec des tableaux de données"]
[]
[null,"Ages",null,"Tranches",null,"Age","Tranches\n(RechercheV)\n(VLookUp)","Tranches\n(RechercheX)\n(XLookUp)",null,null,null,"Tranches",null,"Age","Tranches\n(RechercheX)\n(XLookUp)"]
[null,"<25",0,0,null,42,{"$f":"VLOOKUP(F9,$C$9:$D$19,2,TRUE)","v":4},{"$f":"_xlfn.XLOOKUP(F9,$C$9:$C$19,$D$9:$D$19,,-1)","v":4},null,null,"Colonne1","Colonne2",null,42,{"$f":"_xlfn.XLOOKUP(Tableau5[[#This Row],[Age]],Tableau4[Colonne1],Tableau4[Colonne2],,-1)","v":4}]
[null,">=25 et <30",25,1,null,28,{"$f":"VLOOKUP(F10,$C$9:$D$19,2,TRUE)","v":1},{"$f":"_xlfn.XLOOKUP(F10,$C$9:$C$19,$D$9:$D$19,,-1)","v":1},null,null,0,0,null,28,{"$f":"_xlfn.XLOOKUP(Tableau5[[#This Row],[Age]],Tableau4[Colonne1],Tableau4[Colonne2],,-1)","v":1}]
[null,">=30 et <35",30,2,null,66,9,9,null,null,25,1,null,66,{"$f":"_xlfn.XLOOKUP(Tableau5[[#This Row],[Age]],Tableau4[Colonne1],Tableau4[Colonne2],,-1)","v":9}]
[null,">=35 et <40",35,3,null,42,4,4,null,null,30,2,null,42,{"$f":"_xlfn.XLOOKUP(Tableau5[[#This Row],[Age]],Tableau4[Colonne1],Tableau4[Colonne2],,-1)","v":4}]
[null,">=40 et <45",40,4,null,44,4,4,null,null,35,3,null,44,{"$f":"_xlfn.XLOOKUP(Tableau5[[#This Row],[Age]],Tableau4[Colonne1],Tableau4[Colonne2],,-1)","v":4}]
[null,">=45 et <50",45,5,null,32,2,2,null,null,40,4,null,32,{"$f":"_xlfn.XLOOKUP(Tableau5[[#This Row],[Age]],Tableau4[Colonne1],Tableau4[Colonne2],,-1)","v":2}]
[null,">=50 et <55",50,6,null,25,1,1,null,null,45,5,null,25,{"$f":"_xlfn.XLOOKUP(Tableau5[[#This Row],[Age]],Tableau4[Colonne1],Tableau4[Colonne2],,-1)","v":1}]
[null,">=55 et <60",55,7,null,37,3,3,null,null,50,6,null,37,{"$f":"_xlfn.XLOOKUP(Tableau5[[#This Row],[Age]],Tableau4[Colonne1],Tableau4[Colonne2],,-1)","v":3}]
[null,">=60 et <65",60,8,null,52,6,6,null,null,55,7,null,52,{"$f":"_xlfn.XLOOKUP(Tableau5[[#This Row],[Age]],Tableau4[Colonne1],Tableau4[Colonne2],,-1)","v":6}]
[null,">=65 et <70",65,9,null,55,7,7,null,null,60,8,null,55,{"$f":"_xlfn.XLOOKUP(Tableau5[[#This Row],[Age]],Tableau4[Colonne1],Tableau4[Colonne2],,-1)","v":7}]
[null,">=70",70,10,null,48,5,5,null,null,65,9,null,48,{"$f":"_xlfn.XLOOKUP(Tableau5[[#This Row],[Age]],Tableau4[Colonne1],Tableau4[Colonne2],,-1)","v":5}]
[null,null,null,null,null,29,1,1,null,null,70,10,null,29,{"$f":"_xlfn.XLOOKUP(Tableau5[[#This Row],[Age]],Tableau4[Colonne1],Tableau4[Colonne2],,-1)","v":1}]
[null,null,null,null,null,39,3,3,null,null,null,null,null,39,{"$f":"_xlfn.XLOOKUP(Tableau5[[#This Row],[Age]],Tableau4[Colonne1],Tableau4[Colonne2],,-1)","v":3}]
[null,null,null,null,null,49,5,5,null,null,null,null,null,49,{"$f":"_xlfn.XLOOKUP(Tableau5[[#This Row],[Age]],Tableau4[Colonne1],Tableau4[Colonne2],,-1)","v":5}]
[null,null,null,null,null,47,5,5,null,null,null,null,null,47,{"$f":"_xlfn.XLOOKUP(Tableau5[[#This Row],[Age]],Tableau4[Colonne1],Tableau4[Colonne2],,-1)","v":5}]
[null,null,null,null,null,41,4,4,null,null,null,null,null,41,{"$f":"_xlfn.XLOOKUP(Tableau5[[#This Row],[Age]],Tableau4[Colonne1],Tableau4[Colonne2],,-1)","v":4}]
[null,null,null,null,null,29,1,1,null,null,null,null,null,29,{"$f":"_xlfn.XLOOKUP(Tableau5[[#This Row],[Age]],Tableau4[Colonne1],Tableau4[Colonne2],,-1)","v":1}]
[null,null,null,null,null,25,1,1,null,null,null,null,null,25,{"$f":"_xlfn.XLOOKUP(Tableau5[[#This Row],[Age]],Tableau4[Colonne1],Tableau4[Colonne2],,-1)","v":1}]
[null,null,null,null,null,48,5,5,null,null,null,null,null,48,{"$f":"_xlfn.XLOOKUP(Tableau5[[#This Row],[Age]],Tableau4[Colonne1],Tableau4[Colonne2],,-1)","v":5}]
[null,null,null,null,null,42,4,4,null,null,null,null,null,42,{"$f":"_xlfn.XLOOKUP(Tableau5[[#This Row],[Age]],Tableau4[Colonne1],Tableau4[Colonne2],,-1)","v":4}]
[null,null,null,null,null,24,0,0,null,null,null,null,null,24,{"$f":"_xlfn.XLOOKUP(Tableau5[[#This Row],[Age]],Tableau4[Colonne1],Tableau4[Colonne2],,-1)","v":0}]

{"sheet":"FiltreParSegment_Solution","index":23,"n_rows":110,"n_cols":18,"rows_kept":110,"cut":false,"hidden":false,"merged":[]}
["Sur la feuille 'FiltreParSegment', combinez les segments sur le pays d'origine et le sexe pour filtrer les données sur ces 2 champs",null,null,null,null,null,null,null,null,null,null,null,"Retour sommaire"]
[]
[]
[]
[]
[]
[]
[]
[]
[]
[]
[]
[]
["Nom","Date d'entrée","Sexe","État civil","Rue","Nr","CP","Commune1","Commune1Def","Commune","Date de naissance","Âge","Date de 65 ans","Date de 65 ans (2)","65 ans","Catégorie","Pays d'origine","Nombre d'enfants"]
["Akhenaton","2010-04-14","m","Divocé(e)","Avenue Claeys",10,1030,{"$f":"MATCH(Solution_tabDatasBDD_Segment[[#This Row],[CP]],Solution_tabDatasListe[CP],0)","v":3},{"$f":"INDEX(Solution_tabDatasListe[Commune],Solution_tabDatasBDD_Segment[[#This Row],[Commune1]])","v":"Schaerbeek"},{"$f":"_xlfn.XLOOKUP(Solution_tabDatasBDD_Segment[[#This Row],[CP]],Solution_tabDatasListe[CP],Solution_tabDatasListe[Commune])","v":"Schaerbeek"},"1980-11-22",{"$f":"DATEDIF(Solution_tabDatasBDD_Segment[[#This Row],[Date de naissance]],TODAY(),\"y\")","v":43},"2045-11-22T08:16:43.162",{"$f":"DATEVALUE(DAY(Solution_tabDatasBDD_Segment[[#This Row],[Date de naissance]])&\"/\"&MONTH(Solution_tabDatasBDD_Segment[[#This Row],[Date de naissance]])&\"/\"&YEAR(Solution_tabDatasBDD_Segment[[#This Row],[Date de naissance]])+65)","v":"2045-11-22"},{"$f":"YEARFRAC(Solution_tabDatasBDD_Segment[[#This Row],[Date de naissance]],Solution_tabDatasBDD_Segment[[#This Row],[Date de 65 ans]])","v":65},{"$f":"_xlfn.IFS(Solution_tabDatasBDD_Segment[[#This Row],[Âge]]>=50,\"A\",Solution_tabDatasBDD_Segment[[#This Row],[Âge]]>=4,\"B\",Solution_tabDatasBDD_Segment[[#This Row],[Âge]]>=30,\"C\",Solution_tabDatasBDD_Segment[[#This Row],[Âge]]<30,\"D\")","v":"B"},"Guinée"]
["Aldebert","2010-04-19","m","Marié(e)","Rue de Rudder",20,1080,{"$f":"MATCH(Solution_tabDatasBDD_Segment[[#This Row],[CP]],Solution_tabDatasListe[CP],0)","v":8},{"$f":"INDEX(Solution_tabDatasListe[Commune],Solution_tabDatasBDD_Segment[[#This Row],[Commune1]])","v":"Molenbeek"},{"$f":"_xlfn.XLOOKUP(Solution_tabDatasBDD_Segment[[#This Row],[CP]],Solution_tabDatasListe[CP],Solution_tabDatasListe[Commune])","v":"Molenbeek"},"1980-02-12",{"$f":"DATEDIF(Solution_tabDatasBDD_Segment[[#This Row],[Date de naissance]],TODAY(),\"y\")","v":44},"2045-02-12T15:23:39.061",{"$f":"DATEVALUE(DAY(Solution_tabDatasBDD_Segment[[#This Row],[Date de naissance]])&\"/\"&MONTH(Solution_tabDatasBDD_Segment[[#This Row],[Date de naissance]])&\"/\"&YEAR(Solution_tabDatasBDD_Segment[[#This Row],[Date de naissance]])+65)","v":"2045-02-12"},{"$f":"YEARFRAC(Solution_tabDatasBDD_Segment[[#This Row],[Date de naissance]],Solution_tabDatasBDD_Segment[[#This Row],[Date de 65 ans]])","v":65},{"$f":"_xlfn.IFS(Solution_tabDatasBDD_Segment[[#This Row],[Âge]]>=50,\"A\",Solution_tabDatasBDD_Segment[[#This Row],[Âge]]>=4,\"B\",Solution_tabDatasBDD_Segment[[#This Row],[Âge]]>=30,\"C\",Solution_tabDatasBDD_Segment[[#This Row],[Âge]]<30,\"D\")","v":"B"},"Guinée",1]
["Arno","2010-04-20","m","Célibataire","Rue de Linthout",23,1030,{"$f":"MATCH(Solution_tabDatasBDD_Segment[[#This Row],[CP]],Solution_tabDatasListe[CP],0)","v":3},{"$f":"INDEX(Solution_tabDatasListe[Commune],Solution_tabDatasBDD_Segment[[#This Row],[Commune1]])","v":"Schaerbeek"},{"$f":"_xlfn.XLOOKUP(Solution_tabDatasBDD_Segment[[#This Row],[CP]],Solution_tabDatasListe[CP],Solution_tabDatasListe[Commune])","v":"Schaerbeek"},"1972-09-01",{"$f":"DATEDIF(Solution_tabDatasBDD_Segment[[#This Row],[Date de naissance]],TODAY(),\"y\")","v":51},"2037-09-01T22:48:12.230",{"$f":"DATEVALUE(DAY(Solution_tabDatasBDD_Segment[[#This Row],[Date de naissance]])&\"/\"&MONTH(Solution_tabDatasBDD_Segment[[#This Row],[Date de naissance]])&\"/\"&YEAR(Solution_tabDatasBDD_Segment[[#This Row],[Date de naissance]])+65)","v":"2037-09-01"},{"$f":"YEARFRAC(Solution_tabDatasBDD_Segment[[#This Row],[Date de naissance]],Solution_tabDatasBDD_Segment[[#This Row],[Date de 65 ans]])","v":65},{"$f":"_xlfn.IFS(Solution_tabDatasBDD_Segment[[#This Row],[Âge]]>=50,\"A\",Solution_tabDatasBDD_Segment[[#This Row],[Âge]]>=4,\"B\",Solution_tabDatasBDD_Segment[[#This Row],[Âge]]>=30,\"C\",Solution_tabDatasBDD_Segment[[#This Row],[Âge]]<30,\"D\")","v":"A"},"Belgique"]
["Bernard Lavilliers","2010-05-31","m","Célibataire","Rue du Maroquin",22,1080,{"$f":"MATCH(Solution_tabDatasBDD_Segment[[#This Row],[CP]],Solution_tabDatasListe[CP],0)","v":8},{"$f":"INDEX(Solution_tabDatasListe[Commune],Solution_tabDatasBDD_Segment[[#This Row],[Commune1]])","v":"Molenbeek"},{"$f":"_xlfn.XLOOKUP(Solution_tabDatasBDD_Segment[[#This Row],[CP]],Solution_tabDatasListe[CP],Solution_tabDatasListe[Commune])","v":"Molenbeek"},"1976-06-17",{"$f":"DATEDIF(Solution_tabDatasBDD_Segment[[#This Row],[Date de naissance]],TODAY(),\"y\")","v":47},"2041-06-17T20:42:43.658",{"$f":"DATEVALUE(DAY(Solution_tabDatasBDD_Segment[[#This Row],[Date de naissance]])&\"/\"&MONTH(Solution_tabDatasBDD_Segment[[#This Row],[Date de naissance]])&\"/\"&YEAR(Solution_tabDatasBDD_Segment[[#This Row],[Date de naissance]])+65)","v":"2041-06-17"},{"$f":"YEARFRAC(Solution_tabDatasBDD_Segment[[#This Row],[Date de naissance]],Solution_tabDatasBDD_Segment[[#This Row],[Date de 65 ans]])","v":65},{"$f":"_xlfn.IFS(Solution_tabDatasBDD_Segment[[#This Row],[Âge]]>=50,\"A\",Solution_tabDatasBDD_Segment[[#This Row],[Âge]]>=4,\"B\",Solution_tabDatasBDD_Segment[[#This Row],[Âge]]>=30,\"C\",Solution_tabDatasBDD_Segment[[#This Row],[Âge]]<30,\"D\")","v":"B"},"Maroc"]
["Calogero","2010-05-27","m","Célibataire","Rue du vanderschrick",152,1060,{"$f":"MATCH(Solution_tabDatasBDD_Segment[[#This Row],[CP]],Solution_tabDatasListe[CP],0)","v":6},{"$f":"INDEX(Solution_tabDatasListe[Commune],Solution_tabDatasBDD_Segment[[#This Row],[Commune1]])","v":"Saint Gilles"},{"$f":"_xlfn.XLOOKUP(Solution_tabDatasBDD_Segment[[#This Row],[CP]],Solution_tabDatasListe[CP],Solution_tabDatasListe[Commune])","v":"Saint Gilles"},"1991-12-11",{"$f":"DATEDIF(Solution_tabDatasBDD_Segment[[#This Row],[Date de naissance]],TODAY(),\"y\")","v":32},"2056-12-11T15:42:24.017",{"$f":"DATEVALUE(DAY(Solution_tabDatasBDD_Segment[[#This Row],[Date de naissance]])&\"/\"&MONTH(Solution_tabDatasBDD_Segment[[#This Row],[Date de naissance]])&\"/\"&YEAR(Solution_tabDatasBDD_Segment[[#This Row],[Date de naissance]])+65)","v":"2056-12-11"},{"$f":"YEARFRAC(Solution_tabDatasBDD_Segment[[#This Row],[Date de naissance]],Solution_tabDatasBDD_Segment[[#This Row],[Date de 65 ans]])","v":65},{"$f":"_xlfn.IFS(Solution_tabDatasBDD_Segment[[#This Row],[Âge]]>=50,\"A\",Solution_tabDatasBDD_Segment[[#This Row],[Âge]]>=4,\"B\",Solution_tabDatasBDD_Segment[[#This Row],[Âge]]>=30,\"C\",Solution_tabDatasBDD_Segment[[#This Row],[Âge]]<30,\"D\")","v":"B"},"Equateur"]
["Christophe Willem","2010-05-31","m","Marié(e)","Rue Ferdinand Craps",35,1070,{"$f":"MATCH(Solution_tabDatasBDD_Segment[[#This Row],[CP]],Solution_tabDatasListe[CP],0)","v":7},{"$f":"INDEX(Solution_tabDatasListe[Commune],Solution_tabDatasBDD_Segment[[#This Row],[Commune1]])","v":"Anderlecht"},{"$f":"_xlfn.XLOOKUP(Solution_tabDatasBDD_Segment[[#This Row],[CP]],Solution_tabDatasListe[CP],Solution_tabDatasListe[Commune])","v":"Anderlecht"},"1980-06-15",{"$f":"DATEDIF(Solution_tabDatasBDD_Segment[[#This Row],[Date de naissance]],TODAY(),\"y\")","v":44},"2045-06-15T02:50:35.663",{"$f":"DATEVALUE(DAY(Solution_tabDatasBDD_Segment[[#This Row],[Date de naissance]])&\"/\"&MONTH(Solution_tabDatasBDD_Segment[[#This Row],[Date de naissance]])&\"/\"&YEAR(Solution_tabDatasBDD_Segment[[#This Row],[Date de naissance]])+65)","v":"2045-06-15"},{"$f":"YEARFRAC(Solution_tabDatasBDD_Segment[[#This Row],[Date de naissance]],Solution_tabDatasBDD_Segment[[#This Row],[Date de 65 ans]])","v":65},{"$f":"_xlfn.IFS(Solution_tabDatasBDD_Segment[[#This Row],[Âge]]>=50,\"A\",Solution_tabDatasBDD_Segment[[#This Row],[Âge]]>=4,\"B\",Solution_tabDatasBDD_Segment[[#This Row],[Âge]]>=30,\"C\",Solution_tabDatasBDD_Segment[[#This Row],[Âge]]<30,\"D\")","v":"B"},"Cameroun"]
["Doc Gynéco","2010-05-31","m","Marié(e)","Rue aux bois",42,1150,{"$f":"MATCH(Solution_tabDatasBDD_Segment[[#This Row],[CP]],Solution_tabDatasListe[CP],0)","v":13},{"$f":"INDEX(Solution_tabDatasListe[Commune],Solution_tabDatasBDD_Segment[[#This Row],[Commune1]])","v":"Woluwé-Saint-Pierre"},{"$f":"_xlfn.XLOOKUP(Solution_tabDatasBDD_Segment[[#This Row],[CP]],Solution_tabDatasListe[CP],Solution_tabDatasListe[Commune])","v":"Woluwé-Saint-Pierre"},"1981-04-13",{"$f":"DATEDIF(Solution_tabDatasBDD_Segment[[#This Row],[Date de naissance]],TODAY(),\"y\")","v":43},"2046-04-13T16:03:54.061",{"$f":"DATEVALUE(DAY(Solution_tabDatasBDD_Segment[[#This Row],[Date de naissance]])&\"/\"&MONTH(Solution_tabDatasBDD_Segment[[#This Row],[Date de naissance]])&\"/\"&YEAR(Solution_tabDatasBDD_Segment[[#This Row],[Date de naissance]])+65)","v":"2046-04-13"},{"$f":"YEARFRAC(Solution_tabDatasBDD_Segment[[#This Row],[Date de naissance]],Solution_tabDatasBDD_Segment[[#This Row],[Date de 65 ans]])","v":65},{"$f":"_xlfn.IFS(Solution_tabDatasBDD_Segment[[#This Row],[Âge]]>=50,\"A\",Solution_tabDatasBDD_Segment[[#This Row],[Âge]]>=4,\"B\",Solution_tabDatasBDD_Segment[[#This Row],[Âge]]>=30,\"C\",Solution_tabDatasBDD_Segment[[#This Row],[Âge]]<30,\"D\")","v":"B"},"Turquie"]
["Faudel","2010-05-31","m","Marié(e)","Rue Renkin",333,1030,{"$f":"MATCH(Solution_tabDatasBDD_Segment[[#This Row],[CP]],Solution_tabDatasListe[CP],0)","v":3},{"$f":"INDEX(Solution_tabDatasListe[Commune],Solution_tabDatasBDD_Segment[[#This Row],[Commune1]])","v":"Schaerbeek"},{"$f":"_xlfn.XLOOKUP(Solution_tabDatasBDD_Segment[[#This Row],[CP]],Solution_tabDatasListe[CP],Solution_tabDatasListe[Commune])","v":"Schaerbeek"},"1988-12-19",{"$f":"DATEDIF(Solution_tabDatasBDD_Segment[[#This Row],[Date de naissance]],TODAY(),\"y\")","v":35},"2053-12-19T11:50:29.744",{"$f":"DATEVALUE(DAY(Solution_tabDatasBDD_Segment[[#This Row],[Date de naissance]])&\"/\"&MONTH(Solution_tabDatasBDD_Segment[[#This Row],[Date de naissance]])&\"/\"&YEAR(Solution_tabDatasBDD_Segment[[#This Row],[Date de naissance]])+65)","v":"2053-12-19"},{"$f":"YEARFRAC(Solution_tabDatasBDD_Segment[[#This Row],[Date de naissance]],Solution_tabDatasBDD_Segment[[#This Row],[Date de 65 ans]])","v":65},{"$f":"_xlfn.IFS(Solution_tabDatasBDD_Segment[[#This Row],[Âge]]>=50,\"A\",Solution_tabDatasBDD_Segment[[#This Row],[Âge]]>=4,\"B\",Solution_tabDatasBDD_Segment[[#This Row],[Âge]]>=30,\"C\",Solution_tabDatasBDD_Segment[[#This Row],[Âge]]<30,\"D\")","v":"B"},"Maroc"]
["Frank Alamo","2010-05-31","m","Divocé(e)","Rue Vandenboogaerde",66,1080,{"$f":"MATCH(Solution_tabDatasBDD_Segment[[#This Row],[CP]],Solution_tabDatasListe[CP],0)","v":8},{"$f":"INDEX(Solution_tabDatasListe[Commune],Solution_tabDatasBDD_Segment[[#This Row],[Commune1]])","v":"Molenbeek"},{"$f":"_xlfn.XLOOKUP(Solution_tabDatasBDD_Segment[[#This Row],[CP]],Solution_tabDatasListe[CP],Solution_tabDatasListe[Commune])","v":"Molenbeek"},"1978-08-19",{"$f":"DATEDIF(Solution_tabDatasBDD_Segment[[#This Row],[Date de naissance]],TODAY(),\"y\")","v":45},"2043-08-19T08:30:36.096",{"$f":"DATEVALUE(DAY(Solution_tabDatasBDD_Segment[[#This Row],[Date de naissance]])&\"/\"&MONTH(Solution_tabDatasBDD_Segment[[#This Row],[Date de naissance]])&\"/\"&YEAR(Solution_tabDatasBDD_Segment[[#This Row],[Date de naissance]])+65)","v":"2043-08-19"},{"$f":"YEARFRAC(Solution_tabDatasBDD_Segment[[#This Row],[Date de naissance]],Solution_tabDatasBDD_Segment[[#This Row],[Date de 65 ans]])","v":65},{"$f":"_xlfn.IFS(Solution_tabDatasBDD_Segment[[#This Row],[Âge]]>=50,\"A\",Solution_tabDatasBDD_Segment[[#This Row],[Âge]]>=4,\"B\",Solution_tabDatasBDD_Segment[[#This Row],[Âge]]>=30,\"C\",Solution_tabDatasBDD_Segment[[#This Row],[Âge]]<30,\"D\")","v":"B"},"Cameroun"]
["Gérard Blanchard","2010-05-07","m","Divocé(e)","Rue de la stratégie ",33,1160,{"$f":"MATCH(Solution_tabDatasBDD_Segment[[#This Row],[CP]],Solution_tabDatasListe[CP],0)","v":14},{"$f":"INDEX(Solution_tabDatasListe[Commune],Solution_tabDatasBDD_Segment[[#This Row],[Commune1]])","v":"Auderghem"},{"$f":"_xlfn.XLOOKUP(Solution_tabDatasBDD_Segment[[#This Row],[CP]],Solution_tabDatasListe[CP],Solution_tabDatasListe[Commune])","v":"Auderghem"},"1977-09-25",{"$f":"DATEDIF(Solution_tabDatasBDD_Segment[[#This Row],[Date de naissance]],TODAY(),\"y\")","v":46},"2042-09-25T00:40:00.794",{"$f":"DATEVALUE(DAY(Solution_tabDatasBDD_Segment[[#This Row],[Date de naissance]])&\"/\"&MONTH(Solution_tabDatasBDD_Segment[[#This Row],[Date de naissance]])&\"/\"&YEAR(Solution_tabDatasBDD_Segment[[#This Row],[Date de naissance]])+65)","v":"2042-09-25"},{"$f":"YEARFRAC(Solution_tabDatasBDD_Segment[[#This Row],[Date de naissance]],Solution_tabDatasBDD_Segment[[#This Row],[Date de 65 ans]])","v":65},{"$f":"_xlfn.IFS(Solution_tabDatasBDD_Segment[[#This Row],[Âge]]>=50,\"A\",Solution_tabDatasBDD_Segment[[#This Row],[Âge]]>=4,\"B\",Solution_tabDatasBDD_Segment[[#This Row],[Âge]]>=30,\"C\",Solution_tabDatasBDD_Segment[[#This Row],[Âge]]<30,\"D\")","v":"B"},"Cameroun"]
["Hubert-Félix Thiéfaine","2010-05-12","m","Divocé(e)","Rue Jean Debien",14,1030,{"$f":"MATCH(Solution_tabDatasBDD_Segment[[#This Row],[CP]],Solution_tabDatasListe[CP],0)","v":3},{"$f":"INDEX(Solution_tabDatasListe[Commune],Solution_tabDatasBDD_Segment[[#This Row],[Commune1]])","v":"Schaerbeek"},{"$f":"_xlfn.XLOOKUP(Solution_tabDatasBDD_Segment[[#This Row],[CP]],Solution_tabDatasListe[CP],Solution_tabDatasListe[Commune])","v":"Schaerbeek"},"1975-09-21",{"$f":"DATEDIF(Solution_tabDatasBDD_Segment[[#This Row],[Date de naissance]],TODAY(),\"y\")","v":48},"2040-09-21T23:29:12.298",{"$f":"DATEVALUE(DAY(Solution_tabDatasBDD_Segment[[#This Row],[Date de naissance]])&\"/\"&MONTH(Solution_tabDatasBDD_Segment[[#This Row],[Date de naissance]])&\"/\"&YEAR(Solution_tabDatasBDD_Segment[[#This Row],[Date de naissance]])+65)","v":"2040-09-21"},{"$f":"YEARFRAC(Solution_tabDatasBDD_Segment[[#This Row],[Date de naissance]],Solution_tabDatasBDD_Segment[[#This Row],[Date de 65 ans]])","v":65},{"$f":"_xlfn.IFS(Solution_tabDatasBDD_Segment[[#This Row],[Âge]]>=50,\"A\",Solution_tabDatasBDD_Segment[[#This Row],[Âge]]>=4,\"B\",Solution_tabDatasBDD_Segment[[#This Row],[Âge]]>=30,\"C\",Solution_tabDatasBDD_Segment[[#This Row],[Âge]]<30,\"D\")","v":"B"},"Guinée conakry",4]
["Jean-Louis Aubert","2010-06-14","m","Marié(e)","Pierre Jean Demessemaker",158,1080,{"$f":"MATCH(Solution_tabDatasBDD_Segment[[#This Row],[CP]],Solution_tabDatasListe[CP],0)","v":8},{"$f":"INDEX(Solution_tabDatasListe[Commune],Solution_tabDatasBDD_Segment[[#This Row],[Commune1]])","v":"Molenbeek"},{"$f":"_xlfn.XLOOKUP(Solution_tabDatasBDD_Segment[[#This Row],[CP]],Solution_tabDatasListe[CP],Solution_tabDatasListe[Commune])","v":"Molenbeek"},"1969-05-17",{"$f":"DATEDIF(Solution_tabDatasBDD_Segment[[#This Row],[Date de naissance]],TODAY(),\"y\")","v":55},"2034-05-17T12:10:07.183",{"$f":"DATEVALUE(DAY(Solution_tabDatasBDD_Segment[[#This Row],[Date de naissance]])&\"/\"&MONTH(Solution_tabDatasBDD_Segment[[#This Row],[Date de naissance]])&\"/\"&YEAR(Solution_tabDatasBDD_Segment[[#This Row],[Date de naissance]])+65)","v":"2034-05-17"},{"$f":"YEARFRAC(Solution_tabDatasBDD_Segment[[#This Row],[Date de naissance]],Solution_tabDatasBDD_Segment[[#This Row],[Date de 65 ans]])","v":65},{"$f":"_xlfn.IFS(Solution_tabDatasBDD_Segment[[#This Row],[Âge]]>=50,\"A\",Solution_tabDatasBDD_Segment[[#This Row],[Âge]]>=4,\"B\",Solution_tabDatasBDD_Segment[[#This Row],[Âge]]>=30,\"C\",Solution_tabDatasBDD_Segment[[#This Row],[Âge]]<30,\"D\")","v":"A"},"Congo",2]
["Estelle Hallyday","2010-06-14","f","Marié(e)","Avenue Crikx",111,1060,{"$f":"MATCH(Solution_tabDatasBDD_Segment[[#This Row],[CP]],Solution_tabDatasListe[CP],0)","v":6},{"$f":"INDEX(Solution_tabDatasListe[Commune],Solution_tabDatasBDD_Segment[[#This Row],[Commune1]])","v":"Saint Gilles"},{"$f":"_xlfn.XLOOKUP(Solution_tabDatasBDD_Segment[[#This Row],[CP]],Solution_tabDatasListe[CP],Solution_tabDatasListe[Commune])","v":"Saint Gilles"},"1981-03-15",{"$f":"DATEDIF(Solution_tabDatasBDD_Segment[[#This Row],[Date de naissance]],TODAY(),\"y\")","v":43},"2046-03-15T13:01:53.310",{"$f":"DATEVALUE(DAY(Solution_tabDatasBDD_Segment[[#This Row],[Date de naissance]])&\"/\"&MONTH(Solution_tabDatasBDD_Segment[[#This Row],[Date de naissance]])&\"/\"&YEAR(Solution_tabDatasBDD_Segment[[#This Row],[Date de naissance]])+65)","v":"2046-03-15"},{"$f":"YEARFRAC(Solution_tabDatasBDD_Segment[[#This Row],[Date de naissance]],Solution_tabDatasBDD_Segment[[#This Row],[Date de 65 ans]])","v":65},{"$f":"_xlfn.IFS(Solution_tabDatasBDD_Segment[[#This Row],[Âge]]>=50,\"A\",Solution_tabDatasBDD_Segment[[#This Row],[Âge]]>=4,\"B\",Solution_tabDatasBDD_Segment[[#This Row],[Âge]]>=30,\"C\",Solution_tabDatasBDD_Segment[[#This Row],[Âge]]<30,\"D\")","v":"B"},"Congo"]
["Kent","2010-06-15","m","Marié(e)","Avenue Georges Henri",10,1200,{"$f":"MATCH(Solution_tabDatasBDD_Segment[[#This Row],[CP]],Solution_tabDatasListe[CP],0)","v":16},{"$f":"INDEX(Solution_tabDatasListe[Commune],Solution_tabDatasBDD_Segment[[#This Row],[Commune1]])","v":"Woluwé-Saint-Lambert"},{"$f":"_xlfn.XLOOKUP(Solution_tabDatasBDD_Segment[[#This Row],[CP]],Solution_tabDatasListe[CP],Solution_tabDatasListe[Commune])","v":"Woluwé-Saint-Lambert"},"1969-12-14",{"$f":"DATEDIF(Solution_tabDatasBDD_Segment[[#This Row],[Date de naissance]],TODAY(),\"y\")","v":54},"2034-12-14T09:39:49.435",{"$f":"DATEVALUE(DAY(Solution_tabDatasBDD_Segment[[#This Row],[Date de naissance]])&\"/\"&MONTH(Solution_tabDatasBDD_Segment[[#This Row],[Date de naissance]])&\"/\"&YEAR(Solution_tabDatasBDD_Segment[[#This Row],[Date de naissance]])+65)","v":"2034-12-14"},{"$f":"YEARFRAC(Solution_tabDatasBDD_Segment[[#This Row],[Date de naissance]],Solution_tabDatasBDD_Segment[[#This Row],[Date de 65 ans]])","v":65},{"$f":"_xlfn.IFS(Solution_tabDatasBDD_Segment[[#This Row],[Âge]]>=50,\"A\",Solution_tabDatasBDD_Segment[[#This Row],[Âge]]>=4,\"B\",Solution_tabDatasBDD_Segment[[#This Row],[Âge]]>=30,\"C\",Solution_tabDatasBDD_Segment[[#This Row],[Âge]]<30,\"D\")","v":"A"},"Cameroun",1]
["Mano Solo","2010-06-22","m","Marié(e)","Bergensesteenweeg",258,1500,{"$f":"MATCH(Solution_tabDatasBDD_Segment[[#This Row],[CP]],Solution_tabDatasListe[CP],0)","v":18},{"$f":"INDEX(Solution_tabDatasListe[Commune],Solution_tabDatasBDD_Segment[[#This Row],[Commune1]])","v":"Wavre"},{"$f":"_xlfn.XLOOKUP(Solution_tabDatasBDD_Segment[[#This Row],[CP]],Solution_tabDatasListe[CP],Solution_tabDatasListe[Commune])","v":"Wavre"},"1973-04-14",{"$f":"DATEDIF(Solution_tabDatasBDD_Segment[[#This Row],[Date de naissance]],TODAY(),\"y\")","v":51},"2038-04-14T12:39:54.356",{"$f":"DATEVALUE(DAY(Solution_tabDatasBDD_Segment[[#This Row],[Date de naissance]])&\"/\"&MONTH(Solution_tabDatasBDD_Segment[[#This Row],[Date de naissance]])&\"/\"&YEAR(Solution_tabDatasBDD_Segment[[#This Row],[Date de naissance]])+65)","v":"2038-04-14"},{"$f":"YEARFRAC(Solution_tabDatasBDD_Segment[[#This Row],[Date de naissance]],Solution_tabDatasBDD_Segment[[#This Row],[Date de 65 ans]])","v":65},{"$f":"_xlfn.IFS(Solution_tabDatasBDD_Segment[[#This Row],[Âge]]>=50,\"A\",Solution_tabDatasBDD_Segment[[#This Row],[Âge]]>=4,\"B\",Solution_tabDatasBDD_Segment[[#This Row],[Âge]]>=30,\"C\",Solution_tabDatasBDD_Segment[[#This Row],[Âge]]<30,\"D\")","v":"A"},"Maroc",4]
["Matthieu Chedid","2010-06-22","m","Marié(e)","Frans van Cutsen",26,1140,{"$f":"MATCH(Solution_tabDatasBDD_Segment[[#This Row],[CP]],Solution_tabDatasListe[CP],0)","v":12},{"$f":"INDEX(Solution_tabDatasListe[Commune],Solution_tabDatasBDD_Segment[[#This Row],[Commune1]])","v":"Evere"},{"$f":"_xlfn.XLOOKUP(Solution_tabDatasBDD_Segment[[#This Row],[CP]],Solution_tabDatasListe[CP],Solution_tabDatasListe[Commune])","v":"Evere"},"1970-11-18",{"$f":"DATEDIF(Solution_tabDatasBDD_Segment[[#This Row],[Date de naissance]],TODAY(),\"y\")","v":53},"2035-11-18T18:13:28.342",{"$f":"DATEVALUE(DAY(Solution_tabDatasBDD_Segment[[#This Row],[Date de naissance]])&\"/\"&MONTH(Solution_tabDatasBDD_Segment[[#This Row],[Date de naissance]])&\"/\"&YEAR(Solution_tabDatasBDD_Segment[[#This Row],[Date de naissance]])+65)","v":"2035-11-18"},{"$f":"YEARFRAC(Solution_tabDatasBDD_Segment[[#This Row],[Date de naissance]],Solution_tabDatasBDD_Segment[[#This Row],[Date de 65 ans]])","v":65},{"$f":"_xlfn.IFS(Solution_tabDatasBDD_Segment[[#This Row],[Âge]]>=50,\"A\",Solution_tabDatasBDD_Segment[[#This Row],[Âge]]>=4,\"B\",Solution_tabDatasBDD_Segment[[#This Row],[Âge]]>=30,\"C\",Solution_tabDatasBDD_Segment[[#This Row],[Âge]]<30,\"D\")","v":"A"},"Cameroun",2]
["Michel Fugain","2010-06-22","m","Marié(e)","Rue du champ de la couronne",222,1020,{"$f":"MATCH(Solution_tabDatasBDD_Segment[[#This Row],[CP]],Solution_tabDatasListe[CP],0)","v":2},{"$f":"INDEX(Solution_tabDatasListe[Commune],Solution_tabDatasBDD_Segment[[#This Row],[Commune1]])","v":"Laeken"},{"$f":"_xlfn.XLOOKUP(Solution_tabDatasBDD_Segment[[#This Row],[CP]],Solution_tabDatasListe[CP],Solution_tabDatasListe[Commune])","v":"Laeken"},"1970-12-12",{"$f":"DATEDIF(Solution_tabDatasBDD_Segment[[#This Row],[Date de naissance]],TODAY(),\"y\")","v":53},"2035-12-12T04:47:02.739",{"$f":"DATEVALUE(DAY(Solution_tabDatasBDD_Segment[[#This Row],[Date de naissance]])&\"/\"&MONTH(Solution_tabDatasBDD_Segment[[#This Row],[Date de naissance]])&\"/\"&YEAR(Solution_tabDatasBDD_Segment[[#This Row],[Date de naissance]])+65)","v":"2035-12-12"},{"$f":"YEARFRAC(Solution_tabDatasBDD_Segment[[#This Row],[Date de naissance]],Solution_tabDatasBDD_Segment[[#This Row],[Date de 65 ans]])","v":65},{"$f":"_xlfn.IFS(Solution_tabDatasBDD_Segment[[#This Row],[Âge]]>=50,\"A\",Solution_tabDatasBDD_Segment[[#This Row],[Âge]]>=4,\"B\",Solution_tabDatasBDD_Segment[[#This Row],[Âge]]>=30,\"C\",Solution_tabDatasBDD_Segment[[#This Row],[Âge]]<30,\"D\")","v":"A"},"Togo",2]
["Pascal Mono","2010-06-22","m","Marié(e)","Rue Chaumontel",78,1030,{"$f":"MATCH(Solution_tabDatasBDD_Segment[[#This Row],[CP]],Solution_tabDatasListe[CP],0)","v":3},{"$f":"INDEX(Solution_tabDatasListe[Commune],Solution_tabDatasBDD_Segment[[#This Row],[Commune1]])","v":"Schaerbeek"},{"$f":"_xlfn.XLOOKUP(Solution_tabDatasBDD_Segment[[#This Row],[CP]],Solution_tabDatasListe[CP],Solution_tabDatasListe[Commune])","v":"Schaerbeek"},"1962-06-01",{"$f":"DATEDIF(Solution_tabDatasBDD_Segment[[#This Row],[Date de naissance]],TODAY(),\"y\")","v":62},"2027-06-01T17:32:48.477",{"$f":"DATEVALUE(DAY(Solution_tabDatasBDD_Segment[[#This Row],[Date de naissance]])&\"/\"&MONTH(Solution_tabDatasBDD_Segment[[#This Row],[Date de naissance]])&\"/\"&YEAR(Solution_tabDatasBDD_Segment[[#This Row],[Date de naissance]])+65)","v":"2027-06-01"},{"$f":"YEARFRAC(Solution_tabDatasBDD_Segment[[#This Row],[Date de naissance]],Solution_tabDatasBDD_Segment[[#This Row],[Date de 65 ans]])","v":65},{"$f":"_xlfn.IFS(Solution_tabDatasBDD_Segment[[#This Row],[Âge]]>=50,\"A\",Solution_tabDatasBDD_Segment[[#This Row],[Âge]]>=4,\"B\",Solution_tabDatasBDD_Segment[[#This Row],[Âge]]>=30,\"C\",Solution_tabDatasBDD_Segment[[#This Row],[Âge]]<30,\"D\")","v":"A"},"Maroc",5]
["Vanessa Paradis","2010-07-13","f","Marié(e)","Kalkoven",80,1730,{"$f":"MATCH(Solution_tabDatasBDD_Segment[[#This Row],[CP]],Solution_tabDatasListe[CP],0)","v":19},{"$f":"INDEX(Solution_tabDatasListe[Commune],Solution_tabDatasBDD_Segment[[#This Row],[Commune1]])","v":"Asse"},{"$f":"_xlfn.XLOOKUP(Solution_tabDatasBDD_Segment[[#This Row],[CP]],Solution_tabDatasListe[CP],Solution_tabDatasListe[Commune])","v":"Asse"},"1966-09-03",{"$f":"DATEDIF(Solution_tabDatasBDD_Segment[[#This Row],[Date de naissance]],TODAY(),\"y\")","v":57},"2031-09-03T16:11:21.429",{"$f":"DATEVALUE(DAY(Solution_tabDatasBDD_Segment[[#This Row],[Date de naissance]])&\"/\"&MONTH(Solution_tabDatasBDD_Segment[[#This Row],[Date de naissance]])&\"/\"&YEAR(Solution_tabDatasBDD_Segment[[#This Row],[Date de naissance]])+65)","v":"2031-09-03"},{"$f":"YEARFRAC(Solution_tabDatasBDD_Segment[[#This Row],[Date de naissance]],Solution_tabDatasBDD_Segment[[#This Row],[Date de 65 ans]])","v":65},{"$f":"_xlfn.IFS(Solution_tabDatasBDD_Segment[[#This Row],[Âge]]>=50,\"A\",Solution_tabDatasBDD_Segment[[#This Row],[Âge]]>=4,\"B\",Solution_tabDatasBDD_Segment[[#This Row],[Âge]]>=30,\"C\",Solution_tabDatasBDD_Segment[[#This Row],[Âge]]<30,\"D\")","v":"A"},"Congo"]
["Richard Anthony","2010-07-06","m","Marié(e)","Dédale du campanil",52,1200,{"$f":"MATCH(Solution_tabDatasBDD_Segment[[#This Row],[CP]],Solution_tabDatasListe[CP],0)","v":16},{"$f":"INDEX(Solution_tabDatasListe[Commune],Solution_tabDatasBDD_Segment[[#This Row],[Commune1]])","v":"Woluwé-Saint-Lambert"},{"$f":"_xlfn.XLOOKUP(Solution_tabDatasBDD_Segment[[#This Row],[CP]],Solution_tabDatasListe[CP],Solution_tabDatasListe[Commune])","v":"Woluwé-Saint-Lambert"},"1971-04-02",{"$f":"DATEDIF(Solution_tabDatasBDD_Segment[[#This Row],[Date de naissance]],TODAY(),\"y\")","v":53},"2036-04-02T01:24:42.981",{"$f":"DATEVALUE(DAY(Solution_tabDatasBDD_Segment[[#This Row],[Date de naissance]])&\"/\"&MONTH(Solution_tabDatasBDD_Segment[[#This Row],[Date de naissance]])&\"/\"&YEAR(Solution_tabDatasBDD_Segment[[#This Row],[Date de naissance]])+65)","v":"2036-04-02"},{"$f":"YEARFRAC(Solution_tabDatasBDD_Segment[[#This Row],[Date de naissance]],Solution_tabDatasBDD_Segment[[#This Row],[Date de 65 ans]])","v":65},{"$f":"_xlfn.IFS(Solution_tabDatasBDD_Segment[[#This Row],[Âge]]>=50,\"A\",Solution_tabDatasBDD_Segment[[#This Row],[Âge]]>=4,\"B\",Solution_tabDatasBDD_Segment[[#This Row],[Âge]]>=30,\"C\",Solution_tabDatasBDD_Segment[[#This Row],[Âge]]<30,\"D\")","v":"A"},"Congo"]
["Stephan Eicher","2010-06-22","m","Célibataire","Place Eugène Verboekhoven",40,1030,{"$f":"MATCH(Solution_tabDatasBDD_Segment[[#This Row],[CP]],Solution_tabDatasListe[CP],0)","v":3},{"$f":"INDEX(Solution_tabDatasListe[Commune],Solution_tabDatasBDD_Segment[[#This Row],[Commune1]])","v":"Schaerbeek"},{"$f":"_xlfn.XLOOKUP(Solution_tabDatasBDD_Segment[[#This Row],[CP]],Solution_tabDatasListe[CP],Solution_tabDatasListe[Commune])","v":"Schaerbeek"},"1983-02-02",{"$f":"DATEDIF(Solution_tabDatasBDD_Segment[[#This Row],[Date de naissance]],TODAY(),\"y\")","v":41},"2048-02-02T03:23:52.272",{"$f":"DATEVALUE(DAY(Solution_tabDatasBDD_Segment[[#This Row],[Date de naissance]])&\"/\"&MONTH(Solution_tabDatasBDD_Segment[[#This Row],[Date de naissance]])&\"/\"&YEAR(Solution_tabDatasBDD_Segment[[#This Row],[Date de naissance]])+65)","v":"2048-02-02"},{"$f":"YEARFRAC(Solution_tabDatasBDD_Segment[[#This Row],[Date de naissance]],Solution_tabDatasBDD_Segment[[#This Row],[Date de 65 ans]])","v":65},{"$f":"_xlfn.IFS(Solution_tabDatasBDD_Segment[[#This Row],[Âge]]>=50,\"A\",Solution_tabDatasBDD_Segment[[#This Row],[Âge]]>=4,\"B\",Solution_tabDatasBDD_Segment[[#This Row],[Âge]]>=30,\"C\",Solution_tabDatasBDD_Segment[[#This Row],[Âge]]<30,\"D\")","v":"B"},"Togo"]
["Thomas Fersen","2010-05-12","m","Célibataire","Chaussée de Louvain",100,1210,{"$f":"MATCH(Solution_tabDatasBDD_Segment[[#This Row],[CP]],Solution_tabDatasListe[CP],0)","v":17},{"$f":"INDEX(Solution_tabDatasListe[Commune],Solution_tabDatasBDD_Segment[[#This Row],[Commune1]])","v":"Saint-Josse-Ten-noode"},{"$f":"_xlfn.XLOOKUP(Solution_tabDatasBDD_Segment[[#This Row],[CP]],Solution_tabDatasListe[CP],Solution_tabDatasListe[Commune])","v":"Saint-Josse-Ten-noode"},"1954-03-05",{"$f":"DATEDIF(Solution_tabDatasBDD_Segment[[#This Row],[Date de naissance]],TODAY(),\"y\")","v":70},"2019-03-05T18:42:19.835",{"$f":"DATEVALUE(DAY(Solution_tabDatasBDD_Segment[[#This Row],[Date de naissance]])&\"/\"&MONTH(Solution_tabDatasBDD_Segment[[#This Row],[Date de naissance]])&\"/\"&YEAR(Solution_tabDatasBDD_Segment[[#This Row],[Date de naissance]])+65)","v":"2019-03-05"},{"$f":"YEARFRAC(Solution_tabDatasBDD_Segment[[#This Row],[Date de naissance]],Solution_tabDatasBDD_Segment[[#This Row],[Date de 65 ans]])","v":65},{"$f":"_xlfn.IFS(Solution_tabDatasBDD_Segment[[#This Row],[Âge]]>=50,\"A\",Solution_tabDatasBDD_Segment[[#This Row],[Âge]]>=4,\"B\",Solution_tabDatasBDD_Segment[[#This Row],[Âge]]>=30,\"C\",Solution_tabDatasBDD_Segment[[#This Row],[Âge]]<30,\"D\")","v":"A"},"Maroc"]
["Yann Tiersen","2010-05-12","m","Célibataire","Rue verte",70,1210,{"$f":"MATCH(Solution_tabDatasBDD_Segment[[#This Row],[CP]],Solution_tabDatasListe[CP],0)","v":17},{"$f":"INDEX(Solution_tabDatasListe[Commune],Solution_tabDatasBDD_Segment[[#This Row],[Commune1]])","v":"Saint-Josse-Ten-noode"},{"$f":"_xlfn.XLOOKUP(Solution_tabDatasBDD_Segment[[#This Row],[CP]],Solution_tabDatasListe[CP],Solution_tabDatasListe[Commune])","v":"Saint-Josse-Ten-noode"},"1950-04-16",{"$f":"DATEDIF(Solution_tabDatasBDD_Segment[[#This Row],[Date de naissance]],TODAY(),\"y\")","v":74},"2015-04-16T02:55:12.195",{"$f":"DATEVALUE(DAY(Solution_tabDatasBDD_Segment[[#This Row],[Date de naissance]])&\"/\"&MONTH(Solution_tabDatasBDD_Segment[[#This Row],[Date de naissance]])&\"/\"&YEAR(Solution_tabDatasBDD_Segment[[#This Row],[Date de naissance]])+65)","v":"2015-04-16"},{"$f":"YEARFRAC(Solution_tabDatasBDD_Segment[[#This Row],[Date de naissance]],Solution_tabDatasBDD_Segment[[#This Row],[Date de 65 ans]])","v":65},{"$f":"_xlfn.IFS(Solution_tabDatasBDD_Segment[[#This Row],[Âge]]>=50,\"A\",Solution_tabDatasBDD_Segment[[#This Row],[Âge]]>=4,\"B\",Solution_tabDatasBDD_Segment[[#This Row],[Âge]]>=30,\"C\",Solution_tabDatasBDD_Segment[[#This Row],[Âge]]<30,\"D\")","v":"A"},"Maroc",6]
["Alain Bashung","2010-05-12","m","Divocé(e)","Du Vallon",56,1210,{"$f":"MATCH(Solution_tabDatasBDD_Segment[[#This Row],[CP]],Solution_tabDatasListe[CP],0)","v":17},{"$f":"INDEX(Solution_tabDatasListe[Commune],Solution_tabDatasBDD_Segment[[#This Row],[Commune1]])","v":"Saint-Josse-Ten-noode"},{"$f":"_xlfn.XLOOKUP(Solution_tabDatasBDD_Segment[[#This Row],[CP]],Solution_tabDatasListe[CP],Solution_tabDatasListe[Commune])","v":"Saint-Josse-Ten-noode"},"1964-01-28",{"$f":"DATEDIF(Solution_tabDatasBDD_Segment[[#This Row],[Date de naissance]],TODAY(),\"y\")","v":60},"2029-01-28T12:03:09.553",{"$f":"DATEVALUE(DAY(Solution_tabDatasBDD_Segment[[#This Row],[Date de naissance]])&\"/\"&MONTH(Solution_tabDatasBDD_Segment[[#This Row],[Date de naissance]])&\"/\"&YEAR(Solution_tabDatasBDD_Segment[[#This Row],[Date de naissance]])+65)","v":"2029-01-28"},{"$f":"YEARFRAC(Solution_tabDatasBDD_Segment[[#This Row],[Date de naissance]],Solution_tabDatasBDD_Segment[[#This Row],[Date de 65 ans]])","v":65},{"$f":"_xlfn.IFS(Solution_tabDatasBDD_Segment[[#This Row],[Âge]]>=50,\"A\",Solution_tabDatasBDD_Segment[[#This Row],[Âge]]>=4,\"B\",Solution_tabDatasBDD_Segment[[#This Row],[Âge]]>=30,\"C\",Solution_tabDatasBDD_Segment[[#This Row],[Âge]]<30,\"D\")","v":"A"},"Algérie",5]
["Alexis HK","2010-05-12","m","Divocé(e)","Martin 5",56,1200,{"$f":"MATCH(Solution_tabDatasBDD_Segment[[#This Row],[CP]],Solution_tabDatasListe[CP],0)","v":16},{"$f":"INDEX(Solution_tabDatasListe[Commune],Solution_tabDatasBDD_Segment[[#This Row],[Commune1]])","v":"Woluwé-Saint-Lambert"},{"$f":"_xlfn.XLOOKUP(Solution_tabDatasBDD_Segment[[#This Row],[CP]],Solution_tabDatasListe[CP],Solution_tabDatasListe[Commune])","v":"Woluwé-Saint-Lambert"},"1980-02-15",{"$f":"DATEDIF(Solution_tabDatasBDD_Segment[[#This Row],[Date de naissance]],TODAY(),\"y\")","v":44},"2045-02-15T01:38:14.499",{"$f":"DATEVALUE(DAY(Solution_tabDatasBDD_Segment[[#This Row],[Date de naissance]])&\"/\"&MONTH(Solution_tabDatasBDD_Segment[[#This Row],[Date de naissance]])&\"/\"&YEAR(Solution_tabDatasBDD_Segment[[#This Row],[Date de naissance]])+65)","v":"2045-02-15"},{"$f":"YEARFRAC(Solution_tabDatasBDD_Segment[[#This Row],[Date de naissance]],Solution_tabDatasBDD_Segment[[#This Row],[Date de 65 ans]])","v":65},{"$f":"_xlfn.IFS(Solution_tabDatasBDD_Segment[[#This Row],[Âge]]>=50,\"A\",Solution_tabDatasBDD_Segment[[#This Row],[Âge]]>=4,\"B\",Solution_tabDatasBDD_Segment[[#This Row],[Âge]]>=30,\"C\",Solution_tabDatasBDD_Segment[[#This Row],[Âge]]<30,\"D\")","v":"B"},"Cameroun"]
["Arthur H","2010-05-04","m","Divocé(e)","Chaussée de Haecht",300,1030,{"$f":"MATCH(Solution_tabDatasBDD_Segment[[#This Row],[CP]],Solution_tabDatasListe[CP],0)","v":3},{"$f":"INDEX(Solution_tabDatasListe[Commune],Solution_tabDatasBDD_Segment[[#This Row],[Commune1]])","v":"Schaerbeek"},{"$f":"_xlfn.XLOOKUP(Solution_tabDatasBDD_Segment[[#This Row],[CP]],Solution_tabDatasListe[CP],Solution_tabDatasListe[Commune])","v":"Schaerbeek"},"1960-04-04",{"$f":"DATEDIF(Solution_tabDatasBDD_Segment[[#This Row],[Date de naissance]],TODAY(),\"y\")","v":64},"2025-04-04T21:42:23.658",{"$f":"DATEVALUE(DAY(Solution_tabDatasBDD_Segment[[#This Row],[Date de naissance]])&\"/\"&MONTH(Solution_tabDatasBDD_Segment[[#This Row],[Date de naissance]])&\"/\"&YEAR(Solution_tabDatasBDD_Segment[[#This Row],[Date de naissance]])+65)","v":"2025-04-04"},{"$f":"YEARFRAC(Solution_tabDatasBDD_Segment[[#This Row],[Date de naissance]],Solution_tabDatasBDD_Segment[[#This Row],[Date de 65 ans]])","v":65},{"$f":"_xlfn.IFS(Solution_tabDatasBDD_Segment[[#This Row],[Âge]]>=50,\"A\",Solution_tabDatasBDD_Segment[[#This Row],[Âge]]>=4,\"B\",Solution_tabDatasBDD_Segment[[#This Row],[Âge]]>=30,\"C\",Solution_tabDatasBDD_Segment[[#This Row],[Âge]]<30,\"D\")","v":"A"},"Congo"]
["Bertrand Burgalat","2010-05-04","m","Divocé(e)","Rue potagère",165,1030,{"$f":"MATCH(Solution_tabDatasBDD_Segment[[#This Row],[CP]],Solution_tabDatasListe[CP],0)","v":3},{"$f":"INDEX(Solution_tabDatasListe[Commune],Solution_tabDatasBDD_Segment[[#This Row],[Commune1]])","v":"Schaerbeek"},{"$f":"_xlfn.XLOOKUP(Solution_tabDatasBDD_Segment[[#This Row],[CP]],Solution_tabDatasListe[CP],Solution_tabDatasListe[Commune])","v":"Schaerbeek"},"1971-12-20",{"$f":"DATEDIF(Solution_tabDatasBDD_Segment[[#This Row],[Date de naissance]],TODAY(),\"y\")","v":52},"2036-12-20T11:27:41.776",{"$f":"DATEVALUE(DAY(Solution_tabDatasBDD_Segment[[#This Row],[Date de naissance]])&\"/\"&MONTH(Solution_tabDatasBDD_Segment[[#This Row],[Date de naissance]])&\"/\"&YEAR(Solution_tabDatasBDD_Segment[[#This Row],[Date de naissance]])+65)","v":"2036-12-20"},{"$f":"YEARFRAC(Solution_tabDatasBDD_Segment[[#This Row],[Date de naissance]],Solution_tabDatasBDD_Segment[[#This Row],[Date de 65 ans]])","v":65},{"$f":"_xlfn.IFS(Solution_tabDatasBDD_Segment[[#This Row],[Âge]]>=50,\"A\",Solution_tabDatasBDD_Segment[[#This Row],[Âge]]>=4,\"B\",Solution_tabDatasBDD_Segment[[#This Row],[Âge]]>=30,\"C\",Solution_tabDatasBDD_Segment[[#This Row],[Âge]]<30,\"D\")","v":"A"},"Maroc",2]
["Charlélie Couture","2010-05-04","m","Cohabitant(e)","Rue Ernest Discailliens",22,1030,{"$f":"MATCH(Solution_tabDatasBDD_Segment[[#This Row],[CP]],Solution_tabDatasListe[CP],0)","v":3},{"$f":"INDEX(Solution_tabDatasListe[Commune],Solution_tabDatasBDD_Segment[[#This Row],[Commune1]])","v":"Schaerbeek"},{"$f":"_xlfn.XLOOKUP(Solution_tabDatasBDD_Segment[[#This Row],[CP]],Solution_tabDatasListe[CP],Solution_tabDatasListe[Commune])","v":"Schaerbeek"},"1973-08-13",{"$f":"DATEDIF(Solution_tabDatasBDD_Segment[[#This Row],[Date de naissance]],TODAY(),\"y\")","v":50},"2038-08-13T17:55:47.775",{"$f":"DATEVALUE(DAY(Solution_tabDatasBDD_Segment[[#This Row],[Date de naissance]])&\"/\"&MONTH(Solution_tabDatasBDD_Segment[[#This Row],[Date de naissance]])&\"/\"&YEAR(Solution_tabDatasBDD_Segment[[#This Row],[Date de naissance]])+65)","v":"2038-08-13"},{"$f":"YEARFRAC(Solution_tabDatasBDD_Segment[[#This Row],[Date de naissance]],Solution_tabDatasBDD_Segment[[#This Row],[Date de 65 ans]])","v":65},{"$f":"_xlfn.IFS(Solution_tabDatasBDD_Segment[[#This Row],[Âge]]>=50,\"A\",Solution_tabDatasBDD_Segment[[#This Row],[Âge]]>=4,\"B\",Solution_tabDatasBDD_Segment[[#This Row],[Âge]]>=30,\"C\",Solution_tabDatasBDD_Segment[[#This Row],[Âge]]<30,\"D\")","v":"A"},"Belgique"]
["Corneille","2010-05-04","m","Cohabitant(e)","Rue de Navez",23,1030,{"$f":"MATCH(Solution_tabDatasBDD_Segment[[#This Row],[CP]],Solution_tabDatasListe[CP],0)","v":3},{"$f":"INDEX(Solution_tabDatasListe[Commune],Solution_tabDatasBDD_Segment[[#This Row],[Commune1]])","v":"Schaerbeek"},{"$f":"_xlfn.XLOOKUP(Solution_tabDatasBDD_Segment[[#This Row],[CP]],Solution_tabDatasListe[CP],Solution_tabDatasListe[Commune])","v":"Schaerbeek"},"1982-09-20",{"$f":"DATEDIF(Solution_tabDatasBDD_Segment[[#This Row],[Date de naissance]],TODAY(),\"y\")","v":41},"2047-09-20T06:47:56.053",{"$f":"DATEVALUE(DAY(Solution_tabDatasBDD_Segment[[#This Row],[Date de naissance]])&\"/\"&MONTH(Solution_tabDatasBDD_Segment[[#This Row],[Date de naissance]])&\"/\"&YEAR(Solution_tabDatasBDD_Segment[[#This Row],[Date de naissance]])+65)","v":"2047-09-20"},{"$f":"YEARFRAC(Solution_tabDatasBDD_Segment[[#This Row],[Date de naissance]],Solution_tabDatasBDD_Segment[[#This Row],[Date de 65 ans]])","v":65},{"$f":"_xlfn.IFS(Solution_tabDatasBDD_Segment[[#This Row],[Âge]]>=50,\"A\",Solution_tabDatasBDD_Segment[[#This Row],[Âge]]>=4,\"B\",Solution_tabDatasBDD_Segment[[#This Row],[Âge]]>=30,\"C\",Solution_tabDatasBDD_Segment[[#This Row],[Âge]]<30,\"D\")","v":"B"},"Turquie",1]
["Eddy Mitchell","2010-05-04","m",null,"Edouard Stuckens",78,1030,{"$f":"MATCH(Solution_tabDatasBDD_Segment[[#This Row],[CP]],Solution_tabDatasListe[CP],0)","v":3},{"$f":"INDEX(Solution_tabDatasListe[Commune],Solution_tabDatasBDD_Segment[[#This Row],[Commune1]])","v":"Schaerbeek"},{"$f":"_xlfn.XLOOKUP(Solution_tabDatasBDD_Segment[[#This Row],[CP]],Solution_tabDatasListe[CP],Solution_tabDatasListe[Commune])","v":"Schaerbeek"},"1977-08-15",{"$f":"DATEDIF(Solution_tabDatasBDD_Segment[[#This Row],[Date de naissance]],TODAY(),\"y\")","v":46},"2042-08-15T10:14:25.057",{"$f":"DATEVALUE(DAY(Solution_tabDatasBDD_Segment[[#This Row],[Date de naissance]])&\"/\"&MONTH(Solution_tabDatasBDD_Segment[[#This Row],[Date de naissance]])&\"/\"&YEAR(Solution_tabDatasBDD_Segment[[#This Row],[Date de naissance]])+65)","v":"2042-08-15"},{"$f":"YEARFRAC(Solution_tabDatasBDD_Segment[[#This Row],[Date de naissance]],Solution_tabDatasBDD_Segment[[#This Row],[Date de 65 ans]])","v":65},{"$f":"_xlfn.IFS(Solution_tabDatasBDD_Segment[[#This Row],[Âge]]>=50,\"A\",Solution_tabDatasBDD_Segment[[#This Row],[Âge]]>=4,\"B\",Solution_tabDatasBDD_Segment[[#This Row],[Âge]]>=30,\"C\",Solution_tabDatasBDD_Segment[[#This Row],[Âge]]<30,\"D\")","v":"B"},"France",4]
["Florent Pagny","2010-04-30","m",null,"Joseph Dekeyn",85,1210,{"$f":"MATCH(Solution_tabDatasBDD_Segment[[#This Row],[CP]],Solution_tabDatasListe[CP],0)","v":17},{"$f":"INDEX(Solution_tabDatasListe[Commune],Solution_tabDatasBDD_Segment[[#This Row],[Commune1]])","v":"Saint-Josse-Ten-noode"},{"$f":"_xlfn.XLOOKUP(Solution_tabDatasBDD_Segment[[#This Row],[CP]],Solution_tabDatasListe[CP],Solution_tabDatasListe[Commune])","v":"Saint-Josse-Ten-noode"},"1963-10-03",{"$f":"DATEDIF(Solution_tabDatasBDD_Segment[[#This Row],[Date de naissance]],TODAY(),\"y\")","v":60},"2028-10-03T06:02:58.535",{"$f":"DATEVALUE(DAY(Solution_tabDatasBDD_Segment[[#This Row],[Date de naissance]])&\"/\"&MONTH(Solution_tabDatasBDD_Segment[[#This Row],[Date de naissance]])&\"/\"&YEAR(Solution_tabDatasBDD_Segment[[#This Row],[Date de naissance]])+65)","v":"2028-10-03"},{"$f":"YEARFRAC(Solution_tabDatasBDD_Segment[[#This Row],[Date de naissance]],Solution_tabDatasBDD_Segment[[#This Row],[Date de 65 ans]])","v":65},{"$f":"_xlfn.IFS(Solution_tabDatasBDD_Segment[[#This Row],[Âge]]>=50,\"A\",Solution_tabDatasBDD_Segment[[#This Row],[Âge]]>=4,\"B\",Solution_tabDatasBDD_Segment[[#This Row],[Âge]]>=30,\"C\",Solution_tabDatasBDD_Segment[[#This Row],[Âge]]<30,\"D\")","v":"A"},"Armenie"]
["Garou","2010-06-22","m",null,"Rue du petit rempart",52,1000,{"$f":"MATCH(Solution_tabDatasBDD_Segment[[#This Row],[CP]],Solution_tabDatasListe[CP],0)","v":1},{"$f":"INDEX(Solution_tabDatasListe[Commune],Solution_tabDatasBDD_Segment[[#This Row],[Commune1]])","v":"Bruxelles"},{"$f":"_xlfn.XLOOKUP(Solution_tabDatasBDD_Segment[[#This Row],[CP]],Solution_tabDatasListe[CP],Solution_tabDatasListe[Commune])","v":"Bruxelles"},"1963-10-04",{"$f":"DATEDIF(Solution_tabDatasBDD_Segment[[#This Row],[Date de naissance]],TODAY(),\"y\")","v":60},"2028-10-04T06:51:57.776",{"$f":"DATEVALUE(DAY(Solution_tabDatasBDD_Segment[[#This Row],[Date de naissance]])&\"/\"&MONTH(Solution_tabDatasBDD_Segment[[#This Row],[Date de naissance]])&\"/\"&YEAR(Solution_tabDatasBDD_Segment[[#This Row],[Date de naissance]])+65)","v":"2028-10-04"},{"$f":"YEARFRAC(Solution_tabDatasBDD_Segment[[#This Row],[Date de naissance]],Solution_tabDatasBDD_Segment[[#This Row],[Date de 65 ans]])","v":65},{"$f":"_xlfn.IFS(Solution_tabDatasBDD_Segment[[#This Row],[Âge]]>=50,\"A\",Solution_tabDatasBDD_Segment[[#This Row],[Âge]]>=4,\"B\",Solution_tabDatasBDD_Segment[[#This Row],[Âge]]>=30,\"C\",Solution_tabDatasBDD_Segment[[#This Row],[Âge]]<30,\"D\")","v":"A"},null,1]
["Gilbert Montagné","2010-06-22","m",null,"Chaussée d'Anvers",55,1000,{"$f":"MATCH(Solution_tabDatasBDD_Segment[[#This Row],[CP]],Solution_tabDatasListe[CP],0)","v":1},{"$f":"INDEX(Solution_tabDatasListe[Commune],Solution_tabDatasBDD_Segment[[#This Row],[Commune1]])","v":"Bruxelles"},{"$f":"_xlfn.XLOOKUP(Solution_tabDatasBDD_Segment[[#This Row],[CP]],Solution_tabDatasListe[CP],Solution_tabDatasListe[Commune])","v":"Bruxelles"},"1980-09-27",{"$f":"DATEDIF(Solution_tabDatasBDD_Segment[[#This Row],[Date de naissance]],TODAY(),\"y\")","v":43},"2045-09-27T04:20:18.594",{"$f":"DATEVALUE(DAY(Solution_tabDatasBDD_Segment[[#This Row],[Date de naissance]])&\"/\"&MONTH(Solution_tabDatasBDD_Segment[[#This Row],[Date de naissance]])&\"/\"&YEAR(Solution_tabDatasBDD_Segment[[#This Row],[Date de naissance]])+65)","v":"2045-09-27"},{"$f":"YEARFRAC(Solution_tabDatasBDD_Segment[[#This Row],[Date de naissance]],Solution_tabDatasBDD_Segment[[#This Row],[Date de 65 ans]])","v":65},{"$f":"_xlfn.IFS(Solution_tabDatasBDD_Segment[[#This Row],[Âge]]>=50,\"A\",Solution_tabDatasBDD_Segment[[#This Row],[Âge]]>=4,\"B\",Solution_tabDatasBDD_Segment[[#This Row],[Âge]]>=30,\"C\",Solution_tabDatasBDD_Segment[[#This Row],[Âge]]<30,\"D\")","v":"B"},"Belgique",2]
["Jacques Higelin","2010-05-12","m",null,"Rue de choeur",87,1080,{"$f":"MATCH(Solution_tabDatasBDD_Segment[[#This Row],[CP]],Solution_tabDatasListe[CP],0)","v":8},{"$f":"INDEX(Solution_tabDatasListe[Commune],Solution_tabDatasBDD_Segment[[#This Row],[Commune1]])","v":"Molenbeek"},{"$f":"_xlfn.XLOOKUP(Solution_tabDatasBDD_Segment[[#This Row],[CP]],Solution_tabDatasListe[CP],Solution_tabDatasListe[Commune])","v":"Molenbeek"},"1969-01-01",{"$f":"DATEDIF(Solution_tabDatasBDD_Segment[[#This Row],[Date de naissance]],TODAY(),\"y\")","v":55},"2033-12-31T09:04:56.889",{"$f":"DATEVALUE(DAY(Solution_tabDatasBDD_Segment[[#This Row],[Date de naissance]])&\"/\"&MONTH(Solution_tabDatasBDD_Segment[[#This Row],[Date de naissance]])&\"/\"&YEAR(Solution_tabDatasBDD_Segment[[#This Row],[Date de naissance]])+65)","v":"2034-01-01"},{"$f":"YEARFRAC(Solution_tabDatasBDD_Segment[[#This Row],[Date de naissance]],Solution_tabDatasBDD_Segment[[#This Row],[Date de 65 ans]])","v":65},{"$f":"_xlfn.IFS(Solution_tabDatasBDD_Segment[[#This Row],[Âge]]>=50,\"A\",Solution_tabDatasBDD_Segment[[#This Row],[Âge]]>=4,\"B\",Solution_tabDatasBDD_Segment[[#This Row],[Âge]]>=30,\"C\",Solution_tabDatasBDD_Segment[[#This Row],[Âge]]<30,\"D\")","v":"A"},"Maroc"]
["Jean-Louis Murat","2010-05-12","m",null,"Rue de l'aérodrome",85,1130,{"$f":"MATCH(Solution_tabDatasBDD_Segment[[#This Row],[CP]],Solution_tabDatasListe[CP],0)","v":11},{"$f":"INDEX(Solution_tabDatasListe[Commune],Solution_tabDatasBDD_Segment[[#This Row],[Commune1]])","v":"Haren"},{"$f":"_xlfn.XLOOKUP(Solution_tabDatasBDD_Segment[[#This Row],[CP]],Solution_tabDatasListe[CP],Solution_tabDatasListe[Commune])","v":"Haren"},"1967-05-05",{"$f":"DATEDIF(Solution_tabDatasBDD_Segment[[#This Row],[Date de naissance]],TODAY(),\"y\")","v":57},"2032-05-05T12:11:07.686",{"$f":"DATEVALUE(DAY(Solution_tabDatasBDD_Segment[[#This Row],[Date de naissance]])&\"/\"&MONTH(Solution_tabDatasBDD_Segment[[#This Row],[Date de naissance]])&\"/\"&YEAR(Solution_tabDatasBDD_Segment[[#This Row],[Date de naissance]])+65)","v":"2032-05-05"},{"$f":"YEARFRAC(Solution_tabDatasBDD_Segment[[#This Row],[Date de naissance]],Solution_tabDatasBDD_Segment[[#This Row],[Date de 65 ans]])","v":65},{"$f":"_xlfn.IFS(Solution_tabDatasBDD_Segment[[#This Row],[Âge]]>=50,\"A\",Solution_tabDatasBDD_Segment[[#This Row],[Âge]]>=4,\"B\",Solution_tabDatasBDD_Segment[[#This Row],[Âge]]>=30,\"C\",Solution_tabDatasBDD_Segment[[#This Row],[Âge]]<30,\"D\")","v":"A"},"Yougoslavie"]
["Julien Baer","2010-05-12","m",null,"Rue de Locht",96,1030,{"$f":"MATCH(Solution_tabDatasBDD_Segment[[#This Row],[CP]],Solution_tabDatasListe[CP],0)","v":3},{"$f":"INDEX(Solution_tabDatasListe[Commune],Solution_tabDatasBDD_Segment[[#This Row],[Commune1]])","v":"Schaerbeek"},{"$f":"_xlfn.XLOOKUP(Solution_tabDatasBDD_Segment[[#This Row],[CP]],Solution_tabDatasListe[CP],Solution_tabDatasListe[Commune])","v":"Schaerbeek"},"1983-01-01",{"$f":"DATEDIF(Solution_tabDatasBDD_Segment[[#This Row],[Date de naissance]],TODAY(),\"y\")","v":41},"2047-12-31T13:50:20.413",{"$f":"DATEVALUE(DAY(Solution_tabDatasBDD_Segment[[#This Row],[Date de naissance]])&\"/\"&MONTH(Solution_tabDatasBDD_Segment[[#This Row],[Date de naissance]])&\"/\"&YEAR(Solution_tabDatasBDD_Segment[[#This Row],[Date de naissance]])+65)","v":"2048-01-01"},{"$f":"YEARFRAC(Solution_tabDatasBDD_Segment[[#This Row],[Date de naissance]],Solution_tabDatasBDD_Segment[[#This Row],[Date de 65 ans]])","v":65},{"$f":"_xlfn.IFS(Solution_tabDatasBDD_Segment[[#This Row],[Âge]]>=50,\"A\",Solution_tabDatasBDD_Segment[[#This Row],[Âge]]>=4,\"B\",Solution_tabDatasBDD_Segment[[#This Row],[Âge]]>=30,\"C\",Solution_tabDatasBDD_Segment[[#This Row],[Âge]]<30,\"D\")","v":"B"},"Maroc"]
["Cécile Defrance","2010-04-19","f",null,"Avenue de la couronne",66,1050,{"$f":"MATCH(Solution_tabDatasBDD_Segment[[#This Row],[CP]],Solution_tabDatasListe[CP],0)","v":5},{"$f":"INDEX(Solution_tabDatasListe[Commune],Solution_tabDatasBDD_Segment[[#This Row],[Commune1]])","v":"Ixelles"},{"$f":"_xlfn.XLOOKUP(Solution_tabDatasBDD_Segment[[#This Row],[CP]],Solution_tabDatasListe[CP],Solution_tabDatasListe[Commune])","v":"Ixelles"},"1963-09-12",{"$f":"DATEDIF(Solution_tabDatasBDD_Segment[[#This Row],[Date de naissance]],TODAY(),\"y\")","v":60},"2028-09-12T01:07:46.967",{"$f":"DATEVALUE(DAY(Solution_tabDatasBDD_Segment[[#This Row],[Date de naissance]])&\"/\"&MONTH(Solution_tabDatasBDD_Segment[[#This Row],[Date de naissance]])&\"/\"&YEAR(Solution_tabDatasBDD_Segment[[#This Row],[Date de naissance]])+65)","v":"2028-09-12"},{"$f":"YEARFRAC(Solution_tabDatasBDD_Segment[[#This Row],[Date de naissance]],Solution_tabDatasBDD_Segment[[#This Row],[Date de 65 ans]])","v":65},{"$f":"_xlfn.IFS(Solution_tabDatasBDD_Segment[[#This Row],[Âge]]>=50,\"A\",Solution_tabDatasBDD_Segment[[#This Row],[Âge]]>=4,\"B\",Solution_tabDatasBDD_Segment[[#This Row],[Âge]]>=30,\"C\",Solution_tabDatasBDD_Segment[[#This Row],[Âge]]<30,\"D\")","v":"A"},"Sénégal",2]
["Amel Bent","2010-04-19","f",null,"Henri Strauven",36,1200,{"$f":"MATCH(Solution_tabDatasBDD_Segment[[#This Row],[CP]],Solution_tabDatasListe[CP],0)","v":16},{"$f":"INDEX(Solution_tabDatasListe[Commune],Solution_tabDatasBDD_Segment[[#This Row],[Commune1]])","v":"Woluwé-Saint-Lambert"},{"$f":"_xlfn.XLOOKUP(Solution_tabDatasBDD_Segment[[#This Row],[CP]],Solution_tabDatasListe[CP],Solution_tabDatasListe[Commune])","v":"Woluwé-Saint-Lambert"},"1980-04-27",{"$f":"DATEDIF(Solution_tabDatasBDD_Segment[[#This Row],[Date de naissance]],TODAY(),\"y\")","v":44},"2045-04-27T00:29:44.538",{"$f":"DATEVALUE(DAY(Solution_tabDatasBDD_Segment[[#This Row],[Date de naissance]])&\"/\"&MONTH(Solution_tabDatasBDD_Segment[[#This Row],[Date de naissance]])&\"/\"&YEAR(Solution_tabDatasBDD_Segment[[#This Row],[Date de naissance]])+65)","v":"2045-04-27"},{"$f":"YEARFRAC(Solution_tabDatasBDD_Segment[[#This Row],[Date de naissance]],Solution_tabDatasBDD_Segment[[#This Row],[Date de 65 ans]])","v":65},{"$f":"_xlfn.IFS(Solution_tabDatasBDD_Segment[[#This Row],[Âge]]>=50,\"A\",Solution_tabDatasBDD_Segment[[#This Row],[Âge]]>=4,\"B\",Solution_tabDatasBDD_Segment[[#This Row],[Âge]]>=30,\"C\",Solution_tabDatasBDD_Segment[[#This Row],[Âge]]<30,\"D\")","v":"B"},"Congo"]
["Maxime Le Forestier","2010-04-28","m",null,"Boulevard Emile Bockstael",5,1020,{"$f":"MATCH(Solution_tabDatasBDD_Segment[[#This Row],[CP]],Solution_tabDatasListe[CP],0)","v":2},{"$f":"INDEX(Solution_tabDatasListe[Commune],Solution_tabDatasBDD_Segment[[#This Row],[Commune1]])","v":"Laeken"},{"$f":"_xlfn.XLOOKUP(Solution_tabDatasBDD_Segment[[#This Row],[CP]],Solution_tabDatasListe[CP],Solution_tabDatasListe[Commune])","v":"Laeken"},"1986-06-15",{"$f":"DATEDIF(Solution_tabDatasBDD_Segment[[#This Row],[Date de naissance]],TODAY(),\"y\")","v":38},"2051-06-15T12:49:21.117",{"$f":"DATEVALUE(DAY(Solution_tabDatasBDD_Segment[[#This Row],[Date de naissance]])&\"/\"&MONTH(Solution_tabDatasBDD_Segment[[#This Row],[Date de naissance]])&\"/\"&YEAR(Solution_tabDatasBDD_Segment[[#This Row],[Date de naissance]])+65)","v":"2051-06-15"},{"$f":"YEARFRAC(Solution_tabDatasBDD_Segment[[#This Row],[Date de naissance]],Solution_tabDatasBDD_Segment[[#This Row],[Date de 65 ans]])","v":65},{"$f":"_xlfn.IFS(Solution_tabDatasBDD_Segment[[#This Row],[Âge]]>=50,\"A\",Solution_tabDatasBDD_Segment[[#This Row],[Âge]]>=4,\"B\",Solution_tabDatasBDD_Segment[[#This Row],[Âge]]>=30,\"C\",Solution_tabDatasBDD_Segment[[#This Row],[Âge]]<30,\"D\")","v":"B"},"Abidjan"]
["Michel Jonasz","2010-05-12","m",null,"Rue aux bois",85,1950,{"$f":"MATCH(Solution_tabDatasBDD_Segment[[#This Row],[CP]],Solution_tabDatasListe[CP],0)","v":22},{"$f":"INDEX(Solution_tabDatasListe[Commune],Solution_tabDatasBDD_Segment[[#This Row],[Commune1]])","v":"Krainem"},{"$f":"_xlfn.XLOOKUP(Solution_tabDatasBDD_Segment[[#This Row],[CP]],Solution_tabDatasListe[CP],Solution_tabDatasListe[Commune])","v":"Krainem"},"1984-12-24",{"$f":"DATEDIF(Solution_tabDatasBDD_Segment[[#This Row],[Date de naissance]],TODAY(),\"y\")","v":39},"2049-12-24T05:38:43.110",{"$f":"DATEVALUE(DAY(Solution_tabDatasBDD_Segment[[#This Row],[Date de naissance]])&\"/\"&MONTH(Solution_tabDatasBDD_Segment[[#This Row],[Date de naissance]])&\"/\"&YEAR(Solution_tabDatasBDD_Segment[[#This Row],[Date de naissance]])+65)","v":"2049-12-24"},{"$f":"YEARFRAC(Solution_tabDatasBDD_Segment[[#This Row],[Date de naissance]],Solution_tabDatasBDD_Segment[[#This Row],[Date de 65 ans]])","v":65},{"$f":"_xlfn.IFS(Solution_tabDatasBDD_Segment[[#This Row],[Âge]]>=50,\"A\",Solution_tabDatasBDD_Segment[[#This Row],[Âge]]>=4,\"B\",Solution_tabDatasBDD_Segment[[#This Row],[Âge]]>=30,\"C\",Solution_tabDatasBDD_Segment[[#This Row],[Âge]]<30,\"D\")","v":"B"},"Nigeria",2]
["Pascal Obispo","2010-05-12","m",null,"Gustave Huberti",55,1030,{"$f":"MATCH(Solution_tabDatasBDD_Segment[[#This Row],[CP]],Solution_tabDatasListe[CP],0)","v":3},{"$f":"INDEX(Solution_tabDatasListe[Commune],Solution_tabDatasBDD_Segment[[#This Row],[Commune1]])","v":"Schaerbeek"},{"$f":"_xlfn.XLOOKUP(Solution_tabDatasBDD_Segment[[#This Row],[CP]],Solution_tabDatasListe[CP],Solution_tabDatasListe[Commune])","v":"Schaerbeek"},"1971-05-23",{"$f":"DATEDIF(Solution_tabDatasBDD_Segment[[#This Row],[Date de naissance]],TODAY(),\"y\")","v":53},"2036-05-23T22:40:46.432",{"$f":"DATEVALUE(DAY(Solution_tabDatasBDD_Segment[[#This Row],[Date de naissance]])&\"/\"&MONTH(Solution_tabDatasBDD_Segment[[#This Row],[Date de naissance]])&\"/\"&YEAR(Solution_tabDatasBDD_Segment[[#This Row],[Date de naissance]])+65)","v":"2036-05-23"},{"$f":"YEARFRAC(Solution_tabDatasBDD_Segment[[#This Row],[Date de naissance]],Solution_tabDatasBDD_Segment[[#This Row],[Date de 65 ans]])","v":65},{"$f":"_xlfn.IFS(Solution_tabDatasBDD_Segment[[#This Row],[Âge]]>=50,\"A\",Solution_tabDatasBDD_Segment[[#This Row],[Âge]]>=4,\"B\",Solution_tabDatasBDD_Segment[[#This Row],[Âge]]>=30,\"C\",Solution_tabDatasBDD_Segment[[#This Row],[Âge]]<30,\"D\")","v":"A"},"Maroc"]
["Sandra Kim","2010-05-12","f",null,"Avenue de la couronne",14,1050,{"$f":"MATCH(Solution_tabDatasBDD_Segment[[#This Row],[CP]],Solution_tabDatasListe[CP],0)","v":5},{"$f":"INDEX(Solution_tabDatasListe[Commune],Solution_tabDatasBDD_Segment[[#This Row],[Commune1]])","v":"Ixelles"},{"$f":"_xlfn.XLOOKUP(Solution_tabDatasBDD_Segment[[#This Row],[CP]],Solution_tabDatasListe[CP],Solution_tabDatasListe[Commune])","v":"Ixelles"},"1964-11-03",{"$f":"DATEDIF(Solution_tabDatasBDD_Segment[[#This Row],[Date de naissance]],TODAY(),\"y\")","v":59},"2029-11-03T05:13:48.236",{"$f":"DATEVALUE(DAY(Solution_tabDatasBDD_Segment[[#This Row],[Date de naissance]])&\"/\"&MONTH(Solution_tabDatasBDD_Segment[[#This Row],[Date de naissance]])&\"/\"&YEAR(Solution_tabDatasBDD_Segment[[#This Row],[Date de naissance]])+65)","v":"2029-11-03"},{"$f":"YEARFRAC(Solution_tabDatasBDD_Segment[[#This Row],[Date de naissance]],Solution_tabDatasBDD_Segment[[#This Row],[Date de 65 ans]])","v":65},{"$f":"_xlfn.IFS(Solution_tabDatasBDD_Segment[[#This Row],[Âge]]>=50,\"A\",Solution_tabDatasBDD_Segment[[#This Row],[Âge]]>=4,\"B\",Solution_tabDatasBDD_Segment[[#This Row],[Âge]]>=30,\"C\",Solution_tabDatasBDD_Segment[[#This Row],[Âge]]<30,\"D\")","v":"A"},"Sénégal",2]
["Roch Voisine","2010-05-10","m",null,"Léon Doperie",36,1090,{"$f":"MATCH(Solution_tabDatasBDD_Segment[[#This Row],[CP]],Solution_tabDatasListe[CP],0)","v":10},{"$f":"INDEX(Solution_tabDatasListe[Commune],Solution_tabDatasBDD_Segment[[#This Row],[Commune1]])","v":"Jette"},{"$f":"_xlfn.XLOOKUP(Solution_tabDatasBDD_Segment[[#This Row],[CP]],Solution_tabDatasListe[CP],Solution_tabDatasListe[Commune])","v":"Jette"},"1978-02-28",{"$f":"DATEDIF(Solution_tabDatasBDD_Segment[[#This Row],[Date de naissance]],TODAY(),\"y\")","v":46},"2043-02-28T22:10:46.643",{"$f":"DATEVALUE(DAY(Solution_tabDatasBDD_Segment[[#This Row],[Date de naissance]])&\"/\"&MONTH(Solution_tabDatasBDD_Segment[[#This Row],[Date de naissance]])&\"/\"&YEAR(Solution_tabDatasBDD_Segment[[#This Row],[Date de naissance]])+65)","v":"2043-02-28"},{"$f":"YEARFRAC(Solution_tabDatasBDD_Segment[[#This Row],[Date de naissance]],Solution_tabDatasBDD_Segment[[#This Row],[Date de 65 ans]])","v":65},{"$f":"_xlfn.IFS(Solution_tabDatasBDD_Segment[[#This Row],[Âge]]>=50,\"A\",Solution_tabDatasBDD_Segment[[#This Row],[Âge]]>=4,\"B\",Solution_tabDatasBDD_Segment[[#This Row],[Âge]]>=30,\"C\",Solution_tabDatasBDD_Segment[[#This Row],[Âge]]<30,\"D\")","v":"B"},"Cameroun"]
["Stomy Bugsy","2010-05-07","m",null,"Rue de l'Ourthe",254,1080,{"$f":"MATCH(Solution_tabDatasBDD_Segment[[#This Row],[CP]],Solution_tabDatasListe[CP],0)","v":8},{"$f":"INDEX(Solution_tabDatasListe[Commune],Solution_tabDatasBDD_Segment[[#This Row],[Commune1]])","v":"Molenbeek"},{"$f":"_xlfn.XLOOKUP(Solution_tabDatasBDD_Segment[[#This Row],[CP]],Solution_tabDatasListe[CP],Solution_tabDatasListe[Commune])","v":"Molenbeek"},"1980-10-10",{"$f":"DATEDIF(Solution_tabDatasBDD_Segment[[#This Row],[Date de naissance]],TODAY(),\"y\")","v":43},"2045-10-10T14:19:29.715",{"$f":"DATEVALUE(DAY(Solution_tabDatasBDD_Segment[[#This Row],[Date de naissance]])&\"/\"&MONTH(Solution_tabDatasBDD_Segment[[#This Row],[Date de naissance]])&\"/\"&YEAR(Solution_tabDatasBDD_Segment[[#This Row],[Date de naissance]])+65)","v":"2045-10-10"},{"$f":"YEARFRAC(Solution_tabDatasBDD_Segment[[#This Row],[Date de naissance]],Solution_tabDatasBDD_Segment[[#This Row],[Date de 65 ans]])","v":65},{"$f":"_xlfn.IFS(Solution_tabDatasBDD_Segment[[#This Row],[Âge]]>=50,\"A\",Solution_tabDatasBDD_Segment[[#This Row],[Âge]]>=4,\"B\",Solution_tabDatasBDD_Segment[[#This Row],[Âge]]>=30,\"C\",Solution_tabDatasBDD_Segment[[#This Row],[Âge]]<30,\"D\")","v":"B"},"Congo"]
["Tonton David","2010-05-07","m",null,"Rue Vanderschrick",88,1060,{"$f":"MATCH(Solution_tabDatasBDD_Segment[[#This Row],[CP]],Solution_tabDatasListe[CP],0)","v":6},{"$f":"INDEX(Solution_tabDatasListe[Commune],Solution_tabDatasBDD_Segment[[#This Row],[Commune1]])","v":"Saint Gilles"},{"$f":"_xlfn.XLOOKUP(Solution_tabDatasBDD_Segment[[#This Row],[CP]],Solution_tabDatasListe[CP],Solution_tabDatasListe[Commune])","v":"Saint Gilles"},"1964-12-05",{"$f":"DATEDIF(Solution_tabDatasBDD_Segment[[#This Row],[Date de naissance]],TODAY(),\"y\")","v":59},"2029-12-05T03:08:55.891",{"$f":"DATEVALUE(DAY(Solution_tabDatasBDD_Segment[[#This Row],[Date de naissance]])&\"/\"&MONTH(Solution_tabDatasBDD_Segment[[#This Row],[Date de naissance]])&\"/\"&YEAR(Solution_tabDatasBDD_Segment[[#This Row],[Date de naissance]])+65)","v":"2029-12-05"},{"$f":"YEARFRAC(Solution_tabDatasBDD_Segment[[#This Row],[Date de naissance]],Solution_tabDatasBDD_Segment[[#This Row],[Date de 65 ans]])","v":65},{"$f":"_xlfn.IFS(Solution_tabDatasBDD_Segment[[#This Row],[Âge]]>=50,\"A\",Solution_tabDatasBDD_Segment[[#This Row],[Âge]]>=4,\"B\",Solution_tabDatasBDD_Segment[[#This Row],[Âge]]>=30,\"C\",Solution_tabDatasBDD_Segment[[#This Row],[Âge]]<30,\"D\")","v":"A"},"Equateur"]
["Yannick Noah","2010-04-30","m",null,"Avenue Jacobs Fontaine",99,1020,{"$f":"MATCH(Solution_tabDatasBDD_Segment[[#This Row],[CP]],Solution_tabDatasListe[CP],0)","v":2},{"$f":"INDEX(Solution_tabDatasListe[Commune],Solution_tabDatasBDD_Segment[[#This Row],[Commune1]])","v":"Laeken"},{"$f":"_xlfn.XLOOKUP(Solution_tabDatasBDD_Segment[[#This Row],[CP]],Solution_tabDatasListe[CP],Solution_tabDatasListe[Commune])","v":"Laeken"},"1978-11-11",{"$f":"DATEDIF(Solution_tabDatasBDD_Segment[[#This Row],[Date de naissance]],TODAY(),\"y\")","v":45},"2043-11-11T14:09:27.369",{"$f":"DATEVALUE(DAY(Solution_tabDatasBDD_Segment[[#This Row],[Date de naissance]])&\"/\"&MONTH(Solution_tabDatasBDD_Segment[[#This Row],[Date de naissance]])&\"/\"&YEAR(Solution_tabDatasBDD_Segment[[#This Row],[Date de naissance]])+65)","v":"2043-11-11"},{"$f":"YEARFRAC(Solution_tabDatasBDD_Segment[[#This Row],[Date de naissance]],Solution_tabDatasBDD_Segment[[#This Row],[Date de 65 ans]])","v":65},{"$f":"_xlfn.IFS(Solution_tabDatasBDD_Segment[[#This Row],[Âge]]>=50,\"A\",Solution_tabDatasBDD_Segment[[#This Row],[Âge]]>=4,\"B\",Solution_tabDatasBDD_Segment[[#This Row],[Âge]]>=30,\"C\",Solution_tabDatasBDD_Segment[[#This Row],[Âge]]<30,\"D\")","v":"B"},"Congo"]
["Alain Chamfort","2010-05-12","m",null,"Rue Wayez",33,1070,{"$f":"MATCH(Solution_tabDatasBDD_Segment[[#This Row],[CP]],Solution_tabDatasListe[CP],0)","v":7},{"$f":"INDEX(Solution_tabDatasListe[Commune],Solution_tabDatasBDD_Segment[[#This Row],[Commune1]])","v":"Anderlecht"},{"$f":"_xlfn.XLOOKUP(Solution_tabDatasBDD_Segment[[#This Row],[CP]],Solution_tabDatasListe[CP],Solution_tabDatasListe[Commune])","v":"Anderlecht"},"1971-10-11",{"$f":"DATEDIF(Solution_tabDatasBDD_Segment[[#This Row],[Date de naissance]],TODAY(),\"y\")","v":52},"2036-10-11T22:10:36.579",{"$f":"DATEVALUE(DAY(Solution_tabDatasBDD_Segment[[#This Row],[Date de naissance]])&\"/\"&MONTH(Solution_tabDatasBDD_Segment[[#This Row],[Date de naissance]])&\"/\"&YEAR(Solution_tabDatasBDD_Segment[[#This Row],[Date de naissance]])+65)","v":"2036-10-11"},{"$f":"YEARFRAC(Solution_tabDatasBDD_Segment[[#This Row],[Date de naissance]],Solution_tabDatasBDD_Segment[[#This Row],[Date de 65 ans]])","v":65},{"$f":"_xlfn.IFS(Solution_tabDatasBDD_Segment[[#This Row],[Âge]]>=50,\"A\",Solution_tabDatasBDD_Segment[[#This Row],[Âge]]>=4,\"B\",Solution_tabDatasBDD_Segment[[#This Row],[Âge]]>=30,\"C\",Solution_tabDatasBDD_Segment[[#This Row],[Âge]]<30,\"D\")","v":"A"},"Maroc"]
["Alibi Montana","2010-05-12","m",null,"Rue Rogier",78,1030,{"$f":"MATCH(Solution_tabDatasBDD_Segment[[#This Row],[CP]],Solution_tabDatasListe[CP],0)","v":3},{"$f":"INDEX(Solution_tabDatasListe[Commune],Solution_tabDatasBDD_Segment[[#This Row],[Commune1]])","v":"Schaerbeek"},{"$f":"_xlfn.XLOOKUP(Solution_tabDatasBDD_Segment[[#This Row],[CP]],Solution_tabDatasListe[CP],Solution_tabDatasListe[Commune])","v":"Schaerbeek"},"1968-09-04",{"$f":"DATEDIF(Solution_tabDatasBDD_Segment[[#This Row],[Date de naissance]],TODAY(),\"y\")","v":55},"2033-09-04T07:19:10.179",{"$f":"DATEVALUE(DAY(Solution_tabDatasBDD_Segment[[#This Row],[Date de naissance]])&\"/\"&MONTH(Solution_tabDatasBDD_Segment[[#This Row],[Date de naissance]])&\"/\"&YEAR(Solution_tabDatasBDD_Segment[[#This Row],[Date de naissance]])+65)","v":"2033-09-04"},{"$f":"YEARFRAC(Solution_tabDatasBDD_Segment[[#This Row],[Date de naissance]],Solution_tabDatasBDD_Segment[[#This Row],[Date de 65 ans]])","v":65},{"$f":"_xlfn.IFS(Solution_tabDatasBDD_Segment[[#This Row],[Âge]]>=50,\"A\",Solution_tabDatasBDD_Segment[[#This Row],[Âge]]>=4,\"B\",Solution_tabDatasBDD_Segment[[#This Row],[Âge]]>=30,\"C\",Solution_tabDatasBDD_Segment[[#This Row],[Âge]]<30,\"D\")","v":"A"},"Syrie"]
["Axelle Red","2010-04-30","f",null,"Rue hydrolique",56,1210,{"$f":"MATCH(Solution_tabDatasBDD_Segment[[#This Row],[CP]],Solution_tabDatasListe[CP],0)","v":17},{"$f":"INDEX(Solution_tabDatasListe[Commune],Solution_tabDatasBDD_Segment[[#This Row],[Commune1]])","v":"Saint-Josse-Ten-noode"},{"$f":"_xlfn.XLOOKUP(Solution_tabDatasBDD_Segment[[#This Row],[CP]],Solution_tabDatasListe[CP],Solution_tabDatasListe[Commune])","v":"Saint-Josse-Ten-noode"},"1984-03-13",{"$f":"DATEDIF(Solution_tabDatasBDD_Segment[[#This Row],[Date de naissance]],TODAY(),\"y\")","v":40},"2049-03-13T05:56:27.553",{"$f":"DATEVALUE(DAY(Solution_tabDatasBDD_Segment[[#This Row],[Date de naissance]])&\"/\"&MONTH(Solution_tabDatasBDD_Segment[[#This Row],[Date de naissance]])&\"/\"&YEAR(Solution_tabDatasBDD_Segment[[#This Row],[Date de naissance]])+65)","v":"2049-03-13"},{"$f":"YEARFRAC(Solution_tabDatasBDD_Segment[[#This Row],[Date de naissance]],Solution_tabDatasBDD_Segment[[#This Row],[Date de 65 ans]])","v":65},{"$f":"_xlfn.IFS(Solution_tabDatasBDD_Segment[[#This Row],[Âge]]>=50,\"A\",Solution_tabDatasBDD_Segment[[#This Row],[Âge]]>=4,\"B\",Solution_tabDatasBDD_Segment[[#This Row],[Âge]]>=30,\"C\",Solution_tabDatasBDD_Segment[[#This Row],[Âge]]<30,\"D\")","v":"B"},"Géorgie"]
["Bob Sinclar","2010-04-30","m",null,"Rue de l'inquisition",8,1000,{"$f":"MATCH(Solution_tabDatasBDD_Segment[[#This Row],[CP]],Solution_tabDatasListe[CP],0)","v":1},{"$f":"INDEX(Solution_tabDatasListe[Commune],Solution_tabDatasBDD_Segment[[#This Row],[Commune1]])","v":"Bruxelles"},{"$f":"_xlfn.XLOOKUP(Solution_tabDatasBDD_Segment[[#This Row],[CP]],Solution_tabDatasListe[CP],Solution_tabDatasListe[Commune])","v":"Bruxelles"},"1968-09-24",{"$f":"DATEDIF(Solution_tabDatasBDD_Segment[[#This Row],[Date de naissance]],TODAY(),\"y\")","v":55},"2033-09-24T18:50:36.032",{"$f":"DATEVALUE(DAY(Solution_tabDatasBDD_Segment[[#This Row],[Date de naissance]])&\"/\"&MONTH(Solution_tabDatasBDD_Segment[[#This Row],[Date de naissance]])&\"/\"&YEAR(Solution_tabDatasBDD_Segment[[#This Row],[Date de naissance]])+65)","v":"2033-09-24"},{"$f":"YEARFRAC(Solution_tabDatasBDD_Segment[[#This Row],[Date de naissance]],Solution_tabDatasBDD_Segment[[#This Row],[Date de 65 ans]])","v":65},{"$f":"_xlfn.IFS(Solution_tabDatasBDD_Segment[[#This Row],[Âge]]>=50,\"A\",Solution_tabDatasBDD_Segment[[#This Row],[Âge]]>=4,\"B\",Solution_tabDatasBDD_Segment[[#This Row],[Âge]]>=30,\"C\",Solution_tabDatasBDD_Segment[[#This Row],[Âge]]<30,\"D\")","v":"A"},"Bangladesh"]
["Charles Aznavour","2010-04-30","m",null,"Avenue Emile Zola",78,1030,{"$f":"MATCH(Solution_tabDatasBDD_Segment[[#This Row],[CP]],Solution_tabDatasListe[CP],0)","v":3},{"$f":"INDEX(Solution_tabDatasListe[Commune],Solution_tabDatasBDD_Segment[[#This Row],[Commune1]])","v":"Schaerbeek"},{"$f":"_xlfn.XLOOKUP(Solution_tabDatasBDD_Segment[[#This Row],[CP]],Solution_tabDatasListe[CP],Solution_tabDatasListe[Commune])","v":"Schaerbeek"},"1984-12-24",{"$f":"DATEDIF(Solution_tabDatasBDD_Segment[[#This Row],[Date de naissance]],TODAY(),\"y\")","v":39},"2049-12-24T20:09:18.643",{"$f":"DATEVALUE(DAY(Solution_tabDatasBDD_Segment[[#This Row],[Date de naissance]])&\"/\"&MONTH(Solution_tabDatasBDD_Segment[[#This Row],[Date de naissance]])&\"/\"&YEAR(Solution_tabDatasBDD_Segment[[#This Row],[Date de naissance]])+65)","v":"2049-12-24"},{"$f":"YEARFRAC(Solution_tabDatasBDD_Segment[[#This Row],[Date de naissance]],Solution_tabDatasBDD_Segment[[#This Row],[Date de 65 ans]])","v":65},{"$f":"_xlfn.IFS(Solution_tabDatasBDD_Segment[[#This Row],[Âge]]>=50,\"A\",Solution_tabDatasBDD_Segment[[#This Row],[Âge]]>=4,\"B\",Solution_tabDatasBDD_Segment[[#This Row],[Âge]]>=30,\"C\",Solution_tabDatasBDD_Segment[[#This Row],[Âge]]<30,\"D\")","v":"B"},"Colombie"]
["David Hallyday","2010-05-15","m",null,"Rue Wautier",41,1020,{"$f":"MATCH(Solution_tabDatasBDD_Segment[[#This Row],[CP]],Solution_tabDatasListe[CP],0)","v":2},{"$f":"INDEX(Solution_tabDatasListe[Commune],Solution_tabDatasBDD_Segment[[#This Row],[Commune1]])","v":"Laeken"},{"$f":"_xlfn.XLOOKUP(Solution_tabDatasBDD_Segment[[#This Row],[CP]],Solution_tabDatasListe[CP],Solution_tabDatasListe[Commune])","v":"Laeken"},"1969-02-10",{"$f":"DATEDIF(Solution_tabDatasBDD_Segment[[#This Row],[Date de naissance]],TODAY(),\"y\")","v":55},"2034-02-10T01:26:07.807",{"$f":"DATEVALUE(DAY(Solution_tabDatasBDD_Segment[[#This Row],[Date de naissance]])&\"/\"&MONTH(Solution_tabDatasBDD_Segment[[#This Row],[Date de naissance]])&\"/\"&YEAR(Solution_tabDatasBDD_Segment[[#This Row],[Date de naissance]])+65)","v":"2034-02-10"},{"$f":"YEARFRAC(Solution_tabDatasBDD_Segment[[#This Row],[Date de naissance]],Solution_tabDatasBDD_Segment[[#This Row],[Date de 65 ans]])","v":65},{"$f":"_xlfn.IFS(Solution_tabDatasBDD_Segment[[#This Row],[Âge]]>=50,\"A\",Solution_tabDatasBDD_Segment[[#This Row],[Âge]]>=4,\"B\",Solution_tabDatasBDD_Segment[[#This Row],[Âge]]>=30,\"C\",Solution_tabDatasBDD_Segment[[#This Row],[Âge]]<30,\"D\")","v":"A"},"Syrie"]
["Étienne Daho","2010-05-12","m",null,"Rue de Deux Eglises",10,1000,{"$f":"MATCH(Solution_tabDatasBDD_Segment[[#This Row],[CP]],Solution_tabDatasListe[CP],0)","v":1},{"$f":"INDEX(Solution_tabDatasListe[Commune],Solution_tabDatasBDD_Segment[[#This Row],[Commune1]])","v":"Bruxelles"},{"$f":"_xlfn.XLOOKUP(Solution_tabDatasBDD_Segment[[#This Row],[CP]],Solution_tabDatasListe[CP],Solution_tabDatasListe[Commune])","v":"Bruxelles"},"1988-04-10",{"$f":"DATEDIF(Solution_tabDatasBDD_Segment[[#This Row],[Date de naissance]],TODAY(),\"y\")","v":36},"2053-04-10T16:51:32.126",{"$f":"DATEVALUE(DAY(Solution_tabDatasBDD_Segment[[#This Row],[Date de naissance]])&\"/\"&MONTH(Solution_tabDatasBDD_Segment[[#This Row],[Date de naissance]])&\"/\"&YEAR(Solution_tabDatasBDD_Segment[[#This Row],[Date de naissance]])+65)","v":"2053-04-10"},{"$f":"YEARFRAC(Solution_tabDatasBDD_Segment[[#This Row],[Date de naissance]],Solution_tabDatasBDD_Segment[[#This Row],[Date de 65 ans]])","v":65},{"$f":"_xlfn.IFS(Solution_tabDatasBDD_Segment[[#This Row],[Âge]]>=50,\"A\",Solution_tabDatasBDD_Segment[[#This Row],[Âge]]>=4,\"B\",Solution_tabDatasBDD_Segment[[#This Row],[Âge]]>=30,\"C\",Solution_tabDatasBDD_Segment[[#This Row],[Âge]]<30,\"D\")","v":"B"},"Guinée"]
["Francis Cabrel","2010-06-14","m",null,"Rue Rinken",63,1030,{"$f":"MATCH(Solution_tabDatasBDD_Segment[[#This Row],[CP]],Solution_tabDatasListe[CP],0)","v":3},{"$f":"INDEX(Solution_tabDatasListe[Commune],Solution_tabDatasBDD_Segment[[#This Row],[Commune1]])","v":"Schaerbeek"},{"$f":"_xlfn.XLOOKUP(Solution_tabDatasBDD_Segment[[#This Row],[CP]],Solution_tabDatasListe[CP],Solution_tabDatasListe[Commune])","v":"Schaerbeek"},"1963-03-25",{"$f":"DATEDIF(Solution_tabDatasBDD_Segment[[#This Row],[Date de naissance]],TODAY(),\"y\")","v":61},"2028-03-25T03:42:43.203",{"$f":"DATEVALUE(DAY(Solution_tabDatasBDD_Segment[[#This Row],[Date de naissance]])&\"/\"&MONTH(Solution_tabDatasBDD_Segment[[#This Row],[Date de naissance]])&\"/\"&YEAR(Solution_tabDatasBDD_Segment[[#This Row],[Date de naissance]])+65)","v":"2028-03-25"},{"$f":"YEARFRAC(Solution_tabDatasBDD_Segment[[#This Row],[Date de naissance]],Solution_tabDatasBDD_Segment[[#This Row],[Date de 65 ans]])","v":65},{"$f":"_xlfn.IFS(Solution_tabDatasBDD_Segment[[#This Row],[Âge]]>=50,\"A\",Solution_tabDatasBDD_Segment[[#This Row],[Âge]]>=4,\"B\",Solution_tabDatasBDD_Segment[[#This Row],[Âge]]>=30,\"C\",Solution_tabDatasBDD_Segment[[#This Row],[Âge]]<30,\"D\")","v":"A"},"Maroc",3]
["Margueritte Duras","2010-04-28","f",null,"Rue Brogniez",7,1070,{"$f":"MATCH(Solution_tabDatasBDD_Segment[[#This Row],[CP]],Solution_tabDatasListe[CP],0)","v":7},{"$f":"INDEX(Solution_tabDatasListe[Commune],Solution_tabDatasBDD_Segment[[#This Row],[Commune1]])","v":"Anderlecht"},{"$f":"_xlfn.XLOOKUP(Solution_tabDatasBDD_Segment[[#This Row],[CP]],Solution_tabDatasListe[CP],Solution_tabDatasListe[Commune])","v":"Anderlecht"},"1958-05-07",{"$f":"DATEDIF(Solution_tabDatasBDD_Segment[[#This Row],[Date de naissance]],TODAY(),\"y\")","v":66},"2023-05-07T14:26:11.677",{"$f":"DATEVALUE(DAY(Solution_tabDatasBDD_Segment[[#This Row],[Date de naissance]])&\"/\"&MONTH(Solution_tabDatasBDD_Segment[[#This Row],[Date de naissance]])&\"/\"&YEAR(Solution_tabDatasBDD_Segment[[#This Row],[Date de naissance]])+65)","v":"2023-05-07"},{"$f":"YEARFRAC(Solution_tabDatasBDD_Segment[[#This Row],[Date de naissance]],Solution_tabDatasBDD_Segment[[#This Row],[Date de 65 ans]])","v":65},{"$f":"_xlfn.IFS(Solution_tabDatasBDD_Segment[[#This Row],[Âge]]>=50,\"A\",Solution_tabDatasBDD_Segment[[#This Row],[Âge]]>=4,\"B\",Solution_tabDatasBDD_Segment[[#This Row],[Âge]]>=30,\"C\",Solution_tabDatasBDD_Segment[[#This Row],[Âge]]<30,\"D\")","v":"A"},"Angola"]
["Grand Corps Malade","1960-04-28","m",null,"Rue Brogniez",99,1070,{"$f":"MATCH(Solution_tabDatasBDD_Segment[[#This Row],[CP]],Solution_tabDatasListe[CP],0)","v":7},{"$f":"INDEX(Solution_tabDatasListe[Commune],Solution_tabDatasBDD_Segment[[#This Row],[Commune1]])","v":"Anderlecht"},{"$f":"_xlfn.XLOOKUP(Solution_tabDatasBDD_Segment[[#This Row],[CP]],Solution_tabDatasListe[CP],Solution_tabDatasListe[Commune])","v":"Anderlecht"},"1960-09-14",{"$f":"DATEDIF(Solution_tabDatasBDD_Segment[[#This Row],[Date de naissance]],TODAY(),\"y\")","v":63},"2025-09-14T06:39:43.092",{"$f":"DATEVALUE(DAY(Solution_tabDatasBDD_Segment[[#This Row],[Date de naissance]])&\"/\"&MONTH(Solution_tabDatasBDD_Segment[[#This Row],[Date de naissance]])&\"/\"&YEAR(Solution_tabDatasBDD_Segment[[#This Row],[Date de naissance]])+65)","v":"2025-09-14"},{"$f":"YEARFRAC(Solution_tabDatasBDD_Segment[[#This Row],[Date de naissance]],Solution_tabDatasBDD_Segment[[#This Row],[Date de 65 ans]])","v":65},{"$f":"_xlfn.IFS(Solution_tabDatasBDD_Segment[[#This Row],[Âge]]>=50,\"A\",Solution_tabDatasBDD_Segment[[#This Row],[Âge]]>=4,\"B\",Solution_tabDatasBDD_Segment[[#This Row],[Âge]]>=30,\"C\",Solution_tabDatasBDD_Segment[[#This Row],[Âge]]<30,\"D\")","v":"A"},"Togo",2]
["Jean Bart","2010-04-23","m",null,"Rue Saint Bernard",44,1060,{"$f":"MATCH(Solution_tabDatasBDD_Segment[[#This Row],[CP]],Solution_tabDatasListe[CP],0)","v":6},{"$f":"INDEX(Solution_tabDatasListe[Commune],Solution_tabDatasBDD_Segment[[#This Row],[Commune1]])","v":"Saint Gilles"},{"$f":"_xlfn.XLOOKUP(Solution_tabDatasBDD_Segment[[#This Row],[CP]],Solution_tabDatasListe[CP],Solution_tabDatasListe[Commune])","v":"Saint Gilles"},"1960-09-28",{"$f":"DATEDIF(Solution_tabDatasBDD_Segment[[#This Row],[Date de naissance]],TODAY(),\"y\")","v":63},"2025-09-28T12:08:38.553",{"$f":"DATEVALUE(DAY(Solution_tabDatasBDD_Segment[[#This Row],[Date de naissance]])&\"/\"&MONTH(Solution_tabDatasBDD_Segment[[#This Row],[Date de naissance]])&\"/\"&YEAR(Solution_tabDatasBDD_Segment[[#This Row],[Date de naissance]])+65)","v":"2025-09-28"},{"$f":"YEARFRAC(Solution_tabDatasBDD_Segment[[#This Row],[Date de naissance]],Solution_tabDatasBDD_Segment[[#This Row],[Date de 65 ans]])","v":65},{"$f":"_xlfn.IFS(Solution_tabDatasBDD_Segment[[#This Row],[Âge]]>=50,\"A\",Solution_tabDatasBDD_Segment[[#This Row],[Âge]]>=4,\"B\",Solution_tabDatasBDD_Segment[[#This Row],[Âge]]>=30,\"C\",Solution_tabDatasBDD_Segment[[#This Row],[Âge]]<30,\"D\")","v":"A"},"Congo",5]
["Jean-Luc Lahaye","2010-04-22","m",null,"Rue de Haeck",5,1080,{"$f":"MATCH(Solution_tabDatasBDD_Segment[[#This Row],[CP]],Solution_tabDatasListe[CP],0)","v":8},{"$f":"INDEX(Solution_tabDatasListe[Commune],Solution_tabDatasBDD_Segment[[#This Row],[Commune1]])","v":"Molenbeek"},{"$f":"_xlfn.XLOOKUP(Solution_tabDatasBDD_Segment[[#This Row],[CP]],Solution_tabDatasListe[CP],Solution_tabDatasListe[Commune])","v":"Molenbeek"},"1968-03-03",{"$f":"DATEDIF(Solution_tabDatasBDD_Segment[[#This Row],[Date de naissance]],TODAY(),\"y\")","v":56},"2033-03-03T09:54:46.862",{"$f":"DATEVALUE(DAY(Solution_tabDatasBDD_Segment[[#This Row],[Date de naissance]])&\"/\"&MONTH(Solution_tabDatasBDD_Segment[[#This Row],[Date de naissance]])&\"/\"&YEAR(Solution_tabDatasBDD_Segment[[#This Row],[Date de naissance]])+65)","v":"2033-03-03"},{"$f":"YEARFRAC(Solution_tabDatasBDD_Segment[[#This Row],[Date de naissance]],Solution_tabDatasBDD_Segment[[#This Row],[Date de 65 ans]])","v":65},{"$f":"_xlfn.IFS(Solution_tabDatasBDD_Segment[[#This Row],[Âge]]>=50,\"A\",Solution_tabDatasBDD_Segment[[#This Row],[Âge]]>=4,\"B\",Solution_tabDatasBDD_Segment[[#This Row],[Âge]]>=30,\"C\",Solution_tabDatasBDD_Segment[[#This Row],[Âge]]<30,\"D\")","v":"A"},"Congo",3]
["Julien Clerc","2010-04-26","m",null,"Chemin des deux maisons",88,1200,{"$f":"MATCH(Solution_tabDatasBDD_Segment[[#This Row],[CP]],Solution_tabDatasListe[CP],0)","v":16},{"$f":"INDEX(Solution_tabDatasListe[Commune],Solution_tabDatasBDD_Segment[[#This Row],[Commune1]])","v":"Woluwé-Saint-Lambert"},{"$f":"_xlfn.XLOOKUP(Solution_tabDatasBDD_Segment[[#This Row],[CP]],Solution_tabDatasListe[CP],Solution_tabDatasListe[Commune])","v":"Woluwé-Saint-Lambert"},"1979-06-02",{"$f":"DATEDIF(Solution_tabDatasBDD_Segment[[#This Row],[Date de naissance]],TODAY(),\"y\")","v":45},"2044-06-02T14:31:02.118",{"$f":"DATEVALUE(DAY(Solution_tabDatasBDD_Segment[[#This Row],[Date de naissance]])&\"/\"&MONTH(Solution_tabDatasBDD_Segment[[#This Row],[Date de naissance]])&\"/\"&YEAR(Solution_tabDatasBDD_Segment[[#This Row],[Date de naissance]])+65)","v":"2044-06-02"},{"$f":"YEARFRAC(Solution_tabDatasBDD_Segment[[#This Row],[Date de naissance]],Solution_tabDatasBDD_Segment[[#This Row],[Date de 65 ans]])","v":65},{"$f":"_xlfn.IFS(Solution_tabDatasBDD_Segment[[#This Row],[Âge]]>=50,\"A\",Solution_tabDatasBDD_Segment[[#This Row],[Âge]]>=4,\"B\",Solution_tabDatasBDD_Segment[[#This Row],[Âge]]>=30,\"C\",Solution_tabDatasBDD_Segment[[#This Row],[Âge]]<30,\"D\")","v":"B"},"Cameroun"]
["Laurent Voulzy","2010-04-19","m",null,"Leuvensesteegweg",41,3080,{"$f":"MATCH(Solution_tabDatasBDD_Segment[[#This Row],[CP]],Solution_tabDatasListe[CP],0)","v":23},{"$f":"INDEX(Solution_tabDatasListe[Commune],Solution_tabDatasBDD_Segment[[#This Row],[Commune1]])","v":"Tervuren"},{"$f":"_xlfn.XLOOKUP(Solution_tabDatasBDD_Segment[[#This Row],[CP]],Solution_tabDatasListe[CP],Solution_tabDatasListe[Commune])","v":"Tervuren"},"1975-08-23",{"$f":"DATEDIF(Solution_tabDatasBDD_Segment[[#This Row],[Date de naissance]],TODAY(),\"y\")","v":48},"2040-08-23T20:19:12.597",{"$f":"DATEVALUE(DAY(Solution_tabDatasBDD_Segment[[#This Row],[Date de naissance]])&\"/\"&MONTH(Solution_tabDatasBDD_Segment[[#This Row],[Date de naissance]])&\"/\"&YEAR(Solution_tabDatasBDD_Segment[[#This Row],[Date de naissance]])+65)","v":"2040-08-23"},{"$f":"YEARFRAC(Solution_tabDatasBDD_Segment[[#This Row],[Date de naissance]],Solution_tabDatasBDD_Segment[[#This Row],[Date de 65 ans]])","v":65},{"$f":"_xlfn.IFS(Solution_tabDatasBDD_Segment[[#This Row],[Âge]]>=50,\"A\",Solution_tabDatasBDD_Segment[[#This Row],[Âge]]>=4,\"B\",Solution_tabDatasBDD_Segment[[#This Row],[Âge]]>=30,\"C\",Solution_tabDatasBDD_Segment[[#This Row],[Âge]]<30,\"D\")","v":"B"},"Congo",1]
["Marylou Str","2010-07-13","f",null,"Kleine Gestraat",22,1930,{"$f":"MATCH(Solution_tabDatasBDD_Segment[[#This Row],[CP]],Solution_tabDatasListe[CP],0)","v":21},{"$f":"INDEX(Solution_tabDatasListe[Commune],Solution_tabDatasBDD_Segment[[#This Row],[Commune1]])","v":"Zaventem"},{"$f":"_xlfn.XLOOKUP(Solution_tabDatasBDD_Segment[[#This Row],[CP]],Solution_tabDatasListe[CP],Solution_tabDatasListe[Commune])","v":"Zaventem"},"1973-09-15",{"$f":"DATEDIF(Solution_tabDatasBDD_Segment[[#This Row],[Date de naissance]],TODAY(),\"y\")","v":50},"2038-09-15T15:17:14.338",{"$f":"DATEVALUE(DAY(Solution_tabDatasBDD_Segment[[#This Row],[Date de naissance]])&\"/\"&MONTH(Solution_tabDatasBDD_Segment[[#This Row],[Date de naissance]])&\"/\"&YEAR(Solution_tabDatasBDD_Segment[[#This Row],[Date de naissance]])+65)","v":"2038-09-15"},{"$f":"YEARFRAC(Solution_tabDatasBDD_Segment[[#This Row],[Date de naissance]],Solution_tabDatasBDD_Segment[[#This Row],[Date de 65 ans]])","v":65},{"$f":"_xlfn.IFS(Solution_tabDatasBDD_Segment[[#This Row],[Âge]]>=50,\"A\",Solution_tabDatasBDD_Segment[[#This Row],[Âge]]>=4,\"B\",Solution_tabDatasBDD_Segment[[#This Row],[Âge]]>=30,\"C\",Solution_tabDatasBDD_Segment[[#This Row],[Âge]]<30,\"D\")","v":"A"},"Cameroun",3]
["MC Solaar","2010-08-17","m",null,"Rue Nicolas Doyen",12,1080,{"$f":"MATCH(Solution_tabDatasBDD_Segment[[#This Row],[CP]],Solution_tabDatasListe[CP],0)","v":8},{"$f":"INDEX(Solution_tabDatasListe[Commune],Solution_tabDatasBDD_Segment[[#This Row],[Commune1]])","v":"Molenbeek"},{"$f":"_xlfn.XLOOKUP(Solution_tabDatasBDD_Segment[[#This Row],[CP]],Solution_tabDatasListe[CP],Solution_tabDatasListe[Commune])","v":"Molenbeek"},"1982-03-23",{"$f":"DATEDIF(Solution_tabDatasBDD_Segment[[#This Row],[Date de naissance]],TODAY(),\"y\")","v":42},"2047-03-23T13:36:26.953",{"$f":"DATEVALUE(DAY(Solution_tabDatasBDD_Segment[[#This Row],[Date de naissance]])&\"/\"&MONTH(Solution_tabDatasBDD_Segment[[#This Row],[Date de naissance]])&\"/\"&YEAR(Solution_tabDatasBDD_Segment[[#This Row],[Date de naissance]])+65)","v":"2047-03-23"},{"$f":"YEARFRAC(Solution_tabDatasBDD_Segment[[#This Row],[Date de naissance]],Solution_tabDatasBDD_Segment[[#This Row],[Date de 65 ans]])","v":65},{"$f":"_xlfn.IFS(Solution_tabDatasBDD_Segment[[#This Row],[Âge]]>=50,\"A\",Solution_tabDatasBDD_Segment[[#This Row],[Âge]]>=4,\"B\",Solution_tabDatasBDD_Segment[[#This Row],[Âge]]>=30,\"C\",Solution_tabDatasBDD_Segment[[#This Row],[Âge]]<30,\"D\")","v":"B"},"Congo",2]
["Michel Sardou","2010-08-17","m",null,"Jacobs Fontaine",4,1020,{"$f":"MATCH(Solution_tabDatasBDD_Segment[[#This Row],[CP]],Solution_tabDatasListe[CP],0)","v":2},{"$f":"INDEX(Solution_tabDatasListe[Commune],Solution_tabDatasBDD_Segment[[#This Row],[Commune1]])","v":"Laeken"},{"$f":"_xlfn.XLOOKUP(Solution_tabDatasBDD_Segment[[#This Row],[CP]],Solution_tabDatasListe[CP],Solution_tabDatasListe[Commune])","v":"Laeken"},"1985-08-13",{"$f":"DATEDIF(Solution_tabDatasBDD_Segment[[#This Row],[Date de naissance]],TODAY(),\"y\")","v":38},"2050-08-13T15:19:12.011",{"$f":"DATEVALUE(DAY(Solution_tabDatasBDD_Segment[[#This Row],[Date de naissance]])&\"/\"&MONTH(Solution_tabDatasBDD_Segment[[#This Row],[Date de naissance]])&\"/\"&YEAR(Solution_tabDatasBDD_Segment[[#This Row],[Date de naissance]])+65)","v":"2050-08-13"},{"$f":"YEARFRAC(Solution_tabDatasBDD_Segment[[#This Row],[Date de naissance]],Solution_tabDatasBDD_Segment[[#This Row],[Date de 65 ans]])","v":65},{"$f":"_xlfn.IFS(Solution_tabDatasBDD_Segment[[#This Row],[Âge]]>=50,\"A\",Solution_tabDatasBDD_Segment[[#This Row],[Âge]]>=4,\"B\",Solution_tabDatasBDD_Segment[[#This Row],[Âge]]>=30,\"C\",Solution_tabDatasBDD_Segment[[#This Row],[Âge]]<30,\"D\")","v":"B"},"Congo",1]
["Patrick Bruel","2010-08-23","m",null,"Chaussée d'Ath",99,1030,{"$f":"MATCH(Solution_tabDatasBDD_Segment[[#This Row],[CP]],Solution_tabDatasListe[CP],0)","v":3},{"$f":"INDEX(Solution_tabDatasListe[Commune],Solution_tabDatasBDD_Segment[[#This Row],[Commune1]])","v":"Schaerbeek"},{"$f":"_xlfn.XLOOKUP(Solution_tabDatasBDD_Segment[[#This Row],[CP]],Solution_tabDatasListe[CP],Solution_tabDatasListe[Commune])","v":"Schaerbeek"},"1973-04-13",{"$f":"DATEDIF(Solution_tabDatasBDD_Segment[[#This Row],[Date de naissance]],TODAY(),\"y\")","v":51},"2038-04-13T11:42:47.269",{"$f":"DATEVALUE(DAY(Solution_tabDatasBDD_Segment[[#This Row],[Date de naissance]])&\"/\"&MONTH(Solution_tabDatasBDD_Segment[[#This Row],[Date de naissance]])&\"/\"&YEAR(Solution_tabDatasBDD_Segment[[#This Row],[Date de naissance]])+65)","v":"2038-04-13"},{"$f":"YEARFRAC(Solution_tabDatasBDD_Segment[[#This Row],[Date de naissance]],Solution_tabDatasBDD_Segment[[#This Row],[Date de 65 ans]])","v":65},{"$f":"_xlfn.IFS(Solution_tabDatasBDD_Segment[[#This Row],[Âge]]>=50,\"A\",Solution_tabDatasBDD_Segment[[#This Row],[Âge]]>=4,\"B\",Solution_tabDatasBDD_Segment[[#This Row],[Âge]]>=30,\"C\",Solution_tabDatasBDD_Segment[[#This Row],[Âge]]<30,\"D\")","v":"A"},"Congo",3]
["Raphaël","2010-08-23","m",null,"Géneral Molitor",66,1040,{"$f":"MATCH(Solution_tabDatasBDD_Segment[[#This Row],[CP]],Solution_tabDatasListe[CP],0)","v":4},{"$f":"INDEX(Solution_tabDatasListe[Commune],Solution_tabDatasBDD_Segment[[#This Row],[Commune1]])","v":"Etterbeek"},{"$f":"_xlfn.XLOOKUP(Solution_tabDatasBDD_Segment[[#This Row],[CP]],Solution_tabDatasListe[CP],Solution_tabDatasListe[Commune])","v":"Etterbeek"},"1986-05-06",{"$f":"DATEDIF(Solution_tabDatasBDD_Segment[[#This Row],[Date de naissance]],TODAY(),\"y\")","v":38},"2051-05-06T10:17:41.393",{"$f":"DATEVALUE(DAY(Solution_tabDatasBDD_Segment[[#This Row],[Date de naissance]])&\"/\"&MONTH(Solution_tabDatasBDD_Segment[[#This Row],[Date de naissance]])&\"/\"&YEAR(Solution_tabDatasBDD_Segment[[#This Row],[Date de naissance]])+65)","v":"2051-05-06"},{"$f":"YEARFRAC(Solution_tabDatasBDD_Segment[[#This Row],[Date de naissance]],Solution_tabDatasBDD_Segment[[#This Row],[Date de 65 ans]])","v":65},{"$f":"_xlfn.IFS(Solution_tabDatasBDD_Segment[[#This Row],[Âge]]>=50,\"A\",Solution_tabDatasBDD_Segment[[#This Row],[Âge]]>=4,\"B\",Solution_tabDatasBDD_Segment[[#This Row],[Âge]]>=30,\"C\",Solution_tabDatasBDD_Segment[[#This Row],[Âge]]<30,\"D\")","v":"B"},"Belgique",1]
["Sévérine Inconnue","2010-08-23","f",null,"Avenue Gustave Latinis",74,1030,{"$f":"MATCH(Solution_tabDatasBDD_Segment[[#This Row],[CP]],Solution_tabDatasListe[CP],0)","v":3},{"$f":"INDEX(Solution_tabDatasListe[Commune],Solution_tabDatasBDD_Segment[[#This Row],[Commune1]])","v":"Schaerbeek"},{"$f":"_xlfn.XLOOKUP(Solution_tabDatasBDD_Segment[[#This Row],[CP]],Solution_tabDatasListe[CP],Solution_tabDatasListe[Commune])","v":"Schaerbeek"},"1974-04-07",{"$f":"DATEDIF(Solution_tabDatasBDD_Segment[[#This Row],[Date de naissance]],TODAY(),\"y\")","v":50},"2039-04-07T22:25:27.253",{"$f":"DATEVALUE(DAY(Solution_tabDatasBDD_Segment[[#This Row],[Date de naissance]])&\"/\"&MONTH(Solution_tabDatasBDD_Segment[[#This Row],[Date de naissance]])&\"/\"&YEAR(Solution_tabDatasBDD_Segment[[#This Row],[Date de naissance]])+65)","v":"2039-04-07"},{"$f":"YEARFRAC(Solution_tabDatasBDD_Segment[[#This Row],[Date de naissance]],Solution_tabDatasBDD_Segment[[#This Row],[Date de 65 ans]])","v":65},{"$f":"_xlfn.IFS(Solution_tabDatasBDD_Segment[[#This Row],[Âge]]>=50,\"A\",Solution_tabDatasBDD_Segment[[#This Row],[Âge]]>=4,\"B\",Solution_tabDatasBDD_Segment[[#This Row],[Âge]]>=30,\"C\",Solution_tabDatasBDD_Segment[[#This Row],[Âge]]<30,\"D\")","v":"A"},"Corée",1]
["Tété","2010-08-24","m",null,"Léon Mignon",25,1030,{"$f":"MATCH(Solution_tabDatasBDD_Segment[[#This Row],[CP]],Solution_tabDatasListe[CP],0)","v":3},{"$f":"INDEX(Solution_tabDatasListe[Commune],Solution_tabDatasBDD_Segment[[#This Row],[Commune1]])","v":"Schaerbeek"},{"$f":"_xlfn.XLOOKUP(Solution_tabDatasBDD_Segment[[#This Row],[CP]],Solution_tabDatasListe[CP],Solution_tabDatasListe[Commune])","v":"Schaerbeek"},"1989-01-25",{"$f":"DATEDIF(Solution_tabDatasBDD_Segment[[#This Row],[Date de naissance]],TODAY(),\"y\")","v":35},"2054-01-25T21:01:45.062",{"$f":"DATEVALUE(DAY(Solution_tabDatasBDD_Segment[[#This Row],[Date de naissance]])&\"/\"&MONTH(Solution_tabDatasBDD_Segment[[#This Row],[Date de naissance]])&\"/\"&YEAR(Solution_tabDatasBDD_Segment[[#This Row],[Date de naissance]])+65)","v":"2054-01-25"},{"$f":"YEARFRAC(Solution_tabDatasBDD_Segment[[#This Row],[Date de naissance]],Solution_tabDatasBDD_Segment[[#This Row],[Date de 65 ans]])","v":65},{"$f":"_xlfn.IFS(Solution_tabDatasBDD_Segment[[#This Row],[Âge]]>=50,\"A\",Solution_tabDatasBDD_Segment[[#This Row],[Âge]]>=4,\"B\",Solution_tabDatasBDD_Segment[[#This Row],[Âge]]>=30,\"C\",Solution_tabDatasBDD_Segment[[#This Row],[Âge]]<30,\"D\")","v":"B"},"Belgique"]
["Vincent Delerm","2010-08-20","m",null,"Rue d'Italie",63,1800,{"$f":"MATCH(Solution_tabDatasBDD_Segment[[#This Row],[CP]],Solution_tabDatasListe[CP],0)","v":20},{"$f":"INDEX(Solution_tabDatasListe[Commune],Solution_tabDatasBDD_Segment[[#This Row],[Commune1]])","v":"Vilvoorde"},{"$f":"_xlfn.XLOOKUP(Solution_tabDatasBDD_Segment[[#This Row],[CP]],Solution_tabDatasListe[CP],Solution_tabDatasListe[Commune])","v":"Vilvoorde"},"1983-07-02",{"$f":"DATEDIF(Solution_tabDatasBDD_Segment[[#This Row],[Date de naissance]],TODAY(),\"y\")","v":40},"2048-07-02T00:42:30.892",{"$f":"DATEVALUE(DAY(Solution_tabDatasBDD_Segment[[#This Row],[Date de naissance]])&\"/\"&MONTH(Solution_tabDatasBDD_Segment[[#This Row],[Date de naissance]])&\"/\"&YEAR(Solution_tabDatasBDD_Segment[[#This Row],[Date de naissance]])+65)","v":"2048-07-02"},{"$f":"YEARFRAC(Solution_tabDatasBDD_Segment[[#This Row],[Date de naissance]],Solution_tabDatasBDD_Segment[[#This Row],[Date de 65 ans]])","v":65},{"$f":"_xlfn.IFS(Solution_tabDatasBDD_Segment[[#This Row],[Âge]]>=50,\"A\",Solution_tabDatasBDD_Segment[[#This Row],[Âge]]>=4,\"B\",Solution_tabDatasBDD_Segment[[#This Row],[Âge]]>=30,\"C\",Solution_tabDatasBDD_Segment[[#This Row],[Âge]]<30,\"D\")","v":"B"},"Cameroun",2]
["Alain Souchon","2010-08-26","m",null,"Géneral Molitor",74,1040,{"$f":"MATCH(Solution_tabDatasBDD_Segment[[#This Row],[CP]],Solution_tabDatasListe[CP],0)","v":4},{"$f":"INDEX(Solution_tabDatasListe[Commune],Solution_tabDatasBDD_Segment[[#This Row],[Commune1]])","v":"Etterbeek"},{"$f":"_xlfn.XLOOKUP(Solution_tabDatasBDD_Segment[[#This Row],[CP]],Solution_tabDatasListe[CP],Solution_tabDatasListe[Commune])","v":"Etterbeek"},"1983-04-19",{"$f":"DATEDIF(Solution_tabDatasBDD_Segment[[#This Row],[Date de naissance]],TODAY(),\"y\")","v":41},"2048-04-19T13:52:30.775",{"$f":"DATEVALUE(DAY(Solution_tabDatasBDD_Segment[[#This Row],[Date de naissance]])&\"/\"&MONTH(Solution_tabDatasBDD_Segment[[#This Row],[Date de naissance]])&\"/\"&YEAR(Solution_tabDatasBDD_Segment[[#This Row],[Date de naissance]])+65)","v":"2048-04-19"},{"$f":"YEARFRAC(Solution_tabDatasBDD_Segment[[#This Row],[Date de naissance]],Solution_tabDatasBDD_Segment[[#This Row],[Date de 65 ans]])","v":65},{"$f":"_xlfn.IFS(Solution_tabDatasBDD_Segment[[#This Row],[Âge]]>=50,\"A\",Solution_tabDatasBDD_Segment[[#This Row],[Âge]]>=4,\"B\",Solution_tabDatasBDD_Segment[[#This Row],[Âge]]>=30,\"C\",Solution_tabDatasBDD_Segment[[#This Row],[Âge]]<30,\"D\")","v":"B"},"Algérie"]
["Antoine","2010-08-20","m",null,"Rue du Trône",14,1050,{"$f":"MATCH(Solution_tabDatasBDD_Segment[[#This Row],[CP]],Solution_tabDatasListe[CP],0)","v":5},{"$f":"INDEX(Solution_tabDatasListe[Commune],Solution_tabDatasBDD_Segment[[#This Row],[Commune1]])","v":"Ixelles"},{"$f":"_xlfn.XLOOKUP(Solution_tabDatasBDD_Segment[[#This Row],[CP]],Solution_tabDatasListe[CP],Solution_tabDatasListe[Commune])","v":"Ixelles"},"1969-09-01",{"$f":"DATEDIF(Solution_tabDatasBDD_Segment[[#This Row],[Date de naissance]],TODAY(),\"y\")","v":54},"2034-09-01T11:09:29.972",{"$f":"DATEVALUE(DAY(Solution_tabDatasBDD_Segment[[#This Row],[Date de naissance]])&\"/\"&MONTH(Solution_tabDatasBDD_Segment[[#This Row],[Date de naissance]])&\"/\"&YEAR(Solution_tabDatasBDD_Segment[[#This Row],[Date de naissance]])+65)","v":"2034-09-01"},{"$f":"YEARFRAC(Solution_tabDatasBDD_Segment[[#This Row],[Date de naissance]],Solution_tabDatasBDD_Segment[[#This Row],[Date de 65 ans]])","v":65},{"$f":"_xlfn.IFS(Solution_tabDatasBDD_Segment[[#This Row],[Âge]]>=50,\"A\",Solution_tabDatasBDD_Segment[[#This Row],[Âge]]>=4,\"B\",Solution_tabDatasBDD_Segment[[#This Row],[Âge]]>=30,\"C\",Solution_tabDatasBDD_Segment[[#This Row],[Âge]]<30,\"D\")","v":"A"},"Cameroun"]
["Bénabar","2010-08-30","m",null,"Square Armand Steurs",12,1210,{"$f":"MATCH(Solution_tabDatasBDD_Segment[[#This Row],[CP]],Solution_tabDatasListe[CP],0)","v":17},{"$f":"INDEX(Solution_tabDatasListe[Commune],Solution_tabDatasBDD_Segment[[#This Row],[Commune1]])","v":"Saint-Josse-Ten-noode"},{"$f":"_xlfn.XLOOKUP(Solution_tabDatasBDD_Segment[[#This Row],[CP]],Solution_tabDatasListe[CP],Solution_tabDatasListe[Commune])","v":"Saint-Josse-Ten-noode"},"1979-02-26",{"$f":"DATEDIF(Solution_tabDatasBDD_Segment[[#This Row],[Date de naissance]],TODAY(),\"y\")","v":45},"2044-02-26T04:55:56.439",{"$f":"DATEVALUE(DAY(Solution_tabDatasBDD_Segment[[#This Row],[Date de naissance]])&\"/\"&MONTH(Solution_tabDatasBDD_Segment[[#This Row],[Date de naissance]])&\"/\"&YEAR(Solution_tabDatasBDD_Segment[[#This Row],[Date de naissance]])+65)","v":"2044-02-26"},{"$f":"YEARFRAC(Solution_tabDatasBDD_Segment[[#This Row],[Date de naissance]],Solution_tabDatasBDD_Segment[[#This Row],[Date de 65 ans]])","v":65},{"$f":"_xlfn.IFS(Solution_tabDatasBDD_Segment[[#This Row],[Âge]]>=50,\"A\",Solution_tabDatasBDD_Segment[[#This Row],[Âge]]>=4,\"B\",Solution_tabDatasBDD_Segment[[#This Row],[Âge]]>=30,\"C\",Solution_tabDatasBDD_Segment[[#This Row],[Âge]]<30,\"D\")","v":"B"},"Congo"]
["Cali","2010-08-30","m",null,"Chaussée de Mons",41,1070,{"$f":"MATCH(Solution_tabDatasBDD_Segment[[#This Row],[CP]],Solution_tabDatasListe[CP],0)","v":7},{"$f":"INDEX(Solution_tabDatasListe[Commune],Solution_tabDatasBDD_Segment[[#This Row],[Commune1]])","v":"Anderlecht"},{"$f":"_xlfn.XLOOKUP(Solution_tabDatasBDD_Segment[[#This Row],[CP]],Solution_tabDatasListe[CP],Solution_tabDatasListe[Commune])","v":"Anderlecht"},"1978-09-05",{"$f":"DATEDIF(Solution_tabDatasBDD_Segment[[#This Row],[Date de naissance]],TODAY(),\"y\")","v":45},"2043-09-05T21:42:24.322",{"$f":"DATEVALUE(DAY(Solution_tabDatasBDD_Segment[[#This Row],[Date de naissance]])&\"/\"&MONTH(Solution_tabDatasBDD_Segment[[#This Row],[Date de naissance]])&\"/\"&YEAR(Solution_tabDatasBDD_Segment[[#This Row],[Date de naissance]])+65)","v":"2043-09-05"},{"$f":"YEARFRAC(Solution_tabDatasBDD_Segment[[#This Row],[Date de naissance]],Solution_tabDatasBDD_Segment[[#This Row],[Date de 65 ans]])","v":65},{"$f":"_xlfn.IFS(Solution_tabDatasBDD_Segment[[#This Row],[Âge]]>=50,\"A\",Solution_tabDatasBDD_Segment[[#This Row],[Âge]]>=4,\"B\",Solution_tabDatasBDD_Segment[[#This Row],[Âge]]>=30,\"C\",Solution_tabDatasBDD_Segment[[#This Row],[Âge]]<30,\"D\")","v":"B"},"Maroc"]
["Christophe Maé","2010-09-02","m",null,"Chaussée d'alsemberg",111,1180,{"$f":"MATCH(Solution_tabDatasBDD_Segment[[#This Row],[CP]],Solution_tabDatasListe[CP],0)","v":15},{"$f":"INDEX(Solution_tabDatasListe[Commune],Solution_tabDatasBDD_Segment[[#This Row],[Commune1]])","v":"Uccle"},{"$f":"_xlfn.XLOOKUP(Solution_tabDatasBDD_Segment[[#This Row],[CP]],Solution_tabDatasListe[CP],Solution_tabDatasListe[Commune])","v":"Uccle"},"1970-09-25",{"$f":"DATEDIF(Solution_tabDatasBDD_Segment[[#This Row],[Date de naissance]],TODAY(),\"y\")","v":53},"2035-09-25T21:04:30.814",{"$f":"DATEVALUE(DAY(Solution_tabDatasBDD_Segment[[#This Row],[Date de naissance]])&\"/\"&MONTH(Solution_tabDatasBDD_Segment[[#This Row],[Date de naissance]])&\"/\"&YEAR(Solution_tabDatasBDD_Segment[[#This Row],[Date de naissance]])+65)","v":"2035-09-25"},{"$f":"YEARFRAC(Solution_tabDatasBDD_Segment[[#This Row],[Date de naissance]],Solution_tabDatasBDD_Segment[[#This Row],[Date de 65 ans]])","v":65},{"$f":"_xlfn.IFS(Solution_tabDatasBDD_Segment[[#This Row],[Âge]]>=50,\"A\",Solution_tabDatasBDD_Segment[[#This Row],[Âge]]>=4,\"B\",Solution_tabDatasBDD_Segment[[#This Row],[Âge]]>=30,\"C\",Solution_tabDatasBDD_Segment[[#This Row],[Âge]]<30,\"D\")","v":"A"},"Rwanda",2]
["Didier Super","2010-09-06","m",null,"Rue Du grand-Duc",11,1040,{"$f":"MATCH(Solution_tabDatasBDD_Segment[[#This Row],[CP]],Solution_tabDatasListe[CP],0)","v":4},{"$f":"INDEX(Solution_tabDatasListe[Commune],Solution_tabDatasBDD_Segment[[#This Row],[Commune1]])","v":"Etterbeek"},{"$f":"_xlfn.XLOOKUP(Solution_tabDatasBDD_Segment[[#This Row],[CP]],Solution_tabDatasListe[CP],Solution_tabDatasListe[Commune])","v":"Etterbeek"},"1973-02-02",{"$f":"DATEDIF(Solution_tabDatasBDD_Segment[[#This Row],[Date de naissance]],TODAY(),\"y\")","v":51},"2038-02-02T13:49:04.987",{"$f":"DATEVALUE(DAY(Solution_tabDatasBDD_Segment[[#This Row],[Date de naissance]])&\"/\"&MONTH(Solution_tabDatasBDD_Segment[[#This Row],[Date de naissance]])&\"/\"&YEAR(Solution_tabDatasBDD_Segment[[#This Row],[Date de naissance]])+65)","v":"2038-02-02"},{"$f":"YEARFRAC(Solution_tabDatasBDD_Segment[[#This Row],[Date de naissance]],Solution_tabDatasBDD_Segment[[#This Row],[Date de 65 ans]])","v":65},{"$f":"_xlfn.IFS(Solution_tabDatasBDD_Segment[[#This Row],[Âge]]>=50,\"A\",Solution_tabDatasBDD_Segment[[#This Row],[Âge]]>=4,\"B\",Solution_tabDatasBDD_Segment[[#This Row],[Âge]]>=30,\"C\",Solution_tabDatasBDD_Segment[[#This Row],[Âge]]<30,\"D\")","v":"A"},"Sénégal"]
["Faf Larage","2010-09-07","m",null,"Avenue Louis Ceuster",256,1150,{"$f":"MATCH(Solution_tabDatasBDD_Segment[[#This Row],[CP]],Solution_tabDatasListe[CP],0)","v":13},{"$f":"INDEX(Solution_tabDatasListe[Commune],Solution_tabDatasBDD_Segment[[#This Row],[Commune1]])","v":"Woluwé-Saint-Pierre"},{"$f":"_xlfn.XLOOKUP(Solution_tabDatasBDD_Segment[[#This Row],[CP]],Solution_tabDatasListe[CP],Solution_tabDatasListe[Commune])","v":"Woluwé-Saint-Pierre"},"1976-03-17",{"$f":"DATEDIF(Solution_tabDatasBDD_Segment[[#This Row],[Date de naissance]],TODAY(),\"y\")","v":48},"2041-03-17T08:46:51.163",{"$f":"DATEVALUE(DAY(Solution_tabDatasBDD_Segment[[#This Row],[Date de naissance]])&\"/\"&MONTH(Solution_tabDatasBDD_Segment[[#This Row],[Date de naissance]])&\"/\"&YEAR(Solution_tabDatasBDD_Segment[[#This Row],[Date de naissance]])+65)","v":"2041-03-17"},{"$f":"YEARFRAC(Solution_tabDatasBDD_Segment[[#This Row],[Date de naissance]],Solution_tabDatasBDD_Segment[[#This Row],[Date de 65 ans]])","v":65},{"$f":"_xlfn.IFS(Solution_tabDatasBDD_Segment[[#This Row],[Âge]]>=50,\"A\",Solution_tabDatasBDD_Segment[[#This Row],[Âge]]>=4,\"B\",Solution_tabDatasBDD_Segment[[#This Row],[Âge]]>=30,\"C\",Solution_tabDatasBDD_Segment[[#This Row],[Âge]]<30,\"D\")","v":"B"},"Angola",3]
["Francisca Lalanne","2010-07-13","f",null,"Rue Borgval",36,1000,{"$f":"MATCH(Solution_tabDatasBDD_Segment[[#This Row],[CP]],Solution_tabDatasListe[CP],0)","v":1},{"$f":"INDEX(Solution_tabDatasListe[Commune],Solution_tabDatasBDD_Segment[[#This Row],[Commune1]])","v":"Bruxelles"},{"$f":"_xlfn.XLOOKUP(Solution_tabDatasBDD_Segment[[#This Row],[CP]],Solution_tabDatasListe[CP],Solution_tabDatasListe[Commune])","v":"Bruxelles"},"1973-06-24",{"$f":"DATEDIF(Solution_tabDatasBDD_Segment[[#This Row],[Date de naissance]],TODAY(),\"y\")","v":50},"2038-06-24T07:56:43.868",{"$f":"DATEVALUE(DAY(Solution_tabDatasBDD_Segment[[#This Row],[Date de naissance]])&\"/\"&MONTH(Solution_tabDatasBDD_Segment[[#This Row],[Date de naissance]])&\"/\"&YEAR(Solution_tabDatasBDD_Segment[[#This Row],[Date de naissance]])+65)","v":"2038-06-24"},{"$f":"YEARFRAC(Solution_tabDatasBDD_Segment[[#This Row],[Date de naissance]],Solution_tabDatasBDD_Segment[[#This Row],[Date de 65 ans]])","v":65},{"$f":"_xlfn.IFS(Solution_tabDatasBDD_Segment[[#This Row],[Âge]]>=50,\"A\",Solution_tabDatasBDD_Segment[[#This Row],[Âge]]>=4,\"B\",Solution_tabDatasBDD_Segment[[#This Row],[Âge]]>=30,\"C\",Solution_tabDatasBDD_Segment[[#This Row],[Âge]]<30,\"D\")","v":"A"},"Algérie"]
["Gérald De Palmas","2010-09-28","m",null,"Du Chapitre",65,1070,{"$f":"MATCH(Solution_tabDatasBDD_Segment[[#This Row],[CP]],Solution_tabDatasListe[CP],0)","v":7},{"$f":"INDEX(Solution_tabDatasListe[Commune],Solution_tabDatasBDD_Segment[[#This Row],[Commune1]])","v":"Anderlecht"},{"$f":"_xlfn.XLOOKUP(Solution_tabDatasBDD_Segment[[#This Row],[CP]],Solution_tabDatasListe[CP],Solution_tabDatasListe[Commune])","v":"Anderlecht"},"1983-12-20",{"$f":"DATEDIF(Solution_tabDatasBDD_Segment[[#This Row],[Date de naissance]],TODAY(),\"y\")","v":40},"2048-12-20T14:03:12.059",{"$f":"DATEVALUE(DAY(Solution_tabDatasBDD_Segment[[#This Row],[Date de naissance]])&\"/\"&MONTH(Solution_tabDatasBDD_Segment[[#This Row],[Date de naissance]])&\"/\"&YEAR(Solution_tabDatasBDD_Segment[[#This Row],[Date de naissance]])+65)","v":"2048-12-20"},{"$f":"YEARFRAC(Solution_tabDatasBDD_Segment[[#This Row],[Date de naissance]],Solution_tabDatasBDD_Segment[[#This Row],[Date de 65 ans]])","v":65},{"$f":"_xlfn.IFS(Solution_tabDatasBDD_Segment[[#This Row],[Âge]]>=50,\"A\",Solution_tabDatasBDD_Segment[[#This Row],[Âge]]>=4,\"B\",Solution_tabDatasBDD_Segment[[#This Row],[Âge]]>=30,\"C\",Solution_tabDatasBDD_Segment[[#This Row],[Âge]]<30,\"D\")","v":"B"},"Côte d'Ivoire"]
["Grégory Lemarchal","2010-09-27","m",null,"Moorsled",587,1020,{"$f":"MATCH(Solution_tabDatasBDD_Segment[[#This Row],[CP]],Solution_tabDatasListe[CP],0)","v":2},{"$f":"INDEX(Solution_tabDatasListe[Commune],Solution_tabDatasBDD_Segment[[#This Row],[Commune1]])","v":"Laeken"},{"$f":"_xlfn.XLOOKUP(Solution_tabDatasBDD_Segment[[#This Row],[CP]],Solution_tabDatasListe[CP],Solution_tabDatasListe[Commune])","v":"Laeken"},"1973-09-13",{"$f":"DATEDIF(Solution_tabDatasBDD_Segment[[#This Row],[Date de naissance]],TODAY(),\"y\")","v":50},"2038-09-13T11:48:00.054",{"$f":"DATEVALUE(DAY(Solution_tabDatasBDD_Segment[[#This Row],[Date de naissance]])&\"/\"&MONTH(Solution_tabDatasBDD_Segment[[#This Row],[Date de naissance]])&\"/\"&YEAR(Solution_tabDatasBDD_Segment[[#This Row],[Date de naissance]])+65)","v":"2038-09-13"},{"$f":"YEARFRAC(Solution_tabDatasBDD_Segment[[#This Row],[Date de naissance]],Solution_tabDatasBDD_Segment[[#This Row],[Date de 65 ans]])","v":65},{"$f":"_xlfn.IFS(Solution_tabDatasBDD_Segment[[#This Row],[Âge]]>=50,\"A\",Solution_tabDatasBDD_Segment[[#This Row],[Âge]]>=4,\"B\",Solution_tabDatasBDD_Segment[[#This Row],[Âge]]>=30,\"C\",Solution_tabDatasBDD_Segment[[#This Row],[Âge]]<30,\"D\")","v":"A"},"Belgique"]
["Jean-Jacques Goldman","2010-10-01","m",null,"Marcelle Gruner",25,1080,{"$f":"MATCH(Solution_tabDatasBDD_Segment[[#This Row],[CP]],Solution_tabDatasListe[CP],0)","v":8},{"$f":"INDEX(Solution_tabDatasListe[Commune],Solution_tabDatasBDD_Segment[[#This Row],[Commune1]])","v":"Molenbeek"},{"$f":"_xlfn.XLOOKUP(Solution_tabDatasBDD_Segment[[#This Row],[CP]],Solution_tabDatasListe[CP],Solution_tabDatasListe[Commune])","v":"Molenbeek"},"1974-06-27",{"$f":"DATEDIF(Solution_tabDatasBDD_Segment[[#This Row],[Date de naissance]],TODAY(),\"y\")","v":49},"2039-06-27T09:36:09.541",{"$f":"DATEVALUE(DAY(Solution_tabDatasBDD_Segment[[#This Row],[Date de naissance]])&\"/\"&MONTH(Solution_tabDatasBDD_Segment[[#This Row],[Date de naissance]])&\"/\"&YEAR(Solution_tabDatasBDD_Segment[[#This Row],[Date de naissance]])+65)","v":"2039-06-27"},{"$f":"YEARFRAC(Solution_tabDatasBDD_Segment[[#This Row],[Date de naissance]],Solution_tabDatasBDD_Segment[[#This Row],[Date de 65 ans]])","v":65},{"$f":"_xlfn.IFS(Solution_tabDatasBDD_Segment[[#This Row],[Âge]]>=50,\"A\",Solution_tabDatasBDD_Segment[[#This Row],[Âge]]>=4,\"B\",Solution_tabDatasBDD_Segment[[#This Row],[Âge]]>=30,\"C\",Solution_tabDatasBDD_Segment[[#This Row],[Âge]]<30,\"D\")","v":"B"},"Cameroun"]
["Jérémy Chatelain","2010-10-01","m",null,"Rue d'Albanie",55,1160,{"$f":"MATCH(Solution_tabDatasBDD_Segment[[#This Row],[CP]],Solution_tabDatasListe[CP],0)","v":14},{"$f":"INDEX(Solution_tabDatasListe[Commune],Solution_tabDatasBDD_Segment[[#This Row],[Commune1]])","v":"Auderghem"},{"$f":"_xlfn.XLOOKUP(Solution_tabDatasBDD_Segment[[#This Row],[CP]],Solution_tabDatasListe[CP],Solution_tabDatasListe[Commune])","v":"Auderghem"},"1955-02-22",{"$f":"DATEDIF(Solution_tabDatasBDD_Segment[[#This Row],[Date de naissance]],TODAY(),\"y\")","v":69},"2020-02-22T09:12:24.963",{"$f":"DATEVALUE(DAY(Solution_tabDatasBDD_Segment[[#This Row],[Date de naissance]])&\"/\"&MONTH(Solution_tabDatasBDD_Segment[[#This Row],[Date de naissance]])&\"/\"&YEAR(Solution_tabDatasBDD_Segment[[#This Row],[Date de naissance]])+65)","v":"2020-02-22"},{"$f":"YEARFRAC(Solution_tabDatasBDD_Segment[[#This Row],[Date de naissance]],Solution_tabDatasBDD_Segment[[#This Row],[Date de 65 ans]])","v":65},{"$f":"_xlfn.IFS(Solution_tabDatasBDD_Segment[[#This Row],[Âge]]>=50,\"A\",Solution_tabDatasBDD_Segment[[#This Row],[Âge]]>=4,\"B\",Solution_tabDatasBDD_Segment[[#This Row],[Âge]]>=30,\"C\",Solution_tabDatasBDD_Segment[[#This Row],[Âge]]<30,\"D\")","v":"A"},"Equateur",4]
["Kamini","2010-09-27","m",null,"Avenue de Koekelberg",35,1082,{"$f":"MATCH(Solution_tabDatasBDD_Segment[[#This Row],[CP]],Solution_tabDatasListe[CP],0)","v":9},{"$f":"INDEX(Solution_tabDatasListe[Commune],Solution_tabDatasBDD_Segment[[#This Row],[Commune1]])","v":"Berchem-Sainte-Agathe"},{"$f":"_xlfn.XLOOKUP(Solution_tabDatasBDD_Segment[[#This Row],[CP]],Solution_tabDatasListe[CP],Solution_tabDatasListe[Commune])","v":"Berchem-Sainte-Agathe"},"1981-07-14",{"$f":"DATEDIF(Solution_tabDatasBDD_Segment[[#This Row],[Date de naissance]],TODAY(),\"y\")","v":42},"2046-07-14T13:04:41.700",{"$f":"DATEVALUE(DAY(Solution_tabDatasBDD_Segment[[#This Row],[Date de naissance]])&\"/\"&MONTH(Solution_tabDatasBDD_Segment[[#This Row],[Date de naissance]])&\"/\"&YEAR(Solution_tabDatasBDD_Segment[[#This Row],[Date de naissance]])+65)","v":"2046-07-14"},{"$f":"YEARFRAC(Solution_tabDatasBDD_Segment[[#This Row],[Date de naissance]],Solution_tabDatasBDD_Segment[[#This Row],[Date de 65 ans]])","v":65},{"$f":"_xlfn.IFS(Solution_tabDatasBDD_Segment[[#This Row],[Âge]]>=50,\"A\",Solution_tabDatasBDD_Segment[[#This Row],[Âge]]>=4,\"B\",Solution_tabDatasBDD_Segment[[#This Row],[Âge]]>=30,\"C\",Solution_tabDatasBDD_Segment[[#This Row],[Âge]]<30,\"D\")","v":"B"},"Cameroun"]
["Louis Bertignac","2010-09-28","m",null,"Avenue de Koekelberg",856,1082,{"$f":"MATCH(Solution_tabDatasBDD_Segment[[#This Row],[CP]],Solution_tabDatasListe[CP],0)","v":9},{"$f":"INDEX(Solution_tabDatasListe[Commune],Solution_tabDatasBDD_Segment[[#This Row],[Commune1]])","v":"Berchem-Sainte-Agathe"},{"$f":"_xlfn.XLOOKUP(Solution_tabDatasBDD_Segment[[#This Row],[CP]],Solution_tabDatasListe[CP],Solution_tabDatasListe[Commune])","v":"Berchem-Sainte-Agathe"},"1955-02-22",{"$f":"DATEDIF(Solution_tabDatasBDD_Segment[[#This Row],[Date de naissance]],TODAY(),\"y\")","v":69},"2020-02-22T06:38:08.653",{"$f":"DATEVALUE(DAY(Solution_tabDatasBDD_Segment[[#This Row],[Date de naissance]])&\"/\"&MONTH(Solution_tabDatasBDD_Segment[[#This Row],[Date de naissance]])&\"/\"&YEAR(Solution_tabDatasBDD_Segment[[#This Row],[Date de naissance]])+65)","v":"2020-02-22"},{"$f":"YEARFRAC(Solution_tabDatasBDD_Segment[[#This Row],[Date de naissance]],Solution_tabDatasBDD_Segment[[#This Row],[Date de 65 ans]])","v":65},{"$f":"_xlfn.IFS(Solution_tabDatasBDD_Segment[[#This Row],[Âge]]>=50,\"A\",Solution_tabDatasBDD_Segment[[#This Row],[Âge]]>=4,\"B\",Solution_tabDatasBDD_Segment[[#This Row],[Âge]]>=30,\"C\",Solution_tabDatasBDD_Segment[[#This Row],[Âge]]<30,\"D\")","v":"A"}]
["Matt Pokora","2010-10-12","m",null,"Rue Masoui",584,1030,{"$f":"MATCH(Solution_tabDatasBDD_Segment[[#This Row],[CP]],Solution_tabDatasListe[CP],0)","v":3},{"$f":"INDEX(Solution_tabDatasListe[Commune],Solution_tabDatasBDD_Segment[[#This Row],[Commune1]])","v":"Schaerbeek"},{"$f":"_xlfn.XLOOKUP(Solution_tabDatasBDD_Segment[[#This Row],[CP]],Solution_tabDatasListe[CP],Solution_tabDatasListe[Commune])","v":"Schaerbeek"},"1971-10-01",{"$f":"DATEDIF(Solution_tabDatasBDD_Segment[[#This Row],[Date de naissance]],TODAY(),\"y\")","v":52},"2036-10-01T11:11:22.811",{"$f":"DATEVALUE(DAY(Solution_tabDatasBDD_Segment[[#This Row],[Date de naissance]])&\"/\"&MONTH(Solution_tabDatasBDD_Segment[[#This Row],[Date de naissance]])&\"/\"&YEAR(Solution_tabDatasBDD_Segment[[#This Row],[Date de naissance]])+65)","v":"2036-10-01"},{"$f":"YEARFRAC(Solution_tabDatasBDD_Segment[[#This Row],[Date de naissance]],Solution_tabDatasBDD_Segment[[#This Row],[Date de 65 ans]])","v":65},{"$f":"_xlfn.IFS(Solution_tabDatasBDD_Segment[[#This Row],[Âge]]>=50,\"A\",Solution_tabDatasBDD_Segment[[#This Row],[Âge]]>=4,\"B\",Solution_tabDatasBDD_Segment[[#This Row],[Âge]]>=30,\"C\",Solution_tabDatasBDD_Segment[[#This Row],[Âge]]<30,\"D\")","v":"A"},"Congo"]
["Michel Delpech","2010-10-12","m",null,"BLD Maurice Karen",452,1070,{"$f":"MATCH(Solution_tabDatasBDD_Segment[[#This Row],[CP]],Solution_tabDatasListe[CP],0)","v":7},{"$f":"INDEX(Solution_tabDatasListe[Commune],Solution_tabDatasBDD_Segment[[#This Row],[Commune1]])","v":"Anderlecht"},{"$f":"_xlfn.XLOOKUP(Solution_tabDatasBDD_Segment[[#This Row],[CP]],Solution_tabDatasListe[CP],Solution_tabDatasListe[Commune])","v":"Anderlecht"},"1981-08-24",{"$f":"DATEDIF(Solution_tabDatasBDD_Segment[[#This Row],[Date de naissance]],TODAY(),\"y\")","v":42},"2046-08-24T15:24:23.707",{"$f":"DATEVALUE(DAY(Solution_tabDatasBDD_Segment[[#This Row],[Date de naissance]])&\"/\"&MONTH(Solution_tabDatasBDD_Segment[[#This Row],[Date de naissance]])&\"/\"&YEAR(Solution_tabDatasBDD_Segment[[#This Row],[Date de naissance]])+65)","v":"2046-08-24"},{"$f":"YEARFRAC(Solution_tabDatasBDD_Segment[[#This Row],[Date de naissance]],Solution_tabDatasBDD_Segment[[#This Row],[Date de 65 ans]])","v":65},{"$f":"_xlfn.IFS(Solution_tabDatasBDD_Segment[[#This Row],[Âge]]>=50,\"A\",Solution_tabDatasBDD_Segment[[#This Row],[Âge]]>=4,\"B\",Solution_tabDatasBDD_Segment[[#This Row],[Âge]]>=30,\"C\",Solution_tabDatasBDD_Segment[[#This Row],[Âge]]<30,\"D\")","v":"B"},"Cuba"]
["Miossec","2010-10-12","m",null,"Eugène Plasky",25,1030,{"$f":"MATCH(Solution_tabDatasBDD_Segment[[#This Row],[CP]],Solution_tabDatasListe[CP],0)","v":3},{"$f":"INDEX(Solution_tabDatasListe[Commune],Solution_tabDatasBDD_Segment[[#This Row],[Commune1]])","v":"Schaerbeek"},{"$f":"_xlfn.XLOOKUP(Solution_tabDatasBDD_Segment[[#This Row],[CP]],Solution_tabDatasListe[CP],Solution_tabDatasListe[Commune])","v":"Schaerbeek"},"1965-08-25",{"$f":"DATEDIF(Solution_tabDatasBDD_Segment[[#This Row],[Date de naissance]],TODAY(),\"y\")","v":58},"2030-08-25T22:24:31.337",{"$f":"DATEVALUE(DAY(Solution_tabDatasBDD_Segment[[#This Row],[Date de naissance]])&\"/\"&MONTH(Solution_tabDatasBDD_Segment[[#This Row],[Date de naissance]])&\"/\"&YEAR(Solution_tabDatasBDD_Segment[[#This Row],[Date de naissance]])+65)","v":"2030-08-25"},{"$f":"YEARFRAC(Solution_tabDatasBDD_Segment[[#This Row],[Date de naissance]],Solution_tabDatasBDD_Segment[[#This Row],[Date de 65 ans]])","v":65},{"$f":"_xlfn.IFS(Solution_tabDatasBDD_Segment[[#This Row],[Âge]]>=50,\"A\",Solution_tabDatasBDD_Segment[[#This Row],[Âge]]>=4,\"B\",Solution_tabDatasBDD_Segment[[#This Row],[Âge]]>=30,\"C\",Solution_tabDatasBDD_Segment[[#This Row],[Âge]]<30,\"D\")","v":"A"},"Congo"]
["Patricia Fiori","2010-10-08","f",null,"Chaussée d'Hacht",2,1030,{"$f":"MATCH(Solution_tabDatasBDD_Segment[[#This Row],[CP]],Solution_tabDatasListe[CP],0)","v":3},{"$f":"INDEX(Solution_tabDatasListe[Commune],Solution_tabDatasBDD_Segment[[#This Row],[Commune1]])","v":"Schaerbeek"},{"$f":"_xlfn.XLOOKUP(Solution_tabDatasBDD_Segment[[#This Row],[CP]],Solution_tabDatasListe[CP],Solution_tabDatasListe[Commune])","v":"Schaerbeek"},"1976-09-15",{"$f":"DATEDIF(Solution_tabDatasBDD_Segment[[#This Row],[Date de naissance]],TODAY(),\"y\")","v":47},"2041-09-15T05:53:04.289",{"$f":"DATEVALUE(DAY(Solution_tabDatasBDD_Segment[[#This Row],[Date de naissance]])&\"/\"&MONTH(Solution_tabDatasBDD_Segment[[#This Row],[Date de naissance]])&\"/\"&YEAR(Solution_tabDatasBDD_Segment[[#This Row],[Date de naissance]])+65)","v":"2041-09-15"},{"$f":"YEARFRAC(Solution_tabDatasBDD_Segment[[#This Row],[Date de naissance]],Solution_tabDatasBDD_Segment[[#This Row],[Date de 65 ans]])","v":65},{"$f":"_xlfn.IFS(Solution_tabDatasBDD_Segment[[#This Row],[Âge]]>=50,\"A\",Solution_tabDatasBDD_Segment[[#This Row],[Âge]]>=4,\"B\",Solution_tabDatasBDD_Segment[[#This Row],[Âge]]>=30,\"C\",Solution_tabDatasBDD_Segment[[#This Row],[Âge]]<30,\"D\")","v":"B"},"Cameroun"]
["Renaud","2010-10-09","m",null,"BLD Maurice Karen",452,1070,{"$f":"MATCH(Solution_tabDatasBDD_Segment[[#This Row],[CP]],Solution_tabDatasListe[CP],0)","v":7},{"$f":"INDEX(Solution_tabDatasListe[Commune],Solution_tabDatasBDD_Segment[[#This Row],[Commune1]])","v":"Anderlecht"},{"$f":"_xlfn.XLOOKUP(Solution_tabDatasBDD_Segment[[#This Row],[CP]],Solution_tabDatasListe[CP],Solution_tabDatasListe[Commune])","v":"Anderlecht"},"1968-03-03",{"$f":"DATEDIF(Solution_tabDatasBDD_Segment[[#This Row],[Date de naissance]],TODAY(),\"y\")","v":56},"2033-03-03T09:59:42.202",{"$f":"DATEVALUE(DAY(Solution_tabDatasBDD_Segment[[#This Row],[Date de naissance]])&\"/\"&MONTH(Solution_tabDatasBDD_Segment[[#This Row],[Date de naissance]])&\"/\"&YEAR(Solution_tabDatasBDD_Segment[[#This Row],[Date de naissance]])+65)","v":"2033-03-03"},{"$f":"YEARFRAC(Solution_tabDatasBDD_Segment[[#This Row],[Date de naissance]],Solution_tabDatasBDD_Segment[[#This Row],[Date de 65 ans]])","v":65},{"$f":"_xlfn.IFS(Solution_tabDatasBDD_Segment[[#This Row],[Âge]]>=50,\"A\",Solution_tabDatasBDD_Segment[[#This Row],[Âge]]>=4,\"B\",Solution_tabDatasBDD_Segment[[#This Row],[Âge]]>=30,\"C\",Solution_tabDatasBDD_Segment[[#This Row],[Âge]]<30,\"D\")","v":"A"},"Congo"]
["Serge Lama","2010-10-10","m",null,"Rue Borgval",36,1000,{"$f":"MATCH(Solution_tabDatasBDD_Segment[[#This Row],[CP]],Solution_tabDatasListe[CP],0)","v":1},{"$f":"INDEX(Solution_tabDatasListe[Commune],Solution_tabDatasBDD_Segment[[#This Row],[Commune1]])","v":"Bruxelles"},{"$f":"_xlfn.XLOOKUP(Solution_tabDatasBDD_Segment[[#This Row],[CP]],Solution_tabDatasListe[CP],Solution_tabDatasListe[Commune])","v":"Bruxelles"},"1979-06-02",{"$f":"DATEDIF(Solution_tabDatasBDD_Segment[[#This Row],[Date de naissance]],TODAY(),\"y\")","v":45},"2044-06-02T15:54:07.740",{"$f":"DATEVALUE(DAY(Solution_tabDatasBDD_Segment[[#This Row],[Date de naissance]])&\"/\"&MONTH(Solution_tabDatasBDD_Segment[[#This Row],[Date de naissance]])&\"/\"&YEAR(Solution_tabDatasBDD_Segment[[#This Row],[Date de naissance]])+65)","v":"2044-06-02"},{"$f":"YEARFRAC(Solution_tabDatasBDD_Segment[[#This Row],[Date de naissance]],Solution_tabDatasBDD_Segment[[#This Row],[Date de 65 ans]])","v":65},{"$f":"_xlfn.IFS(Solution_tabDatasBDD_Segment[[#This Row],[Âge]]>=50,\"A\",Solution_tabDatasBDD_Segment[[#This Row],[Âge]]>=4,\"B\",Solution_tabDatasBDD_Segment[[#This Row],[Âge]]>=30,\"C\",Solution_tabDatasBDD_Segment[[#This Row],[Âge]]<30,\"D\")","v":"B"},"Cuba"]
["Thierry Amiel","2010-10-11","m",null,"Rue Borgval",36,1000,{"$f":"MATCH(Solution_tabDatasBDD_Segment[[#This Row],[CP]],Solution_tabDatasListe[CP],0)","v":1},{"$f":"INDEX(Solution_tabDatasListe[Commune],Solution_tabDatasBDD_Segment[[#This Row],[Commune1]])","v":"Bruxelles"},{"$f":"_xlfn.XLOOKUP(Solution_tabDatasBDD_Segment[[#This Row],[CP]],Solution_tabDatasListe[CP],Solution_tabDatasListe[Commune])","v":"Bruxelles"},"1975-08-23",{"$f":"DATEDIF(Solution_tabDatasBDD_Segment[[#This Row],[Date de naissance]],TODAY(),\"y\")","v":48},"2040-08-23T16:36:00.339",{"$f":"DATEVALUE(DAY(Solution_tabDatasBDD_Segment[[#This Row],[Date de naissance]])&\"/\"&MONTH(Solution_tabDatasBDD_Segment[[#This Row],[Date de naissance]])&\"/\"&YEAR(Solution_tabDatasBDD_Segment[[#This Row],[Date de naissance]])+65)","v":"2040-08-23"},{"$f":"YEARFRAC(Solution_tabDatasBDD_Segment[[#This Row],[Date de naissance]],Solution_tabDatasBDD_Segment[[#This Row],[Date de 65 ans]])","v":65},{"$f":"_xlfn.IFS(Solution_tabDatasBDD_Segment[[#This Row],[Âge]]>=50,\"A\",Solution_tabDatasBDD_Segment[[#This Row],[Âge]]>=4,\"B\",Solution_tabDatasBDD_Segment[[#This Row],[Âge]]>=30,\"C\",Solution_tabDatasBDD_Segment[[#This Row],[Âge]]<30,\"D\")","v":"B"},"Congo"]
["William Sheller","2010-10-12","m",null,"Square Armand Steurs",12,1210,{"$f":"MATCH(Solution_tabDatasBDD_Segment[[#This Row],[CP]],Solution_tabDatasListe[CP],0)","v":17},{"$f":"INDEX(Solution_tabDatasListe[Commune],Solution_tabDatasBDD_Segment[[#This Row],[Commune1]])","v":"Saint-Josse-Ten-noode"},{"$f":"_xlfn.XLOOKUP(Solution_tabDatasBDD_Segment[[#This Row],[CP]],Solution_tabDatasListe[CP],Solution_tabDatasListe[Commune])","v":"Saint-Josse-Ten-noode"},"1973-09-15",{"$f":"DATEDIF(Solution_tabDatasBDD_Segment[[#This Row],[Date de naissance]],TODAY(),\"y\")","v":50},"2038-09-15T09:44:47.685",{"$f":"DATEVALUE(DAY(Solution_tabDatasBDD_Segment[[#This Row],[Date de naissance]])&\"/\"&MONTH(Solution_tabDatasBDD_Segment[[#This Row],[Date de naissance]])&\"/\"&YEAR(Solution_tabDatasBDD_Segment[[#This Row],[Date de naissance]])+65)","v":"2038-09-15"},{"$f":"YEARFRAC(Solution_tabDatasBDD_Segment[[#This Row],[Date de naissance]],Solution_tabDatasBDD_Segment[[#This Row],[Date de 65 ans]])","v":65},{"$f":"_xlfn.IFS(Solution_tabDatasBDD_Segment[[#This Row],[Âge]]>=50,\"A\",Solution_tabDatasBDD_Segment[[#This Row],[Âge]]>=4,\"B\",Solution_tabDatasBDD_Segment[[#This Row],[Âge]]>=30,\"C\",Solution_tabDatasBDD_Segment[[#This Row],[Âge]]<30,\"D\")","v":"A"},"Cameroun"]
["Damso","2010-04-01","m",null,"Chaussée d'Hacht",36,1030,{"$f":"MATCH(Solution_tabDatasBDD_Segment[[#This Row],[CP]],Solution_tabDatasListe[CP],0)","v":3},{"$f":"INDEX(Solution_tabDatasListe[Commune],Solution_tabDatasBDD_Segment[[#This Row],[Commune1]])","v":"Schaerbeek"},{"$f":"_xlfn.XLOOKUP(Solution_tabDatasBDD_Segment[[#This Row],[CP]],Solution_tabDatasListe[CP],Solution_tabDatasListe[Commune])","v":"Schaerbeek"},"1991-09-09",{"$f":"DATEDIF(Solution_tabDatasBDD_Segment[[#This Row],[Date de naissance]],TODAY(),\"y\")","v":32},"2056-09-09T22:43:40.021",{"$f":"DATEVALUE(DAY(Solution_tabDatasBDD_Segment[[#This Row],[Date de naissance]])&\"/\"&MONTH(Solution_tabDatasBDD_Segment[[#This Row],[Date de naissance]])&\"/\"&YEAR(Solution_tabDatasBDD_Segment[[#This Row],[Date de naissance]])+65)","v":"2056-09-09"},{"$f":"YEARFRAC(Solution_tabDatasBDD_Segment[[#This Row],[Date de naissance]],Solution_tabDatasBDD_Segment[[#This Row],[Date de 65 ans]])","v":65},{"$f":"_xlfn.IFS(Solution_tabDatasBDD_Segment[[#This Row],[Âge]]>=50,\"A\",Solution_tabDatasBDD_Segment[[#This Row],[Âge]]>=4,\"B\",Solution_tabDatasBDD_Segment[[#This Row],[Âge]]>=30,\"C\",Solution_tabDatasBDD_Segment[[#This Row],[Âge]]<30,\"D\")","v":"B"},"Chine"]
["Daniel Balavoine","2010-08-02","m",null,"Avenue Chazal",5,1030,{"$f":"MATCH(Solution_tabDatasBDD_Segment[[#This Row],[CP]],Solution_tabDatasListe[CP],0)","v":3},{"$f":"INDEX(Solution_tabDatasListe[Commune],Solution_tabDatasBDD_Segment[[#This Row],[Commune1]])","v":"Schaerbeek"},{"$f":"_xlfn.XLOOKUP(Solution_tabDatasBDD_Segment[[#This Row],[CP]],Solution_tabDatasListe[CP],Solution_tabDatasListe[Commune])","v":"Schaerbeek"},"1970-07-08",{"$f":"DATEDIF(Solution_tabDatasBDD_Segment[[#This Row],[Date de naissance]],TODAY(),\"y\")","v":53},"2035-07-08T13:46:16.396",{"$f":"DATEVALUE(DAY(Solution_tabDatasBDD_Segment[[#This Row],[Date de naissance]])&\"/\"&MONTH(Solution_tabDatasBDD_Segment[[#This Row],[Date de naissance]])&\"/\"&YEAR(Solution_tabDatasBDD_Segment[[#This Row],[Date de naissance]])+65)","v":"2035-07-08"},{"$f":"YEARFRAC(Solution_tabDatasBDD_Segment[[#This Row],[Date de naissance]],Solution_tabDatasBDD_Segment[[#This Row],[Date de 65 ans]])","v":65},{"$f":"_xlfn.IFS(Solution_tabDatasBDD_Segment[[#This Row],[Âge]]>=50,\"A\",Solution_tabDatasBDD_Segment[[#This Row],[Âge]]>=4,\"B\",Solution_tabDatasBDD_Segment[[#This Row],[Âge]]>=30,\"C\",Solution_tabDatasBDD_Segment[[#This Row],[Âge]]<30,\"D\")","v":"A"},"Ukraine"]
["Anitta","2010-12-12","f",null,"Avenue Chazal",66,1030,{"$f":"MATCH(Solution_tabDatasBDD_Segment[[#This Row],[CP]],Solution_tabDatasListe[CP],0)","v":3},{"$f":"INDEX(Solution_tabDatasListe[Commune],Solution_tabDatasBDD_Segment[[#This Row],[Commune1]])","v":"Schaerbeek"},{"$f":"_xlfn.XLOOKUP(Solution_tabDatasBDD_Segment[[#This Row],[CP]],Solution_tabDatasListe[CP],Solution_tabDatasListe[Commune])","v":"Schaerbeek"},"1996-08-09",{"$f":"DATEDIF(Solution_tabDatasBDD_Segment[[#This Row],[Date de naissance]],TODAY(),\"y\")","v":27},"2061-08-09T02:16:01.727",{"$f":"DATEVALUE(DAY(Solution_tabDatasBDD_Segment[[#This Row],[Date de naissance]])&\"/\"&MONTH(Solution_tabDatasBDD_Segment[[#This Row],[Date de naissance]])&\"/\"&YEAR(Solution_tabDatasBDD_Segment[[#This Row],[Date de naissance]])+65)","v":"2061-08-09"},{"$f":"YEARFRAC(Solution_tabDatasBDD_Segment[[#This Row],[Date de naissance]],Solution_tabDatasBDD_Segment[[#This Row],[Date de 65 ans]])","v":65},{"$f":"_xlfn.IFS(Solution_tabDatasBDD_Segment[[#This Row],[Âge]]>=50,\"A\",Solution_tabDatasBDD_Segment[[#This Row],[Âge]]>=4,\"B\",Solution_tabDatasBDD_Segment[[#This Row],[Âge]]>=30,\"C\",Solution_tabDatasBDD_Segment[[#This Row],[Âge]]<30,\"D\")","v":"B"},"Brésil"]
["Leo Santana","2010-10-12","m",null,"Rue Masoui",50,1030,{"$f":"MATCH(Solution_tabDatasBDD_Segment[[#This Row],[CP]],Solution_tabDatasListe[CP],0)","v":3},{"$f":"INDEX(Solution_tabDatasListe[Commune],Solution_tabDatasBDD_Segment[[#This Row],[Commune1]])","v":"Schaerbeek"},{"$f":"_xlfn.XLOOKUP(Solution_tabDatasBDD_Segment[[#This Row],[CP]],Solution_tabDatasListe[CP],Solution_tabDatasListe[Commune])","v":"Schaerbeek"},"1965-07-08",{"$f":"DATEDIF(Solution_tabDatasBDD_Segment[[#This Row],[Date de naissance]],TODAY(),\"y\")","v":58},"2030-07-08T09:36:31.514",{"$f":"DATEVALUE(DAY(Solution_tabDatasBDD_Segment[[#This Row],[Date de naissance]])&\"/\"&MONTH(Solution_tabDatasBDD_Segment[[#This Row],[Date de naissance]])&\"/\"&YEAR(Solution_tabDatasBDD_Segment[[#This Row],[Date de naissance]])+65)","v":"2030-07-08"},{"$f":"YEARFRAC(Solution_tabDatasBDD_Segment[[#This Row],[Date de naissance]],Solution_tabDatasBDD_Segment[[#This Row],[Date de 65 ans]])","v":65},{"$f":"_xlfn.IFS(Solution_tabDatasBDD_Segment[[#This Row],[Âge]]>=50,\"A\",Solution_tabDatasBDD_Segment[[#This Row],[Âge]]>=4,\"B\",Solution_tabDatasBDD_Segment[[#This Row],[Âge]]>=30,\"C\",Solution_tabDatasBDD_Segment[[#This Row],[Âge]]<30,\"D\")","v":"A"},"Brésil"]
["Ivete Sangalo","2010-04-06","f",null,"Eugène Plasky",88,1030,{"$f":"MATCH(Solution_tabDatasBDD_Segment[[#This Row],[CP]],Solution_tabDatasListe[CP],0)","v":3},{"$f":"INDEX(Solution_tabDatasListe[Commune],Solution_tabDatasBDD_Segment[[#This Row],[Commune1]])","v":"Schaerbeek"},{"$f":"_xlfn.XLOOKUP(Solution_tabDatasBDD_Segment[[#This Row],[CP]],Solution_tabDatasListe[CP],Solution_tabDatasListe[Commune])","v":"Schaerbeek"},"1988-09-09",{"$f":"DATEDIF(Solution_tabDatasBDD_Segment[[#This Row],[Date de naissance]],TODAY(),\"y\")","v":35},"2053-09-09T13:03:14.145",{"$f":"DATEVALUE(DAY(Solution_tabDatasBDD_Segment[[#This Row],[Date de naissance]])&\"/\"&MONTH(Solution_tabDatasBDD_Segment[[#This Row],[Date de naissance]])&\"/\"&YEAR(Solution_tabDatasBDD_Segment[[#This Row],[Date de naissance]])+65)","v":"2053-09-09"},{"$f":"YEARFRAC(Solution_tabDatasBDD_Segment[[#This Row],[Date de naissance]],Solution_tabDatasBDD_Segment[[#This Row],[Date de 65 ans]])","v":65},{"$f":"_xlfn.IFS(Solution_tabDatasBDD_Segment[[#This Row],[Âge]]>=50,\"A\",Solution_tabDatasBDD_Segment[[#This Row],[Âge]]>=4,\"B\",Solution_tabDatasBDD_Segment[[#This Row],[Âge]]>=30,\"C\",Solution_tabDatasBDD_Segment[[#This Row],[Âge]]<30,\"D\")","v":"B"},"Brésil"]
["Nemo","2010-12-31","m",null,"Avenue Dailly",120,1030,{"$f":"MATCH(Solution_tabDatasBDD_Segment[[#This Row],[CP]],Solution_tabDatasListe[CP],0)","v":3},{"$f":"INDEX(Solution_tabDatasListe[Commune],Solution_tabDatasBDD_Segment[[#This Row],[Commune1]])","v":"Schaerbeek"},{"$f":"_xlfn.XLOOKUP(Solution_tabDatasBDD_Segment[[#This Row],[CP]],Solution_tabDatasListe[CP],Solution_tabDatasListe[Commune])","v":"Schaerbeek"},"2001-05-08",{"$f":"DATEDIF(Solution_tabDatasBDD_Segment[[#This Row],[Date de naissance]],TODAY(),\"y\")","v":23},"2066-05-08T02:39:33.269",{"$f":"DATEVALUE(DAY(Solution_tabDatasBDD_Segment[[#This Row],[Date de naissance]])&\"/\"&MONTH(Solution_tabDatasBDD_Segment[[#This Row],[Date de naissance]])&\"/\"&YEAR(Solution_tabDatasBDD_Segment[[#This Row],[Date de naissance]])+65)","v":"2066-05-08"},{"$f":"YEARFRAC(Solution_tabDatasBDD_Segment[[#This Row],[Date de naissance]],Solution_tabDatasBDD_Segment[[#This Row],[Date de 65 ans]])","v":65},{"$f":"_xlfn.IFS(Solution_tabDatasBDD_Segment[[#This Row],[Âge]]>=50,\"A\",Solution_tabDatasBDD_Segment[[#This Row],[Âge]]>=4,\"B\",Solution_tabDatasBDD_Segment[[#This Row],[Âge]]>=30,\"C\",Solution_tabDatasBDD_Segment[[#This Row],[Âge]]<30,\"D\")","v":"B"},"Suisse"]

{"sheet":"FiltrerA_FiltreAvancé_Solution","index":24,"n_rows":23,"n_cols":13,"rows_kept":23,"cut":false,"hidden":false,"merged":[]}
["Sur la feuille 'FiltrerA_FiltreAvancé', obtenez avec un filtre avancé une liste comprenant nom, prénom, date d'arrivée et pays d'origine",null,null,null,null,null,null,null,null,null,null,null,"Retour sommaire"]
[null,"des gens arrivés en mai 2010 ayant le Cameroun ou le Maroc comme pays d'origine"]
[]
[null,"Pays d'origine","Date d'entrée","Date d'entrée",null,"NB : Ici, les dates ont été mises au format Anglais car le filtre est enregistré dans une macro qui fonctione en VBA (et qui utilise la format Anglais :( )"]
[null,"Cameroun",">=05/01/2010","<=05/31/2010",null,"=> Si le filtre est exécutée directement par 'Données .. Filtrer .. Filtre avancé', il faut utiliser e format du pc (ici jj/mm/aaaa)"]
[null,"Maroc",">=05/01/2010","<=05/31/2010"]
[]
[]
[null,"Nom","Date d'entrée","Pays d'origine"]
[null,"Bernard Lavilliers","2010-05-31","Maroc"]
[null,"Christophe Willem","2010-05-31","Cameroun"]
[null,"Faudel","2010-05-31","Maroc"]
[null,"Frank Alamo","2010-05-31","Cameroun"]
[null,"Gérard Blanchard","2010-05-07","Cameroun"]
[null,"Thomas Fersen","2010-05-12","Maroc"]
[null,"Yann Tiersen","2010-05-12","Maroc"]
[null,"Alexis HK","2010-05-12","Cameroun"]
[null,"Bertrand Burgalat","2010-05-04","Maroc"]
[null,"Jacques Higelin","2010-05-12","Maroc"]
[null,"Julien Baer","2010-05-12","Maroc"]
[null,"Pascal Obispo","2010-05-12","Maroc"]
[null,"Roch Voisine","2010-05-10","Cameroun"]
[null,"Alain Chamfort","2010-05-12","Maroc"]

{"sheet":"FiltrerA_PowerQuery_Solution","index":25,"n_rows":21,"n_cols":13,"rows_kept":21,"cut":false,"hidden":false,"merged":[]}
["Sur la feuille 'FiltrerA_PowerQuery', obtenez avec Power Query une liste comprenant nom, prénom, date d'arrivée et pays d'origine",null,null,null,null,null,null,null,null,null,null,null,"Retour sommaire"]
[null,"des gens arrivés en mai 2010 ayant le Cameroun ou le Maroc comme pays d'origine"]
[]
["NB : La source qui contient les données sera enrgistrée en tant que requête (query) pour laquelle uniquement une connexion est créée"]
["=> À partir de cette connexion, d'autres requêtes (queries) seront créées afin de filtrer les données selon les consignes"]
[]
["Nom","Date d'entrée","Pays d'origine"]
["Bernard Lavilliers","2010-05-31","Maroc"]
["Christophe Willem","2010-05-31","Cameroun"]
["Faudel","2010-05-31","Maroc"]
["Frank Alamo","2010-05-31","Cameroun"]
["Gérard Blanchard","2010-05-07","Cameroun"]
["Thomas Fersen","2010-05-12","Maroc"]
["Yann Tiersen","2010-05-12","Maroc"]
["Alexis HK","2010-05-12","Cameroun"]
["Bertrand Burgalat","2010-05-04","Maroc"]
["Jacques Higelin","2010-05-12","Maroc"]
["Julien Baer","2010-05-12","Maroc"]
["Pascal Obispo","2010-05-12","Maroc"]
["Roch Voisine","2010-05-10","Cameroun"]
["Alain Chamfort","2010-05-12","Maroc"]

{"sheet":"FiltrerB_FiltreAvancé_Solution","index":26,"n_rows":13,"n_cols":13,"rows_kept":13,"cut":false,"hidden":false,"merged":[]}
["Sur la feuille 'FiltrerB_FiltreAvancé', obtenez avec un filtre avancé une liste comprenant nom, prénom, date d'arrivée et pays d'origine",null,null,null,null,null,null,null,null,null,null,null,"Retour sommaire"]
[null,"des gens ayant la Turquie ou le Congo comme pays d'origine, arrivés en mai 2010"]
[]
[null,"Pays d'origine","Date d'entrée","Date d'entrée"]
[null,"Turquie",">=01/05/2010","<=31/05/2010"]
[null,"Congo",">=01/05/2010","<=31/05/2010"]
[]
[]
[null,"Nom","Date d'entrée","Pays d'origine"]
[null,"Doc Gynéco","2010-05-31","Turquie"]
[null,"Arthur H","2010-05-04","Congo"]
[null,"Corneille","2010-05-04","Turquie"]
[null,"Stomy Bugsy","2010-05-07","Congo"]

{"sheet":"FiltrerB_PowerQuery_Solution","index":27,"n_rows":9,"n_cols":13,"rows_kept":9,"cut":false,"hidden":false,"merged":[]}
["Sur la feuille 'FiltrerB_PowerQuery', obtenez avec Power Query une liste comprenant nom, prénom, date d'arrivée et pays d'origine",null,null,null,null,null,null,null,null,null,null,null,"Retour sommaire"]
[null,"des gens ayant la Turquie ou le Congo comme pays d'origine, arrivés en mai 2010"]
[]
[]
[null,"Nom","Date d'entrée","Pays d'origine"]
[null,"Doc Gynéco","2010-05-31","Turquie"]
[null,"Arthur H","2010-05-04","Congo"]
[null,"Corneille","2010-05-04","Turquie"]
[null,"Stomy Bugsy","2010-05-07","Congo"]

{"sheet":"FiltrerC_FiltreAvancé_Solution","index":28,"n_rows":35,"n_cols":13,"rows_kept":35,"cut":false,"hidden":false,"merged":[]}
["Sur la feuille 'FiltrerC_FiltreAvancé', obtenez avec un filtre avancé une liste comprenant nom, prénom, date d'arrivée et pays d'origine",null,null,null,null,null,null,null,null,null,null,null,"Retour sommaire"]
[null,"des gens dont le nom commence par A, B ou C"]
[]
[null,"Nom"]
[null,"a"]
[null,"b"]
[null,"c"]
[]
[]
[null,"Nom","Date d'entrée","Pays d'origine"]
[null,"Akhenaton","2010-04-14","Guinée"]
[null,"Aldebert","2010-04-19","Guinée"]
[null,"Arno","2010-04-20","Belgique"]
[null,"Bernard Lavilliers","2010-05-31","Maroc"]
[null,"Calogero","2010-05-27","Equateur"]
[null,"Christophe Willem","2010-05-31","Cameroun"]
[null,"Alain Bashung","2010-05-12","Algérie"]
[null,"Alexis HK","2010-05-12","Cameroun"]
[null,"Arthur H","2010-05-04","Congo"]
[null,"Bertrand Burgalat","2010-05-04","Maroc"]
[null,"Charlélie Couture","2010-05-04","Belgique"]
[null,"Corneille","2010-05-04","Turquie"]
[null,"Cécile Defrance","2010-04-19","Sénégal"]
[null,"Amel Bent","2010-04-19","Congo"]
[null,"Alain Chamfort","2010-05-12","Maroc"]
[null,"Alibi Montana","2010-05-12","Syrie"]
[null,"Axelle Red","2010-04-30","Géorgie"]
[null,"Bob Sinclar","2010-04-30","Bangladesh"]
[null,"Charles Aznavour","2010-04-30","Colombie"]
[null,"Alain Souchon","2010-08-26","Algérie"]
[null,"Antoine","2010-08-20","Cameroun"]
[null,"Bénabar","2010-08-30","Congo"]
[null,"Cali","2010-08-30","Maroc"]
[null,"Christophe Maé","2010-09-02","Rwanda"]
[null,"Anitta","2010-12-12","Brésil"]

{"sheet":"FiltrerC_PowerQuery_Solution","index":29,"n_rows":30,"n_cols":13,"rows_kept":30,"cut":false,"hidden":false,"merged":[]}
["Sur la feuille 'FiltrerC_PowerQuery', obtenez avec Power Query une liste comprenant nom, prénom, date d'arrivée et pays d'origine des gens",null,null,null,null,null,null,null,null,null,null,null,"Retour sommaire"]
[null,"dont le nom commence par A, B ou C"]
[]
[]
[null,"Nom","Date d'entrée","Pays d'origine",null,"NB : Les filtres de Power Query sont plus performants que les filtres classiques d'Excel"]
[null,"Akhenaton","2010-04-14","Guinée",null,"NB : ATTENTION à la casse !!!"]
[null,"Alain Bashung","2010-05-12","Algérie"]
[null,"Alain Chamfort","2010-05-12","Maroc"]
[null,"Alain Souchon","2010-08-26","Algérie"]
[null,"Aldebert","2010-04-19","Guinée"]
[null,"Alexis HK","2010-05-12","Cameroun"]
[null,"Alibi Montana","2010-05-12","Syrie"]
[null,"Amel Bent","2010-04-19","Congo"]
[null,"Anitta","2010-12-12","Brésil"]
[null,"Antoine","2010-08-20","Cameroun"]
[null,"Arno","2010-04-20","Belgique"]
[null,"Arthur H","2010-05-04","Congo"]
[null,"Axelle Red","2010-04-30","Géorgie"]
[null,"Bernard Lavilliers","2010-05-31","Maroc"]
[null,"Bertrand Burgalat","2010-05-04","Maroc"]
[null,"Bob Sinclar","2010-04-30","Bangladesh"]
[null,"Bénabar","2010-08-30","Congo"]
[null,"Cali","2010-08-30","Maroc"]
[null,"Calogero","2010-05-27","Equateur"]
[null,"Charles Aznavour","2010-04-30","Colombie"]
[null,"Charlélie Couture","2010-05-04","Belgique"]
[null,"Christophe Maé","2010-09-02","Rwanda"]
[null,"Christophe Willem","2010-05-31","Cameroun"]
[null,"Corneille","2010-05-04","Turquie"]
[null,"Cécile Defrance","2010-04-19","Sénégal"]

{"sheet":"RésultatsFiltres_Solution","index":30,"n_rows":47,"n_cols":13,"rows_kept":47,"cut":false,"hidden":false,"merged":[]}
["Sur la feuille 'RésultatsFiltres', assembler tous les résultats des Query A, B et C sur une seule feuille",null,null,null,null,null,null,null,null,null,null,null,"Retour sommaire"]
[]
[]
[null,"Nom","Date d'entrée","Pays d'origine"]
[null,"Akhenaton","2010-04-14","Guinée"]
[null,"Alain Bashung","2010-05-12","Algérie"]
[null,"Alain Chamfort","2010-05-12","Maroc"]
[null,"Alain Chamfort","2010-05-12","Maroc"]
[null,"Alain Souchon","2010-08-26","Algérie"]
[null,"Aldebert","2010-04-19","Guinée"]
[null,"Alexis HK","2010-05-12","Cameroun"]
[null,"Alexis HK","2010-05-12","Cameroun"]
[null,"Alibi Montana","2010-05-12","Syrie"]
[null,"Amel Bent","2010-04-19","Congo"]
[null,"Anitta","2010-12-12","Brésil"]
[null,"Antoine","2010-08-20","Cameroun"]
[null,"Arno","2010-04-20","Belgique"]
[null,"Arthur H","2010-05-04","Congo"]
[null,"Arthur H","2010-05-04","Congo"]
[null,"Axelle Red","2010-04-30","Géorgie"]
[null,"Bernard Lavilliers","2010-05-31","Maroc"]
[null,"Bernard Lavilliers","2010-05-31","Maroc"]
[null,"Bertrand Burgalat","2010-05-04","Maroc"]
[null,"Bertrand Burgalat","2010-05-04","Maroc"]
[null,"Bob Sinclar","2010-04-30","Bangladesh"]
[null,"Bénabar","2010-08-30","Congo"]
[null,"Cali","2010-08-30","Maroc"]
[null,"Calogero","2010-05-27","Equateur"]
[null,"Charles Aznavour","2010-04-30","Colombie"]
[null,"Charlélie Couture","2010-05-04","Belgique"]
[null,"Christophe Maé","2010-09-02","Rwanda"]
[null,"Christophe Willem","2010-05-31","Cameroun"]
[null,"Christophe Willem","2010-05-31","Cameroun"]
[null,"Corneille","2010-05-04","Turquie"]
[null,"Corneille","2010-05-04","Turquie"]
[null,"Cécile Defrance","2010-04-19","Sénégal"]
[null,"Doc Gynéco","2010-05-31","Turquie"]
[null,"Faudel","2010-05-31","Maroc"]
[null,"Frank Alamo","2010-05-31","Cameroun"]
[null,"Gérard Blanchard","2010-05-07","Cameroun"]
[null,"Jacques Higelin","2010-05-12","Maroc"]
[null,"Julien Baer","2010-05-12","Maroc"]
[null,"Pascal Obispo","2010-05-12","Maroc"]
[null,"Roch Voisine","2010-05-10","Cameroun"]
[null,"Stomy Bugsy","2010-05-07","Congo"]
[null,"Thomas Fersen","2010-05-12","Maroc"]
[null,"Yann Tiersen","2010-05-12","Maroc"]

{"sheet":"Feuil2","index":31,"n_rows":0,"n_cols":0,"rows_kept":0,"cut":false,"hidden":false,"merged":[]}

{"sheet":"TCD_A_Solution","index":32,"n_rows":9,"n_cols":13,"rows_kept":9,"cut":false,"hidden":false,"merged":[]}
["Sur la feuille TCD_A, utilisez tabDatasBDD et tabDatasListe de façon à obtenir le nombre d'habitants par province dans un TCD",null,null,null,null,null,null,null,null,null,null,null,"Retour sommaire"]
[]
[]
[]
[null,"Étiquettes de lignes","Nombre de Nom",null,"=> La relation créée peut être visualisée et modifiée via le ruban d'analyse du TCD .. Relations"]
[null,"Brabant flamand",5]
[null,"Brabant wallon",1]
[null,"Bruxelles",90]
[null,"Total général",96]

{"sheet":"BddComplète_Solution","index":33,"n_rows":104,"n_cols":20,"rows_kept":104,"cut":false,"hidden":false,"merged":[]}
["Sur la feuille 'BddComplète', en utilisant Power Query, assembler les colonnes des listes 'DatasBDD' et 'DatasListe'",null,null,null,null,null,null,null,null,null,null,null,"Retour sommaire"]
[null,"de façon à ajouter à la liste des personnes la commune dans la colonne des communes et la province en première colonne "]
[]
[]
[null,"NB : Le tableau 'DatasListe' est utilisé comme source d'une requête avant de faire le travail"]
[]
[]
["Province","Nom","Date d'entrée","Sexe","État civil","Rue","Nr","CP","Commune1","Commune1Def","Commune","Commune via Power Query","Date de naissance","Âge","Date de 65 ans","Date de 65 ans (2)","65 ans","Catégorie","Pays d'origine","Nombre d'enfants"]
["Bruxelles","Akhenaton","2010-04-14","m","Divocé(e)","Avenue Claeys",10,1030,3,"Schaerbeek","Schaerbeek","Schaerbeek","1980-11-22",43,"2045-11-22T08:16:43.162","2045-11-22",65,"B","Guinée"]
["Bruxelles","Arno","2010-04-20","m","Célibataire","Rue de Linthout",23,1030,3,"Schaerbeek","Schaerbeek","Schaerbeek","1972-09-01",51,"2037-09-01T22:48:12.230","2037-09-01",65,"A","Belgique"]
["Bruxelles","Faudel","2010-05-31","m","Marié(e)","Rue Renkin",333,1030,3,"Schaerbeek","Schaerbeek","Schaerbeek","1988-12-19",35,"2053-12-19T11:50:29.744","2053-12-19",65,"B","Maroc"]
["Bruxelles","Hubert-Félix Thiéfaine","2010-05-12","m","Divocé(e)","Rue Jean Debien",14,1030,3,"Schaerbeek","Schaerbeek","Schaerbeek","1975-09-21",48,"2040-09-21T23:29:12.298","2040-09-21",65,"B","Guinée conakry",4]
["Bruxelles","Pascal Mono","2010-06-22","m","Marié(e)","Rue Chaumontel",78,1030,3,"Schaerbeek","Schaerbeek","Schaerbeek","1962-06-01",62,"2027-06-01T17:32:48.477","2027-06-01",65,"A","Maroc",5]
["Bruxelles","Stephan Eicher","2010-06-22","m","Célibataire","Place Eugène Verboekhoven",40,1030,3,"Schaerbeek","Schaerbeek","Schaerbeek","1983-02-02",41,"2048-02-02T03:23:52.272","2048-02-02",65,"B","Togo"]
["Bruxelles","Arthur H","2010-05-04","m","Divocé(e)","Chaussée de Haecht",300,1030,3,"Schaerbeek","Schaerbeek","Schaerbeek","1960-04-04",64,"2025-04-04T21:42:23.658","2025-04-04",65,"A","Congo"]
["Bruxelles","Bertrand Burgalat","2010-05-04","m","Divocé(e)","Rue potagère",165,1030,3,"Schaerbeek","Schaerbeek","Schaerbeek","1971-12-20",52,"2036-12-20T11:27:41.776","2036-12-20",65,"A","Maroc",2]
["Bruxelles","Charlélie Couture","2010-05-04","m","Cohabitant(e)","Rue Ernest Discailliens",22,1030,3,"Schaerbeek","Schaerbeek","Schaerbeek","1973-08-13",50,"2038-08-13T17:55:47.775","2038-08-13",65,"A","Belgique"]
["Bruxelles","Corneille","2010-05-04","m","Cohabitant(e)","Rue de Navez",23,1030,3,"Schaerbeek","Schaerbeek","Schaerbeek","1982-09-20",41,"2047-09-20T06:47:56.053","2047-09-20",65,"B","Turquie",1]
["Bruxelles","Eddy Mitchell","2010-05-04","m",null,"Edouard Stuckens",78,1030,3,"Schaerbeek","Schaerbeek","Schaerbeek","1977-08-15",46,"2042-08-15T10:14:25.057","2042-08-15",65,"B","France",4]
["Bruxelles","Julien Baer","2010-05-12","m",null,"Rue de Locht",96,1030,3,"Schaerbeek","Schaerbeek","Schaerbeek","1983-01-01",41,"2047-12-31T13:50:20.413","2048-01-01",65,"B","Maroc"]
["Bruxelles","Garou","2010-06-22","m",null,"Rue du petit rempart",52,1000,1,"Bruxelles","Bruxelles","Bruxelles","1963-10-04",60,"2028-10-04T06:51:57.776","2028-10-04",65,"A",null,1]
["Bruxelles","Gilbert Montagné","2010-06-22","m",null,"Chaussée d'Anvers",55,1000,1,"Bruxelles","Bruxelles","Bruxelles","1980-09-27",43,"2045-09-27T04:20:18.594","2045-09-27",65,"B","Belgique",2]
["Bruxelles","Aldebert","2010-04-19","m","Marié(e)","Rue de Rudder",20,1080,8,"Molenbeek","Molenbeek","Molenbeek","1980-02-12",44,"2045-02-12T15:23:39.061","2045-02-12",65,"B","Guinée",1]
["Bruxelles","Bernard Lavilliers","2010-05-31","m","Célibataire","Rue du Maroquin",22,1080,8,"Molenbeek","Molenbeek","Molenbeek","1976-06-17",47,"2041-06-17T20:42:43.658","2041-06-17",65,"B","Maroc"]
["Bruxelles","Frank Alamo","2010-05-31","m","Divocé(e)","Rue Vandenboogaerde",66,1080,8,"Molenbeek","Molenbeek","Molenbeek","1978-08-19",45,"2043-08-19T08:30:36.096","2043-08-19",65,"B","Cameroun"]
["Bruxelles","Jean-Louis Aubert","2010-06-14","m","Marié(e)","Pierre Jean Demessemaker",158,1080,8,"Molenbeek","Molenbeek","Molenbeek","1969-05-17",55,"2034-05-17T12:10:07.183","2034-05-17",65,"A","Congo",2]
["Bruxelles","Jacques Higelin","2010-05-12","m",null,"Rue de choeur",87,1080,8,"Molenbeek","Molenbeek","Molenbeek","1969-01-01",55,"2033-12-31T09:04:56.889","2034-01-01",65,"A","Maroc"]
["Bruxelles","Michel Fugain","2010-06-22","m","Marié(e)","Rue du champ de la couronne",222,1020,2,"Laeken","Laeken","Laeken","1970-12-12",53,"2035-12-12T04:47:02.739","2035-12-12",65,"A","Togo",2]
["Bruxelles","Calogero","2010-05-27","m","Célibataire","Rue du vanderschrick",152,1060,6,"Saint Gilles","Saint Gilles","Saint Gilles","1991-12-11",32,"2056-12-11T15:42:24.017","2056-12-11",65,"B","Equateur"]
["Bruxelles","Estelle Hallyday","2010-06-14","f","Marié(e)","Avenue Crikx",111,1060,6,"Saint Gilles","Saint Gilles","Saint Gilles","1981-03-15",43,"2046-03-15T13:01:53.310","2046-03-15",65,"B","Congo"]
["Bruxelles","Christophe Willem","2010-05-31","m","Marié(e)","Rue Ferdinand Craps",35,1070,7,"Anderlecht","Anderlecht","Anderlecht","1980-06-15",43,"2045-06-15T02:50:35.663","2045-06-15",65,"B","Cameroun"]
["Bruxelles","Doc Gynéco","2010-05-31","m","Marié(e)","Rue aux bois",42,1150,13,"Woluwé-Saint-Pierre","Woluwé-Saint-Pierre","Woluwé-Saint-Pierre","1981-04-13",43,"2046-04-13T16:03:54.061","2046-04-13",65,"B","Turquie"]
["Bruxelles","Gérard Blanchard","2010-05-07","m","Divocé(e)","Rue de la stratégie ",33,1160,14,"Auderghem","Auderghem","Auderghem","1977-09-25",46,"2042-09-25T00:40:00.794","2042-09-25",65,"B","Cameroun"]
["Bruxelles","Jean-Louis Murat","2010-05-12","m",null,"Rue de l'aérodrome",85,1130,11,"Haren","Haren","Haren","1967-05-05",57,"2032-05-05T12:11:07.686","2032-05-05",65,"A","Yougoslavie"]
["Bruxelles","Matthieu Chedid","2010-06-22","m","Marié(e)","Frans van Cutsen",26,1140,12,"Evere","Evere","Evere","1970-11-18",53,"2035-11-18T18:13:28.342","2035-11-18",65,"A","Cameroun",2]
["Bruxelles","Kent","2010-06-15","m","Marié(e)","Avenue Georges Henri",10,1200,16,"Woluwé-Saint-Lambert","Woluwé-Saint-Lambert","Woluwé-Saint-Lambert","1969-12-14",54,"2034-12-14T09:39:49.435","2034-12-14",65,"A","Cameroun",1]
["Bruxelles","Richard Anthony","2010-07-06","m","Marié(e)","Dédale du campanil",52,1200,16,"Woluwé-Saint-Lambert","Woluwé-Saint-Lambert","Woluwé-Saint-Lambert","1971-04-02",53,"2036-04-02T01:24:42.981","2036-04-02",65,"A","Congo"]
["Bruxelles","Alexis HK","2010-05-12","m","Divocé(e)","Martin 5",56,1200,16,"Woluwé-Saint-Lambert","Woluwé-Saint-Lambert","Woluwé-Saint-Lambert","1980-02-15",44,"2045-02-15T01:38:14.499","2045-02-15",65,"B","Cameroun"]
["Brabant wallon","Mano Solo","2010-06-22","m","Marié(e)","Bergensesteenweeg",258,1500,18,"Wavre","Wavre","Wavre","1973-04-14",51,"2038-04-14T12:39:54.356","2038-04-14",65,"A","Maroc",4]
["Bruxelles","Thomas Fersen","2010-05-12","m","Célibataire","Chaussée de Louvain",100,1210,17,"Saint-Josse-Ten-noode","Saint-Josse-Ten-noode","Saint-Josse-Ten-noode","1954-03-05",70,"2019-03-05T18:42:19.835","2019-03-05",65,"A","Maroc"]
["Bruxelles","Yann Tiersen","2010-05-12","m","Célibataire","Rue verte",70,1210,17,"Saint-Josse-Ten-noode","Saint-Josse-Ten-noode","Saint-Josse-Ten-noode","1950-04-16",74,"2015-04-16T02:55:12.195","2015-04-16",65,"A","Maroc",6]
["Bruxelles","Alain Bashung","2010-05-12","m","Divocé(e)","Du Vallon",56,1210,17,"Saint-Josse-Ten-noode","Saint-Josse-Ten-noode","Saint-Josse-Ten-noode","1964-01-28",60,"2029-01-28T12:03:09.553","2029-01-28",65,"A","Algérie",5]
["Bruxelles","Florent Pagny","2010-04-30","m",null,"Joseph Dekeyn",85,1210,17,"Saint-Josse-Ten-noode","Saint-Josse-Ten-noode","Saint-Josse-Ten-noode","1963-10-03",60,"2028-10-03T06:02:58.535","2028-10-03",65,"A","Armenie"]
["Brabant flamand","Vanessa Paradis","2010-07-13","f","Marié(e)","Kalkoven",80,1730,19,"Asse","Asse","Asse","1966-09-03",57,"2031-09-03T16:11:21.429","2031-09-03",65,"A","Congo"]
["Bruxelles","Cécile Defrance","2010-04-19","f",null,"Avenue de la couronne",66,1050,5,"Ixelles","Ixelles","Ixelles","1963-09-12",60,"2028-09-12T01:07:46.967","2028-09-12",65,"A","Sénégal",2]
["Bruxelles","Amel Bent","2010-04-19","f",null,"Henri Strauven",36,1200,16,"Woluwé-Saint-Lambert","Woluwé-Saint-Lambert","Woluwé-Saint-Lambert","1980-04-27",44,"2045-04-27T00:29:44.538","2045-04-27",65,"B","Congo"]
["Bruxelles","Maxime Le Forestier","2010-04-28","m",null,"Boulevard Emile Bockstael",5,1020,2,"Laeken","Laeken","Laeken","1986-06-15",37,"2051-06-15T12:49:21.117","2051-06-15",65,"B","Abidjan"]
["Brabant flamand","Michel Jonasz","2010-05-12","m",null,"Rue aux bois",85,1950,22,"Krainem","Krainem","Krainem","1984-12-24",39,"2049-12-24T05:38:43.110","2049-12-24",65,"B","Nigeria",2]
["Bruxelles","Pascal Obispo","2010-05-12","m",null,"Gustave Huberti",55,1030,3,"Schaerbeek","Schaerbeek","Schaerbeek","1971-05-23",53,"2036-05-23T22:40:46.432","2036-05-23",65,"A","Maroc"]
["Bruxelles","Sandra Kim","2010-05-12","f",null,"Avenue de la couronne",14,1050,5,"Ixelles","Ixelles","Ixelles","1964-11-03",59,"2029-11-03T05:13:48.236","2029-11-03",65,"A","Sénégal",2]
["Bruxelles","Roch Voisine","2010-05-10","m",null,"Léon Doperie",36,1090,10,"Jette","Jette","Jette","1978-02-28",46,"2043-02-28T22:10:46.643","2043-02-28",65,"B","Cameroun"]
["Bruxelles","Stomy Bugsy","2010-05-07","m",null,"Rue de l'Ourthe",254,1080,8,"Molenbeek","Molenbeek","Molenbeek","1980-10-10",43,"2045-10-10T14:19:29.715","2045-10-10",65,"B","Congo"]
["Bruxelles","Tonton David","2010-05-07","m",null,"Rue Vanderschrick",88,1060,6,"Saint Gilles","Saint Gilles","Saint Gilles","1964-12-05",59,"2029-12-05T03:08:55.891","2029-12-05",65,"A","Equateur"]
["Bruxelles","Yannick Noah","2010-04-30","m",null,"Avenue Jacobs Fontaine",99,1020,2,"Laeken","Laeken","Laeken","1978-11-11",45,"2043-11-11T14:09:27.369","2043-11-11",65,"B","Congo"]
["Bruxelles","Alain Chamfort","2010-05-12","m",null,"Rue Wayez",33,1070,7,"Anderlecht","Anderlecht","Anderlecht","1971-10-11",52,"2036-10-11T22:10:36.579","2036-10-11",65,"A","Maroc"]
["Bruxelles","Alibi Montana","2010-05-12","m",null,"Rue Rogier",78,1030,3,"Schaerbeek","Schaerbeek","Schaerbeek","1968-09-04",55,"2033-09-04T07:19:10.179","2033-09-04",65,"A","Syrie"]
["Bruxelles","Axelle Red","2010-04-30","f",null,"Rue hydrolique",56,1210,17,"Saint-Josse-Ten-noode","Saint-Josse-Ten-noode","Saint-Josse-Ten-noode","1984-03-13",40,"2049-03-13T05:56:27.553","2049-03-13",65,"B","Géorgie"]
["Bruxelles","Bob Sinclar","2010-04-30","m",null,"Rue de l'inquisition",8,1000,1,"Bruxelles","Bruxelles","Bruxelles","1968-09-24",55,"2033-09-24T18:50:36.032","2033-09-24",65,"A","Bangladesh"]
["Bruxelles","Charles Aznavour","2010-04-30","m",null,"Avenue Emile Zola",78,1030,3,"Schaerbeek","Schaerbeek","Schaerbeek","1984-12-24",39,"2049-12-24T20:09:18.643","2049-12-24",65,"B","Colombie"]
["Bruxelles","David Hallyday","2010-05-15","m",null,"Rue Wautier",41,1020,2,"Laeken","Laeken","Laeken","1969-02-10",55,"2034-02-10T01:26:07.807","2034-02-10",65,"A","Syrie"]
["Bruxelles","Étienne Daho","2010-05-12","m",null,"Rue de Deux Eglises",10,1000,1,"Bruxelles","Bruxelles","Bruxelles","1988-04-10",36,"2053-04-10T16:51:32.126","2053-04-10",65,"B","Guinée"]
["Bruxelles","Francis Cabrel","2010-06-14","m",null,"Rue Rinken",63,1030,3,"Schaerbeek","Schaerbeek","Schaerbeek","1963-03-25",61,"2028-03-25T03:42:43.203","2028-03-25",65,"A","Maroc",3]
["Bruxelles","Margueritte Duras","2010-04-28","f",null,"Rue Brogniez",7,1070,7,"Anderlecht","Anderlecht","Anderlecht","1958-05-07",66,"2023-05-07T14:26:11.677","2023-05-07",65,"A","Angola"]
["Bruxelles","Grand Corps Malade","1960-04-28","m",null,"Rue Brogniez",99,1070,7,"Anderlecht","Anderlecht","Anderlecht","1960-09-14",63,"2025-09-14T06:39:43.092","2025-09-14",65,"A","Togo",2]
["Bruxelles","Jean Bart","2010-04-23","m",null,"Rue Saint Bernard",44,1060,6,"Saint Gilles","Saint Gilles","Saint Gilles","1960-09-28",63,"2025-09-28T12:08:38.553","2025-09-28",65,"A","Congo",5]
["Bruxelles","Jean-Luc Lahaye","2010-04-22","m",null,"Rue de Haeck",5,1080,8,"Molenbeek","Molenbeek","Molenbeek","1968-03-03",56,"2033-03-03T09:54:46.862","2033-03-03",65,"A","Congo",3]
["Bruxelles","Julien Clerc","2010-04-26","m",null,"Chemin des deux maisons",88,1200,16,"Woluwé-Saint-Lambert","Woluwé-Saint-Lambert","Woluwé-Saint-Lambert","1979-06-02",45,"2044-06-02T14:31:02.118","2044-06-02",65,"B","Cameroun"]
["Brabant flamand","Laurent Voulzy","2010-04-19","m",null,"Leuvensesteegweg",41,3080,23,"Tervuren","Tervuren","Tervuren","1975-08-23",48,"2040-08-23T20:19:12.597","2040-08-23",65,"B","Congo",1]
["Brabant flamand","Marylou Str","2010-07-13","f",null,"Kleine Gestraat",22,1930,21,"Zaventem","Zaventem","Zaventem","1973-09-15",50,"2038-09-15T15:17:14.338","2038-09-15",65,"A","Cameroun",3]
["Bruxelles","MC Solaar","2010-08-17","m",null,"Rue Nicolas Doyen",12,1080,8,"Molenbeek","Molenbeek","Molenbeek","1982-03-23",42,"2047-03-23T13:36:26.953","2047-03-23",65,"B","Congo",2]
["Bruxelles","Michel Sardou","2010-08-17","m",null,"Jacobs Fontaine",4,1020,2,"Laeken","Laeken","Laeken","1985-08-13",38,"2050-08-13T15:19:12.011","2050-08-13",65,"B","Congo",1]
["Bruxelles","Patrick Bruel","2010-08-23","m",null,"Chaussée d'Ath",99,1030,3,"Schaerbeek","Schaerbeek","Schaerbeek","1973-04-13",51,"2038-04-13T11:42:47.269","2038-04-13",65,"A","Congo",3]
["Bruxelles","Raphaël","2010-08-23","m",null,"Géneral Molitor",66,1040,4,"Etterbeek","Etterbeek","Etterbeek","1986-05-06",38,"2051-05-06T10:17:41.393","2051-05-06",65,"B","Belgique",1]
["Bruxelles","Sévérine Inconnue","2010-08-23","f",null,"Avenue Gustave Latinis",74,1030,3,"Schaerbeek","Schaerbeek","Schaerbeek","1974-04-07",50,"2039-04-07T22:25:27.253","2039-04-07",65,"A","Corée",1]
["Bruxelles","Tété","2010-08-24","m",null,"Léon Mignon",25,1030,3,"Schaerbeek","Schaerbeek","Schaerbeek","1989-01-25",35,"2054-01-25T21:01:45.062","2054-01-25",65,"B","Belgique"]
["Brabant flamand","Vincent Delerm","2010-08-20","m",null,"Rue d'Italie",63,1800,20,"Vilvoorde","Vilvoorde","Vilvoorde","1983-07-02",40,"2048-07-02T00:42:30.892","2048-07-02",65,"B","Cameroun",2]
["Bruxelles","Alain Souchon","2010-08-26","m",null,"Géneral Molitor",74,1040,4,"Etterbeek","Etterbeek","Etterbeek","1983-04-19",41,"2048-04-19T13:52:30.775","2048-04-19",65,"B","Algérie"]
["Bruxelles","Antoine","2010-08-20","m",null,"Rue du Trône",14,1050,5,"Ixelles","Ixelles","Ixelles","1969-09-01",54,"2034-09-01T11:09:29.972","2034-09-01",65,"A","Cameroun"]
["Bruxelles","Bénabar","2010-08-30","m",null,"Square Armand Steurs",12,1210,17,"Saint-Josse-Ten-noode","Saint-Josse-Ten-noode","Saint-Josse-Ten-noode","1979-02-26",45,"2044-02-26T04:55:56.439","2044-02-26",65,"B","Congo"]
["Bruxelles","Cali","2010-08-30","m",null,"Chaussée de Mons",41,1070,7,"Anderlecht","Anderlecht","Anderlecht","1978-09-05",45,"2043-09-05T21:42:24.322","2043-09-05",65,"B","Maroc"]
["Bruxelles","Christophe Maé","2010-09-02","m",null,"Chaussée d'alsemberg",111,1180,15,"Uccle","Uccle","Uccle","1970-09-25",53,"2035-09-25T21:04:30.814","2035-09-25",65,"A","Rwanda",2]
["Bruxelles","Didier Super","2010-09-06","m",null,"Rue Du grand-Duc",11,1040,4,"Etterbeek","Etterbeek","Etterbeek","1973-02-02",51,"2038-02-02T13:49:04.987","2038-02-02",65,"A","Sénégal"]
["Bruxelles","Faf Larage","2010-09-07","m",null,"Avenue Louis Ceuster",256,1150,13,"Woluwé-Saint-Pierre","Woluwé-Saint-Pierre","Woluwé-Saint-Pierre","1976-03-17",48,"2041-03-17T08:46:51.163","2041-03-17",65,"B","Angola",3]
["Bruxelles","Francisca Lalanne","2010-07-13","f",null,"Rue Borgval",36,1000,1,"Bruxelles","Bruxelles","Bruxelles","1973-06-24",50,"2038-06-24T07:56:43.868","2038-06-24",65,"A","Algérie"]
["Bruxelles","Gérald De Palmas","2010-09-28","m",null,"Du Chapitre",65,1070,7,"Anderlecht","Anderlecht","Anderlecht","1983-12-20",40,"2048-12-20T14:03:12.059","2048-12-20",65,"B","Côte d'Ivoire"]
["Bruxelles","Grégory Lemarchal","2010-09-27","m",null,"Moorsled",587,1020,2,"Laeken","Laeken","Laeken","1973-09-13",50,"2038-09-13T11:48:00.054","2038-09-13",65,"A","Belgique"]
["Bruxelles","Jean-Jacques Goldman","2010-10-01","m",null,"Marcelle Gruner",25,1080,8,"Molenbeek","Molenbeek","Molenbeek","1974-06-27",49,"2039-06-27T09:36:09.541","2039-06-27",65,"B","Cameroun"]
["Bruxelles","Jérémy Chatelain","2010-10-01","m",null,"Rue d'Albanie",55,1160,14,"Auderghem","Auderghem","Auderghem","1955-02-22",69,"2020-02-22T09:12:24.963","2020-02-22",65,"A","Equateur",4]
["Bruxelles","Kamini","2010-09-27","m",null,"Avenue de Koekelberg",35,1082,9,"Berchem-Sainte-Agathe","Berchem-Sainte-Agathe","Berchem-Sainte-Agathe","1981-07-14",42,"2046-07-14T13:04:41.700","2046-07-14",65,"B","Cameroun"]
["Bruxelles","Louis Bertignac","2010-09-28","m",null,"Avenue de Koekelberg",856,1082,9,"Berchem-Sainte-Agathe","Berchem-Sainte-Agathe","Berchem-Sainte-Agathe","1955-02-22",69,"2020-02-22T06:38:08.653","2020-02-22",65,"A"]
["Bruxelles","Matt Pokora","2010-10-12","m",null,"Rue Masoui",584,1030,3,"Schaerbeek","Schaerbeek","Schaerbeek","1971-10-01",52,"2036-10-01T11:11:22.811","2036-10-01",65,"A","Congo"]
["Bruxelles","Michel Delpech","2010-10-12","m",null,"BLD Maurice Karen",452,1070,7,"Anderlecht","Anderlecht","Anderlecht","1981-08-24",42,"2046-08-24T15:24:23.707","2046-08-24",65,"B","Cuba"]
["Bruxelles","Miossec","2010-10-12","m",null,"Eugène Plasky",25,1030,3,"Schaerbeek","Schaerbeek","Schaerbeek","1965-08-25",58,"2030-08-25T22:24:31.337","2030-08-25",65,"A","Congo"]
["Bruxelles","Patricia Fiori","2010-10-08","f",null,"Chaussée d'Hacht",2,1030,3,"Schaerbeek","Schaerbeek","Schaerbeek","1976-09-15",47,"2041-09-15T05:53:04.289","2041-09-15",65,"B","Cameroun"]
["Bruxelles","Renaud","2010-10-09","m",null,"BLD Maurice Karen",452,1070,7,"Anderlecht","Anderlecht","Anderlecht","1968-03-03",56,"2033-03-03T09:59:42.202","2033-03-03",65,"A","Congo"]
["Bruxelles","Serge Lama","2010-10-10","m",null,"Rue Borgval",36,1000,1,"Bruxelles","Bruxelles","Bruxelles","1979-06-02",45,"2044-06-02T15:54:07.740","2044-06-02",65,"B","Cuba"]
["Bruxelles","Thierry Amiel","2010-10-11","m",null,"Rue Borgval",36,1000,1,"Bruxelles","Bruxelles","Bruxelles","1975-08-23",48,"2040-08-23T16:36:00.339","2040-08-23",65,"B","Congo"]
["Bruxelles","William Sheller","2010-10-12","m",null,"Square Armand Steurs",12,1210,17,"Saint-Josse-Ten-noode","Saint-Josse-Ten-noode","Saint-Josse-Ten-noode","1973-09-15",50,"2038-09-15T09:44:47.685","2038-09-15",65,"A","Cameroun"]
["Bruxelles","Damso","2010-04-01","m",null,"Chaussée d'Hacht",36,1030,3,"Schaerbeek","Schaerbeek","Schaerbeek","1991-09-09",32,"2056-09-09T22:43:40.021","2056-09-09",65,"B","Chine"]
["Bruxelles","Daniel Balavoine","2010-08-02","m",null,"Avenue Chazal",5,1030,3,"Schaerbeek","Schaerbeek","Schaerbeek","1970-07-08",53,"2035-07-08T13:46:16.396","2035-07-08",65,"A","Ukraine"]
["Bruxelles","Anitta","2010-12-12","f",null,"Avenue Chazal",66,1030,3,"Schaerbeek","Schaerbeek","Schaerbeek","1996-08-09",27,"2061-08-09T02:16:01.727","2061-08-09",65,"B","Brésil"]
["Bruxelles","Leo Santana","2010-10-12","m",null,"Rue Masoui",50,1030,3,"Schaerbeek","Schaerbeek","Schaerbeek","1965-07-08",58,"2030-07-08T09:36:31.514","2030-07-08",65,"A","Brésil"]
["Bruxelles","Ivete Sangalo","2010-04-06","f",null,"Eugène Plasky",88,1030,3,"Schaerbeek","Schaerbeek","Schaerbeek","1988-09-09",35,"2053-09-09T13:03:14.145","2053-09-09",65,"B","Brésil"]
["Bruxelles","Nemo","2010-12-31","m",null,"Avenue Dailly",120,1030,3,"Schaerbeek","Schaerbeek","Schaerbeek","2001-05-08",23,"2066-05-08T02:39:33.269","2066-05-08",65,"B","Suisse"]

{"sheet":"TCD_B_Solution","index":34,"n_rows":9,"n_cols":13,"rows_kept":9,"cut":false,"hidden":false,"merged":[]}
["Sur la feuille TCD_B, créez un TCD donnant le nombre de personnes arrivées par trimestre en 2010",null,null,null,null,null,null,null,null,null,null,null,"Retour sommaire"]
[]
[]
[null,"Étiquettes de lignes","Nombre de Nom"]
[null,"2010",96]
[null,"Trimestre2",60]
[null,"Trimestre3",23]
[null,"Trimestre4",13]
[null,"Total général",96]

{"sheet":"TCD_C_Solution","index":35,"n_rows":9,"n_cols":13,"rows_kept":9,"cut":false,"hidden":false,"merged":[]}
["Sur la feuille TCD_C, créez un TCD donnant le nombre de personnes de 20 à 30 ans, de 30 à 40 ans, de 40 à 50 ans et de plus de 50 ans",null,null,null,null,null,null,null,null,null,null,null,"Retour sommaire"]
[]
[]
[null,"Étiquettes de lignes","Nombre de Nom"]
[null,"20-29",2]
[null,"30-39",11]
[null,"40-50",41]
[null,">50",42]
[null,"Total général",96]

{"sheet":"TCD_D_Solution","index":36,"n_rows":37,"n_cols":13,"rows_kept":37,"cut":false,"hidden":false,"merged":[]}
["Sur la feuille TCD_D, listez les pays d'origine et calculez le nombre de personnes et l'âge moyen par pays en utilisant les fonctions classiques",null,null,null,null,null,null,null,null,null,null,null,"Retour sommaire"]
["Réalisez la même chose en utilisant les TCD"]
["Réalisez la même chose en utilisant Power Query"]
[]
[]
[null,null,null,null,"Étiquettes de lignes","Nombre de Nom",null,"Pays d'origine","Nombre"]
[null,{"$f":"_xlfn.UNIQUE(_xlfn._xlws.SORT(_xlfn._xlws.FILTER(Solution_tabDatasBDD[Pays d''origine],Solution_tabDatasBDD[Pays d''origine]<>\"\")))","v":"Abidjan"},{"$f":"COUNTIF(Solution_tabDatasBDD[Pays d''origine],_xlfn.ANCHORARRAY(TCD_D_Solution!B7))","v":1},null,"Abidjan",1,null,null,2]
[null,"Algérie",3,null,"Algérie",3,null,"Abidjan",1]
[null,"Angola",2,null,"Angola",2,null,"Algérie",3]
[null,"Armenie",1,null,"Armenie",1,null,"Angola",2]
[null,"Bangladesh",1,null,"Bangladesh",1,null,"Armenie",1]
[null,"Belgique",6,null,"Belgique",6,null,"Bangladesh",1]
[null,"Brésil",3,null,"Brésil",3,null,"Belgique",6]
[null,"Cameroun",15,null,"Cameroun",15,null,"Brésil",3]
[null,"Chine",1,null,"Chine",1,null,"Cameroun",15]
[null,"Colombie",1,null,"Colombie",1,null,"Chine",1]
[null,"Congo",19,null,"Congo",19,null,"Colombie",1]
[null,"Corée",1,null,"Corée",1,null,"Congo",19]
[null,"Côte d'Ivoire",1,null,"Côte d'Ivoire",1,null,"Corée",1]
[null,"Cuba",2,null,"Cuba",2,null,"Cuba",2]
[null,"Equateur",3,null,"Equateur",3,null,"Côte d'Ivoire",1]
[null,"France",1,null,"France",1,null,"Equateur",3]
[null,"Géorgie",1,null,"Géorgie",1,null,"France",1]
[null,"Guinée",3,null,"Guinée",3,null,"Guinée",3]
[null,"Guinée conakry",1,null,"Guinée conakry",1,null,"Guinée conakry",1]
[null,"Maroc",13,null,"Maroc",13,null,"Géorgie",1]
[null,"Nigeria",1,null,"Nigeria",1,null,"Maroc",13]
[null,"Rwanda",1,null,"Rwanda",1,null,"Nigeria",1]
[null,"Sénégal",3,null,"Sénégal",3,null,"Rwanda",1]
[null,"Suisse",1,null,"Suisse",1,null,"Suisse",1]
[null,"Syrie",2,null,"Syrie",2,null,"Syrie",2]
[null,"Togo",3,null,"Togo",3,null,"Sénégal",3]
[null,"Turquie",2,null,"Turquie",2,null,"Togo",3]
[null,"Ukraine",1,null,"Ukraine",1,null,"Turquie",2]
[null,"Yougoslavie",1,null,"Yougoslavie",1,null,"Ukraine",1]
[null,null,null,null,"(vide)",2,null,"Yougoslavie",1]
[null,null,null,null,"Total général",96]